Workbook

Sheet Simulador
S1: - | AT1: -
Q2: Simulador Pago de Pasivos
P3: =TODAY() -> 2024-03-22
T5: Vivienda
B6: Solicitante | H6: Opciones de crédito | T6: Crédito | Z6: Tasas de interés | AM6: Avalúo | AR6: El cálculo es sobre el importe del crédito
B7: Nombre | H7: Esquema de pagos | J7: V A L O R A | N7: P A G O S O P O R T U N O S | T7: Plazo restante actual | Y7: IR | Z7: Valora 10 a | AA7: =AA57 -> 1 | AB7: PxM | AC7: Icr Anual | AD7: Valora 15 a | AE7: =AA57 -> 1 | AF7: PxM | AG7: Icr Anual | AH7: Valora 20 a | AI7: =AA57 -> 1 | AJ7: PxM | AK7: Icr Anual | AM7: De | AN7: A | AO7: Actual | AP7: Switch | AR7: GASTOS DE INSCRIPCION - PAGO DE PASIVOS
B8: Teléfono | H8: Plazo contractual | J8: 10 años | K8: 15 años | L8: 20 años | N8: 7 años | O8: 10 años | P8: 15 años | Q8: 20 años | U8: años | V8: =TRUNC(+F17/12) -> 0 | W8: Seguros externos | X8: 2 | Y8: =IF(AA7=1,Y49,IF(AA7=2,Y51,IF(AA7=3,Y53,"ElegirTasa"))) -> 1+ | Z8: =AA7 -> 1 | AA8: =IF(AA7=1,AA49,IF(AA7=2,AA51,IF(AA7=3,AA53,"ElegirTasa"))) -> 0.1025 | AB8: =IF(AA7=1,AB49,IF(AA7=2,AB51,IF(AA7=3,AB53,"ElegirTasa"))) -> 12.38 | AC8: =IF(AA7=1,AC49,IF(AA7=2,AC51,IF(AA7=3,AC53,"ElegirTasa"))) -> 0.026 | AD8: =AE7 -> 1 | AE8: =IF(AE7=1,AE49,IF(AE7=2,AE51,IF(AE7=3,AE53,"ElegirTasa"))) -> 0.1025 | AF8: =IF(AE7=1,AF49,IF(AE7=2,AF51,IF(AE7=3,AF53,"ElegirTasa"))) -> 9.93 | AG8: =IF(AE7=1,AG49,IF(AE7=2,AG51,IF(AE7=3,AG53,"ElegirTasa"))) -> 0.026 | AH8: =AI7 -> 1 | AI8: =IF(AI7=1,AI49,IF(AI7=2,AI51,IF(AI7=3,AI53,"ElegirTasa"))) -> 0.1025 | AJ8: =IF(AI7=1,AJ49,IF(AI7=2,AJ51,IF(AI7=3,AJ53,"ElegirTasa"))) -> 8.86 | AK8: =IF(AI7=1,AK49,IF(AI7=2,AK51,IF(AI7=3,AK53,"ElegirTasa"))) -> 0.026 | AM8: 0.01 | AN8: 500000 | AP8: 1253 | AR8: Entidad | AS8: %
B9: e-mail | H9: Tasa de interés inicial | N9: =+AA16 -> 0.1025 | O9: =+AB16 -> 0.1025 | P9: =+AC16 -> 0.1025 | Q9: =+AD16 -> 0.1025 | U9: meses | V9: =+F17-V8*12 -> 0 | X9: Sí | AM9: =AN8+1 -> 500001 | AN9: 1000000 | AP9: 1740 | AR9: Edo. De México | AS9: 0.0222
H10: Tasa de interés mínima | J10: 0.1025 | K10: =J10 -> 0.1025 | L10: =K10 -> 0.1025 | N10: =MIN(AA16:AA23) -> 0.095 | O10: =MIN(AB16:AB26) -> 0.095 | P10: =MIN(AC16:AC31) -> 0.095 | Q10: =MIN(AD16:AD36) -> 0.095 | T10: Aforo máximo | V10: 0.95 | X10: No | AM10: =AN9+1 -> 1000001 | AN10: 2000000 | AP10: 2784 | AR10: CDMX | AS10: 0.021
B11: Valor actual del inmueble * | H11: Tasa de interés máxima | J11: =J10+2% -> 0.1225 | K11: =+J11 -> 0.1225 | L11: =+K11 -> 0.1225 | N11: =+N9 -> 0.1025 | O11: =+O9 -> 0.1025 | P11: =+P9 -> 0.1025 | Q11: =+Q9 -> 0.1025 | T11: Crédito máximo | V11: =+F11*V10 -> 0 | W11: Tipo de cliente | X11: 1 | AM11: =AN10+1 -> 2000001 | AN11: 3000000 | AP11: 4663 | AR11: Chihuahua | AS11: 0.0174
B12: Valor destructible del inmueble * | H12: Costo anual total | J12: =IF(F15>0,(1+IRR('Valora 10'!AE22:AE262,0.01))^12-1,0) -> 0 | K12: =IF(F15>0,(1+IRR('Valora 15'!AE22:AE262,0.01))^12-1,0) -> 0 | L12: =IF(F15>0,(1+IRR('Valora 20'!AE22:AE262,0.01))^12-1,0) -> 0 | N12: =IF(F15>0,(1+IRR('POport. 7'!AE22:AE262,0.01))^12-1,0) -> 0 | O12: =IF(F15>0,(1+IRR('POport. 10'!AE22:AE262,0.01))^12-1,0) -> 0 | P12: =IF(F15>0,(1+IRR('POport. 15'!AE22:AE262,0.01))^12-1,0) -> 0 | Q12: =IF(F15>0,(1+IRR('POport. 20'!AE22:AE262,0.01))^12-1,0) -> 0 | T12: Comisión de apertura | V12: =IF(X11=1,0%,0) -> 0 | X12: Normal | AM12: 3000001 | AN12: 3000000 | AP12: 5000 | AR12: Durango | AS12: 0.0162
B13: Crédito actual | H13: Pago por mil inicial | J13: =VLOOKUP(AA7,Z8:AC14,3,FALSE) -> 12.38 | K13: =VLOOKUP(AE7,AD8:AG14,3,FALSE) -> 9.93 | L13: =VLOOKUP(AI7,AH8:AK14,3,FALSE) -> 8.86 | N13: 16.82 | O13: 13.45 | P13: 11 | Q13: 9.92 | T13: Gastos Notariales Financiados | V13: 2 | X13: Premium | AM13: 3000001 | AN13: 4000000 | AP13: 5000 | AR13: Nuevo León | AS13: 0.0159
B14: Institución financiera | H14: Crecimiento anual | J14: =VLOOKUP(AA7,Z8:AC14,4,FALSE) -> 0.026 | K14: =VLOOKUP(AE7,AD8:AG14,4,FALSE) -> 0.026 | L14: =VLOOKUP(AI7,AH8:AK14,4,FALSE) -> 0.026 | N14: no aplica | O14: no aplica | P14: no aplica | Q14: no aplica | T14: Segurode vida | V14: =0.6 -> 0.6 | AM14: 4000001 | AN14: 5000000 | AP14: 5000 | AR14: Quintana Roo | AS14: 0.0158
B15: Saldo total del crédito * | H15: Erogación inicial | J15: =+$F$25*J13/1000 -> 0 | K15: =+$F$25*K13/1000 -> 0 | L15: =+$F$25*L13/1000 -> 0 | N15: =+$F$25*N13/1000 -> 0 | O15: =+$F$25*O13/1000 -> 0 | P15: =+$F$25*P13/1000 -> 0 | Q15: =+$F$25*Q13/1000 -> 0 | T15: Seguor de daños | V15: =0.31 -> 0.31 | Z15: P.Oport. | AA15: 7 años | AB15: 10 años | AC15: 15 años | AD15: 20 años | AM15: 5000001 | AN15: 8000000 | AP15: 5000 | AR15: Tabasco | AS15: 0.0146
B16: Pago mensual total * | H16: Seguros | J16: =$F$25/1000*IF($X$8=1,0,$V$14)+IF($F$12>0,$F$12,$F$11)/1000*IF($X$8=1,0,$V$15) -> 0 | K16: =$F$25/1000*IF($X$8=1,0,$V$14)+IF($F$12>0,$F$12,$F$11)/1000*IF($X$8=1,0,$V$15) -> 0 | L16: =$F$25/1000*IF($X$8=1,0,$V$14)+IF($F$12>0,$F$12,$F$11)/1000*IF($X$8=1,0,$V$15) -> 0 | N16: =$F$25/1000*IF($X$8=1,0,$V$14)+IF($F$12>0,$F$12,$F$11)/1000*IF($X$8=1,0,$V$15) -> 0 | O16: =$F$25/1000*IF($X$8=1,0,$V$14)+IF($F$12>0,$F$12,$F$11)/1000*IF($X$8=1,0,$V$15) -> 0 | P16: =$F$25/1000*IF($X$8=1,0,$V$14)+IF($F$12>0,$F$12,$F$11)/1000*IF($X$8=1,0,$V$15) -> 0 | Q16: =$F$25/1000*IF($X$8=1,0,$V$14)+IF($F$12>0,$F$12,$F$11)/1000*IF($X$8=1,0,$V$15) -> 0 | T16: Com. Aut. Difer. | V16: 0 | Z16: 0 | AA16: 0.1025 | AB16: 0.1025 | AC16: 0.1025 | AD16: 0.1025 | AM16: 8000001 | AN16: 11000000 | AP16: 5000 | AR16: Coahuila | AS16: 0.0102
B17: Plazo restante (meses) * | H17: =IF($I$17="",$AI$24&" "&TEXT(IF($AJ$20=2,$AK$23,$AK$24),"###0.00%"),$AI$24) -> Impuestos y derechos | J17: =IFERROR(IF(IF($F$15="",0,$F$15*IF($I$17="",IF($AJ$20=2,$AK$23,$AK$24),$I$17))<F24,0,IF($F$15="",0,$F$15*IF($I$17="",IF($AJ$20=2,$AK$23,$AK$24),$I$17))-F24),0) -> 0 | K17: =IFERROR(IF(IF($F$15="",0,$F$15*IF($I$17="",IF($AJ$20=2,$AK$23,$AK$24),$I$17))<F24,0,IF($F$15="",0,$F$15*IF($I$17="",IF($AJ$20=2,$AK$23,$AK$24),$I$17))-F24),0) -> 0 | L17: =IFERROR(IF(IF($F$15="",0,$F$15*IF($I$17="",IF($AJ$20=2,$AK$23,$AK$24),$I$17))<F24,0,IF($F$15="",0,$F$15*IF($I$17="",IF($AJ$20=2,$AK$23,$AK$24),$I$17))-F24),0) -> 0 | N17: =IFERROR(IF(IF($F$15="",0,$F$15*IF($I$17="",IF($AJ$20=2,$AK$23,$AK$24),$I$17))<F24,0,IF($F$15="",0,$F$15*IF($I$17="",IF($AJ$20=2,$AK$23,$AK$24),$I$17))-F24),0) -> 0 | O17: =IFERROR(IF(IF($F$15="",0,$F$15*IF($I$17="",IF($AJ$20=2,$AK$23,$AK$24),$I$17))<F24,0,IF($F$15="",0,$F$15*IF($I$17="",IF($AJ$20=2,$AK$23,$AK$24),$I$17))-F24),0) -> 0 | P17: =IFERROR(IF(IF($F$15="",0,$F$15*IF($I$17="",IF($AJ$20=2,$AK$23,$AK$24),$I$17))<F24,0,IF($F$15="",0,$F$15*IF($I$17="",IF($AJ$20=2,$AK$23,$AK$24),$I$17))-F24),0) -> 0 | Q17: =IFERROR(IF(IF($F$15="",0,$F$15*IF($I$17="",IF($AJ$20=2,$AK$23,$AK$24),$I$17))<F24,0,IF($F$15="",0,$F$15*IF($I$17="",IF($AJ$20=2,$AK$23,$AK$24),$I$17))-F24),0) -> 0 | T17: Plazos | Z17: 1 | AA17: =+AA16-0.002 -> 0.1005 | AB17: 0.1005 | AC17: 0.1005 | AD17: 0.1005 | AM17: 11000001 | AN17: 15000000 | AP17: 5000 | AR17: Baja California | AS17: 0.0101
B18: Plazo restante | F18: =CONCATENATE(V8," a ",V9, " m") -> 0 a 0 m | H18: Comisión de apertura | J18: =+$F$15*$V$12 -> 0 | K18: =+$F$15*$V$12 -> 0 | L18: =+$F$15*$V$12 -> 0 | N18: =+$F$15*$V$12 -> 0 | O18: =+$F$15*$V$12 -> 0 | P18: =+$F$15*$V$12 -> 0 | Q18: =+$F$15*$V$12 -> 0 | T18: Valora | U18: 10 | V18: 15 | W18: 20 | Z18: 2 | AA18: 0.0985 | AB18: 0.0985 | AC18: 0.0985 | AD18: 0.0985 | AM18: 15000001 | AN18: 20000000 | AP18: 5000 | AR18: Guerrero | AS18: 0.0099
F19: =IFERROR(IF(F15/F11>95%,"Supera el Aforo Máximo del 95%",""),"") ->  | H19: Avalúo | J19: 0 | K19: 0 | L19: 0 | N19: 0 | O19: 0 | P19: 0 | Q19: 0 | T19: Plazo | U19: =+'Valora 10'!T22 -> 0 | V19: =+'Valora 15'!T22 -> 0 | W19: =+'Valora 20'!T22 -> 0 | Z19: 3 | AA19: 0.0965 | AB19: 0.0965 | AC19: 0.0965 | AD19: 0.0965 | AI19: Apoyo Infonavit | AM19: 20000001 | AN19: 25000000 | AP19: 5000 | AR19: Veracruz | AS19: 0.0097
B20: Crédito solicitado | H20: Gastos de originación | J20: =SUM(J17:J19) -> 0 | K20: =SUM(K17:K19) -> 0 | L20: =SUM(L17:L19) -> 0 | N20: =SUM(N17:N19) -> 0 | O20: =SUM(O17:O19) -> 0 | P20: =SUM(P17:P19) -> 0 | Q20: =SUM(Q17:Q19) -> 0 | T20: años | U20: =TRUNC(U19/12) -> 0 | V20: =TRUNC(V19/12) -> 0 | W20: =TRUNC(W19/12) -> 0 | Z20: 4 | AA20: =+AA19-0.0015 -> 0.095 | AB20: =+AB19-0.0015 -> 0.095 | AC20: =+AC19-0.0015 -> 0.095 | AD20: =+AD19-0.0015 -> 0.095 | AF20: CALCULO PARA EL IMPORTE MAXIMO DE APORTACION PATRONAL | AI20: NO | AJ20: 1 | AM20: 25000001 | AN20: 30000000 | AP20: 5000 | AR20: Morelos | AS20: 0.0095
B21: Gastos Notariales Financiados | H21: Primera mensualidad | J21: =+J16+J15 -> 0 | K21: =+K16+K15 -> 0 | L21: =+L16+L15 -> 0 | N21: =+N16+N15 -> 0 | O21: =+O16+O15 -> 0 | P21: =+P16+P15 -> 0 | Q21: =+Q16+Q15 -> 0 | T21: meses | U21: =+U19-U20*12 -> 0 | V21: =+V19-V20*12 -> 0 | W21: =+W19-W20*12 -> 0 | Z21: 5 | AA21: =AA20 -> 0.095 | AB21: =AB20 -> 0.095 | AC21: =AC20 -> 0.095 | AD21: =AD20 -> 0.095 | AF21: Salario diario nominal (UMA enero 2024) | AH21: 108.57 | AI21: SI | AM21: 30000001 | AN21: 30000000 | AP21: 5000 | AR21: Yucatán | AS21: 0.0084
B22: =IF(V13=2,"","Monto Máximo Financiado") ->  | F22: =IF(V13=2,"",IF(F11*V10=F15,0,IF(F15*6%+F15>F11*V10,F11*V10-F15,F15*6%))) ->  | H22: Importe del prepago recurrente | J22: 0 | K22: 0 | L22: 0 | N22: 0 | O22: 0 | P22: 0 | Q22: 0 | T22: Ahorro | U22: =MAX(0,+$F$17-U19) -> 0 | V22: =MAX(0,+$F$17-V19) -> 0 | W22: =MAX(0,+$F$17-W19) -> 0 | Z22: 6 | AA22: =AA21 -> 0.095 | AB22: =AB21 -> 0.095 | AC22: 0.095 | AD22: 0.095 | AF22: Tope de aportación patronal (Veces el SMGVDF) | AH22: 25 | AR22: Baja California Sur | AS22: 0.0082
H23: Mensualidad más prepago | J23: =+J45+J21 -> 0 | K23: =+K45+K21 -> 0 | L23: =+L45+L21 -> 0 | N23: =+N45+N21 -> 0 | O23: =+O45+O21 -> 0 | P23: =+P45+P21 -> 0 | Q23: =+Q45+Q21 -> 0 | T23: años | U23: =TRUNC(U22/12) -> 0 | V23: =TRUNC(V22/12) -> 0 | W23: =TRUNC(W22/12) -> 0 | Z23: 7 | AA23: =AA22 -> 0.095 | AB23: 0.095 | AC23: 0.095 | AD23: 0.095 | AF23: Aportación patronal | AH23: =+AH21*AH22 -> 2714.25 | AI23: =IF($AJ$20=2,"Infonavit gastos de originación","") ->  | AK23: 0.05 | AR23: Zacatecas | AS23: 0.0073
B24: =IF(OR(F22="",F22=0),"","Monto a Financiar Gastos Notariales") ->  | F24: =F22 ->  | H24: Plazo de liquidación | J24: =CONCATENATE(U20," a ",U21, " m") -> 0 a 0 m | K24: =CONCATENATE(V20," a ",V21, " m") -> 0 a 0 m | L24: =CONCATENATE(W20," a ",W21, " m") -> 0 a 0 m | N24: =CONCATENATE(U27," a ",U28, " m") -> 0 a 0 m | O24: =CONCATENATE(V27," a ",V28, " m") -> 0 a 0 m | P24: =CONCATENATE(W27," a ",W28, " m") -> 0 a 0 m | Q24: =CONCATENATE(X27," a ",X28, " m") -> 0 a 0 m | T24: meses | U24: =+U22-U23*12 -> 0 | V24: =+V22-V23*12 -> 0 | W24: =+W22-W23*12 -> 0 | Z24: 8 | AB24: 0.095 | AC24: 0.095 | AD24: 0.095 | AF24: Aportación Patronal 5% | AH24: =+AH23*0.05 -> 135.7125 | AI24: =IF($AJ$20=2,"Infonavit impuestos y derechos","Impuestos y derechos") -> Impuestos y derechos | AK24: =IF($AT$8="","",INDEX($AR$9:$AS$38,$AT$8,2)) ->  | AR24: Oaxaca | AS24: 0.0072
B25: Crédito Inicial total | F25: =+IFERROR(IF(F24="",F15,F15+F24),"") -> 0 | J25: =+IF(AA7=5,1,"") ->  | K25: =+IF(AE7=5,1,"") ->  | L25: =+IF(AI7=5,1,"") ->  | T25: Pagos Oportunos | U25: 7 | V25: 10 | W25: 15 | X25: 20 | Z25: 9 | AB25: 0.095 | AC25: 0.095 | AD25: 0.095 | AF25: (Crédito para vivienda) | AG25: 0.05 | AI25: Honorarios notariales | AK25: 0.02 | AR25: Jalisco | AS25: 0.007
B26: % de financiamiento | H26: Beneficios | T26: Plazo | U26: =+'POport. 7'!T22 -> 0 | V26: =+'POport. 10'!T22 -> 0 | W26: =+'POport. 15'!T22 -> 0 | X26: =+'POport. 20'!T22 -> 0 | Z26: 10 | AB26: 0.095 | AC26: 0.095 | AD26: 0.095 | AF26: No. de días del bimestre (promedio 60 días) | AH26: 60.8 | AR26: Tamaulipas | AS26: 0.007
H27: Ahorro en mensualidad | J27: =MAX(0,+$F$16-J23) -> 0 | K27: =MAX(0,+$F$16-K23) -> 0 | L27: =MAX(0,+$F$16-L23) -> 0 | N27: =MAX(0,+$F$16-N23) -> 0 | O27: =MAX(0,+$F$16-O23) -> 0 | P27: =MAX(0,+$F$16-P23) -> 0 | Q27: =MAX(0,+$F$16-Q23) -> 0 | T27: años | U27: =TRUNC(U26/12) -> 0 | V27: =TRUNC(V26/12) -> 0 | W27: =TRUNC(W26/12) -> 0 | X27: =TRUNC(X26/12) -> 0 | Z27: 11 | AC27: 0.095 | AD27: 0.095 | AF27: Aportación Patronal bimestral | AH27: =+AH24*AH26 -> 8251.32 | AR27: Sonora | AS27: 0.0069
B28: Seguros externos | H28: Reducción vs pago actual | J28: =IF($F$16>0,J27/$F$16,0) -> 0 | K28: =IF($F$16>0,K27/$F$16,0) -> 0 | L28: =IF($F$16>0,L27/$F$16,0) -> 0 | N28: =IF($F$16>0,N27/$F$16,0) -> 0 | O28: =IF($F$16>0,O27/$F$16,0) -> 0 | P28: =IF($F$16>0,P27/$F$16,0) -> 0 | Q28: =IF($F$16>0,Q27/$F$16,0) -> 0 | T28: meses | U28: =+U26-U27*12 -> 0 | V28: =+V26-V27*12 -> 0 | W28: =+W26-W27*12 -> 0 | X28: =+X26-X27*12 -> 0 | Z28: 12 | AC28: 0.095 | AD28: 0.095 | AF28: Incremento anual promedio para las aportaciones = | AH28: 0.03 | AR28: Querétaro | AS28: 0.0061
B29: Con apoyo Infonavit | H29: Ahorro en mensualidad - 12 meses | J29: =+J27*12 -> 0 | K29: =+K27*12 -> 0 | L29: =+L27*12 -> 0 | N29: =+N27*12 -> 0 | O29: =+O27*12 -> 0 | P29: =+P27*12 -> 0 | Q29: =+Q27*12 -> 0 | T29: Ahorro | U29: =MAX(0,+$F$17-U26) -> 0 | V29: =MAX(0,+$F$17-V26) -> 0 | W29: =MAX(0,+$F$17-W26) -> 0 | X29: =MAX(0,+$F$17-X26) -> 0 | Z29: 13 | AC29: 0.095 | AD29: 0.095 | AR29: Puebla | AS29: 0.0058
H30: Ahorro en plazo de liquidación | J30: =CONCATENATE(U23," a ",U24, " m") -> 0 a 0 m | K30: =CONCATENATE(V23," a ",V24, " m") -> 0 a 0 m | L30: =CONCATENATE(W23," a ",W24, " m") -> 0 a 0 m | N30: =CONCATENATE(U30," a ",U31, " m") -> 0 a 0 m | O30: =CONCATENATE(V30," a ",V31, " m") -> 0 a 0 m | P30: =CONCATENATE(W30," a ",W31, " m") -> 0 a 0 m | Q30: =CONCATENATE(X30," a ",X31, " m") -> 0 a 0 m | T30: años | U30: =TRUNC(U29/12) -> 0 | V30: =TRUNC(V29/12) -> 0 | W30: =TRUNC(W29/12) -> 0 | X30: =TRUNC(X29/12) -> 0 | Z30: 14 | AC30: 0.095 | AD30: 0.095 | AR30: Nayarit | AS30: 0.0054
B31: =IF(AJ20=1,"","Capture el sueldo bruto") ->  | T31: meses | U31: =+U29-U30*12 -> 0 | V31: =+V29-V30*12 -> 0 | W31: =+W29-W30*12 -> 0 | X31: =+X29-X30*12 -> 0 | Z31: 15 | AC31: 0.095 | AD31: 0.095 | AR31: Chiapas | AS31: 0.0053
J32: Detalle | K32: Detalle | L32: Detalle | N32: Detalle | O32: Detalle | P32: Detalle | Q32: Detalle | Z32: 16 | AD32: 0.095 | AR32: Colima | AS32: 0.0053
B33: * Captura obligatoria | Z33: 17 | AD33: 0.095 | AR33: San Luis Potosi | AS33: 0.0051
T34: Prepago recurrente | V34: 2 | Z34: 18 | AD34: 0.095 | AR34: Sinaloa | AS34: 0.0044
Q35: v2024.01 | T35: Sin prepago recurrente | Z35: 19 | AD35: 0.095 | AR35: Michoacán | AS35: 0.0043
B36: Notas: | T36: Prepago para Igualar mensualidad actual | Z36: 20 | AD36: 0.095 | AR36: Hidalgo | AS36: 0.0041
B37: 1 | C37: El crédito solicitado dependerá de la capacidad de pago de cada cliente. | AR37: Guanajuato | AS37: 0.0019
B38: 2 | C38: Scotiabank se reserva el derecho de solicitar información adicional y/o restringir parámetros de enganche, monto, plazo o tasa de interés en función de las | AR38: Aguascalientes | AS38: 0.0018
C39: características específicas del solicitante y del inmueble objeto de la operación.
B40: 3 | C40: Este documento no implica que el crédito ha sido autorizado, ni establece obligación alguna para Scotiabank.
B41: 4 | C41: Para los esquemas de "Valora" y "Pagos Oportunos" se deberá cumplir con las reglas establecidas en los programas para la disminución de la tasa de interés.
B42: 5 | C42: Esta cotización tiene carácter informativo, Scotiabank se reserva el derecho de cambiar cualquier condición sin previo aviso.
H45: Importe del prepago recurrente | J45: =+J22 -> 0 | K45: =+K22 -> 0 | L45: =+L22 -> 0 | N45: =+N22 -> 0 | O45: =+O22 -> 0 | P45: =+P22 -> 0 | Q45: =+Q22 -> 0
H46: (para eliminar error de captura)
Z48: Valora 10 a | AA48: 1 | AB48: PxM | AC48: Icr Anual | AD48: Valora 15 a | AE48: 1 | AF48: PxM | AG48: Icr Anual | AH48: Valora 20 a | AI48: 1 | AJ48: PxM | AK48: Icr Anual
Y49: 1+ | Z49: 1+ | AA49: 0.1025 | AB49: 12.38 | AC49: 0.026 | AD49: 1 | AE49: =AA49 -> 0.1025 | AF49: 9.93 | AG49: =+AC49 -> 0.026 | AH49: 1 | AI49: =AA49 -> 0.1025 | AJ49: 8.86 | AK49: =+AC49 -> 0.026
Z50: Valora 10 a | AA50: 2 | AB50: PxM | AC50: Icr Anual | AD50: Valora 15 a | AE50: 2 | AF50: PxM | AG50: Icr Anual | AH50: Valora 20 a | AI50: 2 | AJ50: PxM | AK50: Icr Anual
Y51: 2+,3+,4+ | Z51: 2+,3+,4+ | AA51: 0.105 | AB51: 12.6 | AC51: 0.024 | AD51: 2 | AE51: =AA51 -> 0.105 | AF51: 10.15 | AG51: =+AC51 -> 0.024 | AH51: 2 | AI51: =AA51 -> 0.105 | AJ51: 9.07 | AK51: =+AC51 -> 0.024
Z52: Valora 10 a | AA52: 3 | AB52: PxM | AC52: Icr Anual | AD52: Valora 15 a | AE52: 3 | AF52: PxM | AG52: Icr Anual | AH52: Valora 20 a | AI52: 3 | AJ52: PxM | AK52: Icr Anual
Y53: 1,2,3,4,5,6 | Z53: 1,2,3,4,5,6 | AA53: 0.105 | AB53: 12.6 | AC53: 0.024 | AD53: 1 | AE53: =AA53 -> 0.105 | AF53: 10.15 | AG53: =+AC53 -> 0.024 | AH53: 1 | AI53: =AA53 -> 0.105 | AJ53: 9.07 | AK53: =+AC53 -> 0.024
Z57: Tasas | AA57: 1
Z58: 0.1025 | AA58: EA 1+
AA59: EA 2+ 3+ 4+

Sheet Valora 20
E1: Scotiabank Inverlat, S.A., Institución de Banca Múltiple, Grupo Financiero Scotiabank Inverlat | Q1: - | AV1: -
P2: Simulador Pago de Pasivos
N3: =+Simulador!P3 -> 2024-03-22
P5: Regresar
B6: Nombre | D6: =+Simulador!$C$7 -> 0 | G6: Los pagos puntuales y anticipados reducen el plazo de liquidación
B7: Valor de la vivienda | D7: =+Simulador!$F$11 -> 0 | G7: =CONCATENATE(Simulador!W20," años ",Simulador!W21," meses") -> 0 años 0 meses
B8: Valor destructible | D8: =+Simulador!$F$12 -> 0
B9: Esquema Valora a 20 años
B10: Crédito solicitado | D10: =+Simulador!$F$25 -> 0
B11: Tasa de interés inicial | D11: =VLOOKUP(Simulador!AI7,Simulador!AH8:AI14,2,FALSE) -> 0.1025
B12: Pago por mil inicial | D12: =+Simulador!L13 -> 8.86
B13: Crecimiento anual | D13: =+Simulador!L14 -> 0.026
B14: Costo anual total | D14: =IFERROR((1+IRR(AE22:AE262,0.01))^12-1,0) -> 0
B16: Gastos | W16: 1
B17: Comisión de apertura | D17: =IFERROR(Simulador!L18*1,0) -> 0 | E17: =IF(Simulador!$V$13=1,"Financiada","") ->  | W17: Disminución de plazo
B18: Avalúo | D18: =IFERROR(Simulador!L19*1,0) -> 0 | W18: Disminución de pago
W20: Amortización sin prepagos para gráfica y CAT como producto sin prepagos
B21: Periodo | C21: Año | D21: Mes | E21: Tasa de interés | F21: Saldo al inicio del periodo | G21: Interés | H21: Capital | I21: Erogación | J21: Crecimiento anual | K21: Seguros | L21: Aportación Bimestral (Apoyo Inf) | M21: Prepago recurrente | N21: Prepago no recurrente | O21: Saldo al final de periodo | P21: Pago Total | S21: Abono comisión atur. Dif. | T21: Mes de Liquidación | U21: Flujos para CAT | W21: Saldo al final de periodo | X21: Interés | Y21: Capital | Z21: Erogación | AA21: Seguros | AB21: Comisión por aut. diferida | AC21: Abono comisión atur. Dif. | AD21: Pago Total | AE21: Flujos para CAT | AF21: Factores | AG21: Plazo | AH21: Fecha | AI21: Dias | AK21: Año actual | AL21: Mes actual | AM21: Día actual | AN21: Dia/corte | AO21: sumar
B22: 0 | O22: =+D10 -> 0 | T22: =SUM(T23:T262) -> 0 | U22: =-O22+D17+D18 -> 0 | W22: =+O22 -> 0 | AE22: =+U22 -> 0 | AK22: =IFERROR(YEAR(Simulador!P3),YEAR(Simulador!P3)) -> 2024 | AL22: =IFERROR(MONTH(Simulador!P3),MONTH(Simulador!P3)) -> 3 | AM22: =IFERROR(DAY(Simulador!P3),DAY(Simulador!P3)) -> 22 | AN22: =IF(AND(DAY(Simulador!P3)>=3,DAY(Simulador!P3)<=16),3,17) -> 17 | AO22: =IF(AM22>AN22,1,0) -> 1
B23: 1 | C23: 0 | D23: =IF(D22=12,1,D22+1) -> 1 | E23: =+D11 -> 0.1025 | F23: =+O22 -> 0 | G23: =IF(F23<0.01,0,F23*E23/360*AI23) -> 0 | H23: =+I23-G23 -> 0 | I23: =+D12*O22/1000 -> 0 | J23: 0 | K23: =IF(O22<0.01,0,O22/1000*IF(Simulador!$X$8=1,0,Simulador!$V$14)+IF($D$8>0,$D$8,$D$7)/1000*IF(Simulador!$X$8=1,0,Simulador!$V$15)) -> 0 | L23: 0 | M23: =MAX(0,MIN(O22+G23+K23+L23-(I23+K23+L23),Simulador!$L$45)) -> 0 | O23: =MAX(0,O22-H23-L23-M23-N23) -> 0 | P23: =MAX(0,MIN(O22+G23+K23,I23+K23+M23+N23)) -> 0 | S23: 0 | T23: =IF(AND(O22>0.01,O23<=0.01),B23,0) -> 0 | U23: =+P23 -> 0 | W23: =+W22-Y23 -> 0 | X23: =W22*E23/360*AI23 -> 0 | Y23: =+Z23-X23 -> 0 | Z23: =+I23 -> 0 | AA23: =IF(W22<0.01,0,+W22/1000*Simulador!$V$14+IF($D$8>0,$D$8,$D$7)/1000*Simulador!$V$15) -> 0 | AB23: 0 | AC23: 0 | AD23: =IF(W22<0.01,0,+Z23+AA23+AB23-AC23) -> 0 | AE23: =+AD23 -> 0 | AF23: =IFERROR(Z23/W22,0) -> 0 | AG23: 240 | AH23: =IF(W22=0,"",DATE(AK22,AL22+AO22,AM22)) ->  | AI23: =IFERROR(DAY(DATE(YEAR(AH23),MONTH(AH23)+1,0)),0) -> 0 | AJ23: 1
B24: 2 | C24: =IF(D23=12,C23+1,C23) -> 0 | D24: =IF(D23=12,1,D23+1) -> 2 | E24: =+E23 -> 0.1025 | F24: =+O23 -> 0 | G24: =IF(F24<0.01,0,F24*E24/360*AI24) -> 0 | H24: =+I24-G24 -> 0 | I24: =IF($W$16=2,MAX(0,(MIN(+I23*(1+J24),F24*AF24))),MAX(0,(MIN(+I23*(1+J24),F24+G24)))) -> 0 | J24: =IF(D24=1,$D$13,0) -> 0 | K24: =IF(F24<0.01,0,F24/1000*IF(Simulador!$X$8=1,0,Simulador!$V$14)+IF($D$8>0,$D$8,$D$7)/1000*IF(Simulador!$X$8=1,0,Simulador!$V$15)) -> 0 | L24: =IF(Simulador!$F$31*Simulador!$AG$25*2>Simulador!$AH$27,Simulador!$AH$27,IF(O23=0,0,Simulador!$F$31*Simulador!$AG$25*2)) -> 0 | M24: =MAX(0,MIN(O23+G24+K24+L24-(I24+K24+L24),Simulador!$L$45)) -> 0 | O24: =MAX(0,O23-H24-L24-M24-N24) -> 0 | P24: =MAX(0,MIN(O23+G24+K24,I24+K24+M24+N24)) -> 0 | S24: 0 | T24: =IF(AND(O23>0.01,F24<=0.01),B24,0) -> 0 | U24: =+P24 -> 0 | W24: =+W23-Y24 -> 0 | X24: =W23*E24/360*AI24 -> 0 | Y24: =+Z24-X24 -> 0 | Z24: =MAX(0,(MIN(+Z23*(1+J24),W23+X24))) -> 0 | AA24: =IF(W23<0.01,0,+W23/1000*Simulador!$V$14+IF($D$8>0,$D$8,$D$7)/1000*Simulador!$V$15) -> 0 | AB24: 0 | AC24: 0 | AD24: =IF(W23<0.01,0,+Z24+AA24+AB24-AC24) -> 0 | AE24: =+AD24 -> 0 | AF24: =IFERROR(Z24/W23,0) -> 0 | AG24: =IFERROR(IF(Y23<=0.01,0,AG23-1),0) -> 0 | AH24: =IF(Y23=0,"",DATE(YEAR(AH23),MONTH(AH23)+1,1)) ->  | AI24: =IFERROR(DAY(DATE(YEAR(AH24),MONTH(AH24)+1,0)),0) -> 0 | AJ24: 2 | AK24: Días/Mes | AL24: 30.4375 | AM24: =SUM(AI83:AI262) -> 0 | AN24: =IF(AG83=0,0,AM24/AG83) -> 0
B25: 3 | C25: =IF(D24=12,C24+1,C24) -> 0 | D25: =IF(D24=12,1,D24+1) -> 3 | E25: =+E24 -> 0.1025 | F25: 0 | G25: =IF(F25<0.01,0,F25*E25/360*AI25) -> 0 | H25: =+I25-G25 -> 0 | I25: =IF($W$16=2,MAX(0,(MIN(+I24*(1+J25),F25*AF25))),MAX(0,(MIN(+I24*(1+J25),F25+G25)))) -> 0 | J25: 0 | K25: =IF(F25<0.01,0,F25/1000*IF(Simulador!$X$8=1,0,Simulador!$V$14)+IF($D$8>0,$D$8,$D$7)/1000*IF(Simulador!$X$8=1,0,Simulador!$V$15)) -> 0 | L25: 0 | M25: =MAX(0,MIN(F24+G25+K25+L25-(I25+K25+L25),Simulador!$L$45)) -> 0 | O25: 0 | P25: =MAX(0,MIN(F24+G25+K25,I25+K25+M25+N25)) -> 0 | S25: 0 | T25: =IF(AND(F24>0.01,F25<=0.01),B25,0) -> 0 | U25: 0 | W25: 0 | X25: 0 | Y25: 0 | Z25: =MAX(0,(MIN(+Z24*(1+J25),W24+X25))) -> 0 | AA25: =IF(W24<0.01,0,+W24/1000*Simulador!$V$14+IF($D$8>0,$D$8,$D$7)/1000*Simulador!$V$15) -> 0 | AB25: 0 | AC25: 0 | AD25: 0 | AE25: 0 | AF25: 0 | AG25: =IFERROR(IF(Y24<=0.01,0,AG24-1),0) -> 0 | AH25: =IF(Y24=0,"",DATE(YEAR(AH24),MONTH(AH24)+1,1)) ->  | AI25: 0 | AJ25: 3 | AL25: Interés mensual = Sdo inicial x tasa / 360 x # días del mes
B26: 4 | C26: 0 | D26: =IF(D25=12,1,D25+1) -> 4 | E26: 0.1025 | F26: 0 | G26: 0 | H26: =+I26-G26 -> 0 | I26: 0 | J26: 0 | K26: =IF(F26<0.01,0,F26/1000*IF(Simulador!$X$8=1,0,Simulador!$V$14)+IF($D$8>0,$D$8,$D$7)/1000*IF(Simulador!$X$8=1,0,Simulador!$V$15)) -> 0 | L26: =IF(F25-H26=0,0,L24) -> 0 | M26: =MAX(0,MIN(F25+G26+K26+L26-(I26+K26+L26),Simulador!$L$45)) -> 0 | O26: 0 | P26: 0 | S26: 0 | T26: 0 | U26: 0 | W26: 0 | X26: 0 | Y26: 0 | Z26: 0 | AA26: =IF(W25<0.01,0,+W25/1000*Simulador!$V$14+IF($D$8>0,$D$8,$D$7)/1000*Simulador!$V$15) -> 0 | AB26: 0 | AC26: 0 | AD26: 0 | AE26: 0 | AF26: 0 | AG26: =IFERROR(IF(Y25<=0.01,0,AG25-1),0) -> 0 | AH26: =IF(Y25=0,"",DATE(YEAR(AH25),MONTH(AH25)+1,1)) ->  | AI26: 0 | AJ26: 4
B27: 5 | C27: 0 | D27: 5 | E27: 0.1025 | F27: 0 | G27: 0 | H27: 0 | I27: 0 | J27: 0 | K27: =IF(F27<0.01,0,F27/1000*IF(Simulador!$X$8=1,0,Simulador!$V$14)+IF($D$8>0,$D$8,$D$7)/1000*IF(Simulador!$X$8=1,0,Simulador!$V$15)) -> 0 | L27: 0 | M27: =MAX(0,MIN(F26+G27+K27+L27-(I27+K27+L27),Simulador!$L$45)) -> 0 | O27: 0 | P27: 0 | S27: 0 | T27: 0 | U27: 0 | W27: 0 | X27: 0 | Y27: 0 | Z27: 0 | AA27: =IF(W26<0.01,0,+W26/1000*Simulador!$V$14+IF($D$8>0,$D$8,$D$7)/1000*Simulador!$V$15) -> 0 | AB27: 0 | AC27: 0 | AD27: 0 | AE27: 0 | AF27: 0 | AG27: =IFERROR(IF(Y26<=0.01,0,AG26-1),0) -> 0 | AH27: =IF(Y26=0,"",DATE(YEAR(AH26),MONTH(AH26)+1,1)) ->  | AI27: 0 | AJ27: 5
B28: 6 | C28: 0 | D28: 6 | E28: 0.1025 | F28: 0 | G28: 0 | H28: 0 | I28: 0 | J28: 0 | K28: =IF(F28<0.01,0,F28/1000*IF(Simulador!$X$8=1,0,Simulador!$V$14)+IF($D$8>0,$D$8,$D$7)/1000*IF(Simulador!$X$8=1,0,Simulador!$V$15)) -> 0 | L28: =IF(F27-H28=0,0,L26) -> 0 | M28: =MAX(0,MIN(F27+G28+K28+L28-(I28+K28+L28),Simulador!$L$45)) -> 0 | O28: 0 | P28: 0 | S28: 0 | T28: 0 | U28: 0 | W28: 0 | X28: 0 | Y28: 0 | Z28: 0 | AA28: =IF(W27<0.01,0,+W27/1000*Simulador!$V$14+IF($D$8>0,$D$8,$D$7)/1000*Simulador!$V$15) -> 0 | AB28: 0 | AC28: 0 | AD28: 0 | AE28: 0 | AF28: 0 | AG28: 0 | AI28: 0 | AJ28: 6
B29: 7 | C29: 0 | D29: 7 | E29: 0.1025 | F29: 0 | G29: 0 | H29: 0 | I29: 0 | J29: 0 | K29: =IF(F29<0.01,0,F29/1000*IF(Simulador!$X$8=1,0,Simulador!$V$14)+IF($D$8>0,$D$8,$D$7)/1000*IF(Simulador!$X$8=1,0,Simulador!$V$15)) -> 0 | L29: 0 | M29: =MAX(0,MIN(F28+G29+K29+L29-(I29+K29+L29),Simulador!$L$45)) -> 0 | O29: 0 | P29: 0 | S29: 0 | T29: 0 | U29: 0 | W29: 0 | X29: 0 | Y29: 0 | Z29: 0 | AA29: =IF(W28<0.01,0,+W28/1000*Simulador!$V$14+IF($D$8>0,$D$8,$D$7)/1000*Simulador!$V$15) -> 0 | AB29: 0 | AC29: 0 | AD29: 0 | AE29: 0 | AF29: 0 | AG29: 0 | AI29: 0 | AJ29: 7
B30: 8 | C30: 0 | D30: 8 | E30: 0.1025 | F30: 0 | G30: 0 | H30: 0 | I30: 0 | J30: 0 | K30: =IF(F30<0.01,0,F30/1000*IF(Simulador!$X$8=1,0,Simulador!$V$14)+IF($D$8>0,$D$8,$D$7)/1000*IF(Simulador!$X$8=1,0,Simulador!$V$15)) -> 0 | L30: =IF(F29-H30=0,0,L28) -> 0 | M30: =MAX(0,MIN(F29+G30+K30+L30-(I30+K30+L30),Simulador!$L$45)) -> 0 | O30: 0 | P30: 0 | S30: 0 | T30: 0 | U30: 0 | W30: 0 | X30: 0 | Y30: 0 | Z30: 0 | AA30: =IF(W29<0.01,0,+W29/1000*Simulador!$V$14+IF($D$8>0,$D$8,$D$7)/1000*Simulador!$V$15) -> 0 | AB30: 0 | AC30: 0 | AD30: 0 | AE30: 0 | AF30: 0 | AG30: 0 | AI30: 0 | AJ30: 8
B31: 9 | C31: 0 | D31: 9 | E31: 0.1025 | F31: 0 | G31: 0 | H31: 0 | I31: 0 | J31: 0 | K31: =IF(F31<0.01,0,F31/1000*IF(Simulador!$X$8=1,0,Simulador!$V$14)+IF($D$8>0,$D$8,$D$7)/1000*IF(Simulador!$X$8=1,0,Simulador!$V$15)) -> 0 | L31: 0 | M31: =MAX(0,MIN(F30+G31+K31+L31-(I31+K31+L31),Simulador!$L$45)) -> 0 | O31: 0 | P31: 0 | S31: 0 | T31: 0 | U31: 0 | W31: 0 | X31: 0 | Y31: 0 | Z31: 0 | AA31: =IF(W30<0.01,0,+W30/1000*Simulador!$V$14+IF($D$8>0,$D$8,$D$7)/1000*Simulador!$V$15) -> 0 | AB31: 0 | AC31: 0 | AD31: 0 | AE31: 0 | AF31: 0 | AG31: 0 | AI31: 0 | AJ31: 9
B32: 10 | C32: 0 | D32: 10 | E32: 0.1025 | F32: 0 | G32: 0 | H32: 0 | I32: 0 | J32: 0 | K32: =IF(F32<0.01,0,F32/1000*IF(Simulador!$X$8=1,0,Simulador!$V$14)+IF($D$8>0,$D$8,$D$7)/1000*IF(Simulador!$X$8=1,0,Simulador!$V$15)) -> 0 | L32: =IF(F31-H32=0,0,L30) -> 0 | M32: =MAX(0,MIN(F31+G32+K32+L32-(I32+K32+L32),Simulador!$L$45)) -> 0 | O32: 0 | P32: 0 | S32: 0 | T32: 0 | U32: 0 | W32: 0 | X32: 0 | Y32: 0 | Z32: 0 | AA32: =IF(W31<0.01,0,+W31/1000*Simulador!$V$14+IF($D$8>0,$D$8,$D$7)/1000*Simulador!$V$15) -> 0 | AB32: 0 | AC32: 0 | AD32: 0 | AE32: 0 | AF32: 0 | AG32: 0 | AI32: 0 | AJ32: 10
B33: 11 | C33: 0 | D33: 11 | E33: 0.1025 | F33: 0 | G33: 0 | H33: 0 | I33: 0 | J33: 0 | K33: =IF(F33<0.01,0,F33/1000*IF(Simulador!$X$8=1,0,Simulador!$V$14)+IF($D$8>0,$D$8,$D$7)/1000*IF(Simulador!$X$8=1,0,Simulador!$V$15)) -> 0 | L33: 0 | M33: =MAX(0,MIN(F32+G33+K33+L33-(I33+K33+L33),Simulador!$L$45)) -> 0 | O33: 0 | P33: 0 | S33: 0 | T33: 0 | U33: 0 | W33: 0 | X33: 0 | Y33: 0 | Z33: 0 | AA33: =IF(W32<0.01,0,+W32/1000*Simulador!$V$14+IF($D$8>0,$D$8,$D$7)/1000*Simulador!$V$15) -> 0 | AB33: 0 | AC33: 0 | AD33: 0 | AE33: 0 | AF33: 0 | AG33: 0 | AI33: 0 | AJ33: 11
B34: 12 | C34: 0 | D34: 12 | E34: 0.1025 | F34: 0 | G34: 0 | H34: 0 | I34: 0 | J34: 0 | K34: =IF(F34<0.01,0,F34/1000*IF(Simulador!$X$8=1,0,Simulador!$V$14)+IF($D$8>0,$D$8,$D$7)/1000*IF(Simulador!$X$8=1,0,Simulador!$V$15)) -> 0 | L34: =IF(F33-H34=0,0,L32) -> 0 | M34: =MAX(0,MIN(F33+G34+K34+L34-(I34+K34+L34),Simulador!$L$45)) -> 0 | O34: 0 | P34: 0 | S34: 0 | T34: 0 | U34: 0 | W34: 0 | X34: 0 | Y34: 0 | Z34: 0 | AA34: =IF(W33<0.01,0,+W33/1000*Simulador!$V$14+IF($D$8>0,$D$8,$D$7)/1000*Simulador!$V$15) -> 0 | AB34: 0 | AC34: 0 | AD34: 0 | AE34: 0 | AF34: 0 | AG34: 0 | AI34: 0 | AJ34: 12
B35: 13 | C35: 1 | D35: 1 | E35: 0.1025 | F35: 0 | G35: 0 | H35: 0 | I35: 0 | J35: 0.026 | K35: =IF(F35<0.01,0,F35/1000*IF(Simulador!$X$8=1,0,Simulador!$V$14)+IF($D$8>0,$D$8,$D$7)/1000*IF(Simulador!$X$8=1,0,Simulador!$V$15)) -> 0 | L35: 0 | M35: =MAX(0,MIN(F34+G35+K35+L35-(I35+K35+L35),Simulador!$L$45)) -> 0 | O35: 0 | P35: 0 | S35: 0 | T35: 0 | U35: 0 | W35: 0 | X35: 0 | Y35: 0 | Z35: 0 | AA35: =IF(W34<0.01,0,+W34/1000*Simulador!$V$14+IF($D$8>0,$D$8,$D$7)/1000*Simulador!$V$15) -> 0 | AB35: =IF(W34<0.01,0,Simulador!$V$16) -> 0 | AC35: =IF(W34<0.01,0,IF(D35=1,SUM(AB23:AB34),0)) -> 0 | AD35: 0 | AE35: 0 | AF35: 0 | AG35: 0 | AI35: 0 | AJ35: 13
B36: 14 | C36: 1 | D36: 2 | E36: 0.1025 | F36: 0 | G36: 0 | H36: 0 | I36: 0 | J36: 0 | K36: =IF(F36<0.01,0,F36/1000*IF(Simulador!$X$8=1,0,Simulador!$V$14)+IF($D$8>0,$D$8,$D$7)/1000*IF(Simulador!$X$8=1,0,Simulador!$V$15)) -> 0 | L36: =IF(F35-H36=0,0,L34*(1+Simulador!$AH$28)) -> 0 | M36: =MAX(0,MIN(F35+G36+K36+L36-(I36+K36+L36),Simulador!$L$45)) -> 0 | O36: 0 | P36: 0 | S36: 0 | T36: 0 | U36: 0 | W36: 0 | X36: 0 | Y36: 0 | Z36: 0 | AA36: =IF(W35<0.01,0,+W35/1000*Simulador!$V$14+IF($D$8>0,$D$8,$D$7)/1000*Simulador!$V$15) -> 0 | AB36: =IF(W35<0.01,0,Simulador!$V$16) -> 0 | AC36: =IF(W35<0.01,0,IF(D36=1,SUM(AB24:AB35),0)) -> 0 | AD36: 0 | AE36: 0 | AF36: 0 | AG36: 0 | AI36: 0 | AJ36: 14
B37: 15 | C37: 1 | D37: 3 | E37: 0.1025 | F37: 0 | G37: 0 | H37: 0 | I37: 0 | J37: 0 | K37: =IF(F37<0.01,0,F37/1000*IF(Simulador!$X$8=1,0,Simulador!$V$14)+IF($D$8>0,$D$8,$D$7)/1000*IF(Simulador!$X$8=1,0,Simulador!$V$15)) -> 0 | L37: 0 | M37: =MAX(0,MIN(F36+G37+K37+L37-(I37+K37+L37),Simulador!$L$45)) -> 0 | O37: 0 | P37: 0 | S37: 0 | T37: 0 | U37: 0 | W37: 0 | X37: 0 | Y37: 0 | Z37: 0 | AA37: =IF(W36<0.01,0,+W36/1000*Simulador!$V$14+IF($D$8>0,$D$8,$D$7)/1000*Simulador!$V$15) -> 0 | AB37: =IF(W36<0.01,0,Simulador!$V$16) -> 0 | AC37: 0 | AD37: 0 | AE37: 0 | AF37: 0 | AG37: 0 | AI37: 0 | AJ37: 15
B38: 16 | C38: 1 | D38: 4 | E38: 0.1025 | F38: 0 | G38: 0 | H38: 0 | I38: 0 | J38: 0 | K38: =IF(F38<0.01,0,F38/1000*IF(Simulador!$X$8=1,0,Simulador!$V$14)+IF($D$8>0,$D$8,$D$7)/1000*IF(Simulador!$X$8=1,0,Simulador!$V$15)) -> 0 | L38: =IF(F37-H38=0,0,L36) -> 0 | M38: =MAX(0,MIN(F37+G38+K38+L38-(I38+K38+L38),Simulador!$L$45)) -> 0 | O38: 0 | P38: 0 | S38: 0 | T38: 0 | U38: 0 | W38: 0 | X38: 0 | Y38: 0 | Z38: 0 | AA38: =IF(W37<0.01,0,+W37/1000*Simulador!$V$14+IF($D$8>0,$D$8,$D$7)/1000*Simulador!$V$15) -> 0 | AB38: =IF(W37<0.01,0,Simulador!$V$16) -> 0 | AC38: 0 | AD38: 0 | AE38: 0 | AF38: 0 | AG38: 0 | AI38: 0 | AJ38: 16
B39: 17 | C39: 1 | D39: 5 | E39: 0.1025 | F39: 0 | G39: 0 | H39: 0 | I39: 0 | J39: 0 | K39: =IF(F39<0.01,0,F39/1000*IF(Simulador!$X$8=1,0,Simulador!$V$14)+IF($D$8>0,$D$8,$D$7)/1000*IF(Simulador!$X$8=1,0,Simulador!$V$15)) -> 0 | L39: 0 | M39: =MAX(0,MIN(F38+G39+K39+L39-(I39+K39+L39),Simulador!$L$45)) -> 0 | O39: 0 | P39: 0 | S39: 0 | T39: 0 | U39: 0 | W39: 0 | X39: 0 | Y39: 0 | Z39: 0 | AA39: =IF(W38<0.01,0,+W38/1000*Simulador!$V$14+IF($D$8>0,$D$8,$D$7)/1000*Simulador!$V$15) -> 0 | AB39: =IF(W38<0.01,0,Simulador!$V$16) -> 0 | AC39: 0 | AD39: 0 | AE39: 0 | AF39: 0 | AG39: 0 | AI39: 0 | AJ39: 17
B40: 18 | C40: 1 | D40: 6 | E40: 0.1025 | F40: 0 | G40: 0 | H40: 0 | I40: 0 | J40: 0 | K40: =IF(F40<0.01,0,F40/1000*IF(Simulador!$X$8=1,0,Simulador!$V$14)+IF($D$8>0,$D$8,$D$7)/1000*IF(Simulador!$X$8=1,0,Simulador!$V$15)) -> 0 | L40: =IF(F39-H40=0,0,L38) -> 0 | M40: =MAX(0,MIN(F39+G40+K40+L40-(I40+K40+L40),Simulador!$L$45)) -> 0 | O40: 0 | P40: 0 | S40: 0 | T40: 0 | U40: 0 | W40: 0 | X40: 0 | Y40: 0 | Z40: 0 | AA40: =IF(W39<0.01,0,+W39/1000*Simulador!$V$14+IF($D$8>0,$D$8,$D$7)/1000*Simulador!$V$15) -> 0 | AB40: =IF(W39<0.01,0,Simulador!$V$16) -> 0 | AC40: 0 | AD40: 0 | AE40: 0 | AF40: 0 | AG40: 0 | AI40: 0 | AJ40: 18
B41: 19 | C41: 1 | D41: 7 | E41: 0.1025 | F41: 0 | G41: 0 | H41: 0 | I41: 0 | J41: 0 | K41: =IF(F41<0.01,0,F41/1000*IF(Simulador!$X$8=1,0,Simulador!$V$14)+IF($D$8>0,$D$8,$D$7)/1000*IF(Simulador!$X$8=1,0,Simulador!$V$15)) -> 0 | L41: 0 | M41: =MAX(0,MIN(F40+G41+K41+L41-(I41+K41+L41),Simulador!$L$45)) -> 0 | O41: 0 | P41: 0 | S41: 0 | T41: 0 | U41: 0 | W41: 0 | X41: 0 | Y41: 0 | Z41: 0 | AA41: =IF(W40<0.01,0,+W40/1000*Simulador!$V$14+IF($D$8>0,$D$8,$D$7)/1000*Simulador!$V$15) -> 0 | AB41: =IF(W40<0.01,0,Simulador!$V$16) -> 0 | AC41: 0 | AD41: 0 | AE41: 0 | AF41: 0 | AG41: 0 | AI41: 0 | AJ41: 19
B42: 20 | C42: 1 | D42: 8 | E42: 0.1025 | F42: 0 | G42: 0 | H42: 0 | I42: 0 | J42: 0 | K42: =IF(F42<0.01,0,F42/1000*IF(Simulador!$X$8=1,0,Simulador!$V$14)+IF($D$8>0,$D$8,$D$7)/1000*IF(Simulador!$X$8=1,0,Simulador!$V$15)) -> 0 | L42: =IF(F41-H42=0,0,L40) -> 0 | M42: =MAX(0,MIN(F41+G42+K42+L42-(I42+K42+L42),Simulador!$L$45)) -> 0 | O42: 0 | P42: 0 | S42: 0 | T42: 0 | U42: 0 | W42: 0 | X42: 0 | Y42: 0 | Z42: 0 | AA42: =IF(W41<0.01,0,+W41/1000*Simulador!$V$14+IF($D$8>0,$D$8,$D$7)/1000*Simulador!$V$15) -> 0 | AB42: =IF(W41<0.01,0,Simulador!$V$16) -> 0 | AC42: 0 | AD42: 0 | AE42: 0 | AF42: 0 | AG42: 0 | AI42: 0 | AJ42: 20
B43: 21 | C43: 1 | D43: 9 | E43: 0.1025 | F43: 0 | G43: 0 | H43: 0 | I43: 0 | J43: 0 | K43: =IF(F43<0.01,0,F43/1000*IF(Simulador!$X$8=1,0,Simulador!$V$14)+IF($D$8>0,$D$8,$D$7)/1000*IF(Simulador!$X$8=1,0,Simulador!$V$15)) -> 0 | L43: 0 | M43: =MAX(0,MIN(F42+G43+K43+L43-(I43+K43+L43),Simulador!$L$45)) -> 0 | O43: 0 | P43: 0 | S43: 0 | T43: 0 | U43: 0 | W43: 0 | X43: 0 | Y43: 0 | Z43: 0 | AA43: =IF(W42<0.01,0,+W42/1000*Simulador!$V$14+IF($D$8>0,$D$8,$D$7)/1000*Simulador!$V$15) -> 0 | AB43: =IF(W42<0.01,0,Simulador!$V$16) -> 0 | AC43: 0 | AD43: 0 | AE43: 0 | AF43: 0 | AG43: 0 | AI43: 0 | AJ43: 21
B44: 22 | C44: 1 | D44: 10 | E44: 0.1025 | F44: 0 | G44: 0 | H44: 0 | I44: 0 | J44: 0 | K44: =IF(F44<0.01,0,F44/1000*IF(Simulador!$X$8=1,0,Simulador!$V$14)+IF($D$8>0,$D$8,$D$7)/1000*IF(Simulador!$X$8=1,0,Simulador!$V$15)) -> 0 | L44: =IF(F43-H44=0,0,L42) -> 0 | M44: =MAX(0,MIN(F43+G44+K44+L44-(I44+K44+L44),Simulador!$L$45)) -> 0 | O44: 0 | P44: 0 | S44: 0 | T44: 0 | U44: 0 | W44: 0 | X44: 0 | Y44: 0 | Z44: 0 | AA44: =IF(W43<0.01,0,+W43/1000*Simulador!$V$14+IF($D$8>0,$D$8,$D$7)/1000*Simulador!$V$15) -> 0 | AB44: =IF(W43<0.01,0,Simulador!$V$16) -> 0 | AC44: 0 | AD44: 0 | AE44: 0 | AF44: 0 | AG44: 0 | AI44: 0 | AJ44: 22
B45: 23 | C45: 1 | D45: 11 | E45: 0.1025 | F45: 0 | G45: 0 | H45: 0 | I45: 0 | J45: 0 | K45: =IF(F45<0.01,0,F45/1000*IF(Simulador!$X$8=1,0,Simulador!$V$14)+IF($D$8>0,$D$8,$D$7)/1000*IF(Simulador!$X$8=1,0,Simulador!$V$15)) -> 0 | L45: 0 | M45: =MAX(0,MIN(F44+G45+K45+L45-(I45+K45+L45),Simulador!$L$45)) -> 0 | O45: 0 | P45: 0 | S45: 0 | T45: 0 | U45: 0 | W45: 0 | X45: 0 | Y45: 0 | Z45: 0 | AA45: =IF(W44<0.01,0,+W44/1000*Simulador!$V$14+IF($D$8>0,$D$8,$D$7)/1000*Simulador!$V$15) -> 0 | AB45: =IF(W44<0.01,0,Simulador!$V$16) -> 0 | AC45: 0 | AD45: 0 | AE45: 0 | AF45: 0 | AG45: 0 | AI45: 0 | AJ45: 23
B46: 24 | C46: 1 | D46: 12 | E46: 0.1025 | F46: 0 | G46: 0 | H46: 0 | I46: 0 | J46: 0 | K46: =IF(F46<0.01,0,F46/1000*IF(Simulador!$X$8=1,0,Simulador!$V$14)+IF($D$8>0,$D$8,$D$7)/1000*IF(Simulador!$X$8=1,0,Simulador!$V$15)) -> 0 | L46: =IF(F45-H46=0,0,L44) -> 0 | M46: =MAX(0,MIN(F45+G46+K46+L46-(I46+K46+L46),Simulador!$L$45)) -> 0 | O46: 0 | P46: 0 | S46: 0 | T46: 0 | U46: 0 | W46: 0 | X46: 0 | Y46: 0 | Z46: 0 | AA46: =IF(W45<0.01,0,+W45/1000*Simulador!$V$14+IF($D$8>0,$D$8,$D$7)/1000*Simulador!$V$15) -> 0 | AB46: =IF(W45<0.01,0,Simulador!$V$16) -> 0 | AC46: 0 | AD46: 0 | AE46: 0 | AF46: 0 | AG46: 0 | AI46: 0 | AJ46: 24
B47: 25 | C47: 2 | D47: 1 | E47: 0.1025 | F47: 0 | G47: 0 | H47: 0 | I47: 0 | J47: 0.026 | K47: =IF(F47<0.01,0,F47/1000*IF(Simulador!$X$8=1,0,Simulador!$V$14)+IF($D$8>0,$D$8,$D$7)/1000*IF(Simulador!$X$8=1,0,Simulador!$V$15)) -> 0 | L47: 0 | M47: =MAX(0,MIN(F46+G47+K47+L47-(I47+K47+L47),Simulador!$L$45)) -> 0 | O47: 0 | P47: 0 | S47: 0 | T47: 0 | U47: 0 | W47: 0 | X47: 0 | Y47: 0 | Z47: 0 | AA47: =IF(W46<0.01,0,+W46/1000*Simulador!$V$14+IF($D$8>0,$D$8,$D$7)/1000*Simulador!$V$15) -> 0 | AB47: =IF(W46<0.01,0,Simulador!$V$16) -> 0 | AC47: 0 | AD47: 0 | AE47: 0 | AF47: 0 | AG47: 0 | AI47: 0 | AJ47: 25
B48: 26 | C48: 2 | D48: 2 | E48: 0.1025 | F48: 0 | G48: 0 | H48: 0 | I48: 0 | J48: 0 | K48: =IF(F48<0.01,0,F48/1000*IF(Simulador!$X$8=1,0,Simulador!$V$14)+IF($D$8>0,$D$8,$D$7)/1000*IF(Simulador!$X$8=1,0,Simulador!$V$15)) -> 0 | L48: =IF(F47-H48=0,0,L46*(1+Simulador!$AH$28)) -> 0 | M48: =MAX(0,MIN(F47+G48+K48+L48-(I48+K48+L48),Simulador!$L$45)) -> 0 | O48: 0 | P48: 0 | S48: 0 | T48: 0 | U48: 0 | W48: 0 | X48: 0 | Y48: 0 | Z48: 0 | AA48: =IF(W47<0.01,0,+W47/1000*Simulador!$V$14+IF($D$8>0,$D$8,$D$7)/1000*Simulador!$V$15) -> 0 | AB48: =IF(W47<0.01,0,Simulador!$V$16) -> 0 | AC48: 0 | AD48: 0 | AE48: 0 | AF48: 0 | AG48: 0 | AI48: 0 | AJ48: 26
B49: 27 | C49: 2 | D49: 3 | E49: 0.1025 | F49: 0 | G49: 0 | H49: 0 | I49: 0 | J49: 0 | K49: =IF(F49<0.01,0,F49/1000*IF(Simulador!$X$8=1,0,Simulador!$V$14)+IF($D$8>0,$D$8,$D$7)/1000*IF(Simulador!$X$8=1,0,Simulador!$V$15)) -> 0 | L49: 0 | M49: =MAX(0,MIN(F48+G49+K49+L49-(I49+K49+L49),Simulador!$L$45)) -> 0 | O49: 0 | P49: 0 | S49: 0 | T49: 0 | U49: 0 | W49: 0 | X49: 0 | Y49: 0 | Z49: 0 | AA49: =IF(W48<0.01,0,+W48/1000*Simulador!$V$14+IF($D$8>0,$D$8,$D$7)/1000*Simulador!$V$15) -> 0 | AB49: =IF(W48<0.01,0,Simulador!$V$16) -> 0 | AC49: 0 | AD49: 0 | AE49: 0 | AF49: 0 | AG49: 0 | AI49: 0 | AJ49: 27
B50: 28 | C50: 2 | D50: 4 | E50: 0.1025 | F50: 0 | G50: 0 | H50: 0 | I50: 0 | J50: 0 | K50: =IF(F50<0.01,0,F50/1000*IF(Simulador!$X$8=1,0,Simulador!$V$14)+IF($D$8>0,$D$8,$D$7)/1000*IF(Simulador!$X$8=1,0,Simulador!$V$15)) -> 0 | L50: =IF(F49-H50=0,0,L48) -> 0 | M50: =MAX(0,MIN(F49+G50+K50+L50-(I50+K50+L50),Simulador!$L$45)) -> 0 | O50: 0 | P50: 0 | S50: 0 | T50: 0 | U50: 0 | W50: 0 | X50: 0 | Y50: 0 | Z50: 0 | AA50: =IF(W49<0.01,0,+W49/1000*Simulador!$V$14+IF($D$8>0,$D$8,$D$7)/1000*Simulador!$V$15) -> 0 | AB50: =IF(W49<0.01,0,Simulador!$V$16) -> 0 | AC50: 0 | AD50: 0 | AE50: 0 | AF50: 0 | AG50: 0 | AI50: 0 | AJ50: 28
B51: 29 | C51: 2 | D51: 5 | E51: 0.1025 | F51: 0 | G51: 0 | H51: 0 | I51: 0 | J51: 0 | K51: =IF(F51<0.01,0,F51/1000*IF(Simulador!$X$8=1,0,Simulador!$V$14)+IF($D$8>0,$D$8,$D$7)/1000*IF(Simulador!$X$8=1,0,Simulador!$V$15)) -> 0 | L51: 0 | M51: =MAX(0,MIN(F50+G51+K51+L51-(I51+K51+L51),Simulador!$L$45)) -> 0 | O51: 0 | P51: 0 | S51: 0 | T51: 0 | U51: 0 | W51: 0 | X51: 0 | Y51: 0 | Z51: 0 | AA51: =IF(W50<0.01,0,+W50/1000*Simulador!$V$14+IF($D$8>0,$D$8,$D$7)/1000*Simulador!$V$15) -> 0 | AB51: =IF(W50<0.01,0,Simulador!$V$16) -> 0 | AC51: 0 | AD51: 0 | AE51: 0 | AF51: 0 | AG51: 0 | AI51: 0 | AJ51: 29
B52: 30 | C52: 2 | D52: 6 | E52: 0.1025 | F52: 0 | G52: 0 | H52: 0 | I52: 0 | J52: 0 | K52: =IF(F52<0.01,0,F52/1000*IF(Simulador!$X$8=1,0,Simulador!$V$14)+IF($D$8>0,$D$8,$D$7)/1000*IF(Simulador!$X$8=1,0,Simulador!$V$15)) -> 0 | L52: =IF(F51-H52=0,0,L50) -> 0 | M52: =MAX(0,MIN(F51+G52+K52+L52-(I52+K52+L52),Simulador!$L$45)) -> 0 | O52: 0 | P52: 0 | S52: 0 | T52: 0 | U52: 0 | W52: 0 | X52: 0 | Y52: 0 | Z52: 0 | AA52: =IF(W51<0.01,0,+W51/1000*Simulador!$V$14+IF($D$8>0,$D$8,$D$7)/1000*Simulador!$V$15) -> 0 | AB52: =IF(W51<0.01,0,Simulador!$V$16) -> 0 | AC52: 0 | AD52: 0 | AE52: 0 | AF52: 0 | AG52: 0 | AI52: 0 | AJ52: 30
B53: 31 | C53: 2 | D53: 7 | E53: 0.1025 | F53: 0 | G53: 0 | H53: 0 | I53: 0 | J53: 0 | K53: =IF(F53<0.01,0,F53/1000*IF(Simulador!$X$8=1,0,Simulador!$V$14)+IF($D$8>0,$D$8,$D$7)/1000*IF(Simulador!$X$8=1,0,Simulador!$V$15)) -> 0 | L53: 0 | M53: =MAX(0,MIN(F52+G53+K53+L53-(I53+K53+L53),Simulador!$L$45)) -> 0 | O53: 0 | P53: 0 | S53: 0 | T53: 0 | U53: 0 | W53: 0 | X53: 0 | Y53: 0 | Z53: 0 | AA53: =IF(W52<0.01,0,+W52/1000*Simulador!$V$14+IF($D$8>0,$D$8,$D$7)/1000*Simulador!$V$15) -> 0 | AB53: =IF(W52<0.01,0,Simulador!$V$16) -> 0 | AC53: 0 | AD53: 0 | AE53: 0 | AF53: 0 | AG53: 0 | AI53: 0 | AJ53: 31
B54: 32 | C54: 2 | D54: 8 | E54: 0.1025 | F54: 0 | G54: 0 | H54: 0 | I54: 0 | J54: 0 | K54: =IF(F54<0.01,0,F54/1000*IF(Simulador!$X$8=1,0,Simulador!$V$14)+IF($D$8>0,$D$8,$D$7)/1000*IF(Simulador!$X$8=1,0,Simulador!$V$15)) -> 0 | L54: =IF(F53-H54=0,0,L52) -> 0 | M54: =MAX(0,MIN(F53+G54+K54+L54-(I54+K54+L54),Simulador!$L$45)) -> 0 | O54: 0 | P54: 0 | S54: 0 | T54: 0 | U54: 0 | W54: 0 | X54: 0 | Y54: 0 | Z54: 0 | AA54: =IF(W53<0.01,0,+W53/1000*Simulador!$V$14+IF($D$8>0,$D$8,$D$7)/1000*Simulador!$V$15) -> 0 | AB54: =IF(W53<0.01,0,Simulador!$V$16) -> 0 | AC54: 0 | AD54: 0 | AE54: 0 | AF54: 0 | AG54: 0 | AI54: 0 | AJ54: 32
B55: 33 | C55: 2 | D55: 9 | E55: 0.1025 | F55: 0 | G55: 0 | H55: 0 | I55: 0 | J55: 0 | K55: =IF(F55<0.01,0,F55/1000*IF(Simulador!$X$8=1,0,Simulador!$V$14)+IF($D$8>0,$D$8,$D$7)/1000*IF(Simulador!$X$8=1,0,Simulador!$V$15)) -> 0 | L55: 0 | M55: =MAX(0,MIN(F54+G55+K55+L55-(I55+K55+L55),Simulador!$L$45)) -> 0 | O55: 0 | P55: 0 | S55: 0 | T55: 0 | U55: 0 | W55: 0 | X55: 0 | Y55: 0 | Z55: 0 | AA55: =IF(W54<0.01,0,+W54/1000*Simulador!$V$14+IF($D$8>0,$D$8,$D$7)/1000*Simulador!$V$15) -> 0 | AB55: =IF(W54<0.01,0,Simulador!$V$16) -> 0 | AC55: 0 | AD55: 0 | AE55: 0 | AF55: 0 | AG55: 0 | AI55: 0 | AJ55: 33
B56: 34 | C56: 2 | D56: 10 | E56: 0.1025 | F56: 0 | G56: 0 | H56: 0 | I56: 0 | J56: 0 | K56: =IF(F56<0.01,0,F56/1000*IF(Simulador!$X$8=1,0,Simulador!$V$14)+IF($D$8>0,$D$8,$D$7)/1000*IF(Simulador!$X$8=1,0,Simulador!$V$15)) -> 0 | L56: =IF(F55-H56=0,0,L54) -> 0 | M56: =MAX(0,MIN(F55+G56+K56+L56-(I56+K56+L56),Simulador!$L$45)) -> 0 | O56: 0 | P56: 0 | S56: 0 | T56: 0 | U56: 0 | W56: 0 | X56: 0 | Y56: 0 | Z56: 0 | AA56: =IF(W55<0.01,0,+W55/1000*Simulador!$V$14+IF($D$8>0,$D$8,$D$7)/1000*Simulador!$V$15) -> 0 | AB56: =IF(W55<0.01,0,Simulador!$V$16) -> 0 | AC56: 0 | AD56: 0 | AE56: 0 | AF56: 0 | AG56: 0 | AI56: 0 | AJ56: 34
B57: 35 | C57: 2 | D57: 11 | E57: 0.1025 | F57: 0 | G57: 0 | H57: 0 | I57: 0 | J57: 0 | K57: =IF(F57<0.01,0,F57/1000*IF(Simulador!$X$8=1,0,Simulador!$V$14)+IF($D$8>0,$D$8,$D$7)/1000*IF(Simulador!$X$8=1,0,Simulador!$V$15)) -> 0 | L57: 0 | M57: =MAX(0,MIN(F56+G57+K57+L57-(I57+K57+L57),Simulador!$L$45)) -> 0 | O57: 0 | P57: 0 | S57: 0 | T57: 0 | U57: 0 | W57: 0 | X57: 0 | Y57: 0 | Z57: 0 | AA57: =IF(W56<0.01,0,+W56/1000*Simulador!$V$14+IF($D$8>0,$D$8,$D$7)/1000*Simulador!$V$15) -> 0 | AB57: =IF(W56<0.01,0,Simulador!$V$16) -> 0 | AC57: 0 | AD57: 0 | AE57: 0 | AF57: 0 | AG57: 0 | AI57: 0 | AJ57: 35
B58: 36 | C58: 2 | D58: 12 | E58: 0.1025 | F58: 0 | G58: 0 | H58: 0 | I58: 0 | J58: 0 | K58: =IF(F58<0.01,0,F58/1000*IF(Simulador!$X$8=1,0,Simulador!$V$14)+IF($D$8>0,$D$8,$D$7)/1000*IF(Simulador!$X$8=1,0,Simulador!$V$15)) -> 0 | L58: =IF(F57-H58=0,0,L56) -> 0 | M58: =MAX(0,MIN(F57+G58+K58+L58-(I58+K58+L58),Simulador!$L$45)) -> 0 | O58: 0 | P58: 0 | S58: 0 | T58: 0 | U58: 0 | W58: 0 | X58: 0 | Y58: 0 | Z58: 0 | AA58: =IF(W57<0.01,0,+W57/1000*Simulador!$V$14+IF($D$8>0,$D$8,$D$7)/1000*Simulador!$V$15) -> 0 | AB58: =IF(W57<0.01,0,Simulador!$V$16) -> 0 | AC58: 0 | AD58: 0 | AE58: 0 | AF58: 0 | AG58: 0 | AI58: 0 | AJ58: 36
B59: 37 | C59: 3 | D59: 1 | E59: =IF(D59=1,MAX(E58-0.0025,Simulador!$L$10),E58) -> 0.1025 | F59: 0 | G59: 0 | H59: 0 | I59: 0 | J59: 0.026 | K59: =IF(F59<0.01,0,F59/1000*IF(Simulador!$X$8=1,0,Simulador!$V$14)+IF($D$8>0,$D$8,$D$7)/1000*IF(Simulador!$X$8=1,0,Simulador!$V$15)) -> 0 | L59: 0 | M59: =MAX(0,MIN(F58+G59+K59+L59-(I59+K59+L59),Simulador!$L$45)) -> 0 | O59: 0 | P59: 0 | S59: 0 | T59: 0 | U59: 0 | W59: 0 | X59: 0 | Y59: 0 | Z59: 0 | AA59: =IF(W58<0.01,0,+W58/1000*Simulador!$V$14+IF($D$8>0,$D$8,$D$7)/1000*Simulador!$V$15) -> 0 | AB59: =IF(W58<0.01,0,Simulador!$V$16) -> 0 | AC59: 0 | AD59: 0 | AE59: 0 | AF59: 0 | AG59: 0 | AI59: 0 | AJ59: 37
B60: 38 | C60: 3 | D60: 2 | E60: =IF(D60=1,MAX(E59-0.0025,Simulador!$L$10),E59) -> 0.1025 | F60: 0 | G60: 0 | H60: 0 | I60: 0 | J60: 0 | K60: =IF(F60<0.01,0,F60/1000*IF(Simulador!$X$8=1,0,Simulador!$V$14)+IF($D$8>0,$D$8,$D$7)/1000*IF(Simulador!$X$8=1,0,Simulador!$V$15)) -> 0 | L60: =IF(F59-H60=0,0,L58*(1+Simulador!$AH$28)) -> 0 | M60: =MAX(0,MIN(F59+G60+K60+L60-(I60+K60+L60),Simulador!$L$45)) -> 0 | O60: 0 | P60: 0 | S60: 0 | T60: 0 | U60: 0 | W60: 0 | X60: 0 | Y60: 0 | Z60: 0 | AA60: =IF(W59<0.01,0,+W59/1000*Simulador!$V$14+IF($D$8>0,$D$8,$D$7)/1000*Simulador!$V$15) -> 0 | AB60: =IF(W59<0.01,0,Simulador!$V$16) -> 0 | AC60: 0 | AD60: 0 | AE60: 0 | AF60: 0 | AG60: 0 | AI60: 0 | AJ60: 38
B61: 39 | C61: 3 | D61: 3 | E61: =IF(D61=1,MAX(E60-0.0025,Simulador!$L$10),E60) -> 0.1025 | F61: 0 | G61: 0 | H61: 0 | I61: 0 | J61: 0 | K61: =IF(F61<0.01,0,F61/1000*IF(Simulador!$X$8=1,0,Simulador!$V$14)+IF($D$8>0,$D$8,$D$7)/1000*IF(Simulador!$X$8=1,0,Simulador!$V$15)) -> 0 | L61: 0 | M61: =MAX(0,MIN(F60+G61+K61+L61-(I61+K61+L61),Simulador!$L$45)) -> 0 | O61: 0 | P61: 0 | S61: 0 | T61: 0 | U61: 0 | W61: 0 | X61: 0 | Y61: 0 | Z61: 0 | AA61: =IF(W60<0.01,0,+W60/1000*Simulador!$V$14+IF($D$8>0,$D$8,$D$7)/1000*Simulador!$V$15) -> 0 | AB61: =IF(W60<0.01,0,Simulador!$V$16) -> 0 | AC61: 0 | AD61: 0 | AE61: 0 | AF61: 0 | AG61: 0 | AI61: 0 | AJ61: 39
B62: 40 | C62: 3 | D62: 4 | E62: =IF(D62=1,MAX(E61-0.0025,Simulador!$L$10),E61) -> 0.1025 | F62: 0 | G62: 0 | H62: 0 | I62: 0 | J62: 0 | K62: =IF(F62<0.01,0,F62/1000*IF(Simulador!$X$8=1,0,Simulador!$V$14)+IF($D$8>0,$D$8,$D$7)/1000*IF(Simulador!$X$8=1,0,Simulador!$V$15)) -> 0 | L62: =IF(F61-H62=0,0,L60) -> 0 | M62: =MAX(0,MIN(F61+G62+K62+L62-(I62+K62+L62),Simulador!$L$45)) -> 0 | O62: 0 | P62: 0 | S62: 0 | T62: 0 | U62: 0 | W62: 0 | X62: 0 | Y62: 0 | Z62: 0 | AA62: =IF(W61<0.01,0,+W61/1000*Simulador!$V$14+IF($D$8>0,$D$8,$D$7)/1000*Simulador!$V$15) -> 0 | AB62: =IF(W61<0.01,0,Simulador!$V$16) -> 0 | AC62: 0 | AD62: 0 | AE62: 0 | AF62: 0 | AG62: 0 | AI62: 0 | AJ62: 40
B63: 41 | C63: 3 | D63: 5 | E63: =IF(D63=1,MAX(E62-0.0025,Simulador!$L$10),E62) -> 0.1025 | F63: 0 | G63: 0 | H63: 0 | I63: 0 | J63: 0 | K63: =IF(F63<0.01,0,F63/1000*IF(Simulador!$X$8=1,0,Simulador!$V$14)+IF($D$8>0,$D$8,$D$7)/1000*IF(Simulador!$X$8=1,0,Simulador!$V$15)) -> 0 | L63: 0 | M63: =MAX(0,MIN(F62+G63+K63+L63-(I63+K63+L63),Simulador!$L$45)) -> 0 | O63: 0 | P63: 0 | S63: 0 | T63: 0 | U63: 0 | W63: 0 | X63: 0 | Y63: 0 | Z63: 0 | AA63: =IF(W62<0.01,0,+W62/1000*Simulador!$V$14+IF($D$8>0,$D$8,$D$7)/1000*Simulador!$V$15) -> 0 | AB63: =IF(W62<0.01,0,Simulador!$V$16) -> 0 | AC63: 0 | AD63: 0 | AE63: 0 | AF63: 0 | AG63: 0 | AI63: 0 | AJ63: 41
B64: 42 | C64: 3 | D64: 6 | E64: =IF(D64=1,MAX(E63-0.0025,Simulador!$L$10),E63) -> 0.1025 | F64: 0 | G64: 0 | H64: 0 | I64: 0 | J64: 0 | K64: =IF(F64<0.01,0,F64/1000*IF(Simulador!$X$8=1,0,Simulador!$V$14)+IF($D$8>0,$D$8,$D$7)/1000*IF(Simulador!$X$8=1,0,Simulador!$V$15)) -> 0 | L64: =IF(F63-H64=0,0,L62) -> 0 | M64: =MAX(0,MIN(F63+G64+K64+L64-(I64+K64+L64),Simulador!$L$45)) -> 0 | O64: 0 | P64: 0 | S64: 0 | T64: 0 | U64: 0 | W64: 0 | X64: 0 | Y64: 0 | Z64: 0 | AA64: =IF(W63<0.01,0,+W63/1000*Simulador!$V$14+IF($D$8>0,$D$8,$D$7)/1000*Simulador!$V$15) -> 0 | AB64: =IF(W63<0.01,0,Simulador!$V$16) -> 0 | AC64: 0 | AD64: 0 | AE64: 0 | AF64: 0 | AG64: 0 | AI64: 0 | AJ64: 42
B65: 43 | C65: 3 | D65: 7 | E65: =IF(D65=1,MAX(E64-0.0025,Simulador!$L$10),E64) -> 0.1025 | F65: 0 | G65: 0 | H65: 0 | I65: 0 | J65: 0 | K65: =IF(F65<0.01,0,F65/1000*IF(Simulador!$X$8=1,0,Simulador!$V$14)+IF($D$8>0,$D$8,$D$7)/1000*IF(Simulador!$X$8=1,0,Simulador!$V$15)) -> 0 | L65: 0 | M65: =MAX(0,MIN(F64+G65+K65+L65-(I65+K65+L65),Simulador!$L$45)) -> 0 | O65: 0 | P65: 0 | S65: 0 | T65: 0 | U65: 0 | W65: 0 | X65: 0 | Y65: 0 | Z65: 0 | AA65: =IF(W64<0.01,0,+W64/1000*Simulador!$V$14+IF($D$8>0,$D$8,$D$7)/1000*Simulador!$V$15) -> 0 | AB65: =IF(W64<0.01,0,Simulador!$V$16) -> 0 | AC65: 0 | AD65: 0 | AE65: 0 | AF65: 0 | AG65: 0 | AI65: 0 | AJ65: 43
B66: 44 | C66: 3 | D66: 8 | E66: =IF(D66=1,MAX(E65-0.0025,Simulador!$L$10),E65) -> 0.1025 | F66: 0 | G66: 0 | H66: 0 | I66: 0 | J66: 0 | K66: =IF(F66<0.01,0,F66/1000*IF(Simulador!$X$8=1,0,Simulador!$V$14)+IF($D$8>0,$D$8,$D$7)/1000*IF(Simulador!$X$8=1,0,Simulador!$V$15)) -> 0 | L66: =IF(F65-H66=0,0,L64) -> 0 | M66: =MAX(0,MIN(F65+G66+K66+L66-(I66+K66+L66),Simulador!$L$45)) -> 0 | O66: 0 | P66: 0 | S66: 0 | T66: 0 | U66: 0 | W66: 0 | X66: 0 | Y66: 0 | Z66: 0 | AA66: =IF(W65<0.01,0,+W65/1000*Simulador!$V$14+IF($D$8>0,$D$8,$D$7)/1000*Simulador!$V$15) -> 0 | AB66: =IF(W65<0.01,0,Simulador!$V$16) -> 0 | AC66: 0 | AD66: 0 | AE66: 0 | AF66: 0 | AG66: 0 | AI66: 0 | AJ66: 44
B67: 45 | C67: 3 | D67: 9 | E67: =IF(D67=1,MAX(E66-0.0025,Simulador!$L$10),E66) -> 0.1025 | F67: 0 | G67: 0 | H67: 0 | I67: 0 | J67: 0 | K67: =IF(F67<0.01,0,F67/1000*IF(Simulador!$X$8=1,0,Simulador!$V$14)+IF($D$8>0,$D$8,$D$7)/1000*IF(Simulador!$X$8=1,0,Simulador!$V$15)) -> 0 | L67: 0 | M67: =MAX(0,MIN(F66+G67+K67+L67-(I67+K67+L67),Simulador!$L$45)) -> 0 | O67: 0 | P67: 0 | S67: 0 | T67: 0 | U67: 0 | W67: 0 | X67: 0 | Y67: 0 | Z67: 0 | AA67: =IF(W66<0.01,0,+W66/1000*Simulador!$V$14+IF($D$8>0,$D$8,$D$7)/1000*Simulador!$V$15) -> 0 | AB67: =IF(W66<0.01,0,Simulador!$V$16) -> 0 | AC67: 0 | AD67: 0 | AE67: 0 | AF67: 0 | AG67: 0 | AI67: 0 | AJ67: 45
B68: 46 | C68: 3 | D68: 10 | E68: =IF(D68=1,MAX(E67-0.0025,Simulador!$L$10),E67) -> 0.1025 | F68: 0 | G68: 0 | H68: 0 | I68: 0 | J68: 0 | K68: =IF(F68<0.01,0,F68/1000*IF(Simulador!$X$8=1,0,Simulador!$V$14)+IF($D$8>0,$D$8,$D$7)/1000*IF(Simulador!$X$8=1,0,Simulador!$V$15)) -> 0 | L68: =IF(F67-H68=0,0,L66) -> 0 | M68: =MAX(0,MIN(F67+G68+K68+L68-(I68+K68+L68),Simulador!$L$45)) -> 0 | O68: 0 | P68: 0 | S68: 0 | T68: 0 | U68: 0 | W68: 0 | X68: 0 | Y68: 0 | Z68: 0 | AA68: =IF(W67<0.01,0,+W67/1000*Simulador!$V$14+IF($D$8>0,$D$8,$D$7)/1000*Simulador!$V$15) -> 0 | AB68: =IF(W67<0.01,0,Simulador!$V$16) -> 0 | AC68: 0 | AD68: 0 | AE68: 0 | AF68: 0 | AG68: 0 | AI68: 0 | AJ68: 46
B69: 47 | C69: 3 | D69: 11 | E69: =IF(D69=1,MAX(E68-0.0025,Simulador!$L$10),E68) -> 0.1025 | F69: 0 | G69: 0 | H69: 0 | I69: 0 | J69: 0 | K69: =IF(F69<0.01,0,F69/1000*IF(Simulador!$X$8=1,0,Simulador!$V$14)+IF($D$8>0,$D$8,$D$7)/1000*IF(Simulador!$X$8=1,0,Simulador!$V$15)) -> 0 | L69: 0 | M69: =MAX(0,MIN(F68+G69+K69+L69-(I69+K69+L69),Simulador!$L$45)) -> 0 | O69: 0 | P69: 0 | S69: 0 | T69: 0 | U69: 0 | W69: 0 | X69: 0 | Y69: 0 | Z69: 0 | AA69: =IF(W68<0.01,0,+W68/1000*Simulador!$V$14+IF($D$8>0,$D$8,$D$7)/1000*Simulador!$V$15) -> 0 | AB69: =IF(W68<0.01,0,Simulador!$V$16) -> 0 | AC69: 0 | AD69: 0 | AE69: 0 | AF69: 0 | AG69: 0 | AI69: 0 | AJ69: 47
B70: 48 | C70: 3 | D70: 12 | E70: =IF(D70=1,MAX(E69-0.0025,Simulador!$L$10),E69) -> 0.1025 | F70: 0 | G70: 0 | H70: 0 | I70: 0 | J70: 0 | K70: =IF(F70<0.01,0,F70/1000*IF(Simulador!$X$8=1,0,Simulador!$V$14)+IF($D$8>0,$D$8,$D$7)/1000*IF(Simulador!$X$8=1,0,Simulador!$V$15)) -> 0 | L70: =IF(F69-H70=0,0,L68) -> 0 | M70: =MAX(0,MIN(F69+G70+K70+L70-(I70+K70+L70),Simulador!$L$45)) -> 0 | O70: 0 | P70: 0 | S70: 0 | T70: 0 | U70: 0 | W70: 0 | X70: 0 | Y70: 0 | Z70: 0 | AA70: =IF(W69<0.01,0,+W69/1000*Simulador!$V$14+IF($D$8>0,$D$8,$D$7)/1000*Simulador!$V$15) -> 0 | AB70: =IF(W69<0.01,0,Simulador!$V$16) -> 0 | AC70: 0 | AD70: 0 | AE70: 0 | AF70: 0 | AG70: 0 | AI70: 0 | AJ70: 48
B71: 49 | C71: 4 | D71: 1 | E71: =IF(D71=1,MAX(E70-0.0025,Simulador!$L$10),E70) -> 0.1025 | F71: 0 | G71: 0 | H71: 0 | I71: 0 | J71: 0.026 | K71: =IF(F71<0.01,0,F71/1000*IF(Simulador!$X$8=1,0,Simulador!$V$14)+IF($D$8>0,$D$8,$D$7)/1000*IF(Simulador!$X$8=1,0,Simulador!$V$15)) -> 0 | L71: 0 | M71: =MAX(0,MIN(F70+G71+K71+L71-(I71+K71+L71),Simulador!$L$45)) -> 0 | O71: 0 | P71: 0 | S71: 0 | T71: 0 | U71: 0 | W71: 0 | X71: 0 | Y71: 0 | Z71: 0 | AA71: =IF(W70<0.01,0,+W70/1000*Simulador!$V$14+IF($D$8>0,$D$8,$D$7)/1000*Simulador!$V$15) -> 0 | AB71: =IF(W70<0.01,0,Simulador!$V$16) -> 0 | AC71: 0 | AD71: 0 | AE71: 0 | AF71: 0 | AG71: 0 | AI71: 0 | AJ71: 49
B72: 50 | C72: 4 | D72: 2 | E72: =IF(D72=1,MAX(E71-0.0025,Simulador!$L$10),E71) -> 0.1025 | F72: 0 | G72: 0 | H72: 0 | I72: 0 | J72: 0 | K72: =IF(F72<0.01,0,F72/1000*IF(Simulador!$X$8=1,0,Simulador!$V$14)+IF($D$8>0,$D$8,$D$7)/1000*IF(Simulador!$X$8=1,0,Simulador!$V$15)) -> 0 | L72: =IF(F71-H72=0,0,L70*(1+Simulador!$AH$28)) -> 0 | M72: =MAX(0,MIN(F71+G72+K72+L72-(I72+K72+L72),Simulador!$L$45)) -> 0 | O72: 0 | P72: 0 | S72: 0 | T72: 0 | U72: 0 | W72: 0 | X72: 0 | Y72: 0 | Z72: 0 | AA72: =IF(W71<0.01,0,+W71/1000*Simulador!$V$14+IF($D$8>0,$D$8,$D$7)/1000*Simulador!$V$15) -> 0 | AB72: =IF(W71<0.01,0,Simulador!$V$16) -> 0 | AC72: 0 | AD72: 0 | AE72: 0 | AF72: 0 | AG72: 0 | AI72: 0 | AJ72: 50
B73: 51 | C73: 4 | D73: 3 | E73: =IF(D73=1,MAX(E72-0.0025,Simulador!$L$10),E72) -> 0.1025 | F73: 0 | G73: 0 | H73: 0 | I73: 0 | J73: 0 | K73: =IF(F73<0.01,0,F73/1000*IF(Simulador!$X$8=1,0,Simulador!$V$14)+IF($D$8>0,$D$8,$D$7)/1000*IF(Simulador!$X$8=1,0,Simulador!$V$15)) -> 0 | L73: 0 | M73: =MAX(0,MIN(F72+G73+K73+L73-(I73+K73+L73),Simulador!$L$45)) -> 0 | O73: 0 | P73: 0 | S73: 0 | T73: 0 | U73: 0 | W73: 0 | X73: 0 | Y73: 0 | Z73: 0 | AA73: =IF(W72<0.01,0,+W72/1000*Simulador!$V$14+IF($D$8>0,$D$8,$D$7)/1000*Simulador!$V$15) -> 0 | AB73: =IF(W72<0.01,0,Simulador!$V$16) -> 0 | AC73: 0 | AD73: 0 | AE73: 0 | AF73: 0 | AG73: 0 | AI73: 0 | AJ73: 51
B74: 52 | C74: 4 | D74: 4 | E74: =IF(D74=1,MAX(E73-0.0025,Simulador!$L$10),E73) -> 0.1025 | F74: 0 | G74: 0 | H74: 0 | I74: 0 | J74: 0 | K74: =IF(F74<0.01,0,F74/1000*IF(Simulador!$X$8=1,0,Simulador!$V$14)+IF($D$8>0,$D$8,$D$7)/1000*IF(Simulador!$X$8=1,0,Simulador!$V$15)) -> 0 | L74: =IF(F73-H74=0,0,L72) -> 0 | M74: =MAX(0,MIN(F73+G74+K74+L74-(I74+K74+L74),Simulador!$L$45)) -> 0 | O74: 0 | P74: 0 | S74: 0 | T74: 0 | U74: 0 | W74: 0 | X74: 0 | Y74: 0 | Z74: 0 | AA74: =IF(W73<0.01,0,+W73/1000*Simulador!$V$14+IF($D$8>0,$D$8,$D$7)/1000*Simulador!$V$15) -> 0 | AB74: =IF(W73<0.01,0,Simulador!$V$16) -> 0 | AC74: 0 | AD74: 0 | AE74: 0 | AF74: 0 | AG74: 0 | AI74: 0 | AJ74: 52
B75: 53 | C75: 4 | D75: 5 | E75: =IF(D75=1,MAX(E74-0.0025,Simulador!$L$10),E74) -> 0.1025 | F75: 0 | G75: 0 | H75: 0 | I75: 0 | J75: 0 | K75: =IF(F75<0.01,0,F75/1000*IF(Simulador!$X$8=1,0,Simulador!$V$14)+IF($D$8>0,$D$8,$D$7)/1000*IF(Simulador!$X$8=1,0,Simulador!$V$15)) -> 0 | L75: 0 | M75: =MAX(0,MIN(F74+G75+K75+L75-(I75+K75+L75),Simulador!$L$45)) -> 0 | O75: 0 | P75: 0 | S75: 0 | T75: 0 | U75: 0 | W75: 0 | X75: 0 | Y75: 0 | Z75: 0 | AA75: =IF(W74<0.01,0,+W74/1000*Simulador!$V$14+IF($D$8>0,$D$8,$D$7)/1000*Simulador!$V$15) -> 0 | AB75: =IF(W74<0.01,0,Simulador!$V$16) -> 0 | AC75: 0 | AD75: 0 | AE75: 0 | AF75: 0 | AG75: 0 | AI75: 0 | AJ75: 53
B76: 54 | C76: 4 | D76: 6 | E76: =IF(D76=1,MAX(E75-0.0025,Simulador!$L$10),E75) -> 0.1025 | F76: 0 | G76: 0 | H76: 0 | I76: 0 | J76: 0 | K76: =IF(F76<0.01,0,F76/1000*IF(Simulador!$X$8=1,0,Simulador!$V$14)+IF($D$8>0,$D$8,$D$7)/1000*IF(Simulador!$X$8=1,0,Simulador!$V$15)) -> 0 | L76: =IF(F75-H76=0,0,L74) -> 0 | M76: =MAX(0,MIN(F75+G76+K76+L76-(I76+K76+L76),Simulador!$L$45)) -> 0 | O76: 0 | P76: 0 | S76: 0 | T76: 0 | U76: 0 | W76: 0 | X76: 0 | Y76: 0 | Z76: 0 | AA76: =IF(W75<0.01,0,+W75/1000*Simulador!$V$14+IF($D$8>0,$D$8,$D$7)/1000*Simulador!$V$15) -> 0 | AB76: =IF(W75<0.01,0,Simulador!$V$16) -> 0 | AC76: 0 | AD76: 0 | AE76: 0 | AF76: 0 | AG76: 0 | AI76: 0 | AJ76: 54
B77: 55 | C77: 4 | D77: 7 | E77: =IF(D77=1,MAX(E76-0.0025,Simulador!$L$10),E76) -> 0.1025 | F77: 0 | G77: 0 | H77: 0 | I77: 0 | J77: 0 | K77: =IF(F77<0.01,0,F77/1000*IF(Simulador!$X$8=1,0,Simulador!$V$14)+IF($D$8>0,$D$8,$D$7)/1000*IF(Simulador!$X$8=1,0,Simulador!$V$15)) -> 0 | L77: 0 | M77: =MAX(0,MIN(F76+G77+K77+L77-(I77+K77+L77),Simulador!$L$45)) -> 0 | O77: 0 | P77: 0 | S77: 0 | T77: 0 | U77: 0 | W77: 0 | X77: 0 | Y77: 0 | Z77: 0 | AA77: =IF(W76<0.01,0,+W76/1000*Simulador!$V$14+IF($D$8>0,$D$8,$D$7)/1000*Simulador!$V$15) -> 0 | AB77: =IF(W76<0.01,0,Simulador!$V$16) -> 0 | AC77: 0 | AD77: 0 | AE77: 0 | AF77: 0 | AG77: 0 | AI77: 0 | AJ77: 55
B78: 56 | C78: 4 | D78: 8 | E78: =IF(D78=1,MAX(E77-0.0025,Simulador!$L$10),E77) -> 0.1025 | F78: 0 | G78: 0 | H78: 0 | I78: 0 | J78: 0 | K78: =IF(F78<0.01,0,F78/1000*IF(Simulador!$X$8=1,0,Simulador!$V$14)+IF($D$8>0,$D$8,$D$7)/1000*IF(Simulador!$X$8=1,0,Simulador!$V$15)) -> 0 | L78: =IF(F77-H78=0,0,L76) -> 0 | M78: =MAX(0,MIN(F77+G78+K78+L78-(I78+K78+L78),Simulador!$L$45)) -> 0 | O78: 0 | P78: 0 | S78: 0 | T78: 0 | U78: 0 | W78: 0 | X78: 0 | Y78: 0 | Z78: 0 | AA78: =IF(W77<0.01,0,+W77/1000*Simulador!$V$14+IF($D$8>0,$D$8,$D$7)/1000*Simulador!$V$15) -> 0 | AB78: =IF(W77<0.01,0,Simulador!$V$16) -> 0 | AC78: 0 | AD78: 0 | AE78: 0 | AF78: 0 | AG78: 0 | AI78: 0 | AJ78: 56
B79: 57 | C79: 4 | D79: 9 | E79: =IF(D79=1,MAX(E78-0.0025,Simulador!$L$10),E78) -> 0.1025 | F79: 0 | G79: 0 | H79: 0 | I79: 0 | J79: 0 | K79: =IF(F79<0.01,0,F79/1000*IF(Simulador!$X$8=1,0,Simulador!$V$14)+IF($D$8>0,$D$8,$D$7)/1000*IF(Simulador!$X$8=1,0,Simulador!$V$15)) -> 0 | L79: 0 | M79: =MAX(0,MIN(F78+G79+K79+L79-(I79+K79+L79),Simulador!$L$45)) -> 0 | O79: 0 | P79: 0 | S79: 0 | T79: 0 | U79: 0 | W79: 0 | X79: 0 | Y79: 0 | Z79: 0 | AA79: =IF(W78<0.01,0,+W78/1000*Simulador!$V$14+IF($D$8>0,$D$8,$D$7)/1000*Simulador!$V$15) -> 0 | AB79: =IF(W78<0.01,0,Simulador!$V$16) -> 0 | AC79: 0 | AD79: 0 | AE79: 0 | AF79: 0 | AG79: 0 | AI79: 0 | AJ79: 57
B80: 58 | C80: 4 | D80: 10 | E80: =IF(D80=1,MAX(E79-0.0025,Simulador!$L$10),E79) -> 0.1025 | F80: 0 | G80: 0 | H80: 0 | I80: 0 | J80: 0 | K80: =IF(F80<0.01,0,F80/1000*IF(Simulador!$X$8=1,0,Simulador!$V$14)+IF($D$8>0,$D$8,$D$7)/1000*IF(Simulador!$X$8=1,0,Simulador!$V$15)) -> 0 | L80: =IF(F79-H80=0,0,L78) -> 0 | M80: =MAX(0,MIN(F79+G80+K80+L80-(I80+K80+L80),Simulador!$L$45)) -> 0 | O80: 0 | P80: 0 | S80: 0 | T80: 0 | U80: 0 | W80: 0 | X80: 0 | Y80: 0 | Z80: 0 | AA80: =IF(W79<0.01,0,+W79/1000*Simulador!$V$14+IF($D$8>0,$D$8,$D$7)/1000*Simulador!$V$15) -> 0 | AB80: =IF(W79<0.01,0,Simulador!$V$16) -> 0 | AC80: 0 | AD80: 0 | AE80: 0 | AF80: 0 | AG80: 0 | AI80: 0 | AJ80: 58
B81: 59 | C81: 4 | D81: 11 | E81: =IF(D81=1,MAX(E80-0.0025,Simulador!$L$10),E80) -> 0.1025 | F81: 0 | G81: 0 | H81: 0 | I81: 0 | J81: 0 | K81: =IF(F81<0.01,0,F81/1000*IF(Simulador!$X$8=1,0,Simulador!$V$14)+IF($D$8>0,$D$8,$D$7)/1000*IF(Simulador!$X$8=1,0,Simulador!$V$15)) -> 0 | L81: 0 | M81: =MAX(0,MIN(F80+G81+K81+L81-(I81+K81+L81),Simulador!$L$45)) -> 0 | O81: 0 | P81: 0 | S81: 0 | T81: 0 | U81: 0 | W81: 0 | X81: 0 | Y81: 0 | Z81: 0 | AA81: =IF(W80<0.01,0,+W80/1000*Simulador!$V$14+IF($D$8>0,$D$8,$D$7)/1000*Simulador!$V$15) -> 0 | AB81: =IF(W80<0.01,0,Simulador!$V$16) -> 0 | AC81: 0 | AD81: 0 | AE81: 0 | AF81: 0 | AG81: 0 | AI81: 0 | AJ81: 59
B82: 60 | C82: 4 | D82: 12 | E82: =IF(D82=1,MAX(E81-0.0025,Simulador!$L$10),E81) -> 0.1025 | F82: 0 | G82: 0 | H82: 0 | I82: 0 | J82: 0 | K82: =IF(F82<0.01,0,F82/1000*IF(Simulador!$X$8=1,0,Simulador!$V$14)+IF($D$8>0,$D$8,$D$7)/1000*IF(Simulador!$X$8=1,0,Simulador!$V$15)) -> 0 | L82: =IF(F81-H82=0,0,L80) -> 0 | M82: =MAX(0,MIN(F81+G82+K82+L82-(I82+K82+L82),Simulador!$L$45)) -> 0 | O82: 0 | P82: 0 | S82: 0 | T82: 0 | U82: 0 | W82: 0 | X82: 0 | Y82: 0 | Z82: 0 | AA82: =IF(W81<0.01,0,+W81/1000*Simulador!$V$14+IF($D$8>0,$D$8,$D$7)/1000*Simulador!$V$15) -> 0 | AB82: =IF(W81<0.01,0,Simulador!$V$16) -> 0 | AC82: 0 | AD82: 0 | AE82: 0 | AF82: 0 | AG82: 0 | AI82: 0 | AJ82: 60
B83: 61 | C83: 5 | D83: 1 | E83: =IF(D83=1,MAX(E82-0.0025,Simulador!$L$10),E82) -> 0.1025 | F83: 0 | G83: 0 | H83: 0 | I83: 0 | J83: 0.026 | K83: =IF(F83<0.01,0,F83/1000*IF(Simulador!$X$8=1,0,Simulador!$V$14)+IF($D$8>0,$D$8,$D$7)/1000*IF(Simulador!$X$8=1,0,Simulador!$V$15)) -> 0 | L83: 0 | M83: =MAX(0,MIN(F82+G83+K83+L83-(I83+K83+L83),Simulador!$L$45)) -> 0 | O83: 0 | P83: 0 | S83: 0 | T83: 0 | U83: 0 | W83: 0 | X83: 0 | Y83: 0 | Z83: 0 | AA83: =IF(W82<0.01,0,+W82/1000*Simulador!$V$14+IF($D$8>0,$D$8,$D$7)/1000*Simulador!$V$15) -> 0 | AB83: =IF(W82<0.01,0,Simulador!$V$16) -> 0 | AC83: 0 | AD83: 0 | AE83: 0 | AF83: 0 | AG83: 0 | AI83: 0 | AJ83: 61
B84: 62 | C84: 5 | D84: 2 | E84: =IF(D84=1,MAX(E83-0.0025,Simulador!$L$10),E83) -> 0.1025 | F84: 0 | G84: 0 | H84: 0 | I84: 0 | J84: 0 | K84: =IF(F84<0.01,0,F84/1000*IF(Simulador!$X$8=1,0,Simulador!$V$14)+IF($D$8>0,$D$8,$D$7)/1000*IF(Simulador!$X$8=1,0,Simulador!$V$15)) -> 0 | L84: =IF(F83-H84=0,0,L82*(1+Simulador!$AH$28)) -> 0 | M84: =MAX(0,MIN(F83+G84+K84+L84-(I84+K84+L84),Simulador!$L$45)) -> 0 | O84: 0 | P84: 0 | S84: 0 | T84: 0 | U84: 0 | W84: 0 | X84: 0 | Y84: 0 | Z84: 0 | AA84: =IF(W83<0.01,0,+W83/1000*Simulador!$V$14+IF($D$8>0,$D$8,$D$7)/1000*Simulador!$V$15) -> 0 | AB84: =IF(W83<0.01,0,Simulador!$V$16) -> 0 | AC84: 0 | AD84: 0 | AE84: 0 | AF84: 0 | AG84: 0 | AI84: 0 | AJ84: 62
B85: 63 | C85: 5 | D85: 3 | E85: =IF(D85=1,MAX(E84-0.0025,Simulador!$L$10),E84) -> 0.1025 | F85: 0 | G85: 0 | H85: 0 | I85: 0 | J85: 0 | K85: =IF(F85<0.01,0,F85/1000*IF(Simulador!$X$8=1,0,Simulador!$V$14)+IF($D$8>0,$D$8,$D$7)/1000*IF(Simulador!$X$8=1,0,Simulador!$V$15)) -> 0 | L85: 0 | M85: =MAX(0,MIN(F84+G85+K85+L85-(I85+K85+L85),Simulador!$L$45)) -> 0 | O85: 0 | P85: 0 | S85: 0 | T85: 0 | U85: 0 | W85: 0 | X85: 0 | Y85: 0 | Z85: 0 | AA85: =IF(W84<0.01,0,+W84/1000*Simulador!$V$14+IF($D$8>0,$D$8,$D$7)/1000*Simulador!$V$15) -> 0 | AB85: =IF(W84<0.01,0,Simulador!$V$16) -> 0 | AC85: 0 | AD85: 0 | AE85: 0 | AF85: 0 | AG85: 0 | AI85: 0 | AJ85: 63
B86: 64 | C86: 5 | D86: 4 | E86: =IF(D86=1,MAX(E85-0.0025,Simulador!$L$10),E85) -> 0.1025 | F86: 0 | G86: 0 | H86: 0 | I86: 0 | J86: 0 | K86: =IF(F86<0.01,0,F86/1000*IF(Simulador!$X$8=1,0,Simulador!$V$14)+IF($D$8>0,$D$8,$D$7)/1000*IF(Simulador!$X$8=1,0,Simulador!$V$15)) -> 0 | L86: =IF(F85-H86=0,0,L84) -> 0 | M86: =MAX(0,MIN(F85+G86+K86+L86-(I86+K86+L86),Simulador!$L$45)) -> 0 | O86: 0 | P86: 0 | S86: 0 | T86: 0 | U86: 0 | W86: 0 | X86: 0 | Y86: 0 | Z86: 0 | AA86: =IF(W85<0.01,0,+W85/1000*Simulador!$V$14+IF($D$8>0,$D$8,$D$7)/1000*Simulador!$V$15) -> 0 | AB86: =IF(W85<0.01,0,Simulador!$V$16) -> 0 | AC86: 0 | AD86: 0 | AE86: 0 | AF86: 0 | AG86: 0 | AI86: 0 | AJ86: 64
B87: 65 | C87: 5 | D87: 5 | E87: =IF(D87=1,MAX(E86-0.0025,Simulador!$L$10),E86) -> 0.1025 | F87: 0 | G87: 0 | H87: 0 | I87: 0 | J87: 0 | K87: =IF(F87<0.01,0,F87/1000*IF(Simulador!$X$8=1,0,Simulador!$V$14)+IF($D$8>0,$D$8,$D$7)/1000*IF(Simulador!$X$8=1,0,Simulador!$V$15)) -> 0 | L87: 0 | M87: =MAX(0,MIN(F86+G87+K87+L87-(I87+K87+L87),Simulador!$L$45)) -> 0 | O87: 0 | P87: 0 | S87: 0 | T87: =IF(AND(F86>0.01,F87<=0.01),B87,0) -> 0 | U87: 0 | W87: 0 | X87: 0 | Y87: 0 | Z87: 0 | AA87: =IF(W86<0.01,0,+W86/1000*Simulador!$V$14+IF($D$8>0,$D$8,$D$7)/1000*Simulador!$V$15) -> 0 | AB87: =IF(W86<0.01,0,Simulador!$V$16) -> 0 | AC87: 0 | AD87: 0 | AE87: 0 | AF87: 0 | AG87: 0 | AI87: 0 | AJ87: 65
B88: 66 | C88: 5 | D88: 6 | E88: =IF(D88=1,MAX(E87-0.0025,Simulador!$L$10),E87) -> 0.1025 | F88: =+O87 -> 0 | G88: 0 | H88: =+I88-G88 -> 0 | I88: 0 | J88: =IF(D88=1,$D$13,0) -> 0 | K88: =IF(F88<0.01,0,F88/1000*IF(Simulador!$X$8=1,0,Simulador!$V$14)+IF($D$8>0,$D$8,$D$7)/1000*IF(Simulador!$X$8=1,0,Simulador!$V$15)) -> 0 | L88: =IF(F87-H88=0,0,L86) -> 0 | M88: =MAX(0,MIN(F87+G88+K88+L88-(I88+K88+L88),Simulador!$L$45)) -> 0 | O88: =MAX(0,O87-H88-L88-M88-N88) -> 0 | P88: =MAX(0,MIN(F87+G88+K88,I88+K88+M88+N88)) -> 0 | S88: 0 | T88: 0 | U88: =+P88 -> 0 | W88: =+W87-Y88 -> 0 | X88: =W87*E88/360*AI88 -> 0 | Y88: =+Z88-X88 -> 0 | Z88: 0 | AA88: =IF(W87<0.01,0,+W87/1000*Simulador!$V$14+IF($D$8>0,$D$8,$D$7)/1000*Simulador!$V$15) -> 0 | AB88: =IF(W87<0.01,0,Simulador!$V$16) -> 0 | AC88: 0 | AD88: =IF(W87<0.01,0,+Z88+AA88+AB88-AC88) -> 0 | AE88: =+AD88 -> 0 | AF88: =IFERROR(Z88/W87,0) -> 0 | AG88: 0 | AI88: =IFERROR(DAY(DATE(YEAR(AH88),MONTH(AH88)+1,0)),0) -> 0 | AJ88: 66
B89: 67 | C89: =IF(D88=12,C88+1,C88) -> 5 | D89: 7 | E89: =IF(D89=1,MAX(E88-0.0025,Simulador!$L$10),E88) -> 0.1025 | F89: 0 | G89: =IF(F89<0.01,0,F89*E89/360*AI89) -> 0 | H89: 0 | I89: =IF($W$16=2,MAX(0,(MIN(+I88*(1+J89),F89*AF89))),MAX(0,(MIN(+I88*(1+J89),F89+G89)))) -> 0 | J89: 0 | K89: =IF(F89<0.01,0,F89/1000*IF(Simulador!$X$8=1,0,Simulador!$V$14)+IF($D$8>0,$D$8,$D$7)/1000*IF(Simulador!$X$8=1,0,Simulador!$V$15)) -> 0 | L89: 0 | M89: =MAX(0,MIN(F88+G89+K89+L89-(I89+K89+L89),Simulador!$L$45)) -> 0 | O89: 0 | P89: 0 | S89: 0 | T89: 0 | U89: 0 | W89: 0 | X89: 0 | Y89: 0 | Z89: =MAX(0,(MIN(+Z88*(1+J89),W88+X89))) -> 0 | AA89: =IF(W88<0.01,0,+W88/1000*Simulador!$V$14+IF($D$8>0,$D$8,$D$7)/1000*Simulador!$V$15) -> 0 | AB89: =IF(W88<0.01,0,Simulador!$V$16) -> 0 | AC89: 0 | AD89: 0 | AE89: 0 | AF89: 0 | AG89: 0 | AI89: 0 | AJ89: 67
B90: 68 | C90: 5 | D90: =IF(D89=12,1,D89+1) -> 8 | E90: =IF(D90=1,MAX(E89-0.0025,Simulador!$L$10),E89) -> 0.1025 | F90: 0 | G90: 0 | H90: 0 | I90: 0 | J90: 0 | K90: =IF(F90<0.01,0,F90/1000*IF(Simulador!$X$8=1,0,Simulador!$V$14)+IF($D$8>0,$D$8,$D$7)/1000*IF(Simulador!$X$8=1,0,Simulador!$V$15)) -> 0 | L90: =IF(F89-H90=0,0,L88) -> 0 | M90: =MAX(0,MIN(F89+G90+K90+L90-(I90+K90+L90),Simulador!$L$45)) -> 0 | O90: 0 | P90: 0 | S90: 0 | T90: 0 | U90: 0 | W90: 0 | X90: 0 | Y90: 0 | Z90: 0 | AA90: =IF(W89<0.01,0,+W89/1000*Simulador!$V$14+IF($D$8>0,$D$8,$D$7)/1000*Simulador!$V$15) -> 0 | AB90: =IF(W89<0.01,0,Simulador!$V$16) -> 0 | AC90: 0 | AD90: 0 | AE90: 0 | AF90: 0 | AG90: 0 | AI90: 0 | AJ90: 68
B91: 69 | C91: 5 | D91: 9 | E91: =IF(D91=1,MAX(E90-0.0025,Simulador!$L$10),E90) -> 0.1025 | F91: 0 | G91: 0 | H91: 0 | I91: 0 | J91: 0 | K91: =IF(F91<0.01,0,F91/1000*IF(Simulador!$X$8=1,0,Simulador!$V$14)+IF($D$8>0,$D$8,$D$7)/1000*IF(Simulador!$X$8=1,0,Simulador!$V$15)) -> 0 | L91: 0 | M91: =MAX(0,MIN(F90+G91+K91+L91-(I91+K91+L91),Simulador!$L$45)) -> 0 | O91: 0 | P91: 0 | S91: 0 | T91: 0 | U91: 0 | W91: 0 | X91: 0 | Y91: 0 | Z91: 0 | AA91: =IF(W90<0.01,0,+W90/1000*Simulador!$V$14+IF($D$8>0,$D$8,$D$7)/1000*Simulador!$V$15) -> 0 | AB91: =IF(W90<0.01,0,Simulador!$V$16) -> 0 | AC91: 0 | AD91: 0 | AE91: 0 | AF91: 0 | AG91: =IFERROR(IF(Y90<=0.01,0,AG90-1),0) -> 0 | AH91: =IF(Y90=0,"",DATE(YEAR(AH90),MONTH(AH90)+1,1)) ->  | AI91: 0 | AJ91: 69
B92: 70 | C92: 5 | D92: 10 | E92: =IF(D92=1,MAX(E91-0.0025,Simulador!$L$10),E91) -> 0.1025 | F92: 0 | G92: 0 | H92: 0 | I92: 0 | J92: 0 | K92: =IF(F92<0.01,0,F92/1000*IF(Simulador!$X$8=1,0,Simulador!$V$14)+IF($D$8>0,$D$8,$D$7)/1000*IF(Simulador!$X$8=1,0,Simulador!$V$15)) -> 0 | L92: =IF(F91-H92=0,0,L90) -> 0 | M92: =MAX(0,MIN(F91+G92+K92+L92-(I92+K92+L92),Simulador!$L$45)) -> 0 | O92: 0 | P92: 0 | S92: 0 | T92: 0 | U92: 0 | W92: 0 | X92: 0 | Y92: 0 | Z92: 0 | AA92: =IF(W91<0.01,0,+W91/1000*Simulador!$V$14+IF($D$8>0,$D$8,$D$7)/1000*Simulador!$V$15) -> 0 | AB92: =IF(W91<0.01,0,Simulador!$V$16) -> 0 | AC92: 0 | AD92: 0 | AE92: 0 | AF92: 0 | AG92: 0 | AI92: 0 | AJ92: 70
B93: 71 | C93: 5 | D93: 11 | E93: =IF(D93=1,MAX(E92-0.0025,Simulador!$L$10),E92) -> 0.1025 | F93: 0 | G93: 0 | H93: 0 | I93: 0 | J93: 0 | K93: =IF(F93<0.01,0,F93/1000*IF(Simulador!$X$8=1,0,Simulador!$V$14)+IF($D$8>0,$D$8,$D$7)/1000*IF(Simulador!$X$8=1,0,Simulador!$V$15)) -> 0 | L93: 0 | M93: =MAX(0,MIN(F92+G93+K93+L93-(I93+K93+L93),Simulador!$L$45)) -> 0 | O93: 0 | P93: 0 | S93: 0 | T93: 0 | U93: 0 | W93: 0 | X93: 0 | Y93: 0 | Z93: 0 | AA93: =IF(W92<0.01,0,+W92/1000*Simulador!$V$14+IF($D$8>0,$D$8,$D$7)/1000*Simulador!$V$15) -> 0 | AB93: =IF(W92<0.01,0,Simulador!$V$16) -> 0 | AC93: 0 | AD93: 0 | AE93: 0 | AF93: 0 | AG93: 0 | AI93: 0 | AJ93: 71
B94: 72 | C94: 5 | D94: 12 | E94: =IF(D94=1,MAX(E93-0.0025,Simulador!$L$10),E93) -> 0.1025 | F94: 0 | G94: 0 | H94: 0 | I94: 0 | J94: 0 | K94: =IF(F94<0.01,0,F94/1000*IF(Simulador!$X$8=1,0,Simulador!$V$14)+IF($D$8>0,$D$8,$D$7)/1000*IF(Simulador!$X$8=1,0,Simulador!$V$15)) -> 0 | L94: =IF(F93-H94=0,0,L92) -> 0 | M94: =MAX(0,MIN(F93+G94+K94+L94-(I94+K94+L94),Simulador!$L$45)) -> 0 | O94: 0 | P94: 0 | S94: 0 | T94: 0 | U94: 0 | W94: 0 | X94: 0 | Y94: 0 | Z94: 0 | AA94: =IF(W93<0.01,0,+W93/1000*Simulador!$V$14+IF($D$8>0,$D$8,$D$7)/1000*Simulador!$V$15) -> 0 | AB94: =IF(W93<0.01,0,Simulador!$V$16) -> 0 | AC94: 0 | AD94: 0 | AE94: 0 | AF94: 0 | AG94: 0 | AI94: 0 | AJ94: 72
B95: 73 | C95: 6 | D95: 1 | E95: =IF(D95=1,MAX(E94-0.0025,Simulador!$L$10),E94) -> 0.1025 | F95: 0 | G95: 0 | H95: 0 | I95: 0 | J95: 0.026 | K95: =IF(F95<0.01,0,F95/1000*IF(Simulador!$X$8=1,0,Simulador!$V$14)+IF($D$8>0,$D$8,$D$7)/1000*IF(Simulador!$X$8=1,0,Simulador!$V$15)) -> 0 | L95: 0 | M95: =MAX(0,MIN(F94+G95+K95+L95-(I95+K95+L95),Simulador!$L$45)) -> 0 | O95: 0 | P95: 0 | S95: 0 | T95: 0 | U95: 0 | W95: 0 | X95: 0 | Y95: 0 | Z95: 0 | AA95: =IF(W94<0.01,0,+W94/1000*Simulador!$V$14+IF($D$8>0,$D$8,$D$7)/1000*Simulador!$V$15) -> 0 | AB95: =IF(W94<0.01,0,Simulador!$V$16) -> 0 | AC95: 0 | AD95: 0 | AE95: 0 | AF95: 0 | AG95: 0 | AI95: 0 | AJ95: 73
B96: 74 | C96: 6 | D96: 2 | E96: =IF(D96=1,MAX(E95-0.0025,Simulador!$L$10),E95) -> 0.1025 | F96: 0 | G96: 0 | H96: 0 | I96: 0 | J96: 0 | K96: =IF(F96<0.01,0,F96/1000*IF(Simulador!$X$8=1,0,Simulador!$V$14)+IF($D$8>0,$D$8,$D$7)/1000*IF(Simulador!$X$8=1,0,Simulador!$V$15)) -> 0 | L96: =IF(F95-H96=0,0,L94*(1+Simulador!$AH$28)) -> 0 | M96: =MAX(0,MIN(F95+G96+K96+L96-(I96+K96+L96),Simulador!$L$45)) -> 0 | O96: 0 | P96: 0 | S96: 0 | T96: 0 | U96: 0 | W96: 0 | X96: 0 | Y96: 0 | Z96: 0 | AA96: =IF(W95<0.01,0,+W95/1000*Simulador!$V$14+IF($D$8>0,$D$8,$D$7)/1000*Simulador!$V$15) -> 0 | AB96: =IF(W95<0.01,0,Simulador!$V$16) -> 0 | AC96: 0 | AD96: 0 | AE96: 0 | AF96: 0 | AG96: 0 | AI96: 0 | AJ96: 74
B97: 75 | C97: 6 | D97: 3 | E97: =IF(D97=1,MAX(E96-0.0025,Simulador!$L$10),E96) -> 0.1025 | F97: 0 | G97: 0 | H97: 0 | I97: 0 | J97: 0 | K97: =IF(F97<0.01,0,F97/1000*IF(Simulador!$X$8=1,0,Simulador!$V$14)+IF($D$8>0,$D$8,$D$7)/1000*IF(Simulador!$X$8=1,0,Simulador!$V$15)) -> 0 | L97: 0 | M97: =MAX(0,MIN(F96+G97+K97+L97-(I97+K97+L97),Simulador!$L$45)) -> 0 | O97: 0 | P97: 0 | S97: 0 | T97: 0 | U97: 0 | W97: 0 | X97: 0 | Y97: 0 | Z97: 0 | AA97: =IF(W96<0.01,0,+W96/1000*Simulador!$V$14+IF($D$8>0,$D$8,$D$7)/1000*Simulador!$V$15) -> 0 | AB97: =IF(W96<0.01,0,Simulador!$V$16) -> 0 | AC97: 0 | AD97: 0 | AE97: 0 | AF97: 0 | AG97: 0 | AI97: 0 | AJ97: 75
B98: 76 | C98: 6 | D98: 4 | E98: =IF(D98=1,MAX(E97-0.0025,Simulador!$L$10),E97) -> 0.1025 | F98: 0 | G98: 0 | H98: 0 | I98: 0 | J98: 0 | K98: =IF(F98<0.01,0,F98/1000*IF(Simulador!$X$8=1,0,Simulador!$V$14)+IF($D$8>0,$D$8,$D$7)/1000*IF(Simulador!$X$8=1,0,Simulador!$V$15)) -> 0 | L98: =IF(F97-H98=0,0,L96) -> 0 | M98: =MAX(0,MIN(F97+G98+K98+L98-(I98+K98+L98),Simulador!$L$45)) -> 0 | O98: 0 | P98: 0 | S98: 0 | T98: 0 | U98: 0 | W98: 0 | X98: 0 | Y98: 0 | Z98: 0 | AA98: =IF(W97<0.01,0,+W97/1000*Simulador!$V$14+IF($D$8>0,$D$8,$D$7)/1000*Simulador!$V$15) -> 0 | AB98: =IF(W97<0.01,0,Simulador!$V$16) -> 0 | AC98: 0 | AD98: 0 | AE98: 0 | AF98: 0 | AG98: 0 | AI98: 0 | AJ98: 76
B99: 77 | C99: 6 | D99: 5 | E99: =IF(D99=1,MAX(E98-0.0025,Simulador!$L$10),E98) -> 0.1025 | F99: 0 | G99: 0 | H99: 0 | I99: 0 | J99: 0 | K99: =IF(F99<0.01,0,F99/1000*IF(Simulador!$X$8=1,0,Simulador!$V$14)+IF($D$8>0,$D$8,$D$7)/1000*IF(Simulador!$X$8=1,0,Simulador!$V$15)) -> 0 | L99: 0 | M99: =MAX(0,MIN(F98+G99+K99+L99-(I99+K99+L99),Simulador!$L$45)) -> 0 | O99: 0 | P99: 0 | S99: 0 | T99: 0 | U99: 0 | W99: 0 | X99: 0 | Y99: 0 | Z99: 0 | AA99: =IF(W98<0.01,0,+W98/1000*Simulador!$V$14+IF($D$8>0,$D$8,$D$7)/1000*Simulador!$V$15) -> 0 | AB99: =IF(W98<0.01,0,Simulador!$V$16) -> 0 | AC99: 0 | AD99: 0 | AE99: 0 | AF99: 0 | AG99: 0 | AI99: 0 | AJ99: 77
B100: 78 | C100: 6 | D100: 6 | E100: =IF(D100=1,MAX(E99-0.0025,Simulador!$L$10),E99) -> 0.1025 | F100: 0 | G100: 0 | H100: 0 | I100: 0 | J100: 0 | K100: =IF(F100<0.01,0,F100/1000*IF(Simulador!$X$8=1,0,Simulador!$V$14)+IF($D$8>0,$D$8,$D$7)/1000*IF(Simulador!$X$8=1,0,Simulador!$V$15)) -> 0 | L100: =IF(F99-H100=0,0,L98) -> 0 | M100: =MAX(0,MIN(F99+G100+K100+L100-(I100+K100+L100),Simulador!$L$45)) -> 0 | O100: 0 | P100: 0 | S100: 0 | T100: 0 | U100: 0 | W100: 0 | X100: 0 | Y100: 0 | Z100: 0 | AA100: =IF(W99<0.01,0,+W99/1000*Simulador!$V$14+IF($D$8>0,$D$8,$D$7)/1000*Simulador!$V$15) -> 0 | AB100: =IF(W99<0.01,0,Simulador!$V$16) -> 0 | AC100: =IF(W99<0.01,0,IF(D100=1,SUM(AB88:AB99),0)) -> 0 | AD100: 0 | AE100: 0 | AF100: 0 | AG100: 0 | AI100: 0 | AJ100: 78
B101: 79 | C101: 6 | D101: 7 | E101: =IF(D101=1,MAX(E100-0.0025,Simulador!$L$10),E100) -> 0.1025 | F101: 0 | G101: 0 | H101: 0 | I101: 0 | J101: 0 | K101: =IF(F101<0.01,0,F101/1000*IF(Simulador!$X$8=1,0,Simulador!$V$14)+IF($D$8>0,$D$8,$D$7)/1000*IF(Simulador!$X$8=1,0,Simulador!$V$15)) -> 0 | L101: 0 | M101: =MAX(0,MIN(F100+G101+K101+L101-(I101+K101+L101),Simulador!$L$45)) -> 0 | O101: 0 | P101: 0 | S101: 0 | T101: 0 | U101: 0 | W101: 0 | X101: 0 | Y101: 0 | Z101: 0 | AA101: =IF(W100<0.01,0,+W100/1000*Simulador!$V$14+IF($D$8>0,$D$8,$D$7)/1000*Simulador!$V$15) -> 0 | AB101: =IF(W100<0.01,0,Simulador!$V$16) -> 0 | AC101: 0 | AD101: 0 | AE101: 0 | AF101: 0 | AG101: 0 | AI101: 0 | AJ101: 79
B102: 80 | C102: 6 | D102: 8 | E102: =IF(D102=1,MAX(E101-0.0025,Simulador!$L$10),E101) -> 0.1025 | F102: 0 | G102: 0 | H102: 0 | I102: 0 | J102: 0 | K102: =IF(F102<0.01,0,F102/1000*IF(Simulador!$X$8=1,0,Simulador!$V$14)+IF($D$8>0,$D$8,$D$7)/1000*IF(Simulador!$X$8=1,0,Simulador!$V$15)) -> 0 | L102: =IF(F101-H102=0,0,L100) -> 0 | M102: =MAX(0,MIN(F101+G102+K102+L102-(I102+K102+L102),Simulador!$L$45)) -> 0 | O102: 0 | P102: 0 | S102: 0 | T102: 0 | U102: 0 | W102: 0 | X102: 0 | Y102: 0 | Z102: 0 | AA102: =IF(W101<0.01,0,+W101/1000*Simulador!$V$14+IF($D$8>0,$D$8,$D$7)/1000*Simulador!$V$15) -> 0 | AB102: =IF(W101<0.01,0,Simulador!$V$16) -> 0 | AC102: 0 | AD102: 0 | AE102: 0 | AF102: 0 | AG102: 0 | AI102: 0 | AJ102: 80
B103: 81 | C103: 6 | D103: 9 | E103: =IF(D103=1,MAX(E102-0.0025,Simulador!$L$10),E102) -> 0.1025 | F103: 0 | G103: 0 | H103: 0 | I103: 0 | J103: 0 | K103: =IF(F103<0.01,0,F103/1000*IF(Simulador!$X$8=1,0,Simulador!$V$14)+IF($D$8>0,$D$8,$D$7)/1000*IF(Simulador!$X$8=1,0,Simulador!$V$15)) -> 0 | L103: 0 | M103: =MAX(0,MIN(F102+G103+K103+L103-(I103+K103+L103),Simulador!$L$45)) -> 0 | O103: 0 | P103: 0 | S103: 0 | T103: 0 | U103: 0 | W103: 0 | X103: 0 | Y103: 0 | Z103: 0 | AA103: =IF(W102<0.01,0,+W102/1000*Simulador!$V$14+IF($D$8>0,$D$8,$D$7)/1000*Simulador!$V$15) -> 0 | AB103: =IF(W102<0.01,0,Simulador!$V$16) -> 0 | AC103: 0 | AD103: 0 | AE103: 0 | AF103: 0 | AG103: 0 | AI103: 0 | AJ103: 81
B104: 82 | C104: 6 | D104: 10 | E104: =IF(D104=1,MAX(E103-0.0025,Simulador!$L$10),E103) -> 0.1025 | F104: 0 | G104: 0 | H104: 0 | I104: 0 | J104: 0 | K104: =IF(F104<0.01,0,F104/1000*IF(Simulador!$X$8=1,0,Simulador!$V$14)+IF($D$8>0,$D$8,$D$7)/1000*IF(Simulador!$X$8=1,0,Simulador!$V$15)) -> 0 | L104: =IF(F103-H104=0,0,L102) -> 0 | M104: =MAX(0,MIN(F103+G104+K104+L104-(I104+K104+L104),Simulador!$L$45)) -> 0 | O104: 0 | P104: 0 | S104: 0 | T104: 0 | U104: 0 | W104: 0 | X104: 0 | Y104: 0 | Z104: 0 | AA104: =IF(W103<0.01,0,+W103/1000*Simulador!$V$14+IF($D$8>0,$D$8,$D$7)/1000*Simulador!$V$15) -> 0 | AB104: =IF(W103<0.01,0,Simulador!$V$16) -> 0 | AC104: 0 | AD104: 0 | AE104: 0 | AF104: 0 | AG104: 0 | AI104: 0 | AJ104: 82
B105: 83 | C105: 6 | D105: 11 | E105: =IF(D105=1,MAX(E104-0.0025,Simulador!$L$10),E104) -> 0.1025 | F105: 0 | G105: 0 | H105: 0 | I105: 0 | J105: 0 | K105: =IF(F105<0.01,0,F105/1000*IF(Simulador!$X$8=1,0,Simulador!$V$14)+IF($D$8>0,$D$8,$D$7)/1000*IF(Simulador!$X$8=1,0,Simulador!$V$15)) -> 0 | L105: 0 | M105: =MAX(0,MIN(F104+G105+K105+L105-(I105+K105+L105),Simulador!$L$45)) -> 0 | O105: 0 | P105: 0 | S105: 0 | T105: 0 | U105: 0 | W105: 0 | X105: 0 | Y105: 0 | Z105: 0 | AA105: =IF(W104<0.01,0,+W104/1000*Simulador!$V$14+IF($D$8>0,$D$8,$D$7)/1000*Simulador!$V$15) -> 0 | AB105: =IF(W104<0.01,0,Simulador!$V$16) -> 0 | AC105: 0 | AD105: 0 | AE105: 0 | AF105: 0 | AG105: 0 | AI105: 0 | AJ105: 83
B106: 84 | C106: 6 | D106: 12 | E106: =IF(D106=1,MAX(E105-0.0025,Simulador!$L$10),E105) -> 0.1025 | F106: 0 | G106: 0 | H106: 0 | I106: 0 | J106: 0 | K106: =IF(F106<0.01,0,F106/1000*IF(Simulador!$X$8=1,0,Simulador!$V$14)+IF($D$8>0,$D$8,$D$7)/1000*IF(Simulador!$X$8=1,0,Simulador!$V$15)) -> 0 | L106: =IF(F105-H106=0,0,L104) -> 0 | M106: =MAX(0,MIN(F105+G106+K106+L106-(I106+K106+L106),Simulador!$L$45)) -> 0 | O106: 0 | P106: 0 | S106: 0 | T106: 0 | U106: 0 | W106: 0 | X106: 0 | Y106: 0 | Z106: 0 | AA106: =IF(W105<0.01,0,+W105/1000*Simulador!$V$14+IF($D$8>0,$D$8,$D$7)/1000*Simulador!$V$15) -> 0 | AB106: =IF(W105<0.01,0,Simulador!$V$16) -> 0 | AC106: 0 | AD106: 0 | AE106: 0 | AF106: 0 | AG106: 0 | AI106: 0 | AJ106: 84
B107: 85 | C107: 7 | D107: 1 | E107: =IF(D107=1,MAX(E106-0.0025,Simulador!$L$10),E106) -> 0.1025 | F107: 0 | G107: 0 | H107: 0 | I107: 0 | J107: 0.026 | K107: =IF(F107<0.01,0,F107/1000*IF(Simulador!$X$8=1,0,Simulador!$V$14)+IF($D$8>0,$D$8,$D$7)/1000*IF(Simulador!$X$8=1,0,Simulador!$V$15)) -> 0 | L107: 0 | M107: =MAX(0,MIN(F106+G107+K107+L107-(I107+K107+L107),Simulador!$L$45)) -> 0 | O107: 0 | P107: 0 | S107: 0 | T107: 0 | U107: 0 | W107: 0 | X107: 0 | Y107: 0 | Z107: 0 | AA107: =IF(W106<0.01,0,+W106/1000*Simulador!$V$14+IF($D$8>0,$D$8,$D$7)/1000*Simulador!$V$15) -> 0 | AB107: =IF(W106<0.01,0,Simulador!$V$16) -> 0 | AC107: 0 | AD107: 0 | AE107: 0 | AF107: 0 | AG107: 0 | AI107: 0 | AJ107: 85
B108: 86 | C108: 7 | D108: 2 | E108: =IF(D108=1,MAX(E107-0.0025,Simulador!$L$10),E107) -> 0.1025 | F108: 0 | G108: 0 | H108: 0 | I108: 0 | J108: 0 | K108: =IF(F108<0.01,0,F108/1000*IF(Simulador!$X$8=1,0,Simulador!$V$14)+IF($D$8>0,$D$8,$D$7)/1000*IF(Simulador!$X$8=1,0,Simulador!$V$15)) -> 0 | L108: =IF(F107-H108=0,0,L106*(1+Simulador!$AH$28)) -> 0 | M108: =MAX(0,MIN(F107+G108+K108+L108-(I108+K108+L108),Simulador!$L$45)) -> 0 | O108: 0 | P108: 0 | S108: 0 | T108: 0 | U108: 0 | W108: 0 | X108: 0 | Y108: 0 | Z108: 0 | AA108: =IF(W107<0.01,0,+W107/1000*Simulador!$V$14+IF($D$8>0,$D$8,$D$7)/1000*Simulador!$V$15) -> 0 | AB108: =IF(W107<0.01,0,Simulador!$V$16) -> 0 | AC108: 0 | AD108: 0 | AE108: 0 | AF108: 0 | AG108: 0 | AI108: 0 | AJ108: 86
B109: 87 | C109: 7 | D109: 3 | E109: =IF(D109=1,MAX(E108-0.0025,Simulador!$L$10),E108) -> 0.1025 | F109: 0 | G109: 0 | H109: 0 | I109: 0 | J109: 0 | K109: =IF(F109<0.01,0,F109/1000*IF(Simulador!$X$8=1,0,Simulador!$V$14)+IF($D$8>0,$D$8,$D$7)/1000*IF(Simulador!$X$8=1,0,Simulador!$V$15)) -> 0 | L109: 0 | M109: =MAX(0,MIN(F108+G109+K109+L109-(I109+K109+L109),Simulador!$L$45)) -> 0 | O109: 0 | P109: 0 | S109: 0 | T109: 0 | U109: 0 | W109: 0 | X109: 0 | Y109: 0 | Z109: 0 | AA109: =IF(W108<0.01,0,+W108/1000*Simulador!$V$14+IF($D$8>0,$D$8,$D$7)/1000*Simulador!$V$15) -> 0 | AB109: =IF(W108<0.01,0,Simulador!$V$16) -> 0 | AC109: 0 | AD109: 0 | AE109: 0 | AF109: 0 | AG109: 0 | AI109: 0 | AJ109: 87
B110: 88 | C110: 7 | D110: 4 | E110: =IF(D110=1,MAX(E109-0.0025,Simulador!$L$10),E109) -> 0.1025 | F110: 0 | G110: 0 | H110: 0 | I110: 0 | J110: 0 | K110: =IF(F110<0.01,0,F110/1000*IF(Simulador!$X$8=1,0,Simulador!$V$14)+IF($D$8>0,$D$8,$D$7)/1000*IF(Simulador!$X$8=1,0,Simulador!$V$15)) -> 0 | L110: =IF(F109-H110=0,0,L108) -> 0 | M110: =MAX(0,MIN(F109+G110+K110+L110-(I110+K110+L110),Simulador!$L$45)) -> 0 | O110: 0 | P110: 0 | S110: 0 | T110: 0 | U110: 0 | W110: 0 | X110: 0 | Y110: 0 | Z110: 0 | AA110: =IF(W109<0.01,0,+W109/1000*Simulador!$V$14+IF($D$8>0,$D$8,$D$7)/1000*Simulador!$V$15) -> 0 | AB110: =IF(W109<0.01,0,Simulador!$V$16) -> 0 | AC110: 0 | AD110: 0 | AE110: 0 | AF110: 0 | AG110: 0 | AI110: 0 | AJ110: 88
B111: 89 | C111: 7 | D111: 5 | E111: =IF(D111=1,MAX(E110-0.0025,Simulador!$L$10),E110) -> 0.1025 | F111: 0 | G111: 0 | H111: 0 | I111: 0 | J111: 0 | K111: =IF(F111<0.01,0,F111/1000*IF(Simulador!$X$8=1,0,Simulador!$V$14)+IF($D$8>0,$D$8,$D$7)/1000*IF(Simulador!$X$8=1,0,Simulador!$V$15)) -> 0 | L111: 0 | M111: =MAX(0,MIN(F110+G111+K111+L111-(I111+K111+L111),Simulador!$L$45)) -> 0 | O111: 0 | P111: 0 | S111: 0 | T111: 0 | U111: 0 | W111: 0 | X111: 0 | Y111: 0 | Z111: 0 | AA111: =IF(W110<0.01,0,+W110/1000*Simulador!$V$14+IF($D$8>0,$D$8,$D$7)/1000*Simulador!$V$15) -> 0 | AB111: =IF(W110<0.01,0,Simulador!$V$16) -> 0 | AC111: 0 | AD111: 0 | AE111: 0 | AF111: 0 | AG111: 0 | AI111: 0 | AJ111: 89
B112: 90 | C112: 7 | D112: 6 | E112: =IF(D112=1,MAX(E111-0.0025,Simulador!$L$10),E111) -> 0.1025 | F112: 0 | G112: 0 | H112: 0 | I112: 0 | J112: 0 | K112: =IF(F112<0.01,0,F112/1000*IF(Simulador!$X$8=1,0,Simulador!$V$14)+IF($D$8>0,$D$8,$D$7)/1000*IF(Simulador!$X$8=1,0,Simulador!$V$15)) -> 0 | L112: =IF(F111-H112=0,0,L110) -> 0 | M112: =MAX(0,MIN(F111+G112+K112+L112-(I112+K112+L112),Simulador!$L$45)) -> 0 | O112: 0 | P112: 0 | S112: 0 | T112: 0 | U112: 0 | W112: 0 | X112: 0 | Y112: 0 | Z112: 0 | AA112: =IF(W111<0.01,0,+W111/1000*Simulador!$V$14+IF($D$8>0,$D$8,$D$7)/1000*Simulador!$V$15) -> 0 | AB112: =IF(W111<0.01,0,Simulador!$V$16) -> 0 | AC112: 0 | AD112: 0 | AE112: 0 | AF112: 0 | AG112: 0 | AI112: 0 | AJ112: 90
B113: 91 | C113: 7 | D113: 7 | E113: =IF(D113=1,MAX(E112-0.0025,Simulador!$L$10),E112) -> 0.1025 | F113: 0 | G113: 0 | H113: 0 | I113: 0 | J113: 0 | K113: =IF(F113<0.01,0,F113/1000*IF(Simulador!$X$8=1,0,Simulador!$V$14)+IF($D$8>0,$D$8,$D$7)/1000*IF(Simulador!$X$8=1,0,Simulador!$V$15)) -> 0 | L113: 0 | M113: =MAX(0,MIN(F112+G113+K113+L113-(I113+K113+L113),Simulador!$L$45)) -> 0 | O113: 0 | P113: 0 | S113: 0 | T113: 0 | U113: 0 | W113: 0 | X113: 0 | Y113: 0 | Z113: 0 | AA113: =IF(W112<0.01,0,+W112/1000*Simulador!$V$14+IF($D$8>0,$D$8,$D$7)/1000*Simulador!$V$15) -> 0 | AB113: =IF(W112<0.01,0,Simulador!$V$16) -> 0 | AC113: 0 | AD113: 0 | AE113: 0 | AF113: 0 | AG113: 0 | AI113: 0 | AJ113: 91
B114: 92 | C114: 7 | D114: 8 | E114: =IF(D114=1,MAX(E113-0.0025,Simulador!$L$10),E113) -> 0.1025 | F114: 0 | G114: 0 | H114: 0 | I114: 0 | J114: 0 | K114: =IF(F114<0.01,0,F114/1000*IF(Simulador!$X$8=1,0,Simulador!$V$14)+IF($D$8>0,$D$8,$D$7)/1000*IF(Simulador!$X$8=1,0,Simulador!$V$15)) -> 0 | L114: =IF(F113-H114=0,0,L112) -> 0 | M114: =MAX(0,MIN(F113+G114+K114+L114-(I114+K114+L114),Simulador!$L$45)) -> 0 | O114: 0 | P114: 0 | S114: 0 | T114: 0 | U114: 0 | W114: 0 | X114: 0 | Y114: 0 | Z114: 0 | AA114: =IF(W113<0.01,0,+W113/1000*Simulador!$V$14+IF($D$8>0,$D$8,$D$7)/1000*Simulador!$V$15) -> 0 | AB114: =IF(W113<0.01,0,Simulador!$V$16) -> 0 | AC114: 0 | AD114: 0 | AE114: 0 | AF114: 0 | AG114: 0 | AI114: 0 | AJ114: 92
B115: 93 | C115: 7 | D115: 9 | E115: =IF(D115=1,MAX(E114-0.0025,Simulador!$L$10),E114) -> 0.1025 | F115: 0 | G115: 0 | H115: 0 | I115: 0 | J115: 0 | K115: =IF(F115<0.01,0,F115/1000*IF(Simulador!$X$8=1,0,Simulador!$V$14)+IF($D$8>0,$D$8,$D$7)/1000*IF(Simulador!$X$8=1,0,Simulador!$V$15)) -> 0 | L115: 0 | M115: =MAX(0,MIN(F114+G115+K115+L115-(I115+K115+L115),Simulador!$L$45)) -> 0 | O115: 0 | P115: 0 | S115: 0 | T115: 0 | U115: 0 | W115: 0 | X115: 0 | Y115: 0 | Z115: 0 | AA115: =IF(W114<0.01,0,+W114/1000*Simulador!$V$14+IF($D$8>0,$D$8,$D$7)/1000*Simulador!$V$15) -> 0 | AB115: =IF(W114<0.01,0,Simulador!$V$16) -> 0 | AC115: 0 | AD115: 0 | AE115: 0 | AF115: 0 | AG115: 0 | AI115: 0 | AJ115: 93
B116: 94 | C116: 7 | D116: 10 | E116: =IF(D116=1,MAX(E115-0.0025,Simulador!$L$10),E115) -> 0.1025 | F116: 0 | G116: 0 | H116: 0 | I116: 0 | J116: 0 | K116: =IF(F116<0.01,0,F116/1000*IF(Simulador!$X$8=1,0,Simulador!$V$14)+IF($D$8>0,$D$8,$D$7)/1000*IF(Simulador!$X$8=1,0,Simulador!$V$15)) -> 0 | L116: =IF(F115-H116=0,0,L114) -> 0 | M116: =MAX(0,MIN(F115+G116+K116+L116-(I116+K116+L116),Simulador!$L$45)) -> 0 | O116: 0 | P116: 0 | S116: 0 | T116: 0 | U116: 0 | W116: 0 | X116: 0 | Y116: 0 | Z116: 0 | AA116: =IF(W115<0.01,0,+W115/1000*Simulador!$V$14+IF($D$8>0,$D$8,$D$7)/1000*Simulador!$V$15) -> 0 | AB116: =IF(W115<0.01,0,Simulador!$V$16) -> 0 | AC116: 0 | AD116: 0 | AE116: 0 | AF116: 0 | AG116: 0 | AI116: 0 | AJ116: 94
B117: 95 | C117: 7 | D117: 11 | E117: =IF(D117=1,MAX(E116-0.0025,Simulador!$L$10),E116) -> 0.1025 | F117: 0 | G117: 0 | H117: 0 | I117: 0 | J117: 0 | K117: =IF(F117<0.01,0,F117/1000*IF(Simulador!$X$8=1,0,Simulador!$V$14)+IF($D$8>0,$D$8,$D$7)/1000*IF(Simulador!$X$8=1,0,Simulador!$V$15)) -> 0 | L117: 0 | M117: =MAX(0,MIN(F116+G117+K117+L117-(I117+K117+L117),Simulador!$L$45)) -> 0 | O117: 0 | P117: 0 | S117: 0 | T117: 0 | U117: 0 | W117: 0 | X117: 0 | Y117: 0 | Z117: 0 | AA117: =IF(W116<0.01,0,+W116/1000*Simulador!$V$14+IF($D$8>0,$D$8,$D$7)/1000*Simulador!$V$15) -> 0 | AB117: =IF(W116<0.01,0,Simulador!$V$16) -> 0 | AC117: 0 | AD117: 0 | AE117: 0 | AF117: 0 | AG117: 0 | AI117: 0 | AJ117: 95
B118: 96 | C118: 7 | D118: 12 | E118: =IF(D118=1,MAX(E117-0.0025,Simulador!$L$10),E117) -> 0.1025 | F118: 0 | G118: 0 | H118: 0 | I118: 0 | J118: 0 | K118: =IF(F118<0.01,0,F118/1000*IF(Simulador!$X$8=1,0,Simulador!$V$14)+IF($D$8>0,$D$8,$D$7)/1000*IF(Simulador!$X$8=1,0,Simulador!$V$15)) -> 0 | L118: =IF(F117-H118=0,0,L116) -> 0 | M118: =MAX(0,MIN(F117+G118+K118+L118-(I118+K118+L118),Simulador!$L$45)) -> 0 | O118: 0 | P118: 0 | S118: 0 | T118: 0 | U118: 0 | W118: 0 | X118: 0 | Y118: 0 | Z118: 0 | AA118: =IF(W117<0.01,0,+W117/1000*Simulador!$V$14+IF($D$8>0,$D$8,$D$7)/1000*Simulador!$V$15) -> 0 | AB118: =IF(W117<0.01,0,Simulador!$V$16) -> 0 | AC118: 0 | AD118: 0 | AE118: 0 | AF118: 0 | AG118: 0 | AI118: 0 | AJ118: 96
B119: 97 | C119: 8 | D119: 1 | E119: =IF(D119=1,MAX(E118-0.0025,Simulador!$L$10),E118) -> 0.1025 | F119: 0 | G119: 0 | H119: 0 | I119: 0 | J119: 0.026 | K119: =IF(F119<0.01,0,F119/1000*IF(Simulador!$X$8=1,0,Simulador!$V$14)+IF($D$8>0,$D$8,$D$7)/1000*IF(Simulador!$X$8=1,0,Simulador!$V$15)) -> 0 | L119: 0 | M119: =MAX(0,MIN(F118+G119+K119+L119-(I119+K119+L119),Simulador!$L$45)) -> 0 | O119: 0 | P119: 0 | S119: 0 | T119: 0 | U119: 0 | W119: 0 | X119: 0 | Y119: 0 | Z119: 0 | AA119: =IF(W118<0.01,0,+W118/1000*Simulador!$V$14+IF($D$8>0,$D$8,$D$7)/1000*Simulador!$V$15) -> 0 | AB119: =IF(W118<0.01,0,Simulador!$V$16) -> 0 | AC119: 0 | AD119: 0 | AE119: 0 | AF119: 0 | AG119: 0 | AI119: 0 | AJ119: 97
B120: 98 | C120: 8 | D120: 2 | E120: =IF(D120=1,MAX(E119-0.0025,Simulador!$L$10),E119) -> 0.1025 | F120: 0 | G120: 0 | H120: 0 | I120: 0 | J120: 0 | K120: =IF(F120<0.01,0,F120/1000*IF(Simulador!$X$8=1,0,Simulador!$V$14)+IF($D$8>0,$D$8,$D$7)/1000*IF(Simulador!$X$8=1,0,Simulador!$V$15)) -> 0 | L120: =IF(F119-H120=0,0,L118*(1+Simulador!$AH$28)) -> 0 | M120: =MAX(0,MIN(F119+G120+K120+L120-(I120+K120+L120),Simulador!$L$45)) -> 0 | O120: 0 | P120: 0 | S120: 0 | T120: 0 | U120: 0 | W120: 0 | X120: 0 | Y120: 0 | Z120: 0 | AA120: =IF(W119<0.01,0,+W119/1000*Simulador!$V$14+IF($D$8>0,$D$8,$D$7)/1000*Simulador!$V$15) -> 0 | AB120: =IF(W119<0.01,0,Simulador!$V$16) -> 0 | AC120: 0 | AD120: 0 | AE120: 0 | AF120: 0 | AG120: 0 | AI120: 0 | AJ120: 98
B121: 99 | C121: 8 | D121: 3 | E121: =IF(D121=1,MAX(E120-0.0025,Simulador!$L$10),E120) -> 0.1025 | F121: 0 | G121: 0 | H121: 0 | I121: 0 | J121: 0 | K121: =IF(F121<0.01,0,F121/1000*IF(Simulador!$X$8=1,0,Simulador!$V$14)+IF($D$8>0,$D$8,$D$7)/1000*IF(Simulador!$X$8=1,0,Simulador!$V$15)) -> 0 | L121: 0 | M121: =MAX(0,MIN(F120+G121+K121+L121-(I121+K121+L121),Simulador!$L$45)) -> 0 | O121: 0 | P121: 0 | S121: 0 | T121: 0 | U121: 0 | W121: 0 | X121: 0 | Y121: 0 | Z121: 0 | AA121: =IF(W120<0.01,0,+W120/1000*Simulador!$V$14+IF($D$8>0,$D$8,$D$7)/1000*Simulador!$V$15) -> 0 | AB121: =IF(W120<0.01,0,Simulador!$V$16) -> 0 | AC121: 0 | AD121: 0 | AE121: 0 | AF121: 0 | AG121: 0 | AI121: 0 | AJ121: 99
B122: 100 | C122: 8 | D122: 4 | E122: =IF(D122=1,MAX(E121-0.0025,Simulador!$L$10),E121) -> 0.1025 | F122: 0 | G122: 0 | H122: 0 | I122: 0 | J122: 0 | K122: =IF(F122<0.01,0,F122/1000*IF(Simulador!$X$8=1,0,Simulador!$V$14)+IF($D$8>0,$D$8,$D$7)/1000*IF(Simulador!$X$8=1,0,Simulador!$V$15)) -> 0 | L122: =IF(F121-H122=0,0,L120) -> 0 | M122: =MAX(0,MIN(F121+G122+K122+L122-(I122+K122+L122),Simulador!$L$45)) -> 0 | O122: 0 | P122: 0 | S122: 0 | T122: 0 | U122: 0 | W122: 0 | X122: 0 | Y122: 0 | Z122: 0 | AA122: =IF(W121<0.01,0,+W121/1000*Simulador!$V$14+IF($D$8>0,$D$8,$D$7)/1000*Simulador!$V$15) -> 0 | AB122: =IF(W121<0.01,0,Simulador!$V$16) -> 0 | AC122: 0 | AD122: 0 | AE122: 0 | AF122: 0 | AG122: 0 | AI122: 0 | AJ122: 100
B123: 101 | C123: 8 | D123: 5 | E123: =IF(D123=1,MAX(E122-0.0025,Simulador!$L$10),E122) -> 0.1025 | F123: 0 | G123: 0 | H123: 0 | I123: 0 | J123: 0 | K123: =IF(F123<0.01,0,F123/1000*IF(Simulador!$X$8=1,0,Simulador!$V$14)+IF($D$8>0,$D$8,$D$7)/1000*IF(Simulador!$X$8=1,0,Simulador!$V$15)) -> 0 | L123: 0 | M123: =MAX(0,MIN(F122+G123+K123+L123-(I123+K123+L123),Simulador!$L$45)) -> 0 | O123: 0 | P123: 0 | S123: 0 | T123: 0 | U123: 0 | W123: 0 | X123: 0 | Y123: 0 | Z123: 0 | AA123: =IF(W122<0.01,0,+W122/1000*Simulador!$V$14+IF($D$8>0,$D$8,$D$7)/1000*Simulador!$V$15) -> 0 | AB123: =IF(W122<0.01,0,Simulador!$V$16) -> 0 | AC123: 0 | AD123: 0 | AE123: 0 | AF123: 0 | AG123: 0 | AI123: 0 | AJ123: 101
B124: 102 | C124: 8 | D124: 6 | E124: =IF(D124=1,MAX(E123-0.0025,Simulador!$L$10),E123) -> 0.1025 | F124: 0 | G124: 0 | H124: 0 | I124: 0 | J124: 0 | K124: =IF(F124<0.01,0,F124/1000*IF(Simulador!$X$8=1,0,Simulador!$V$14)+IF($D$8>0,$D$8,$D$7)/1000*IF(Simulador!$X$8=1,0,Simulador!$V$15)) -> 0 | L124: =IF(F123-H124=0,0,L122) -> 0 | M124: =MAX(0,MIN(F123+G124+K124+L124-(I124+K124+L124),Simulador!$L$45)) -> 0 | O124: 0 | P124: 0 | S124: 0 | T124: 0 | U124: 0 | W124: 0 | X124: 0 | Y124: 0 | Z124: 0 | AA124: =IF(W123<0.01,0,+W123/1000*Simulador!$V$14+IF($D$8>0,$D$8,$D$7)/1000*Simulador!$V$15) -> 0 | AB124: =IF(W123<0.01,0,Simulador!$V$16) -> 0 | AC124: 0 | AD124: 0 | AE124: 0 | AF124: 0 | AG124: 0 | AI124: 0 | AJ124: 102
B125: 103 | C125: 8 | D125: 7 | E125: =IF(D125=1,MAX(E124-0.0025,Simulador!$L$10),E124) -> 0.1025 | F125: 0 | G125: 0 | H125: 0 | I125: 0 | J125: 0 | K125: =IF(F125<0.01,0,F125/1000*IF(Simulador!$X$8=1,0,Simulador!$V$14)+IF($D$8>0,$D$8,$D$7)/1000*IF(Simulador!$X$8=1,0,Simulador!$V$15)) -> 0 | L125: 0 | M125: =MAX(0,MIN(F124+G125+K125+L125-(I125+K125+L125),Simulador!$L$45)) -> 0 | O125: 0 | P125: 0 | S125: 0 | T125: 0 | U125: 0 | W125: 0 | X125: 0 | Y125: 0 | Z125: 0 | AA125: =IF(W124<0.01,0,+W124/1000*Simulador!$V$14+IF($D$8>0,$D$8,$D$7)/1000*Simulador!$V$15) -> 0 | AB125: =IF(W124<0.01,0,Simulador!$V$16) -> 0 | AC125: 0 | AD125: 0 | AE125: 0 | AF125: 0 | AG125: 0 | AI125: 0 | AJ125: 103
B126: 104 | C126: 8 | D126: 8 | E126: =IF(D126=1,MAX(E125-0.0025,Simulador!$L$10),E125) -> 0.1025 | F126: 0 | G126: 0 | H126: 0 | I126: 0 | J126: 0 | K126: =IF(F126<0.01,0,F126/1000*IF(Simulador!$X$8=1,0,Simulador!$V$14)+IF($D$8>0,$D$8,$D$7)/1000*IF(Simulador!$X$8=1,0,Simulador!$V$15)) -> 0 | L126: =IF(F125-H126=0,0,L124) -> 0 | M126: =MAX(0,MIN(F125+G126+K126+L126-(I126+K126+L126),Simulador!$L$45)) -> 0 | O126: 0 | P126: 0 | S126: 0 | T126: 0 | U126: 0 | W126: 0 | X126: 0 | Y126: 0 | Z126: 0 | AA126: =IF(W125<0.01,0,+W125/1000*Simulador!$V$14+IF($D$8>0,$D$8,$D$7)/1000*Simulador!$V$15) -> 0 | AB126: =IF(W125<0.01,0,Simulador!$V$16) -> 0 | AC126: 0 | AD126: 0 | AE126: 0 | AF126: 0 | AG126: 0 | AI126: 0 | AJ126: 104
B127: 105 | C127: 8 | D127: 9 | E127: =IF(D127=1,MAX(E126-0.0025,Simulador!$L$10),E126) -> 0.1025 | F127: 0 | G127: 0 | H127: 0 | I127: 0 | J127: 0 | K127: =IF(F127<0.01,0,F127/1000*IF(Simulador!$X$8=1,0,Simulador!$V$14)+IF($D$8>0,$D$8,$D$7)/1000*IF(Simulador!$X$8=1,0,Simulador!$V$15)) -> 0 | L127: 0 | M127: =MAX(0,MIN(F126+G127+K127+L127-(I127+K127+L127),Simulador!$L$45)) -> 0 | O127: 0 | P127: 0 | S127: 0 | T127: 0 | U127: 0 | W127: 0 | X127: 0 | Y127: 0 | Z127: 0 | AA127: =IF(W126<0.01,0,+W126/1000*Simulador!$V$14+IF($D$8>0,$D$8,$D$7)/1000*Simulador!$V$15) -> 0 | AB127: =IF(W126<0.01,0,Simulador!$V$16) -> 0 | AC127: 0 | AD127: 0 | AE127: 0 | AF127: 0 | AG127: 0 | AI127: 0 | AJ127: 105
B128: 106 | C128: 8 | D128: 10 | E128: =IF(D128=1,MAX(E127-0.0025,Simulador!$L$10),E127) -> 0.1025 | F128: 0 | G128: 0 | H128: 0 | I128: 0 | J128: 0 | K128: =IF(F128<0.01,0,F128/1000*IF(Simulador!$X$8=1,0,Simulador!$V$14)+IF($D$8>0,$D$8,$D$7)/1000*IF(Simulador!$X$8=1,0,Simulador!$V$15)) -> 0 | L128: =IF(F127-H128=0,0,L126) -> 0 | M128: =MAX(0,MIN(F127+G128+K128+L128-(I128+K128+L128),Simulador!$L$45)) -> 0 | O128: 0 | P128: 0 | S128: 0 | T128: 0 | U128: 0 | W128: 0 | X128: 0 | Y128: 0 | Z128: 0 | AA128: =IF(W127<0.01,0,+W127/1000*Simulador!$V$14+IF($D$8>0,$D$8,$D$7)/1000*Simulador!$V$15) -> 0 | AB128: =IF(W127<0.01,0,Simulador!$V$16) -> 0 | AC128: 0 | AD128: 0 | AE128: 0 | AF128: 0 | AG128: 0 | AI128: 0 | AJ128: 106
B129: 107 | C129: 8 | D129: 11 | E129: =IF(D129=1,MAX(E128-0.0025,Simulador!$L$10),E128) -> 0.1025 | F129: 0 | G129: 0 | H129: 0 | I129: 0 | J129: 0 | K129: =IF(F129<0.01,0,F129/1000*IF(Simulador!$X$8=1,0,Simulador!$V$14)+IF($D$8>0,$D$8,$D$7)/1000*IF(Simulador!$X$8=1,0,Simulador!$V$15)) -> 0 | L129: 0 | M129: =MAX(0,MIN(F128+G129+K129+L129-(I129+K129+L129),Simulador!$L$45)) -> 0 | O129: 0 | P129: 0 | S129: 0 | T129: 0 | U129: 0 | W129: 0 | X129: 0 | Y129: 0 | Z129: 0 | AA129: =IF(W128<0.01,0,+W128/1000*Simulador!$V$14+IF($D$8>0,$D$8,$D$7)/1000*Simulador!$V$15) -> 0 | AB129: =IF(W128<0.01,0,Simulador!$V$16) -> 0 | AC129: 0 | AD129: 0 | AE129: 0 | AF129: 0 | AG129: 0 | AI129: 0 | AJ129: 107
B130: 108 | C130: 8 | D130: 12 | E130: =IF(D130=1,MAX(E129-0.0025,Simulador!$L$10),E129) -> 0.1025 | F130: 0 | G130: 0 | H130: 0 | I130: 0 | J130: 0 | K130: =IF(F130<0.01,0,F130/1000*IF(Simulador!$X$8=1,0,Simulador!$V$14)+IF($D$8>0,$D$8,$D$7)/1000*IF(Simulador!$X$8=1,0,Simulador!$V$15)) -> 0 | L130: =IF(F129-H130=0,0,L128) -> 0 | M130: =MAX(0,MIN(F129+G130+K130+L130-(I130+K130+L130),Simulador!$L$45)) -> 0 | O130: 0 | P130: 0 | S130: 0 | T130: 0 | U130: 0 | W130: 0 | X130: 0 | Y130: 0 | Z130: 0 | AA130: =IF(W129<0.01,0,+W129/1000*Simulador!$V$14+IF($D$8>0,$D$8,$D$7)/1000*Simulador!$V$15) -> 0 | AB130: =IF(W129<0.01,0,Simulador!$V$16) -> 0 | AC130: 0 | AD130: 0 | AE130: 0 | AF130: 0 | AG130: 0 | AI130: 0 | AJ130: 108
B131: 109 | C131: 9 | D131: 1 | E131: =IF(D131=1,MAX(E130-0.0025,Simulador!$L$10),E130) -> 0.1025 | F131: 0 | G131: 0 | H131: 0 | I131: 0 | J131: 0.026 | K131: =IF(F131<0.01,0,F131/1000*IF(Simulador!$X$8=1,0,Simulador!$V$14)+IF($D$8>0,$D$8,$D$7)/1000*IF(Simulador!$X$8=1,0,Simulador!$V$15)) -> 0 | L131: 0 | M131: =MAX(0,MIN(F130+G131+K131+L131-(I131+K131+L131),Simulador!$L$45)) -> 0 | O131: 0 | P131: 0 | S131: 0 | T131: 0 | U131: 0 | W131: 0 | X131: 0 | Y131: 0 | Z131: 0 | AA131: =IF(W130<0.01,0,+W130/1000*Simulador!$V$14+IF($D$8>0,$D$8,$D$7)/1000*Simulador!$V$15) -> 0 | AB131: =IF(W130<0.01,0,Simulador!$V$16) -> 0 | AC131: 0 | AD131: 0 | AE131: 0 | AF131: 0 | AG131: 0 | AI131: 0 | AJ131: 109
B132: 110 | C132: 9 | D132: 2 | E132: =IF(D132=1,MAX(E131-0.0025,Simulador!$L$10),E131) -> 0.1025 | F132: 0 | G132: 0 | H132: 0 | I132: 0 | J132: 0 | K132: =IF(F132<0.01,0,F132/1000*IF(Simulador!$X$8=1,0,Simulador!$V$14)+IF($D$8>0,$D$8,$D$7)/1000*IF(Simulador!$X$8=1,0,Simulador!$V$15)) -> 0 | L132: =IF(F131-H132=0,0,L130*(1+Simulador!$AH$28)) -> 0 | M132: =MAX(0,MIN(F131+G132+K132+L132-(I132+K132+L132),Simulador!$L$45)) -> 0 | O132: 0 | P132: 0 | S132: 0 | T132: 0 | U132: 0 | W132: 0 | X132: 0 | Y132: 0 | Z132: 0 | AA132: =IF(W131<0.01,0,+W131/1000*Simulador!$V$14+IF($D$8>0,$D$8,$D$7)/1000*Simulador!$V$15) -> 0 | AB132: =IF(W131<0.01,0,Simulador!$V$16) -> 0 | AC132: 0 | AD132: 0 | AE132: 0 | AF132: 0 | AG132: 0 | AI132: 0 | AJ132: 110
B133: 111 | C133: 9 | D133: 3 | E133: =IF(D133=1,MAX(E132-0.0025,Simulador!$L$10),E132) -> 0.1025 | F133: 0 | G133: 0 | H133: 0 | I133: 0 | J133: 0 | K133: =IF(F133<0.01,0,F133/1000*IF(Simulador!$X$8=1,0,Simulador!$V$14)+IF($D$8>0,$D$8,$D$7)/1000*IF(Simulador!$X$8=1,0,Simulador!$V$15)) -> 0 | L133: 0 | M133: =MAX(0,MIN(F132+G133+K133+L133-(I133+K133+L133),Simulador!$L$45)) -> 0 | O133: 0 | P133: 0 | S133: 0 | T133: 0 | U133: 0 | W133: 0 | X133: 0 | Y133: 0 | Z133: 0 | AA133: =IF(W132<0.01,0,+W132/1000*Simulador!$V$14+IF($D$8>0,$D$8,$D$7)/1000*Simulador!$V$15) -> 0 | AB133: =IF(W132<0.01,0,Simulador!$V$16) -> 0 | AC133: 0 | AD133: 0 | AE133: 0 | AF133: 0 | AG133: 0 | AI133: 0 | AJ133: 111
B134: 112 | C134: 9 | D134: 4 | E134: =IF(D134=1,MAX(E133-0.0025,Simulador!$L$10),E133) -> 0.1025 | F134: 0 | G134: 0 | H134: 0 | I134: 0 | J134: 0 | K134: =IF(F134<0.01,0,F134/1000*IF(Simulador!$X$8=1,0,Simulador!$V$14)+IF($D$8>0,$D$8,$D$7)/1000*IF(Simulador!$X$8=1,0,Simulador!$V$15)) -> 0 | L134: =IF(F133-H134=0,0,L132) -> 0 | M134: =MAX(0,MIN(F133+G134+K134+L134-(I134+K134+L134),Simulador!$L$45)) -> 0 | O134: 0 | P134: 0 | S134: 0 | T134: 0 | U134: 0 | W134: 0 | X134: 0 | Y134: 0 | Z134: 0 | AA134: =IF(W133<0.01,0,+W133/1000*Simulador!$V$14+IF($D$8>0,$D$8,$D$7)/1000*Simulador!$V$15) -> 0 | AB134: =IF(W133<0.01,0,Simulador!$V$16) -> 0 | AC134: 0 | AD134: 0 | AE134: 0 | AF134: 0 | AG134: 0 | AI134: 0 | AJ134: 112
B135: 113 | C135: 9 | D135: 5 | E135: =IF(D135=1,MAX(E134-0.0025,Simulador!$L$10),E134) -> 0.1025 | F135: 0 | G135: 0 | H135: 0 | I135: 0 | J135: 0 | K135: =IF(F135<0.01,0,F135/1000*IF(Simulador!$X$8=1,0,Simulador!$V$14)+IF($D$8>0,$D$8,$D$7)/1000*IF(Simulador!$X$8=1,0,Simulador!$V$15)) -> 0 | L135: 0 | M135: =MAX(0,MIN(F134+G135+K135+L135-(I135+K135+L135),Simulador!$L$45)) -> 0 | O135: 0 | P135: 0 | S135: 0 | T135: 0 | U135: 0 | W135: 0 | X135: 0 | Y135: 0 | Z135: 0 | AA135: =IF(W134<0.01,0,+W134/1000*Simulador!$V$14+IF($D$8>0,$D$8,$D$7)/1000*Simulador!$V$15) -> 0 | AB135: =IF(W134<0.01,0,Simulador!$V$16) -> 0 | AC135: 0 | AD135: 0 | AE135: 0 | AF135: 0 | AG135: 0 | AI135: 0 | AJ135: 113
B136: 114 | C136: 9 | D136: 6 | E136: =IF(D136=1,MAX(E135-0.0025,Simulador!$L$10),E135) -> 0.1025 | F136: 0 | G136: 0 | H136: 0 | I136: 0 | J136: 0 | K136: =IF(F136<0.01,0,F136/1000*IF(Simulador!$X$8=1,0,Simulador!$V$14)+IF($D$8>0,$D$8,$D$7)/1000*IF(Simulador!$X$8=1,0,Simulador!$V$15)) -> 0 | L136: =IF(F135-H136=0,0,L134) -> 0 | M136: =MAX(0,MIN(F135+G136+K136+L136-(I136+K136+L136),Simulador!$L$45)) -> 0 | O136: 0 | P136: 0 | S136: 0 | T136: 0 | U136: 0 | W136: 0 | X136: 0 | Y136: 0 | Z136: 0 | AA136: =IF(W135<0.01,0,+W135/1000*Simulador!$V$14+IF($D$8>0,$D$8,$D$7)/1000*Simulador!$V$15) -> 0 | AB136: =IF(W135<0.01,0,Simulador!$V$16) -> 0 | AC136: 0 | AD136: 0 | AE136: 0 | AF136: 0 | AG136: 0 | AI136: 0 | AJ136: 114
B137: 115 | C137: 9 | D137: 7 | E137: =IF(D137=1,MAX(E136-0.0025,Simulador!$L$10),E136) -> 0.1025 | F137: 0 | G137: 0 | H137: 0 | I137: 0 | J137: 0 | K137: =IF(F137<0.01,0,F137/1000*IF(Simulador!$X$8=1,0,Simulador!$V$14)+IF($D$8>0,$D$8,$D$7)/1000*IF(Simulador!$X$8=1,0,Simulador!$V$15)) -> 0 | L137: 0 | M137: =MAX(0,MIN(F136+G137+K137+L137-(I137+K137+L137),Simulador!$L$45)) -> 0 | O137: 0 | P137: 0 | S137: 0 | T137: 0 | U137: 0 | W137: 0 | X137: 0 | Y137: 0 | Z137: 0 | AA137: =IF(W136<0.01,0,+W136/1000*Simulador!$V$14+IF($D$8>0,$D$8,$D$7)/1000*Simulador!$V$15) -> 0 | AB137: =IF(W136<0.01,0,Simulador!$V$16) -> 0 | AC137: 0 | AD137: 0 | AE137: 0 | AF137: 0 | AG137: 0 | AI137: 0 | AJ137: 115
B138: 116 | C138: 9 | D138: 8 | E138: =IF(D138=1,MAX(E137-0.0025,Simulador!$L$10),E137) -> 0.1025 | F138: 0 | G138: 0 | H138: 0 | I138: 0 | J138: 0 | K138: =IF(F138<0.01,0,F138/1000*IF(Simulador!$X$8=1,0,Simulador!$V$14)+IF($D$8>0,$D$8,$D$7)/1000*IF(Simulador!$X$8=1,0,Simulador!$V$15)) -> 0 | L138: =IF(F137-H138=0,0,L136) -> 0 | M138: =MAX(0,MIN(F137+G138+K138+L138-(I138+K138+L138),Simulador!$L$45)) -> 0 | O138: 0 | P138: 0 | S138: 0 | T138: 0 | U138: 0 | W138: 0 | X138: 0 | Y138: 0 | Z138: 0 | AA138: =IF(W137<0.01,0,+W137/1000*Simulador!$V$14+IF($D$8>0,$D$8,$D$7)/1000*Simulador!$V$15) -> 0 | AB138: =IF(W137<0.01,0,Simulador!$V$16) -> 0 | AC138: 0 | AD138: 0 | AE138: 0 | AF138: 0 | AG138: 0 | AI138: 0 | AJ138: 116
B139: 117 | C139: 9 | D139: 9 | E139: =IF(D139=1,MAX(E138-0.0025,Simulador!$L$10),E138) -> 0.1025 | F139: 0 | G139: 0 | H139: 0 | I139: 0 | J139: 0 | K139: =IF(F139<0.01,0,F139/1000*IF(Simulador!$X$8=1,0,Simulador!$V$14)+IF($D$8>0,$D$8,$D$7)/1000*IF(Simulador!$X$8=1,0,Simulador!$V$15)) -> 0 | L139: 0 | M139: =MAX(0,MIN(F138+G139+K139+L139-(I139+K139+L139),Simulador!$L$45)) -> 0 | O139: 0 | P139: 0 | S139: 0 | T139: 0 | U139: 0 | W139: 0 | X139: 0 | Y139: 0 | Z139: 0 | AA139: =IF(W138<0.01,0,+W138/1000*Simulador!$V$14+IF($D$8>0,$D$8,$D$7)/1000*Simulador!$V$15) -> 0 | AB139: =IF(W138<0.01,0,Simulador!$V$16) -> 0 | AC139: 0 | AD139: 0 | AE139: 0 | AF139: 0 | AG139: 0 | AI139: 0 | AJ139: 117
B140: 118 | C140: 9 | D140: 10 | E140: =IF(D140=1,MAX(E139-0.0025,Simulador!$L$10),E139) -> 0.1025 | F140: 0 | G140: 0 | H140: 0 | I140: 0 | J140: 0 | K140: =IF(F140<0.01,0,F140/1000*IF(Simulador!$X$8=1,0,Simulador!$V$14)+IF($D$8>0,$D$8,$D$7)/1000*IF(Simulador!$X$8=1,0,Simulador!$V$15)) -> 0 | L140: =IF(F139-H140=0,0,L138) -> 0 | M140: =MAX(0,MIN(F139+G140+K140+L140-(I140+K140+L140),Simulador!$L$45)) -> 0 | O140: 0 | P140: 0 | S140: 0 | T140: 0 | U140: 0 | W140: 0 | X140: 0 | Y140: 0 | Z140: 0 | AA140: =IF(W139<0.01,0,+W139/1000*Simulador!$V$14+IF($D$8>0,$D$8,$D$7)/1000*Simulador!$V$15) -> 0 | AB140: =IF(W139<0.01,0,Simulador!$V$16) -> 0 | AC140: 0 | AD140: 0 | AE140: 0 | AF140: 0 | AG140: 0 | AI140: 0 | AJ140: 118
B141: 119 | C141: 9 | D141: 11 | E141: =IF(D141=1,MAX(E140-0.0025,Simulador!$L$10),E140) -> 0.1025 | F141: 0 | G141: 0 | H141: 0 | I141: 0 | J141: 0 | K141: =IF(F141<0.01,0,F141/1000*IF(Simulador!$X$8=1,0,Simulador!$V$14)+IF($D$8>0,$D$8,$D$7)/1000*IF(Simulador!$X$8=1,0,Simulador!$V$15)) -> 0 | L141: 0 | M141: =MAX(0,MIN(F140+G141+K141+L141-(I141+K141+L141),Simulador!$L$45)) -> 0 | O141: 0 | P141: 0 | S141: 0 | T141: 0 | U141: 0 | W141: 0 | X141: 0 | Y141: 0 | Z141: 0 | AA141: =IF(W140<0.01,0,+W140/1000*Simulador!$V$14+IF($D$8>0,$D$8,$D$7)/1000*Simulador!$V$15) -> 0 | AB141: =IF(W140<0.01,0,Simulador!$V$16) -> 0 | AC141: 0 | AD141: 0 | AE141: 0 | AF141: 0 | AG141: 0 | AI141: 0 | AJ141: 119
B142: 120 | C142: 9 | D142: 12 | E142: =IF(D142=1,MAX(E141-0.0025,Simulador!$L$10),E141) -> 0.1025 | F142: 0 | G142: 0 | H142: 0 | I142: 0 | J142: 0 | K142: =IF(F142<0.01,0,F142/1000*IF(Simulador!$X$8=1,0,Simulador!$V$14)+IF($D$8>0,$D$8,$D$7)/1000*IF(Simulador!$X$8=1,0,Simulador!$V$15)) -> 0 | L142: =IF(F141-H142=0,0,L140) -> 0 | M142: =MAX(0,MIN(F141+G142+K142+L142-(I142+K142+L142),Simulador!$L$45)) -> 0 | O142: 0 | P142: 0 | S142: 0 | T142: 0 | U142: 0 | W142: 0 | X142: 0 | Y142: 0 | Z142: 0 | AA142: =IF(W141<0.01,0,+W141/1000*Simulador!$V$14+IF($D$8>0,$D$8,$D$7)/1000*Simulador!$V$15) -> 0 | AB142: =IF(W141<0.01,0,Simulador!$V$16) -> 0 | AC142: 0 | AD142: 0 | AE142: 0 | AF142: 0 | AG142: 0 | AI142: 0 | AJ142: 120
B143: 121 | C143: 10 | D143: 1 | E143: =IF(D143=1,MAX(E142-0.0025,Simulador!$L$10),E142) -> 0.1025 | F143: 0 | G143: 0 | H143: 0 | I143: 0 | J143: 0.026 | K143: =IF(F143<0.01,0,F143/1000*IF(Simulador!$X$8=1,0,Simulador!$V$14)+IF($D$8>0,$D$8,$D$7)/1000*IF(Simulador!$X$8=1,0,Simulador!$V$15)) -> 0 | L143: 0 | M143: =MAX(0,MIN(F142+G143+K143+L143-(I143+K143+L143),Simulador!$L$45)) -> 0 | O143: 0 | P143: 0 | S143: 0 | T143: 0 | U143: 0 | W143: 0 | X143: 0 | Y143: 0 | Z143: 0 | AA143: =IF(W142<0.01,0,+W142/1000*Simulador!$V$14+IF($D$8>0,$D$8,$D$7)/1000*Simulador!$V$15) -> 0 | AB143: =IF(W142<0.01,0,Simulador!$V$16) -> 0 | AC143: 0 | AD143: 0 | AE143: 0 | AF143: 0 | AG143: 0 | AI143: 0 | AJ143: 121
B144: 122 | C144: 10 | D144: 2 | E144: =IF(D144=1,MAX(E143-0.0025,Simulador!$L$10),E143) -> 0.1025 | F144: 0 | G144: 0 | H144: 0 | I144: 0 | J144: 0 | K144: =IF(F144<0.01,0,F144/1000*IF(Simulador!$X$8=1,0,Simulador!$V$14)+IF($D$8>0,$D$8,$D$7)/1000*IF(Simulador!$X$8=1,0,Simulador!$V$15)) -> 0 | L144: =IF(F143-H144=0,0,L142*(1+Simulador!$AH$28)) -> 0 | M144: =MAX(0,MIN(F143+G144+K144+L144-(I144+K144+L144),Simulador!$L$45)) -> 0 | O144: 0 | P144: 0 | S144: 0 | T144: 0 | U144: 0 | W144: 0 | X144: 0 | Y144: 0 | Z144: 0 | AA144: =IF(W143<0.01,0,+W143/1000*Simulador!$V$14+IF($D$8>0,$D$8,$D$7)/1000*Simulador!$V$15) -> 0 | AB144: =IF(W143<0.01,0,Simulador!$V$16) -> 0 | AC144: 0 | AD144: 0 | AE144: 0 | AF144: 0 | AG144: 0 | AI144: 0 | AJ144: 122
B145: 123 | C145: 10 | D145: 3 | E145: =IF(D145=1,MAX(E144-0.0025,Simulador!$L$10),E144) -> 0.1025 | F145: 0 | G145: 0 | H145: 0 | I145: 0 | J145: 0 | K145: =IF(F145<0.01,0,F145/1000*IF(Simulador!$X$8=1,0,Simulador!$V$14)+IF($D$8>0,$D$8,$D$7)/1000*IF(Simulador!$X$8=1,0,Simulador!$V$15)) -> 0 | L145: 0 | M145: =MAX(0,MIN(F144+G145+K145+L145-(I145+K145+L145),Simulador!$L$45)) -> 0 | O145: 0 | P145: 0 | S145: 0 | T145: 0 | U145: 0 | W145: 0 | X145: 0 | Y145: 0 | Z145: 0 | AA145: =IF(W144<0.01,0,+W144/1000*Simulador!$V$14+IF($D$8>0,$D$8,$D$7)/1000*Simulador!$V$15) -> 0 | AB145: =IF(W144<0.01,0,Simulador!$V$16) -> 0 | AC145: 0 | AD145: 0 | AE145: 0 | AF145: 0 | AG145: 0 | AI145: 0 | AJ145: 123
B146: 124 | C146: 10 | D146: 4 | E146: =IF(D146=1,MAX(E145-0.0025,Simulador!$L$10),E145) -> 0.1025 | F146: 0 | G146: 0 | H146: 0 | I146: 0 | J146: 0 | K146: =IF(F146<0.01,0,F146/1000*IF(Simulador!$X$8=1,0,Simulador!$V$14)+IF($D$8>0,$D$8,$D$7)/1000*IF(Simulador!$X$8=1,0,Simulador!$V$15)) -> 0 | L146: =IF(F145-H146=0,0,L144) -> 0 | M146: =MAX(0,MIN(F145+G146+K146+L146-(I146+K146+L146),Simulador!$L$45)) -> 0 | O146: 0 | P146: 0 | S146: 0 | T146: 0 | U146: 0 | W146: 0 | X146: 0 | Y146: 0 | Z146: 0 | AA146: =IF(W145<0.01,0,+W145/1000*Simulador!$V$14+IF($D$8>0,$D$8,$D$7)/1000*Simulador!$V$15) -> 0 | AB146: =IF(W145<0.01,0,Simulador!$V$16) -> 0 | AC146: 0 | AD146: 0 | AE146: 0 | AF146: 0 | AG146: 0 | AI146: 0 | AJ146: 124
B147: 125 | C147: 10 | D147: 5 | E147: =IF(D147=1,MAX(E146-0.0025,Simulador!$L$10),E146) -> 0.1025 | F147: 0 | G147: 0 | H147: 0 | I147: 0 | J147: 0 | K147: =IF(F147<0.01,0,F147/1000*IF(Simulador!$X$8=1,0,Simulador!$V$14)+IF($D$8>0,$D$8,$D$7)/1000*IF(Simulador!$X$8=1,0,Simulador!$V$15)) -> 0 | L147: 0 | M147: =MAX(0,MIN(F146+G147+K147+L147-(I147+K147+L147),Simulador!$L$45)) -> 0 | O147: 0 | P147: 0 | S147: 0 | T147: 0 | U147: 0 | W147: 0 | X147: 0 | Y147: 0 | Z147: 0 | AA147: =IF(W146<0.01,0,+W146/1000*Simulador!$V$14+IF($D$8>0,$D$8,$D$7)/1000*Simulador!$V$15) -> 0 | AB147: =IF(W146<0.01,0,Simulador!$V$16) -> 0 | AC147: 0 | AD147: 0 | AE147: 0 | AF147: 0 | AG147: 0 | AI147: 0 | AJ147: 125
B148: 126 | C148: 10 | D148: 6 | E148: =IF(D148=1,MAX(E147-0.0025,Simulador!$L$10),E147) -> 0.1025 | F148: 0 | G148: 0 | H148: 0 | I148: 0 | J148: 0 | K148: =IF(F148<0.01,0,F148/1000*IF(Simulador!$X$8=1,0,Simulador!$V$14)+IF($D$8>0,$D$8,$D$7)/1000*IF(Simulador!$X$8=1,0,Simulador!$V$15)) -> 0 | L148: =IF(F147-H148=0,0,L146) -> 0 | M148: =MAX(0,MIN(F147+G148+K148+L148-(I148+K148+L148),Simulador!$L$45)) -> 0 | O148: 0 | P148: 0 | S148: 0 | T148: 0 | U148: 0 | W148: 0 | X148: 0 | Y148: 0 | Z148: 0 | AA148: =IF(W147<0.01,0,+W147/1000*Simulador!$V$14+IF($D$8>0,$D$8,$D$7)/1000*Simulador!$V$15) -> 0 | AB148: =IF(W147<0.01,0,Simulador!$V$16) -> 0 | AC148: 0 | AD148: 0 | AE148: 0 | AF148: 0 | AG148: 0 | AI148: 0 | AJ148: 126
B149: 127 | C149: 10 | D149: 7 | E149: =IF(D149=1,MAX(E148-0.0025,Simulador!$L$10),E148) -> 0.1025 | F149: 0 | G149: 0 | H149: 0 | I149: 0 | J149: 0 | K149: =IF(F149<0.01,0,F149/1000*IF(Simulador!$X$8=1,0,Simulador!$V$14)+IF($D$8>0,$D$8,$D$7)/1000*IF(Simulador!$X$8=1,0,Simulador!$V$15)) -> 0 | L149: 0 | M149: =MAX(0,MIN(F148+G149+K149+L149-(I149+K149+L149),Simulador!$L$45)) -> 0 | O149: 0 | P149: 0 | S149: 0 | T149: 0 | U149: 0 | W149: 0 | X149: 0 | Y149: 0 | Z149: 0 | AA149: =IF(W148<0.01,0,+W148/1000*Simulador!$V$14+IF($D$8>0,$D$8,$D$7)/1000*Simulador!$V$15) -> 0 | AB149: =IF(W148<0.01,0,Simulador!$V$16) -> 0 | AC149: 0 | AD149: 0 | AE149: 0 | AF149: 0 | AG149: 0 | AI149: 0 | AJ149: 127
B150: 128 | C150: 10 | D150: 8 | E150: =IF(D150=1,MAX(E149-0.0025,Simulador!$L$10),E149) -> 0.1025 | F150: 0 | G150: 0 | H150: 0 | I150: 0 | J150: 0 | K150: =IF(F150<0.01,0,F150/1000*IF(Simulador!$X$8=1,0,Simulador!$V$14)+IF($D$8>0,$D$8,$D$7)/1000*IF(Simulador!$X$8=1,0,Simulador!$V$15)) -> 0 | L150: =IF(F149-H150=0,0,L148) -> 0 | M150: =MAX(0,MIN(F149+G150+K150+L150-(I150+K150+L150),Simulador!$L$45)) -> 0 | O150: 0 | P150: 0 | S150: 0 | T150: 0 | U150: 0 | W150: 0 | X150: 0 | Y150: 0 | Z150: 0 | AA150: =IF(W149<0.01,0,+W149/1000*Simulador!$V$14+IF($D$8>0,$D$8,$D$7)/1000*Simulador!$V$15) -> 0 | AB150: =IF(W149<0.01,0,Simulador!$V$16) -> 0 | AC150: 0 | AD150: 0 | AE150: 0 | AF150: 0 | AG150: 0 | AI150: 0 | AJ150: 128
B151: 129 | C151: 10 | D151: 9 | E151: =IF(D151=1,MAX(E150-0.0025,Simulador!$L$10),E150) -> 0.1025 | F151: 0 | G151: 0 | H151: 0 | I151: 0 | J151: 0 | K151: =IF(F151<0.01,0,F151/1000*IF(Simulador!$X$8=1,0,Simulador!$V$14)+IF($D$8>0,$D$8,$D$7)/1000*IF(Simulador!$X$8=1,0,Simulador!$V$15)) -> 0 | L151: 0 | M151: =MAX(0,MIN(F150+G151+K151+L151-(I151+K151+L151),Simulador!$L$45)) -> 0 | O151: 0 | P151: 0 | S151: 0 | T151: =IF(AND(F150>0.01,F151<=0.01),B151,0) -> 0 | U151: 0 | W151: 0 | X151: 0 | Y151: 0 | Z151: 0 | AA151: =IF(W150<0.01,0,+W150/1000*Simulador!$V$14+IF($D$8>0,$D$8,$D$7)/1000*Simulador!$V$15) -> 0 | AB151: =IF(W150<0.01,0,Simulador!$V$16) -> 0 | AC151: 0 | AD151: 0 | AE151: 0 | AF151: 0 | AG151: 0 | AI151: 0 | AJ151: 129
B152: 130 | C152: 10 | D152: 10 | E152: =IF(D152=1,MAX(E151-0.0025,Simulador!$L$10),E151) -> 0.1025 | F152: =+O151 -> 0 | G152: 0 | H152: =+I152-G152 -> 0 | I152: 0 | J152: =IF(D152=1,$D$13,0) -> 0 | K152: =IF(F152<0.01,0,F152/1000*IF(Simulador!$X$8=1,0,Simulador!$V$14)+IF($D$8>0,$D$8,$D$7)/1000*IF(Simulador!$X$8=1,0,Simulador!$V$15)) -> 0 | L152: =IF(F151-H152=0,0,L150) -> 0 | M152: =MAX(0,MIN(F151+G152+K152+L152-(I152+K152+L152),Simulador!$L$45)) -> 0 | O152: =MAX(0,O151-H152-L152-M152-N152) -> 0 | P152: =MAX(0,MIN(F151+G152+K152,I152+K152+M152+N152)) -> 0 | S152: 0 | T152: 0 | U152: =+P152 -> 0 | W152: =+W151-Y152 -> 0 | X152: =W151*E152/360*AI152 -> 0 | Y152: =+Z152-X152 -> 0 | Z152: 0 | AA152: =IF(W151<0.01,0,+W151/1000*Simulador!$V$14+IF($D$8>0,$D$8,$D$7)/1000*Simulador!$V$15) -> 0 | AB152: =IF(W151<0.01,0,Simulador!$V$16) -> 0 | AC152: 0 | AD152: =IF(W151<0.01,0,+Z152+AA152+AB152-AC152) -> 0 | AE152: =+AD152 -> 0 | AF152: =IFERROR(Z152/W151,0) -> 0 | AG152: 0 | AI152: =IFERROR(DAY(DATE(YEAR(AH152),MONTH(AH152)+1,0)),0) -> 0 | AJ152: 130
B153: 131 | C153: =IF(D152=12,C152+1,C152) -> 10 | D153: 11 | E153: =IF(D153=1,MAX(E152-0.0025,Simulador!$L$10),E152) -> 0.1025 | F153: 0 | G153: =IF(F153<0.01,0,F153*E153/360*AI153) -> 0 | H153: 0 | I153: =IF($W$16=2,MAX(0,(MIN(+I152*(1+J153),F153*AF153))),MAX(0,(MIN(+I152*(1+J153),F153+G153)))) -> 0 | J153: 0 | K153: =IF(F153<0.01,0,F153/1000*IF(Simulador!$X$8=1,0,Simulador!$V$14)+IF($D$8>0,$D$8,$D$7)/1000*IF(Simulador!$X$8=1,0,Simulador!$V$15)) -> 0 | L153: 0 | M153: =MAX(0,MIN(F152+G153+K153+L153-(I153+K153+L153),Simulador!$L$45)) -> 0 | O153: 0 | P153: 0 | S153: 0 | T153: 0 | U153: 0 | W153: 0 | X153: 0 | Y153: 0 | Z153: =MAX(0,(MIN(+Z152*(1+J153),W152+X153))) -> 0 | AA153: =IF(W152<0.01,0,+W152/1000*Simulador!$V$14+IF($D$8>0,$D$8,$D$7)/1000*Simulador!$V$15) -> 0 | AB153: =IF(W152<0.01,0,Simulador!$V$16) -> 0 | AC153: 0 | AD153: 0 | AE153: 0 | AF153: 0 | AG153: 0 | AI153: 0 | AJ153: 131
B154: 132 | C154: 10 | D154: =IF(D153=12,1,D153+1) -> 12 | E154: =IF(D154=1,MAX(E153-0.0025,Simulador!$L$10),E153) -> 0.1025 | F154: 0 | G154: 0 | H154: 0 | I154: 0 | J154: 0 | K154: =IF(F154<0.01,0,F154/1000*IF(Simulador!$X$8=1,0,Simulador!$V$14)+IF($D$8>0,$D$8,$D$7)/1000*IF(Simulador!$X$8=1,0,Simulador!$V$15)) -> 0 | L154: =IF(F153-H154=0,0,L152) -> 0 | M154: =MAX(0,MIN(F153+G154+K154+L154-(I154+K154+L154),Simulador!$L$45)) -> 0 | O154: 0 | P154: 0 | S154: 0 | T154: 0 | U154: 0 | W154: 0 | X154: 0 | Y154: 0 | Z154: 0 | AA154: =IF(W153<0.01,0,+W153/1000*Simulador!$V$14+IF($D$8>0,$D$8,$D$7)/1000*Simulador!$V$15) -> 0 | AB154: =IF(W153<0.01,0,Simulador!$V$16) -> 0 | AC154: 0 | AD154: 0 | AE154: 0 | AF154: 0 | AG154: 0 | AI154: 0 | AJ154: 132
B155: 133 | C155: 11 | D155: 1 | E155: =IF(D155=1,MAX(E154-0.0025,Simulador!$L$10),E154) -> 0.1025 | F155: 0 | G155: 0 | H155: 0 | I155: 0 | J155: 0.026 | K155: =IF(F155<0.01,0,F155/1000*IF(Simulador!$X$8=1,0,Simulador!$V$14)+IF($D$8>0,$D$8,$D$7)/1000*IF(Simulador!$X$8=1,0,Simulador!$V$15)) -> 0 | L155: 0 | M155: =MAX(0,MIN(F154+G155+K155+L155-(I155+K155+L155),Simulador!$L$45)) -> 0 | O155: 0 | P155: 0 | S155: 0 | T155: 0 | U155: 0 | W155: 0 | X155: 0 | Y155: 0 | Z155: 0 | AA155: =IF(W154<0.01,0,+W154/1000*Simulador!$V$14+IF($D$8>0,$D$8,$D$7)/1000*Simulador!$V$15) -> 0 | AB155: =IF(W154<0.01,0,Simulador!$V$16) -> 0 | AC155: 0 | AD155: 0 | AE155: 0 | AF155: 0 | AG155: =IFERROR(IF(Y154<=0.01,0,AG154-1),0) -> 0 | AH155: =IF(Y154=0,"",DATE(YEAR(AH154),MONTH(AH154)+1,1)) ->  | AI155: 0 | AJ155: 133
B156: 134 | C156: 11 | D156: 2 | E156: =IF(D156=1,MAX(E155-0.0025,Simulador!$L$10),E155) -> 0.1025 | F156: 0 | G156: 0 | H156: 0 | I156: 0 | J156: 0 | K156: =IF(F156<0.01,0,F156/1000*IF(Simulador!$X$8=1,0,Simulador!$V$14)+IF($D$8>0,$D$8,$D$7)/1000*IF(Simulador!$X$8=1,0,Simulador!$V$15)) -> 0 | L156: =IF(F155-H156=0,0,L154*(1+Simulador!$AH$28)) -> 0 | M156: =MAX(0,MIN(F155+G156+K156+L156-(I156+K156+L156),Simulador!$L$45)) -> 0 | O156: 0 | P156: 0 | S156: 0 | T156: 0 | U156: 0 | W156: 0 | X156: 0 | Y156: 0 | Z156: 0 | AA156: =IF(W155<0.01,0,+W155/1000*Simulador!$V$14+IF($D$8>0,$D$8,$D$7)/1000*Simulador!$V$15) -> 0 | AB156: =IF(W155<0.01,0,Simulador!$V$16) -> 0 | AC156: 0 | AD156: 0 | AE156: 0 | AF156: 0 | AG156: 0 | AI156: 0 | AJ156: 134
B157: 135 | C157: 11 | D157: 3 | E157: =IF(D157=1,MAX(E156-0.0025,Simulador!$L$10),E156) -> 0.1025 | F157: 0 | G157: 0 | H157: 0 | I157: 0 | J157: 0 | K157: =IF(F157<0.01,0,F157/1000*IF(Simulador!$X$8=1,0,Simulador!$V$14)+IF($D$8>0,$D$8,$D$7)/1000*IF(Simulador!$X$8=1,0,Simulador!$V$15)) -> 0 | L157: 0 | M157: =MAX(0,MIN(F156+G157+K157+L157-(I157+K157+L157),Simulador!$L$45)) -> 0 | O157: 0 | P157: 0 | S157: 0 | T157: 0 | U157: 0 | W157: 0 | X157: 0 | Y157: 0 | Z157: 0 | AA157: =IF(W156<0.01,0,+W156/1000*Simulador!$V$14+IF($D$8>0,$D$8,$D$7)/1000*Simulador!$V$15) -> 0 | AB157: =IF(W156<0.01,0,Simulador!$V$16) -> 0 | AC157: 0 | AD157: 0 | AE157: 0 | AF157: 0 | AG157: 0 | AI157: 0 | AJ157: 135
B158: 136 | C158: 11 | D158: 4 | E158: =IF(D158=1,MAX(E157-0.0025,Simulador!$L$10),E157) -> 0.1025 | F158: 0 | G158: 0 | H158: 0 | I158: 0 | J158: 0 | K158: =IF(F158<0.01,0,F158/1000*IF(Simulador!$X$8=1,0,Simulador!$V$14)+IF($D$8>0,$D$8,$D$7)/1000*IF(Simulador!$X$8=1,0,Simulador!$V$15)) -> 0 | L158: =IF(F157-H158=0,0,L156) -> 0 | M158: =MAX(0,MIN(F157+G158+K158+L158-(I158+K158+L158),Simulador!$L$45)) -> 0 | O158: 0 | P158: 0 | S158: 0 | T158: 0 | U158: 0 | W158: 0 | X158: 0 | Y158: 0 | Z158: 0 | AA158: =IF(W157<0.01,0,+W157/1000*Simulador!$V$14+IF($D$8>0,$D$8,$D$7)/1000*Simulador!$V$15) -> 0 | AB158: =IF(W157<0.01,0,Simulador!$V$16) -> 0 | AC158: 0 | AD158: 0 | AE158: 0 | AF158: 0 | AG158: 0 | AI158: 0 | AJ158: 136
B159: 137 | C159: 11 | D159: 5 | E159: =IF(D159=1,MAX(E158-0.0025,Simulador!$L$10),E158) -> 0.1025 | F159: 0 | G159: 0 | H159: 0 | I159: 0 | J159: 0 | K159: =IF(F159<0.01,0,F159/1000*IF(Simulador!$X$8=1,0,Simulador!$V$14)+IF($D$8>0,$D$8,$D$7)/1000*IF(Simulador!$X$8=1,0,Simulador!$V$15)) -> 0 | L159: 0 | M159: =MAX(0,MIN(F158+G159+K159+L159-(I159+K159+L159),Simulador!$L$45)) -> 0 | O159: 0 | P159: 0 | S159: 0 | T159: 0 | U159: 0 | W159: 0 | X159: 0 | Y159: 0 | Z159: 0 | AA159: =IF(W158<0.01,0,+W158/1000*Simulador!$V$14+IF($D$8>0,$D$8,$D$7)/1000*Simulador!$V$15) -> 0 | AB159: =IF(W158<0.01,0,Simulador!$V$16) -> 0 | AC159: 0 | AD159: 0 | AE159: 0 | AF159: 0 | AG159: 0 | AI159: 0 | AJ159: 137
B160: 138 | C160: 11 | D160: 6 | E160: =IF(D160=1,MAX(E159-0.0025,Simulador!$L$10),E159) -> 0.1025 | F160: 0 | G160: 0 | H160: 0 | I160: 0 | J160: 0 | K160: =IF(F160<0.01,0,F160/1000*IF(Simulador!$X$8=1,0,Simulador!$V$14)+IF($D$8>0,$D$8,$D$7)/1000*IF(Simulador!$X$8=1,0,Simulador!$V$15)) -> 0 | L160: =IF(F159-H160=0,0,L158) -> 0 | M160: =MAX(0,MIN(F159+G160+K160+L160-(I160+K160+L160),Simulador!$L$45)) -> 0 | O160: 0 | P160: 0 | S160: 0 | T160: 0 | U160: 0 | W160: 0 | X160: 0 | Y160: 0 | Z160: 0 | AA160: =IF(W159<0.01,0,+W159/1000*Simulador!$V$14+IF($D$8>0,$D$8,$D$7)/1000*Simulador!$V$15) -> 0 | AB160: =IF(W159<0.01,0,Simulador!$V$16) -> 0 | AC160: 0 | AD160: 0 | AE160: 0 | AF160: 0 | AG160: 0 | AI160: 0 | AJ160: 138
B161: 139 | C161: 11 | D161: 7 | E161: =IF(D161=1,MAX(E160-0.0025,Simulador!$L$10),E160) -> 0.1025 | F161: 0 | G161: 0 | H161: 0 | I161: 0 | J161: 0 | K161: =IF(F161<0.01,0,F161/1000*IF(Simulador!$X$8=1,0,Simulador!$V$14)+IF($D$8>0,$D$8,$D$7)/1000*IF(Simulador!$X$8=1,0,Simulador!$V$15)) -> 0 | L161: 0 | M161: =MAX(0,MIN(F160+G161+K161+L161-(I161+K161+L161),Simulador!$L$45)) -> 0 | O161: 0 | P161: 0 | S161: 0 | T161: 0 | U161: 0 | W161: 0 | X161: 0 | Y161: 0 | Z161: 0 | AA161: =IF(W160<0.01,0,+W160/1000*Simulador!$V$14+IF($D$8>0,$D$8,$D$7)/1000*Simulador!$V$15) -> 0 | AB161: =IF(W160<0.01,0,Simulador!$V$16) -> 0 | AC161: 0 | AD161: 0 | AE161: 0 | AF161: 0 | AG161: 0 | AI161: 0 | AJ161: 139
B162: 140 | C162: 11 | D162: 8 | E162: =IF(D162=1,MAX(E161-0.0025,Simulador!$L$10),E161) -> 0.1025 | F162: 0 | G162: 0 | H162: 0 | I162: 0 | J162: 0 | K162: =IF(F162<0.01,0,F162/1000*IF(Simulador!$X$8=1,0,Simulador!$V$14)+IF($D$8>0,$D$8,$D$7)/1000*IF(Simulador!$X$8=1,0,Simulador!$V$15)) -> 0 | L162: =IF(F161-H162=0,0,L160) -> 0 | M162: =MAX(0,MIN(F161+G162+K162+L162-(I162+K162+L162),Simulador!$L$45)) -> 0 | O162: 0 | P162: 0 | S162: 0 | T162: 0 | U162: 0 | W162: 0 | X162: 0 | Y162: 0 | Z162: 0 | AA162: =IF(W161<0.01,0,+W161/1000*Simulador!$V$14+IF($D$8>0,$D$8,$D$7)/1000*Simulador!$V$15) -> 0 | AB162: =IF(W161<0.01,0,Simulador!$V$16) -> 0 | AC162: 0 | AD162: 0 | AE162: 0 | AF162: 0 | AG162: 0 | AI162: 0 | AJ162: 140
B163: 141 | C163: 11 | D163: 9 | E163: =IF(D163=1,MAX(E162-0.0025,Simulador!$L$10),E162) -> 0.1025 | F163: 0 | G163: 0 | H163: 0 | I163: 0 | J163: 0 | K163: =IF(F163<0.01,0,F163/1000*IF(Simulador!$X$8=1,0,Simulador!$V$14)+IF($D$8>0,$D$8,$D$7)/1000*IF(Simulador!$X$8=1,0,Simulador!$V$15)) -> 0 | L163: 0 | M163: =MAX(0,MIN(F162+G163+K163+L163-(I163+K163+L163),Simulador!$L$45)) -> 0 | O163: 0 | P163: 0 | S163: 0 | T163: 0 | U163: 0 | W163: 0 | X163: 0 | Y163: 0 | Z163: 0 | AA163: =IF(W162<0.01,0,+W162/1000*Simulador!$V$14+IF($D$8>0,$D$8,$D$7)/1000*Simulador!$V$15) -> 0 | AB163: =IF(W162<0.01,0,Simulador!$V$16) -> 0 | AC163: 0 | AD163: 0 | AE163: 0 | AF163: 0 | AG163: 0 | AI163: 0 | AJ163: 141
B164: 142 | C164: 11 | D164: 10 | E164: =IF(D164=1,MAX(E163-0.0025,Simulador!$L$10),E163) -> 0.1025 | F164: 0 | G164: 0 | H164: 0 | I164: 0 | J164: 0 | K164: =IF(F164<0.01,0,F164/1000*IF(Simulador!$X$8=1,0,Simulador!$V$14)+IF($D$8>0,$D$8,$D$7)/1000*IF(Simulador!$X$8=1,0,Simulador!$V$15)) -> 0 | L164: =IF(F163-H164=0,0,L162) -> 0 | M164: =MAX(0,MIN(F163+G164+K164+L164-(I164+K164+L164),Simulador!$L$45)) -> 0 | O164: 0 | P164: 0 | S164: 0 | T164: 0 | U164: 0 | W164: 0 | X164: 0 | Y164: 0 | Z164: 0 | AA164: =IF(W163<0.01,0,+W163/1000*Simulador!$V$14+IF($D$8>0,$D$8,$D$7)/1000*Simulador!$V$15) -> 0 | AB164: =IF(W163<0.01,0,Simulador!$V$16) -> 0 | AC164: =IF(W163<0.01,0,IF(D164=1,SUM(AB152:AB163),0)) -> 0 | AD164: 0 | AE164: 0 | AF164: 0 | AG164: 0 | AI164: 0 | AJ164: 142
B165: 143 | C165: 11 | D165: 11 | E165: =IF(D165=1,MAX(E164-0.0025,Simulador!$L$10),E164) -> 0.1025 | F165: 0 | G165: 0 | H165: 0 | I165: 0 | J165: 0 | K165: =IF(F165<0.01,0,F165/1000*IF(Simulador!$X$8=1,0,Simulador!$V$14)+IF($D$8>0,$D$8,$D$7)/1000*IF(Simulador!$X$8=1,0,Simulador!$V$15)) -> 0 | L165: 0 | M165: =MAX(0,MIN(F164+G165+K165+L165-(I165+K165+L165),Simulador!$L$45)) -> 0 | O165: 0 | P165: 0 | S165: 0 | T165: 0 | U165: 0 | W165: 0 | X165: 0 | Y165: 0 | Z165: 0 | AA165: =IF(W164<0.01,0,+W164/1000*Simulador!$V$14+IF($D$8>0,$D$8,$D$7)/1000*Simulador!$V$15) -> 0 | AB165: =IF(W164<0.01,0,Simulador!$V$16) -> 0 | AC165: 0 | AD165: 0 | AE165: 0 | AF165: 0 | AG165: 0 | AI165: 0 | AJ165: 143
B166: 144 | C166: 11 | D166: 12 | E166: =IF(D166=1,MAX(E165-0.0025,Simulador!$L$10),E165) -> 0.1025 | F166: 0 | G166: 0 | H166: 0 | I166: 0 | J166: 0 | K166: =IF(F166<0.01,0,F166/1000*IF(Simulador!$X$8=1,0,Simulador!$V$14)+IF($D$8>0,$D$8,$D$7)/1000*IF(Simulador!$X$8=1,0,Simulador!$V$15)) -> 0 | L166: =IF(F165-H166=0,0,L164) -> 0 | M166: =MAX(0,MIN(F165+G166+K166+L166-(I166+K166+L166),Simulador!$L$45)) -> 0 | O166: 0 | P166: 0 | S166: 0 | T166: 0 | U166: 0 | W166: 0 | X166: 0 | Y166: 0 | Z166: 0 | AA166: =IF(W165<0.01,0,+W165/1000*Simulador!$V$14+IF($D$8>0,$D$8,$D$7)/1000*Simulador!$V$15) -> 0 | AB166: =IF(W165<0.01,0,Simulador!$V$16) -> 0 | AC166: 0 | AD166: 0 | AE166: 0 | AF166: 0 | AG166: 0 | AI166: 0 | AJ166: 144
B167: 145 | C167: 12 | D167: 1 | E167: =IF(D167=1,MAX(E166-0.0025,Simulador!$L$10),E166) -> 0.1025 | F167: 0 | G167: 0 | H167: 0 | I167: 0 | J167: 0.026 | K167: =IF(F167<0.01,0,F167/1000*IF(Simulador!$X$8=1,0,Simulador!$V$14)+IF($D$8>0,$D$8,$D$7)/1000*IF(Simulador!$X$8=1,0,Simulador!$V$15)) -> 0 | L167: 0 | M167: =MAX(0,MIN(F166+G167+K167+L167-(I167+K167+L167),Simulador!$L$45)) -> 0 | O167: 0 | P167: 0 | S167: 0 | T167: 0 | U167: 0 | W167: 0 | X167: 0 | Y167: 0 | Z167: 0 | AA167: =IF(W166<0.01,0,+W166/1000*Simulador!$V$14+IF($D$8>0,$D$8,$D$7)/1000*Simulador!$V$15) -> 0 | AB167: =IF(W166<0.01,0,Simulador!$V$16) -> 0 | AC167: 0 | AD167: 0 | AE167: 0 | AF167: 0 | AG167: 0 | AI167: 0 | AJ167: 145
B168: 146 | C168: 12 | D168: 2 | E168: =IF(D168=1,MAX(E167-0.0025,Simulador!$L$10),E167) -> 0.1025 | F168: 0 | G168: 0 | H168: 0 | I168: 0 | J168: 0 | K168: =IF(F168<0.01,0,F168/1000*IF(Simulador!$X$8=1,0,Simulador!$V$14)+IF($D$8>0,$D$8,$D$7)/1000*IF(Simulador!$X$8=1,0,Simulador!$V$15)) -> 0 | L168: =IF(F167-H168=0,0,L166*(1+Simulador!$AH$28)) -> 0 | M168: =MAX(0,MIN(F167+G168+K168+L168-(I168+K168+L168),Simulador!$L$45)) -> 0 | O168: 0 | P168: 0 | S168: 0 | T168: 0 | U168: 0 | W168: 0 | X168: 0 | Y168: 0 | Z168: 0 | AA168: =IF(W167<0.01,0,+W167/1000*Simulador!$V$14+IF($D$8>0,$D$8,$D$7)/1000*Simulador!$V$15) -> 0 | AB168: =IF(W167<0.01,0,Simulador!$V$16) -> 0 | AC168: 0 | AD168: 0 | AE168: 0 | AF168: 0 | AG168: 0 | AI168: 0 | AJ168: 146
B169: 147 | C169: 12 | D169: 3 | E169: =IF(D169=1,MAX(E168-0.0025,Simulador!$L$10),E168) -> 0.1025 | F169: 0 | G169: 0 | H169: 0 | I169: 0 | J169: 0 | K169: =IF(F169<0.01,0,F169/1000*IF(Simulador!$X$8=1,0,Simulador!$V$14)+IF($D$8>0,$D$8,$D$7)/1000*IF(Simulador!$X$8=1,0,Simulador!$V$15)) -> 0 | L169: 0 | M169: =MAX(0,MIN(F168+G169+K169+L169-(I169+K169+L169),Simulador!$L$45)) -> 0 | O169: 0 | P169: 0 | S169: 0 | T169: 0 | U169: 0 | W169: 0 | X169: 0 | Y169: 0 | Z169: 0 | AA169: =IF(W168<0.01,0,+W168/1000*Simulador!$V$14+IF($D$8>0,$D$8,$D$7)/1000*Simulador!$V$15) -> 0 | AB169: =IF(W168<0.01,0,Simulador!$V$16) -> 0 | AC169: 0 | AD169: 0 | AE169: 0 | AF169: 0 | AG169: 0 | AI169: 0 | AJ169: 147
B170: 148 | C170: 12 | D170: 4 | E170: =IF(D170=1,MAX(E169-0.0025,Simulador!$L$10),E169) -> 0.1025 | F170: 0 | G170: 0 | H170: 0 | I170: 0 | J170: 0 | K170: =IF(F170<0.01,0,F170/1000*IF(Simulador!$X$8=1,0,Simulador!$V$14)+IF($D$8>0,$D$8,$D$7)/1000*IF(Simulador!$X$8=1,0,Simulador!$V$15)) -> 0 | L170: =IF(F169-H170=0,0,L168) -> 0 | M170: =MAX(0,MIN(F169+G170+K170+L170-(I170+K170+L170),Simulador!$L$45)) -> 0 | O170: 0 | P170: 0 | S170: 0 | T170: 0 | U170: 0 | W170: 0 | X170: 0 | Y170: 0 | Z170: 0 | AA170: =IF(W169<0.01,0,+W169/1000*Simulador!$V$14+IF($D$8>0,$D$8,$D$7)/1000*Simulador!$V$15) -> 0 | AB170: =IF(W169<0.01,0,Simulador!$V$16) -> 0 | AC170: 0 | AD170: 0 | AE170: 0 | AF170: 0 | AG170: 0 | AI170: 0 | AJ170: 148
B171: 149 | C171: 12 | D171: 5 | E171: =IF(D171=1,MAX(E170-0.0025,Simulador!$L$10),E170) -> 0.1025 | F171: 0 | G171: 0 | H171: 0 | I171: 0 | J171: 0 | K171: =IF(F171<0.01,0,F171/1000*IF(Simulador!$X$8=1,0,Simulador!$V$14)+IF($D$8>0,$D$8,$D$7)/1000*IF(Simulador!$X$8=1,0,Simulador!$V$15)) -> 0 | L171: 0 | M171: =MAX(0,MIN(F170+G171+K171+L171-(I171+K171+L171),Simulador!$L$45)) -> 0 | O171: 0 | P171: 0 | S171: 0 | T171: 0 | U171: 0 | W171: 0 | X171: 0 | Y171: 0 | Z171: 0 | AA171: =IF(W170<0.01,0,+W170/1000*Simulador!$V$14+IF($D$8>0,$D$8,$D$7)/1000*Simulador!$V$15) -> 0 | AB171: =IF(W170<0.01,0,Simulador!$V$16) -> 0 | AC171: 0 | AD171: 0 | AE171: 0 | AF171: 0 | AG171: 0 | AI171: 0 | AJ171: 149
B172: 150 | C172: 12 | D172: 6 | E172: =IF(D172=1,MAX(E171-0.0025,Simulador!$L$10),E171) -> 0.1025 | F172: 0 | G172: 0 | H172: 0 | I172: 0 | J172: 0 | K172: =IF(F172<0.01,0,F172/1000*IF(Simulador!$X$8=1,0,Simulador!$V$14)+IF($D$8>0,$D$8,$D$7)/1000*IF(Simulador!$X$8=1,0,Simulador!$V$15)) -> 0 | L172: =IF(F171-H172=0,0,L170) -> 0 | M172: =MAX(0,MIN(F171+G172+K172+L172-(I172+K172+L172),Simulador!$L$45)) -> 0 | O172: 0 | P172: 0 | S172: 0 | T172: 0 | U172: 0 | W172: 0 | X172: 0 | Y172: 0 | Z172: 0 | AA172: =IF(W171<0.01,0,+W171/1000*Simulador!$V$14+IF($D$8>0,$D$8,$D$7)/1000*Simulador!$V$15) -> 0 | AB172: =IF(W171<0.01,0,Simulador!$V$16) -> 0 | AC172: 0 | AD172: 0 | AE172: 0 | AF172: 0 | AG172: 0 | AI172: 0 | AJ172: 150
B173: 151 | C173: 12 | D173: 7 | E173: =IF(D173=1,MAX(E172-0.0025,Simulador!$L$10),E172) -> 0.1025 | F173: 0 | G173: 0 | H173: 0 | I173: 0 | J173: 0 | K173: =IF(F173<0.01,0,F173/1000*IF(Simulador!$X$8=1,0,Simulador!$V$14)+IF($D$8>0,$D$8,$D$7)/1000*IF(Simulador!$X$8=1,0,Simulador!$V$15)) -> 0 | L173: 0 | M173: =MAX(0,MIN(F172+G173+K173+L173-(I173+K173+L173),Simulador!$L$45)) -> 0 | O173: 0 | P173: 0 | S173: 0 | T173: 0 | U173: 0 | W173: 0 | X173: 0 | Y173: 0 | Z173: 0 | AA173: =IF(W172<0.01,0,+W172/1000*Simulador!$V$14+IF($D$8>0,$D$8,$D$7)/1000*Simulador!$V$15) -> 0 | AB173: =IF(W172<0.01,0,Simulador!$V$16) -> 0 | AC173: 0 | AD173: 0 | AE173: 0 | AF173: 0 | AG173: 0 | AI173: 0 | AJ173: 151
B174: 152 | C174: 12 | D174: 8 | E174: =IF(D174=1,MAX(E173-0.0025,Simulador!$L$10),E173) -> 0.1025 | F174: 0 | G174: 0 | H174: 0 | I174: 0 | J174: 0 | K174: =IF(F174<0.01,0,F174/1000*IF(Simulador!$X$8=1,0,Simulador!$V$14)+IF($D$8>0,$D$8,$D$7)/1000*IF(Simulador!$X$8=1,0,Simulador!$V$15)) -> 0 | L174: =IF(F173-H174=0,0,L172) -> 0 | M174: =MAX(0,MIN(F173+G174+K174+L174-(I174+K174+L174),Simulador!$L$45)) -> 0 | O174: 0 | P174: 0 | S174: 0 | T174: 0 | U174: 0 | W174: 0 | X174: 0 | Y174: 0 | Z174: 0 | AA174: =IF(W173<0.01,0,+W173/1000*Simulador!$V$14+IF($D$8>0,$D$8,$D$7)/1000*Simulador!$V$15) -> 0 | AB174: =IF(W173<0.01,0,Simulador!$V$16) -> 0 | AC174: 0 | AD174: 0 | AE174: 0 | AF174: 0 | AG174: 0 | AI174: 0 | AJ174: 152
B175: 153 | C175: 12 | D175: 9 | E175: =IF(D175=1,MAX(E174-0.0025,Simulador!$L$10),E174) -> 0.1025 | F175: 0 | G175: 0 | H175: 0 | I175: 0 | J175: 0 | K175: =IF(F175<0.01,0,F175/1000*IF(Simulador!$X$8=1,0,Simulador!$V$14)+IF($D$8>0,$D$8,$D$7)/1000*IF(Simulador!$X$8=1,0,Simulador!$V$15)) -> 0 | L175: 0 | M175: =MAX(0,MIN(F174+G175+K175+L175-(I175+K175+L175),Simulador!$L$45)) -> 0 | O175: 0 | P175: 0 | S175: 0 | T175: 0 | U175: 0 | W175: 0 | X175: 0 | Y175: 0 | Z175: 0 | AA175: =IF(W174<0.01,0,+W174/1000*Simulador!$V$14+IF($D$8>0,$D$8,$D$7)/1000*Simulador!$V$15) -> 0 | AB175: =IF(W174<0.01,0,Simulador!$V$16) -> 0 | AC175: 0 | AD175: 0 | AE175: 0 | AF175: 0 | AG175: 0 | AI175: 0 | AJ175: 153
B176: 154 | C176: 12 | D176: 10 | E176: =IF(D176=1,MAX(E175-0.0025,Simulador!$L$10),E175) -> 0.1025 | F176: 0 | G176: 0 | H176: 0 | I176: 0 | J176: 0 | K176: =IF(F176<0.01,0,F176/1000*IF(Simulador!$X$8=1,0,Simulador!$V$14)+IF($D$8>0,$D$8,$D$7)/1000*IF(Simulador!$X$8=1,0,Simulador!$V$15)) -> 0 | L176: =IF(F175-H176=0,0,L174) -> 0 | M176: =MAX(0,MIN(F175+G176+K176+L176-(I176+K176+L176),Simulador!$L$45)) -> 0 | O176: 0 | P176: 0 | S176: 0 | T176: 0 | U176: 0 | W176: 0 | X176: 0 | Y176: 0 | Z176: 0 | AA176: =IF(W175<0.01,0,+W175/1000*Simulador!$V$14+IF($D$8>0,$D$8,$D$7)/1000*Simulador!$V$15) -> 0 | AB176: =IF(W175<0.01,0,Simulador!$V$16) -> 0 | AC176: 0 | AD176: 0 | AE176: 0 | AF176: 0 | AG176: 0 | AI176: 0 | AJ176: 154
B177: 155 | C177: 12 | D177: 11 | E177: =IF(D177=1,MAX(E176-0.0025,Simulador!$L$10),E176) -> 0.1025 | F177: 0 | G177: 0 | H177: 0 | I177: 0 | J177: 0 | K177: =IF(F177<0.01,0,F177/1000*IF(Simulador!$X$8=1,0,Simulador!$V$14)+IF($D$8>0,$D$8,$D$7)/1000*IF(Simulador!$X$8=1,0,Simulador!$V$15)) -> 0 | L177: 0 | M177: =MAX(0,MIN(F176+G177+K177+L177-(I177+K177+L177),Simulador!$L$45)) -> 0 | O177: 0 | P177: 0 | S177: 0 | T177: 0 | U177: 0 | W177: 0 | X177: 0 | Y177: 0 | Z177: 0 | AA177: =IF(W176<0.01,0,+W176/1000*Simulador!$V$14+IF($D$8>0,$D$8,$D$7)/1000*Simulador!$V$15) -> 0 | AB177: =IF(W176<0.01,0,Simulador!$V$16) -> 0 | AC177: 0 | AD177: 0 | AE177: 0 | AF177: 0 | AG177: 0 | AI177: 0 | AJ177: 155
B178: 156 | C178: 12 | D178: 12 | E178: =IF(D178=1,MAX(E177-0.0025,Simulador!$L$10),E177) -> 0.1025 | F178: 0 | G178: 0 | H178: 0 | I178: 0 | J178: 0 | K178: =IF(F178<0.01,0,F178/1000*IF(Simulador!$X$8=1,0,Simulador!$V$14)+IF($D$8>0,$D$8,$D$7)/1000*IF(Simulador!$X$8=1,0,Simulador!$V$15)) -> 0 | L178: =IF(F177-H178=0,0,L176) -> 0 | M178: =MAX(0,MIN(F177+G178+K178+L178-(I178+K178+L178),Simulador!$L$45)) -> 0 | O178: 0 | P178: 0 | S178: 0 | T178: 0 | U178: 0 | W178: 0 | X178: 0 | Y178: 0 | Z178: 0 | AA178: =IF(W177<0.01,0,+W177/1000*Simulador!$V$14+IF($D$8>0,$D$8,$D$7)/1000*Simulador!$V$15) -> 0 | AB178: =IF(W177<0.01,0,Simulador!$V$16) -> 0 | AC178: 0 | AD178: 0 | AE178: 0 | AF178: 0 | AG178: 0 | AI178: 0 | AJ178: 156
B179: 157 | C179: 13 | D179: 1 | E179: =IF(D179=1,MAX(E178-0.0025,Simulador!$L$10),E178) -> 0.1025 | F179: 0 | G179: 0 | H179: 0 | I179: 0 | J179: 0.026 | K179: =IF(F179<0.01,0,F179/1000*IF(Simulador!$X$8=1,0,Simulador!$V$14)+IF($D$8>0,$D$8,$D$7)/1000*IF(Simulador!$X$8=1,0,Simulador!$V$15)) -> 0 | L179: 0 | M179: =MAX(0,MIN(F178+G179+K179+L179-(I179+K179+L179),Simulador!$L$45)) -> 0 | O179: 0 | P179: 0 | S179: 0 | T179: 0 | U179: 0 | W179: 0 | X179: 0 | Y179: 0 | Z179: 0 | AA179: =IF(W178<0.01,0,+W178/1000*Simulador!$V$14+IF($D$8>0,$D$8,$D$7)/1000*Simulador!$V$15) -> 0 | AB179: =IF(W178<0.01,0,Simulador!$V$16) -> 0 | AC179: 0 | AD179: 0 | AE179: 0 | AF179: 0 | AG179: 0 | AI179: 0 | AJ179: 157
B180: 158 | C180: 13 | D180: 2 | E180: =IF(D180=1,MAX(E179-0.0025,Simulador!$L$10),E179) -> 0.1025 | F180: 0 | G180: 0 | H180: 0 | I180: 0 | J180: 0 | K180: =IF(F180<0.01,0,F180/1000*IF(Simulador!$X$8=1,0,Simulador!$V$14)+IF($D$8>0,$D$8,$D$7)/1000*IF(Simulador!$X$8=1,0,Simulador!$V$15)) -> 0 | L180: =IF(F179-H180=0,0,L178*(1+Simulador!$AH$28)) -> 0 | M180: =MAX(0,MIN(F179+G180+K180+L180-(I180+K180+L180),Simulador!$L$45)) -> 0 | O180: 0 | P180: 0 | S180: 0 | T180: 0 | U180: 0 | W180: 0 | X180: 0 | Y180: 0 | Z180: 0 | AA180: =IF(W179<0.01,0,+W179/1000*Simulador!$V$14+IF($D$8>0,$D$8,$D$7)/1000*Simulador!$V$15) -> 0 | AB180: =IF(W179<0.01,0,Simulador!$V$16) -> 0 | AC180: 0 | AD180: 0 | AE180: 0 | AF180: 0 | AG180: 0 | AI180: 0 | AJ180: 158
B181: 159 | C181: 13 | D181: 3 | E181: =IF(D181=1,MAX(E180-0.0025,Simulador!$L$10),E180) -> 0.1025 | F181: 0 | G181: 0 | H181: 0 | I181: 0 | J181: 0 | K181: =IF(F181<0.01,0,F181/1000*IF(Simulador!$X$8=1,0,Simulador!$V$14)+IF($D$8>0,$D$8,$D$7)/1000*IF(Simulador!$X$8=1,0,Simulador!$V$15)) -> 0 | L181: 0 | M181: =MAX(0,MIN(F180+G181+K181+L181-(I181+K181+L181),Simulador!$L$45)) -> 0 | O181: 0 | P181: 0 | S181: 0 | T181: 0 | U181: 0 | W181: 0 | X181: 0 | Y181: 0 | Z181: 0 | AA181: =IF(W180<0.01,0,+W180/1000*Simulador!$V$14+IF($D$8>0,$D$8,$D$7)/1000*Simulador!$V$15) -> 0 | AB181: =IF(W180<0.01,0,Simulador!$V$16) -> 0 | AC181: 0 | AD181: 0 | AE181: 0 | AF181: 0 | AG181: 0 | AI181: 0 | AJ181: 159
B182: 160 | C182: 13 | D182: 4 | E182: =IF(D182=1,MAX(E181-0.0025,Simulador!$L$10),E181) -> 0.1025 | F182: 0 | G182: 0 | H182: 0 | I182: 0 | J182: 0 | K182: =IF(F182<0.01,0,F182/1000*IF(Simulador!$X$8=1,0,Simulador!$V$14)+IF($D$8>0,$D$8,$D$7)/1000*IF(Simulador!$X$8=1,0,Simulador!$V$15)) -> 0 | L182: =IF(F181-H182=0,0,L180) -> 0 | M182: =MAX(0,MIN(F181+G182+K182+L182-(I182+K182+L182),Simulador!$L$45)) -> 0 | O182: 0 | P182: 0 | S182: 0 | T182: 0 | U182: 0 | W182: 0 | X182: 0 | Y182: 0 | Z182: 0 | AA182: =IF(W181<0.01,0,+W181/1000*Simulador!$V$14+IF($D$8>0,$D$8,$D$7)/1000*Simulador!$V$15) -> 0 | AB182: =IF(W181<0.01,0,Simulador!$V$16) -> 0 | AC182: 0 | AD182: 0 | AE182: 0 | AF182: 0 | AG182: 0 | AI182: 0 | AJ182: 160
B183: 161 | C183: 13 | D183: 5 | E183: =IF(D183=1,MAX(E182-0.0025,Simulador!$L$10),E182) -> 0.1025 | F183: 0 | G183: 0 | H183: 0 | I183: 0 | J183: 0 | K183: =IF(F183<0.01,0,F183/1000*IF(Simulador!$X$8=1,0,Simulador!$V$14)+IF($D$8>0,$D$8,$D$7)/1000*IF(Simulador!$X$8=1,0,Simulador!$V$15)) -> 0 | L183: 0 | M183: =MAX(0,MIN(F182+G183+K183+L183-(I183+K183+L183),Simulador!$L$45)) -> 0 | O183: 0 | P183: 0 | S183: 0 | T183: 0 | U183: 0 | W183: 0 | X183: 0 | Y183: 0 | Z183: 0 | AA183: =IF(W182<0.01,0,+W182/1000*Simulador!$V$14+IF($D$8>0,$D$8,$D$7)/1000*Simulador!$V$15) -> 0 | AB183: =IF(W182<0.01,0,Simulador!$V$16) -> 0 | AC183: 0 | AD183: 0 | AE183: 0 | AF183: 0 | AG183: 0 | AI183: 0 | AJ183: 161
B184: 162 | C184: 13 | D184: 6 | E184: =IF(D184=1,MAX(E183-0.0025,Simulador!$L$10),E183) -> 0.1025 | F184: 0 | G184: 0 | H184: 0 | I184: 0 | J184: 0 | K184: =IF(F184<0.01,0,F184/1000*IF(Simulador!$X$8=1,0,Simulador!$V$14)+IF($D$8>0,$D$8,$D$7)/1000*IF(Simulador!$X$8=1,0,Simulador!$V$15)) -> 0 | L184: =IF(F183-H184=0,0,L182) -> 0 | M184: =MAX(0,MIN(F183+G184+K184+L184-(I184+K184+L184),Simulador!$L$45)) -> 0 | O184: 0 | P184: 0 | S184: 0 | T184: 0 | U184: 0 | W184: 0 | X184: 0 | Y184: 0 | Z184: 0 | AA184: =IF(W183<0.01,0,+W183/1000*Simulador!$V$14+IF($D$8>0,$D$8,$D$7)/1000*Simulador!$V$15) -> 0 | AB184: =IF(W183<0.01,0,Simulador!$V$16) -> 0 | AC184: 0 | AD184: 0 | AE184: 0 | AF184: 0 | AG184: 0 | AI184: 0 | AJ184: 162
B185: 163 | C185: 13 | D185: 7 | E185: =IF(D185=1,MAX(E184-0.0025,Simulador!$L$10),E184) -> 0.1025 | F185: 0 | G185: 0 | H185: 0 | I185: 0 | J185: 0 | K185: =IF(F185<0.01,0,F185/1000*IF(Simulador!$X$8=1,0,Simulador!$V$14)+IF($D$8>0,$D$8,$D$7)/1000*IF(Simulador!$X$8=1,0,Simulador!$V$15)) -> 0 | L185: 0 | M185: =MAX(0,MIN(F184+G185+K185+L185-(I185+K185+L185),Simulador!$L$45)) -> 0 | O185: 0 | P185: 0 | S185: 0 | T185: 0 | U185: 0 | W185: 0 | X185: 0 | Y185: 0 | Z185: 0 | AA185: =IF(W184<0.01,0,+W184/1000*Simulador!$V$14+IF($D$8>0,$D$8,$D$7)/1000*Simulador!$V$15) -> 0 | AB185: =IF(W184<0.01,0,Simulador!$V$16) -> 0 | AC185: 0 | AD185: 0 | AE185: 0 | AF185: 0 | AG185: 0 | AI185: 0 | AJ185: 163
B186: 164 | C186: 13 | D186: 8 | E186: =IF(D186=1,MAX(E185-0.0025,Simulador!$L$10),E185) -> 0.1025 | F186: 0 | G186: 0 | H186: 0 | I186: 0 | J186: 0 | K186: =IF(F186<0.01,0,F186/1000*IF(Simulador!$X$8=1,0,Simulador!$V$14)+IF($D$8>0,$D$8,$D$7)/1000*IF(Simulador!$X$8=1,0,Simulador!$V$15)) -> 0 | L186: =IF(F185-H186=0,0,L184) -> 0 | M186: =MAX(0,MIN(F185+G186+K186+L186-(I186+K186+L186),Simulador!$L$45)) -> 0 | O186: 0 | P186: 0 | S186: 0 | T186: 0 | U186: 0 | W186: 0 | X186: 0 | Y186: 0 | Z186: 0 | AA186: =IF(W185<0.01,0,+W185/1000*Simulador!$V$14+IF($D$8>0,$D$8,$D$7)/1000*Simulador!$V$15) -> 0 | AB186: =IF(W185<0.01,0,Simulador!$V$16) -> 0 | AC186: 0 | AD186: 0 | AE186: 0 | AF186: 0 | AG186: 0 | AI186: 0 | AJ186: 164
B187: 165 | C187: 13 | D187: 9 | E187: =IF(D187=1,MAX(E186-0.0025,Simulador!$L$10),E186) -> 0.1025 | F187: 0 | G187: 0 | H187: 0 | I187: 0 | J187: 0 | K187: =IF(F187<0.01,0,F187/1000*IF(Simulador!$X$8=1,0,Simulador!$V$14)+IF($D$8>0,$D$8,$D$7)/1000*IF(Simulador!$X$8=1,0,Simulador!$V$15)) -> 0 | L187: 0 | M187: =MAX(0,MIN(F186+G187+K187+L187-(I187+K187+L187),Simulador!$L$45)) -> 0 | O187: 0 | P187: 0 | S187: 0 | T187: 0 | U187: 0 | W187: 0 | X187: 0 | Y187: 0 | Z187: 0 | AA187: =IF(W186<0.01,0,+W186/1000*Simulador!$V$14+IF($D$8>0,$D$8,$D$7)/1000*Simulador!$V$15) -> 0 | AB187: =IF(W186<0.01,0,Simulador!$V$16) -> 0 | AC187: 0 | AD187: 0 | AE187: 0 | AF187: 0 | AG187: 0 | AI187: 0 | AJ187: 165
B188: 166 | C188: 13 | D188: 10 | E188: =IF(D188=1,MAX(E187-0.0025,Simulador!$L$10),E187) -> 0.1025 | F188: 0 | G188: 0 | H188: 0 | I188: 0 | J188: 0 | K188: =IF(F188<0.01,0,F188/1000*IF(Simulador!$X$8=1,0,Simulador!$V$14)+IF($D$8>0,$D$8,$D$7)/1000*IF(Simulador!$X$8=1,0,Simulador!$V$15)) -> 0 | L188: =IF(F187-H188=0,0,L186) -> 0 | M188: =MAX(0,MIN(F187+G188+K188+L188-(I188+K188+L188),Simulador!$L$45)) -> 0 | O188: 0 | P188: 0 | S188: 0 | T188: 0 | U188: 0 | W188: 0 | X188: 0 | Y188: 0 | Z188: 0 | AA188: =IF(W187<0.01,0,+W187/1000*Simulador!$V$14+IF($D$8>0,$D$8,$D$7)/1000*Simulador!$V$15) -> 0 | AB188: =IF(W187<0.01,0,Simulador!$V$16) -> 0 | AC188: 0 | AD188: 0 | AE188: 0 | AF188: 0 | AG188: 0 | AI188: 0 | AJ188: 166
B189: 167 | C189: 13 | D189: 11 | E189: =IF(D189=1,MAX(E188-0.0025,Simulador!$L$10),E188) -> 0.1025 | F189: 0 | G189: 0 | H189: 0 | I189: 0 | J189: 0 | K189: =IF(F189<0.01,0,F189/1000*IF(Simulador!$X$8=1,0,Simulador!$V$14)+IF($D$8>0,$D$8,$D$7)/1000*IF(Simulador!$X$8=1,0,Simulador!$V$15)) -> 0 | L189: 0 | M189: =MAX(0,MIN(F188+G189+K189+L189-(I189+K189+L189),Simulador!$L$45)) -> 0 | O189: 0 | P189: 0 | S189: 0 | T189: 0 | U189: 0 | W189: 0 | X189: 0 | Y189: 0 | Z189: 0 | AA189: =IF(W188<0.01,0,+W188/1000*Simulador!$V$14+IF($D$8>0,$D$8,$D$7)/1000*Simulador!$V$15) -> 0 | AB189: =IF(W188<0.01,0,Simulador!$V$16) -> 0 | AC189: 0 | AD189: 0 | AE189: 0 | AF189: 0 | AG189: 0 | AI189: 0 | AJ189: 167
B190: 168 | C190: 13 | D190: 12 | E190: =IF(D190=1,MAX(E189-0.0025,Simulador!$L$10),E189) -> 0.1025 | F190: 0 | G190: 0 | H190: 0 | I190: 0 | J190: 0 | K190: =IF(F190<0.01,0,F190/1000*IF(Simulador!$X$8=1,0,Simulador!$V$14)+IF($D$8>0,$D$8,$D$7)/1000*IF(Simulador!$X$8=1,0,Simulador!$V$15)) -> 0 | L190: =IF(F189-H190=0,0,L188) -> 0 | M190: =MAX(0,MIN(F189+G190+K190+L190-(I190+K190+L190),Simulador!$L$45)) -> 0 | O190: 0 | P190: 0 | S190: 0 | T190: 0 | U190: 0 | W190: 0 | X190: 0 | Y190: 0 | Z190: 0 | AA190: =IF(W189<0.01,0,+W189/1000*Simulador!$V$14+IF($D$8>0,$D$8,$D$7)/1000*Simulador!$V$15) -> 0 | AB190: =IF(W189<0.01,0,Simulador!$V$16) -> 0 | AC190: 0 | AD190: 0 | AE190: 0 | AF190: 0 | AG190: 0 | AI190: 0 | AJ190: 168
B191: 169 | C191: 14 | D191: 1 | E191: =IF(D191=1,MAX(E190-0.0025,Simulador!$L$10),E190) -> 0.1025 | F191: 0 | G191: 0 | H191: 0 | I191: 0 | J191: 0.026 | K191: =IF(F191<0.01,0,F191/1000*IF(Simulador!$X$8=1,0,Simulador!$V$14)+IF($D$8>0,$D$8,$D$7)/1000*IF(Simulador!$X$8=1,0,Simulador!$V$15)) -> 0 | L191: 0 | M191: =MAX(0,MIN(F190+G191+K191+L191-(I191+K191+L191),Simulador!$L$45)) -> 0 | O191: 0 | P191: 0 | S191: 0 | T191: 0 | U191: 0 | W191: 0 | X191: 0 | Y191: 0 | Z191: 0 | AA191: =IF(W190<0.01,0,+W190/1000*Simulador!$V$14+IF($D$8>0,$D$8,$D$7)/1000*Simulador!$V$15) -> 0 | AB191: =IF(W190<0.01,0,Simulador!$V$16) -> 0 | AC191: 0 | AD191: 0 | AE191: 0 | AF191: 0 | AG191: 0 | AI191: 0 | AJ191: 169
B192: 170 | C192: 14 | D192: 2 | E192: =IF(D192=1,MAX(E191-0.0025,Simulador!$L$10),E191) -> 0.1025 | F192: 0 | G192: 0 | H192: 0 | I192: 0 | J192: 0 | K192: =IF(F192<0.01,0,F192/1000*IF(Simulador!$X$8=1,0,Simulador!$V$14)+IF($D$8>0,$D$8,$D$7)/1000*IF(Simulador!$X$8=1,0,Simulador!$V$15)) -> 0 | L192: =IF(F191-H192=0,0,L190*(1+Simulador!$AH$28)) -> 0 | M192: =MAX(0,MIN(F191+G192+K192+L192-(I192+K192+L192),Simulador!$L$45)) -> 0 | O192: 0 | P192: 0 | S192: 0 | T192: 0 | U192: 0 | W192: 0 | X192: 0 | Y192: 0 | Z192: 0 | AA192: =IF(W191<0.01,0,+W191/1000*Simulador!$V$14+IF($D$8>0,$D$8,$D$7)/1000*Simulador!$V$15) -> 0 | AB192: =IF(W191<0.01,0,Simulador!$V$16) -> 0 | AC192: 0 | AD192: 0 | AE192: 0 | AF192: 0 | AG192: 0 | AI192: 0 | AJ192: 170
B193: 171 | C193: 14 | D193: 3 | E193: =IF(D193=1,MAX(E192-0.0025,Simulador!$L$10),E192) -> 0.1025 | F193: 0 | G193: 0 | H193: 0 | I193: 0 | J193: 0 | K193: =IF(F193<0.01,0,F193/1000*IF(Simulador!$X$8=1,0,Simulador!$V$14)+IF($D$8>0,$D$8,$D$7)/1000*IF(Simulador!$X$8=1,0,Simulador!$V$15)) -> 0 | L193: 0 | M193: =MAX(0,MIN(F192+G193+K193+L193-(I193+K193+L193),Simulador!$L$45)) -> 0 | O193: 0 | P193: 0 | S193: 0 | T193: 0 | U193: 0 | W193: 0 | X193: 0 | Y193: 0 | Z193: 0 | AA193: =IF(W192<0.01,0,+W192/1000*Simulador!$V$14+IF($D$8>0,$D$8,$D$7)/1000*Simulador!$V$15) -> 0 | AB193: =IF(W192<0.01,0,Simulador!$V$16) -> 0 | AC193: 0 | AD193: 0 | AE193: 0 | AF193: 0 | AG193: 0 | AI193: 0 | AJ193: 171
B194: 172 | C194: 14 | D194: 4 | E194: =IF(D194=1,MAX(E193-0.0025,Simulador!$L$10),E193) -> 0.1025 | F194: 0 | G194: 0 | H194: 0 | I194: 0 | J194: 0 | K194: =IF(F194<0.01,0,F194/1000*IF(Simulador!$X$8=1,0,Simulador!$V$14)+IF($D$8>0,$D$8,$D$7)/1000*IF(Simulador!$X$8=1,0,Simulador!$V$15)) -> 0 | L194: =IF(F193-H194=0,0,L192) -> 0 | M194: =MAX(0,MIN(F193+G194+K194+L194-(I194+K194+L194),Simulador!$L$45)) -> 0 | O194: 0 | P194: 0 | S194: 0 | T194: 0 | U194: 0 | W194: 0 | X194: 0 | Y194: 0 | Z194: 0 | AA194: =IF(W193<0.01,0,+W193/1000*Simulador!$V$14+IF($D$8>0,$D$8,$D$7)/1000*Simulador!$V$15) -> 0 | AB194: =IF(W193<0.01,0,Simulador!$V$16) -> 0 | AC194: 0 | AD194: 0 | AE194: 0 | AF194: 0 | AG194: 0 | AI194: 0 | AJ194: 172
B195: 173 | C195: 14 | D195: 5 | E195: =IF(D195=1,MAX(E194-0.0025,Simulador!$L$10),E194) -> 0.1025 | F195: 0 | G195: 0 | H195: 0 | I195: 0 | J195: 0 | K195: =IF(F195<0.01,0,F195/1000*IF(Simulador!$X$8=1,0,Simulador!$V$14)+IF($D$8>0,$D$8,$D$7)/1000*IF(Simulador!$X$8=1,0,Simulador!$V$15)) -> 0 | L195: 0 | M195: =MAX(0,MIN(F194+G195+K195+L195-(I195+K195+L195),Simulador!$L$45)) -> 0 | O195: 0 | P195: 0 | S195: 0 | T195: 0 | U195: 0 | W195: 0 | X195: 0 | Y195: 0 | Z195: 0 | AA195: =IF(W194<0.01,0,+W194/1000*Simulador!$V$14+IF($D$8>0,$D$8,$D$7)/1000*Simulador!$V$15) -> 0 | AB195: =IF(W194<0.01,0,Simulador!$V$16) -> 0 | AC195: 0 | AD195: 0 | AE195: 0 | AF195: 0 | AG195: 0 | AI195: 0 | AJ195: 173
B196: 174 | C196: 14 | D196: 6 | E196: =IF(D196=1,MAX(E195-0.0025,Simulador!$L$10),E195) -> 0.1025 | F196: 0 | G196: 0 | H196: 0 | I196: 0 | J196: 0 | K196: =IF(F196<0.01,0,F196/1000*IF(Simulador!$X$8=1,0,Simulador!$V$14)+IF($D$8>0,$D$8,$D$7)/1000*IF(Simulador!$X$8=1,0,Simulador!$V$15)) -> 0 | L196: =IF(F195-H196=0,0,L194) -> 0 | M196: =MAX(0,MIN(F195+G196+K196+L196-(I196+K196+L196),Simulador!$L$45)) -> 0 | O196: 0 | P196: 0 | S196: 0 | T196: 0 | U196: 0 | W196: 0 | X196: 0 | Y196: 0 | Z196: 0 | AA196: =IF(W195<0.01,0,+W195/1000*Simulador!$V$14+IF($D$8>0,$D$8,$D$7)/1000*Simulador!$V$15) -> 0 | AB196: =IF(W195<0.01,0,Simulador!$V$16) -> 0 | AC196: 0 | AD196: 0 | AE196: 0 | AF196: 0 | AG196: 0 | AI196: 0 | AJ196: 174
B197: 175 | C197: 14 | D197: 7 | E197: =IF(D197=1,MAX(E196-0.0025,Simulador!$L$10),E196) -> 0.1025 | F197: 0 | G197: 0 | H197: 0 | I197: 0 | J197: 0 | K197: =IF(F197<0.01,0,F197/1000*IF(Simulador!$X$8=1,0,Simulador!$V$14)+IF($D$8>0,$D$8,$D$7)/1000*IF(Simulador!$X$8=1,0,Simulador!$V$15)) -> 0 | L197: 0 | M197: =MAX(0,MIN(F196+G197+K197+L197-(I197+K197+L197),Simulador!$L$45)) -> 0 | O197: 0 | P197: 0 | S197: 0 | T197: 0 | U197: 0 | W197: 0 | X197: 0 | Y197: 0 | Z197: 0 | AA197: =IF(W196<0.01,0,+W196/1000*Simulador!$V$14+IF($D$8>0,$D$8,$D$7)/1000*Simulador!$V$15) -> 0 | AB197: =IF(W196<0.01,0,Simulador!$V$16) -> 0 | AC197: 0 | AD197: 0 | AE197: 0 | AF197: 0 | AG197: 0 | AI197: 0 | AJ197: 175
B198: 176 | C198: 14 | D198: 8 | E198: =IF(D198=1,MAX(E197-0.0025,Simulador!$L$10),E197) -> 0.1025 | F198: 0 | G198: 0 | H198: 0 | I198: 0 | J198: 0 | K198: =IF(F198<0.01,0,F198/1000*IF(Simulador!$X$8=1,0,Simulador!$V$14)+IF($D$8>0,$D$8,$D$7)/1000*IF(Simulador!$X$8=1,0,Simulador!$V$15)) -> 0 | L198: =IF(F197-H198=0,0,L196) -> 0 | M198: =MAX(0,MIN(F197+G198+K198+L198-(I198+K198+L198),Simulador!$L$45)) -> 0 | O198: 0 | P198: 0 | S198: 0 | T198: 0 | U198: 0 | W198: 0 | X198: 0 | Y198: 0 | Z198: 0 | AA198: =IF(W197<0.01,0,+W197/1000*Simulador!$V$14+IF($D$8>0,$D$8,$D$7)/1000*Simulador!$V$15) -> 0 | AB198: =IF(W197<0.01,0,Simulador!$V$16) -> 0 | AC198: 0 | AD198: 0 | AE198: 0 | AF198: 0 | AG198: 0 | AI198: 0 | AJ198: 176
B199: 177 | C199: 14 | D199: 9 | E199: =IF(D199=1,MAX(E198-0.0025,Simulador!$L$10),E198) -> 0.1025 | F199: 0 | G199: 0 | H199: 0 | I199: 0 | J199: 0 | K199: =IF(F199<0.01,0,F199/1000*IF(Simulador!$X$8=1,0,Simulador!$V$14)+IF($D$8>0,$D$8,$D$7)/1000*IF(Simulador!$X$8=1,0,Simulador!$V$15)) -> 0 | L199: 0 | M199: =MAX(0,MIN(F198+G199+K199+L199-(I199+K199+L199),Simulador!$L$45)) -> 0 | O199: 0 | P199: 0 | S199: 0 | T199: 0 | U199: 0 | W199: 0 | X199: 0 | Y199: 0 | Z199: 0 | AA199: =IF(W198<0.01,0,+W198/1000*Simulador!$V$14+IF($D$8>0,$D$8,$D$7)/1000*Simulador!$V$15) -> 0 | AB199: =IF(W198<0.01,0,Simulador!$V$16) -> 0 | AC199: 0 | AD199: 0 | AE199: 0 | AF199: 0 | AG199: 0 | AI199: 0 | AJ199: 177
B200: 178 | C200: 14 | D200: 10 | E200: =IF(D200=1,MAX(E199-0.0025,Simulador!$L$10),E199) -> 0.1025 | F200: 0 | G200: 0 | H200: 0 | I200: 0 | J200: 0 | K200: =IF(F200<0.01,0,F200/1000*IF(Simulador!$X$8=1,0,Simulador!$V$14)+IF($D$8>0,$D$8,$D$7)/1000*IF(Simulador!$X$8=1,0,Simulador!$V$15)) -> 0 | L200: =IF(F199-H200=0,0,L198) -> 0 | M200: =MAX(0,MIN(F199+G200+K200+L200-(I200+K200+L200),Simulador!$L$45)) -> 0 | O200: 0 | P200: 0 | S200: 0 | T200: 0 | U200: 0 | W200: 0 | X200: 0 | Y200: 0 | Z200: 0 | AA200: =IF(W199<0.01,0,+W199/1000*Simulador!$V$14+IF($D$8>0,$D$8,$D$7)/1000*Simulador!$V$15) -> 0 | AB200: =IF(W199<0.01,0,Simulador!$V$16) -> 0 | AC200: 0 | AD200: 0 | AE200: 0 | AF200: 0 | AG200: 0 | AI200: 0 | AJ200: 178
B201: 179 | C201: 14 | D201: 11 | E201: =IF(D201=1,MAX(E200-0.0025,Simulador!$L$10),E200) -> 0.1025 | F201: 0 | G201: 0 | H201: 0 | I201: 0 | J201: 0 | K201: =IF(F201<0.01,0,F201/1000*IF(Simulador!$X$8=1,0,Simulador!$V$14)+IF($D$8>0,$D$8,$D$7)/1000*IF(Simulador!$X$8=1,0,Simulador!$V$15)) -> 0 | L201: 0 | M201: =MAX(0,MIN(F200+G201+K201+L201-(I201+K201+L201),Simulador!$L$45)) -> 0 | O201: 0 | P201: 0 | S201: 0 | T201: 0 | U201: 0 | W201: 0 | X201: 0 | Y201: 0 | Z201: 0 | AA201: =IF(W200<0.01,0,+W200/1000*Simulador!$V$14+IF($D$8>0,$D$8,$D$7)/1000*Simulador!$V$15) -> 0 | AB201: =IF(W200<0.01,0,Simulador!$V$16) -> 0 | AC201: 0 | AD201: 0 | AE201: 0 | AF201: 0 | AG201: 0 | AI201: 0 | AJ201: 179
B202: 180 | C202: 14 | D202: 12 | E202: =IF(D202=1,MAX(E201-0.0025,Simulador!$L$10),E201) -> 0.1025 | F202: 0 | G202: 0 | H202: 0 | I202: 0 | J202: 0 | K202: =IF(F202<0.01,0,F202/1000*IF(Simulador!$X$8=1,0,Simulador!$V$14)+IF($D$8>0,$D$8,$D$7)/1000*IF(Simulador!$X$8=1,0,Simulador!$V$15)) -> 0 | L202: =IF(F201-H202=0,0,L200) -> 0 | M202: =MAX(0,MIN(F201+G202+K202+L202-(I202+K202+L202),Simulador!$L$45)) -> 0 | O202: 0 | P202: 0 | S202: 0 | T202: 0 | U202: 0 | W202: 0 | X202: 0 | Y202: 0 | Z202: 0 | AA202: =IF(W201<0.01,0,+W201/1000*Simulador!$V$14+IF($D$8>0,$D$8,$D$7)/1000*Simulador!$V$15) -> 0 | AB202: =IF(W201<0.01,0,Simulador!$V$16) -> 0 | AC202: 0 | AD202: 0 | AE202: 0 | AF202: 0 | AG202: 0 | AI202: 0 | AJ202: 180
B203: 181 | C203: 15 | D203: 1 | E203: =IF(D203=1,MAX(E202-0.0025,Simulador!$L$10),E202) -> 0.1025 | F203: 0 | G203: 0 | H203: 0 | I203: 0 | J203: 0.026 | K203: =IF(F203<0.01,0,F203/1000*IF(Simulador!$X$8=1,0,Simulador!$V$14)+IF($D$8>0,$D$8,$D$7)/1000*IF(Simulador!$X$8=1,0,Simulador!$V$15)) -> 0 | L203: 0 | M203: =MAX(0,MIN(F202+G203+K203+L203-(I203+K203+L203),Simulador!$L$45)) -> 0 | O203: 0 | P203: 0 | S203: 0 | T203: 0 | U203: 0 | W203: 0 | X203: 0 | Y203: 0 | Z203: 0 | AA203: =IF(W202<0.01,0,+W202/1000*Simulador!$V$14+IF($D$8>0,$D$8,$D$7)/1000*Simulador!$V$15) -> 0 | AB203: =IF(W202<0.01,0,Simulador!$V$16) -> 0 | AC203: 0 | AD203: 0 | AE203: 0 | AF203: 0 | AG203: 0 | AI203: 0 | AJ203: 181
... 68 more rows

Sheet Valora 15
E1: Scotiabank Inverlat, S.A., Institución de Banca Múltiple, Grupo Financiero Scotiabank Inverlat
P2: Simulador Pago de Pasivos
N3: =+Simulador!P3 -> 2024-03-22
P5: Regresar
B6: Nombre | D6: =+Simulador!$C$7 -> 0 | G6: Los pagos puntuales y anticipados reducen el plazo de liquidación
B7: Valor de la vivienda | D7: =+Simulador!$F$11 -> 0 | G7: =CONCATENATE(Simulador!V20," años ",Simulador!V21," meses") -> 0 años 0 meses
B8: Valor destructible | D8: =+Simulador!$F$12 -> 0
B9: Esquema Valora a 15 años
B10: Crédito solicitado | D10: =+Simulador!$F$25 -> 0
B11: Tasa de interés inicial | D11: =VLOOKUP(Simulador!AE7,Simulador!AD8:AG14,2,FALSE) -> 0.1025
B12: Pago por mil inicial | D12: =+Simulador!K13 -> 9.93
B13: Crecimiento anual | D13: =+Simulador!K14 -> 0.026
B14: Costo anual total | D14: =IFERROR((1+IRR(AE22:AE262,0.01))^12-1,0) -> 0
B16: Gastos | W16: 1
B17: Comisión de apertura | D17: =IFERROR(Simulador!K18*1,0) -> 0 | E17: =IF(Simulador!$V$13=1,"Financiada","") ->  | W17: Disminución de plazo
B18: Avalúo | D18: =IFERROR(Simulador!K19*1,0) -> 0 | W18: Disminución de pago
W20: Amortización sin prepagos para gráfica y CAT como producto sin prepagos
B21: Periodo | C21: Año | D21: Mes | E21: Tasa de interés | F21: Saldo al inicio del periodo | G21: Interés | H21: Capital | I21: Erogación | J21: Crecimiento anual | K21: Seguros | L21: Aportación Bimestral (Apoyo Inf) | M21: Prepago recurrente | N21: Prepago no recurrente | O21: Saldo al final de periodo | P21: Pago Total | S21: Abono comisión atur. Dif. | T21: Mes de Liquidación | U21: Flujos para CAT | W21: Saldo al final de periodo | X21: Interés | Y21: Capital | Z21: Erogación | AA21: Seguros | AB21: Comisión por aut. diferida | AC21: Abono comisión atur. Dif. | AD21: Pago Total | AE21: Flujos para CAT | AF21: Factores | AG21: Plazo | AH21: Fecha | AI21: Dias | AK21: Año actual | AL21: Mes actual | AM21: Día actual | AN21: Dia/corte | AO21: sumar
B22: 0 | O22: =+D10 -> 0 | T22: =SUM(T23:T262) -> 0 | U22: =-O22+D17+D18 -> 0 | W22: =+O22 -> 0 | AE22: =+U22 -> 0 | AK22: =IFERROR(YEAR(Simulador!P3),YEAR(Simulador!P3)) -> 2024 | AL22: =IFERROR(MONTH(Simulador!P3),MONTH(Simulador!P3)) -> 3 | AM22: =IFERROR(DAY(Simulador!P3),DAY(Simulador!P3)) -> 22 | AN22: =IF(AND(DAY(Simulador!P3)>=3,DAY(Simulador!P3)<=16),3,17) -> 17 | AO22: =IF(AM22>AN22,1,0) -> 1
B23: 1 | C23: 0 | D23: =IF(D22=12,1,D22+1) -> 1 | E23: =+D11 -> 0.1025 | F23: =+O22 -> 0 | G23: =IF(F23<0.01,0,F23*E23/360*AI23) -> 0 | H23: =+I23-G23 -> 0 | I23: =+D12*O22/1000 -> 0 | J23: 0 | K23: =IF(O22<0.01,0,O22/1000*IF(Simulador!$X$8=1,0,Simulador!$V$14)+IF($D$8>0,$D$8,$D$7)/1000*IF(Simulador!$X$8=1,0,Simulador!$V$15)) -> 0 | L23: 0 | M23: =MAX(0,MIN(O22+G23+K23+L23-(I23+K23+L23),Simulador!$K$45)) -> 0 | O23: =MAX(0,O22-H23-L23-M23-N23) -> 0 | P23: =MAX(0,MIN(O22+G23+K23,I23+K23+M23+N23)) -> 0 | S23: 0 | T23: =IF(AND(O22>0.01,O23<=0.01),B23,0) -> 0 | U23: =+P23 -> 0 | W23: =+W22-Y23 -> 0 | X23: =W22*E23/360*AI23 -> 0 | Y23: =+Z23-X23 -> 0 | Z23: =+I23 -> 0 | AA23: =IF(W22<0.01,0,+W22/1000*Simulador!$V$14+IF($D$8>0,$D$8,$D$7)/1000*Simulador!$V$15) -> 0 | AB23: 0 | AC23: 0 | AD23: =IF(W22<0.01,0,+Z23+AA23+AB23-AC23) -> 0 | AE23: =+AD23 -> 0 | AF23: =IFERROR(Z23/W22,0) -> 0 | AG23: 180 | AH23: =IF(W22=0,"",DATE(AK22,AL22+AO22,AM22)) ->  | AI23: =IFERROR(DAY(DATE(YEAR(AH23),MONTH(AH23)+1,0)),0) -> 0 | AJ23: 1
B24: 2 | C24: =IF(D23=12,C23+1,C23) -> 0 | D24: =IF(D23=12,1,D23+1) -> 2 | E24: =+E23 -> 0.1025 | F24: =+O23 -> 0 | G24: =IF(F24<0.01,0,F24*E24/360*AI24) -> 0 | H24: =+I24-G24 -> 0 | I24: =IF($W$16=2,MAX(0,(MIN(+I23*(1+J24),F24*AF24))),MAX(0,(MIN(+I23*(1+J24),F24+G24)))) -> 0 | J24: =IF(D24=1,$D$13,0) -> 0 | K24: =IF(F24<0.01,0,F24/1000*IF(Simulador!$X$8=1,0,Simulador!$V$14)+IF($D$8>0,$D$8,$D$7)/1000*IF(Simulador!$X$8=1,0,Simulador!$V$15)) -> 0 | L24: =IF(Simulador!$F$31*Simulador!$AG$25*2>Simulador!$AH$27,Simulador!$AH$27,IF(O23=0,0,Simulador!$F$31*Simulador!$AG$25*2)) -> 0 | M24: =MAX(0,MIN(O23+G24+K24+L24-(I24+K24+L24),Simulador!$K$45)) -> 0 | O24: =MAX(0,O23-H24-L24-M24-N24) -> 0 | P24: =MAX(0,MIN(O23+G24+K24,I24+K24+M24+N24)) -> 0 | S24: 0 | T24: =IF(AND(O23>0.01,F24<=0.01),B24,0) -> 0 | U24: =+P24 -> 0 | W24: =+W23-Y24 -> 0 | X24: =W23*E24/360*AI24 -> 0 | Y24: =+Z24-X24 -> 0 | Z24: =MAX(0,(MIN(+Z23*(1+J24),W23+X24))) -> 0 | AA24: =IF(W23<0.01,0,+W23/1000*Simulador!$V$14+IF($D$8>0,$D$8,$D$7)/1000*Simulador!$V$15) -> 0 | AB24: 0 | AC24: 0 | AD24: =IF(W23<0.01,0,+Z24+AA24+AB24-AC24) -> 0 | AE24: =+AD24 -> 0 | AF24: =IFERROR(Z24/W23,0) -> 0 | AG24: =IFERROR(IF(Y23<=0.01,0,AG23-1),0) -> 0 | AH24: =IF(Y23=0,"",DATE(YEAR(AH23),MONTH(AH23)+1,1)) ->  | AI24: =IFERROR(DAY(DATE(YEAR(AH24),MONTH(AH24)+1,0)),0) -> 0 | AJ24: 2 | AK24: Días/Mes | AL24: 30.4375 | AM24: =SUM(AI83:AI262) -> 0 | AN24: =IF(AG83=0,0,AM24/AG83) -> 0
B25: 3 | C25: =IF(D24=12,C24+1,C24) -> 0 | D25: 3 | E25: =+E24 -> 0.1025 | F25: 0 | G25: =IF(F25<0.01,0,F25*E25/360*AI25) -> 0 | H25: =+I25-G25 -> 0 | I25: =IF($W$16=2,MAX(0,(MIN(+I24*(1+J25),F25*AF25))),MAX(0,(MIN(+I24*(1+J25),F25+G25)))) -> 0 | J25: 0 | K25: =IF(F25<0.01,0,F25/1000*IF(Simulador!$X$8=1,0,Simulador!$V$14)+IF($D$8>0,$D$8,$D$7)/1000*IF(Simulador!$X$8=1,0,Simulador!$V$15)) -> 0 | L25: 0 | M25: =MAX(0,MIN(F24+G25+K25+L25-(I25+K25+L25),Simulador!$K$45)) -> 0 | O25: 0 | P25: =MAX(0,MIN(F24+G25+K25,I25+K25+M25+N25)) -> 0 | S25: 0 | T25: =IF(AND(F24>0.01,F25<=0.01),B25,0) -> 0 | U25: 0 | W25: 0 | X25: 0 | Y25: 0 | Z25: =MAX(0,(MIN(+Z24*(1+J25),W24+X25))) -> 0 | AA25: =IF(W24<0.01,0,+W24/1000*Simulador!$V$14+IF($D$8>0,$D$8,$D$7)/1000*Simulador!$V$15) -> 0 | AB25: 0 | AC25: 0 | AD25: 0 | AE25: 0 | AF25: 0 | AG25: =IFERROR(IF(Y24<=0.01,0,AG24-1),0) -> 0 | AH25: =IF(Y24=0,"",DATE(YEAR(AH24),MONTH(AH24)+1,1)) ->  | AI25: 0 | AJ25: 3 | AL25: Interés mensual = Sdo inicial x tasa / 360 x # días del mes
B26: 4 | C26: 0 | D26: 4 | E26: 0.1025 | F26: 0 | G26: 0 | H26: =+I26-G26 -> 0 | I26: 0 | J26: 0 | K26: =IF(F26<0.01,0,F26/1000*IF(Simulador!$X$8=1,0,Simulador!$V$14)+IF($D$8>0,$D$8,$D$7)/1000*IF(Simulador!$X$8=1,0,Simulador!$V$15)) -> 0 | L26: =IF(F25-H26=0,0,L24) -> 0 | M26: =MAX(0,MIN(F25+G26+K26+L26-(I26+K26+L26),Simulador!$K$45)) -> 0 | O26: 0 | P26: 0 | S26: 0 | T26: 0 | U26: 0 | W26: 0 | X26: 0 | Y26: 0 | Z26: 0 | AA26: =IF(W25<0.01,0,+W25/1000*Simulador!$V$14+IF($D$8>0,$D$8,$D$7)/1000*Simulador!$V$15) -> 0 | AB26: 0 | AC26: 0 | AD26: 0 | AE26: 0 | AF26: 0 | AG26: =IFERROR(IF(Y25<=0.01,0,AG25-1),0) -> 0 | AH26: =IF(Y25=0,"",DATE(YEAR(AH25),MONTH(AH25)+1,1)) ->  | AI26: 0 | AJ26: 4
B27: 5 | C27: 0 | D27: 5 | E27: 0.1025 | F27: 0 | G27: 0 | H27: 0 | I27: 0 | J27: 0 | K27: =IF(F27<0.01,0,F27/1000*IF(Simulador!$X$8=1,0,Simulador!$V$14)+IF($D$8>0,$D$8,$D$7)/1000*IF(Simulador!$X$8=1,0,Simulador!$V$15)) -> 0 | L27: 0 | M27: =MAX(0,MIN(F26+G27+K27+L27-(I27+K27+L27),Simulador!$K$45)) -> 0 | O27: 0 | P27: 0 | S27: 0 | T27: 0 | U27: 0 | W27: 0 | X27: 0 | Y27: 0 | Z27: 0 | AA27: =IF(W26<0.01,0,+W26/1000*Simulador!$V$14+IF($D$8>0,$D$8,$D$7)/1000*Simulador!$V$15) -> 0 | AB27: 0 | AC27: 0 | AD27: 0 | AE27: 0 | AF27: 0 | AG27: =IFERROR(IF(Y26<=0.01,0,AG26-1),0) -> 0 | AH27: =IF(Y26=0,"",DATE(YEAR(AH26),MONTH(AH26)+1,1)) ->  | AI27: 0 | AJ27: 5
B28: 6 | C28: 0 | D28: 6 | E28: 0.1025 | F28: 0 | G28: 0 | H28: 0 | I28: 0 | J28: 0 | K28: =IF(F28<0.01,0,F28/1000*IF(Simulador!$X$8=1,0,Simulador!$V$14)+IF($D$8>0,$D$8,$D$7)/1000*IF(Simulador!$X$8=1,0,Simulador!$V$15)) -> 0 | L28: =IF(F27-H28=0,0,L26) -> 0 | M28: =MAX(0,MIN(F27+G28+K28+L28-(I28+K28+L28),Simulador!$K$45)) -> 0 | O28: 0 | P28: 0 | S28: 0 | T28: 0 | U28: 0 | W28: 0 | X28: 0 | Y28: 0 | Z28: 0 | AA28: =IF(W27<0.01,0,+W27/1000*Simulador!$V$14+IF($D$8>0,$D$8,$D$7)/1000*Simulador!$V$15) -> 0 | AB28: 0 | AC28: 0 | AD28: 0 | AE28: 0 | AF28: 0 | AG28: 0 | AI28: 0 | AJ28: 6
B29: 7 | C29: 0 | D29: 7 | E29: 0.1025 | F29: 0 | G29: 0 | H29: 0 | I29: 0 | J29: 0 | K29: =IF(F29<0.01,0,F29/1000*IF(Simulador!$X$8=1,0,Simulador!$V$14)+IF($D$8>0,$D$8,$D$7)/1000*IF(Simulador!$X$8=1,0,Simulador!$V$15)) -> 0 | L29: 0 | M29: =MAX(0,MIN(F28+G29+K29+L29-(I29+K29+L29),Simulador!$K$45)) -> 0 | O29: 0 | P29: 0 | S29: 0 | T29: 0 | U29: 0 | W29: 0 | X29: 0 | Y29: 0 | Z29: 0 | AA29: =IF(W28<0.01,0,+W28/1000*Simulador!$V$14+IF($D$8>0,$D$8,$D$7)/1000*Simulador!$V$15) -> 0 | AB29: 0 | AC29: 0 | AD29: 0 | AE29: 0 | AF29: 0 | AG29: 0 | AI29: 0 | AJ29: 7
B30: 8 | C30: 0 | D30: 8 | E30: 0.1025 | F30: 0 | G30: 0 | H30: 0 | I30: 0 | J30: 0 | K30: =IF(F30<0.01,0,F30/1000*IF(Simulador!$X$8=1,0,Simulador!$V$14)+IF($D$8>0,$D$8,$D$7)/1000*IF(Simulador!$X$8=1,0,Simulador!$V$15)) -> 0 | L30: =IF(F29-H30=0,0,L28) -> 0 | M30: =MAX(0,MIN(F29+G30+K30+L30-(I30+K30+L30),Simulador!$K$45)) -> 0 | O30: 0 | P30: 0 | S30: 0 | T30: 0 | U30: 0 | W30: 0 | X30: 0 | Y30: 0 | Z30: 0 | AA30: =IF(W29<0.01,0,+W29/1000*Simulador!$V$14+IF($D$8>0,$D$8,$D$7)/1000*Simulador!$V$15) -> 0 | AB30: 0 | AC30: 0 | AD30: 0 | AE30: 0 | AF30: 0 | AG30: 0 | AI30: 0 | AJ30: 8
B31: 9 | C31: 0 | D31: 9 | E31: 0.1025 | F31: 0 | G31: 0 | H31: 0 | I31: 0 | J31: 0 | K31: =IF(F31<0.01,0,F31/1000*IF(Simulador!$X$8=1,0,Simulador!$V$14)+IF($D$8>0,$D$8,$D$7)/1000*IF(Simulador!$X$8=1,0,Simulador!$V$15)) -> 0 | L31: 0 | M31: =MAX(0,MIN(F30+G31+K31+L31-(I31+K31+L31),Simulador!$K$45)) -> 0 | O31: 0 | P31: 0 | S31: 0 | T31: 0 | U31: 0 | W31: 0 | X31: 0 | Y31: 0 | Z31: 0 | AA31: =IF(W30<0.01,0,+W30/1000*Simulador!$V$14+IF($D$8>0,$D$8,$D$7)/1000*Simulador!$V$15) -> 0 | AB31: 0 | AC31: 0 | AD31: 0 | AE31: 0 | AF31: 0 | AG31: 0 | AI31: 0 | AJ31: 9
B32: 10 | C32: 0 | D32: 10 | E32: 0.1025 | F32: 0 | G32: 0 | H32: 0 | I32: 0 | J32: 0 | K32: =IF(F32<0.01,0,F32/1000*IF(Simulador!$X$8=1,0,Simulador!$V$14)+IF($D$8>0,$D$8,$D$7)/1000*IF(Simulador!$X$8=1,0,Simulador!$V$15)) -> 0 | L32: =IF(F31-H32=0,0,L30) -> 0 | M32: =MAX(0,MIN(F31+G32+K32+L32-(I32+K32+L32),Simulador!$K$45)) -> 0 | O32: 0 | P32: 0 | S32: 0 | T32: 0 | U32: 0 | W32: 0 | X32: 0 | Y32: 0 | Z32: 0 | AA32: =IF(W31<0.01,0,+W31/1000*Simulador!$V$14+IF($D$8>0,$D$8,$D$7)/1000*Simulador!$V$15) -> 0 | AB32: 0 | AC32: 0 | AD32: 0 | AE32: 0 | AF32: 0 | AG32: 0 | AI32: 0 | AJ32: 10
B33: 11 | C33: 0 | D33: 11 | E33: 0.1025 | F33: 0 | G33: 0 | H33: 0 | I33: 0 | J33: 0 | K33: =IF(F33<0.01,0,F33/1000*IF(Simulador!$X$8=1,0,Simulador!$V$14)+IF($D$8>0,$D$8,$D$7)/1000*IF(Simulador!$X$8=1,0,Simulador!$V$15)) -> 0 | L33: 0 | M33: =MAX(0,MIN(F32+G33+K33+L33-(I33+K33+L33),Simulador!$K$45)) -> 0 | O33: 0 | P33: 0 | S33: 0 | T33: 0 | U33: 0 | W33: 0 | X33: 0 | Y33: 0 | Z33: 0 | AA33: =IF(W32<0.01,0,+W32/1000*Simulador!$V$14+IF($D$8>0,$D$8,$D$7)/1000*Simulador!$V$15) -> 0 | AB33: 0 | AC33: 0 | AD33: 0 | AE33: 0 | AF33: 0 | AG33: 0 | AI33: 0 | AJ33: 11
B34: 12 | C34: 0 | D34: 12 | E34: 0.1025 | F34: 0 | G34: 0 | H34: 0 | I34: 0 | J34: 0 | K34: =IF(F34<0.01,0,F34/1000*IF(Simulador!$X$8=1,0,Simulador!$V$14)+IF($D$8>0,$D$8,$D$7)/1000*IF(Simulador!$X$8=1,0,Simulador!$V$15)) -> 0 | L34: =IF(F33-H34=0,0,L32) -> 0 | M34: =MAX(0,MIN(F33+G34+K34+L34-(I34+K34+L34),Simulador!$K$45)) -> 0 | O34: 0 | P34: 0 | S34: 0 | T34: 0 | U34: 0 | W34: 0 | X34: 0 | Y34: 0 | Z34: 0 | AA34: =IF(W33<0.01,0,+W33/1000*Simulador!$V$14+IF($D$8>0,$D$8,$D$7)/1000*Simulador!$V$15) -> 0 | AB34: 0 | AC34: 0 | AD34: 0 | AE34: 0 | AF34: 0 | AG34: 0 | AI34: 0 | AJ34: 12
B35: 13 | C35: 1 | D35: 1 | E35: 0.1025 | F35: 0 | G35: 0 | H35: 0 | I35: 0 | J35: 0.026 | K35: =IF(F35<0.01,0,F35/1000*IF(Simulador!$X$8=1,0,Simulador!$V$14)+IF($D$8>0,$D$8,$D$7)/1000*IF(Simulador!$X$8=1,0,Simulador!$V$15)) -> 0 | L35: 0 | M35: =MAX(0,MIN(F34+G35+K35+L35-(I35+K35+L35),Simulador!$K$45)) -> 0 | O35: 0 | P35: 0 | S35: 0 | T35: 0 | U35: 0 | W35: 0 | X35: 0 | Y35: 0 | Z35: 0 | AA35: =IF(W34<0.01,0,+W34/1000*Simulador!$V$14+IF($D$8>0,$D$8,$D$7)/1000*Simulador!$V$15) -> 0 | AB35: =IF(W34<0.01,0,Simulador!$V$16) -> 0 | AC35: =IF(W34<0.01,0,IF(D35=1,SUM(AB23:AB34),0)) -> 0 | AD35: 0 | AE35: 0 | AF35: 0 | AG35: 0 | AI35: 0 | AJ35: 13
B36: 14 | C36: 1 | D36: 2 | E36: 0.1025 | F36: 0 | G36: 0 | H36: 0 | I36: 0 | J36: 0 | K36: =IF(F36<0.01,0,F36/1000*IF(Simulador!$X$8=1,0,Simulador!$V$14)+IF($D$8>0,$D$8,$D$7)/1000*IF(Simulador!$X$8=1,0,Simulador!$V$15)) -> 0 | L36: =IF(F35-H36=0,0,L34*(1+Simulador!$AH$28)) -> 0 | M36: =MAX(0,MIN(F35+G36+K36+L36-(I36+K36+L36),Simulador!$K$45)) -> 0 | O36: 0 | P36: 0 | S36: 0 | T36: 0 | U36: 0 | W36: 0 | X36: 0 | Y36: 0 | Z36: 0 | AA36: =IF(W35<0.01,0,+W35/1000*Simulador!$V$14+IF($D$8>0,$D$8,$D$7)/1000*Simulador!$V$15) -> 0 | AB36: =IF(W35<0.01,0,Simulador!$V$16) -> 0 | AC36: =IF(W35<0.01,0,IF(D36=1,SUM(AB24:AB35),0)) -> 0 | AD36: 0 | AE36: 0 | AF36: 0 | AG36: 0 | AI36: 0 | AJ36: 14
B37: 15 | C37: 1 | D37: 3 | E37: 0.1025 | F37: 0 | G37: 0 | H37: 0 | I37: 0 | J37: 0 | K37: =IF(F37<0.01,0,F37/1000*IF(Simulador!$X$8=1,0,Simulador!$V$14)+IF($D$8>0,$D$8,$D$7)/1000*IF(Simulador!$X$8=1,0,Simulador!$V$15)) -> 0 | L37: 0 | M37: =MAX(0,MIN(F36+G37+K37+L37-(I37+K37+L37),Simulador!$K$45)) -> 0 | O37: 0 | P37: 0 | S37: 0 | T37: 0 | U37: 0 | W37: 0 | X37: 0 | Y37: 0 | Z37: 0 | AA37: =IF(W36<0.01,0,+W36/1000*Simulador!$V$14+IF($D$8>0,$D$8,$D$7)/1000*Simulador!$V$15) -> 0 | AB37: =IF(W36<0.01,0,Simulador!$V$16) -> 0 | AC37: 0 | AD37: 0 | AE37: 0 | AF37: 0 | AG37: 0 | AI37: 0 | AJ37: 15
B38: 16 | C38: 1 | D38: 4 | E38: 0.1025 | F38: 0 | G38: 0 | H38: 0 | I38: 0 | J38: 0 | K38: =IF(F38<0.01,0,F38/1000*IF(Simulador!$X$8=1,0,Simulador!$V$14)+IF($D$8>0,$D$8,$D$7)/1000*IF(Simulador!$X$8=1,0,Simulador!$V$15)) -> 0 | L38: =IF(F37-H38=0,0,L36) -> 0 | M38: =MAX(0,MIN(F37+G38+K38+L38-(I38+K38+L38),Simulador!$K$45)) -> 0 | O38: 0 | P38: 0 | S38: 0 | T38: 0 | U38: 0 | W38: 0 | X38: 0 | Y38: 0 | Z38: 0 | AA38: =IF(W37<0.01,0,+W37/1000*Simulador!$V$14+IF($D$8>0,$D$8,$D$7)/1000*Simulador!$V$15) -> 0 | AB38: =IF(W37<0.01,0,Simulador!$V$16) -> 0 | AC38: 0 | AD38: 0 | AE38: 0 | AF38: 0 | AG38: 0 | AI38: 0 | AJ38: 16
B39: 17 | C39: 1 | D39: 5 | E39: 0.1025 | F39: 0 | G39: 0 | H39: 0 | I39: 0 | J39: 0 | K39: =IF(F39<0.01,0,F39/1000*IF(Simulador!$X$8=1,0,Simulador!$V$14)+IF($D$8>0,$D$8,$D$7)/1000*IF(Simulador!$X$8=1,0,Simulador!$V$15)) -> 0 | L39: 0 | M39: =MAX(0,MIN(F38+G39+K39+L39-(I39+K39+L39),Simulador!$K$45)) -> 0 | O39: 0 | P39: 0 | S39: 0 | T39: 0 | U39: 0 | W39: 0 | X39: 0 | Y39: 0 | Z39: 0 | AA39: =IF(W38<0.01,0,+W38/1000*Simulador!$V$14+IF($D$8>0,$D$8,$D$7)/1000*Simulador!$V$15) -> 0 | AB39: =IF(W38<0.01,0,Simulador!$V$16) -> 0 | AC39: 0 | AD39: 0 | AE39: 0 | AF39: 0 | AG39: 0 | AI39: 0 | AJ39: 17
B40: 18 | C40: 1 | D40: 6 | E40: 0.1025 | F40: 0 | G40: 0 | H40: 0 | I40: 0 | J40: 0 | K40: =IF(F40<0.01,0,F40/1000*IF(Simulador!$X$8=1,0,Simulador!$V$14)+IF($D$8>0,$D$8,$D$7)/1000*IF(Simulador!$X$8=1,0,Simulador!$V$15)) -> 0 | L40: =IF(F39-H40=0,0,L38) -> 0 | M40: =MAX(0,MIN(F39+G40+K40+L40-(I40+K40+L40),Simulador!$K$45)) -> 0 | O40: 0 | P40: 0 | S40: 0 | T40: 0 | U40: 0 | W40: 0 | X40: 0 | Y40: 0 | Z40: 0 | AA40: =IF(W39<0.01,0,+W39/1000*Simulador!$V$14+IF($D$8>0,$D$8,$D$7)/1000*Simulador!$V$15) -> 0 | AB40: =IF(W39<0.01,0,Simulador!$V$16) -> 0 | AC40: 0 | AD40: 0 | AE40: 0 | AF40: 0 | AG40: 0 | AI40: 0 | AJ40: 18
B41: 19 | C41: 1 | D41: 7 | E41: 0.1025 | F41: 0 | G41: 0 | H41: 0 | I41: 0 | J41: 0 | K41: =IF(F41<0.01,0,F41/1000*IF(Simulador!$X$8=1,0,Simulador!$V$14)+IF($D$8>0,$D$8,$D$7)/1000*IF(Simulador!$X$8=1,0,Simulador!$V$15)) -> 0 | L41: 0 | M41: =MAX(0,MIN(F40+G41+K41+L41-(I41+K41+L41),Simulador!$K$45)) -> 0 | O41: 0 | P41: 0 | S41: 0 | T41: 0 | U41: 0 | W41: 0 | X41: 0 | Y41: 0 | Z41: 0 | AA41: =IF(W40<0.01,0,+W40/1000*Simulador!$V$14+IF($D$8>0,$D$8,$D$7)/1000*Simulador!$V$15) -> 0 | AB41: =IF(W40<0.01,0,Simulador!$V$16) -> 0 | AC41: 0 | AD41: 0 | AE41: 0 | AF41: 0 | AG41: 0 | AI41: 0 | AJ41: 19
B42: 20 | C42: 1 | D42: 8 | E42: 0.1025 | F42: 0 | G42: 0 | H42: 0 | I42: 0 | J42: 0 | K42: =IF(F42<0.01,0,F42/1000*IF(Simulador!$X$8=1,0,Simulador!$V$14)+IF($D$8>0,$D$8,$D$7)/1000*IF(Simulador!$X$8=1,0,Simulador!$V$15)) -> 0 | L42: =IF(F41-H42=0,0,L40) -> 0 | M42: =MAX(0,MIN(F41+G42+K42+L42-(I42+K42+L42),Simulador!$K$45)) -> 0 | O42: 0 | P42: 0 | S42: 0 | T42: 0 | U42: 0 | W42: 0 | X42: 0 | Y42: 0 | Z42: 0 | AA42: =IF(W41<0.01,0,+W41/1000*Simulador!$V$14+IF($D$8>0,$D$8,$D$7)/1000*Simulador!$V$15) -> 0 | AB42: =IF(W41<0.01,0,Simulador!$V$16) -> 0 | AC42: 0 | AD42: 0 | AE42: 0 | AF42: 0 | AG42: 0 | AI42: 0 | AJ42: 20
B43: 21 | C43: 1 | D43: 9 | E43: 0.1025 | F43: 0 | G43: 0 | H43: 0 | I43: 0 | J43: 0 | K43: =IF(F43<0.01,0,F43/1000*IF(Simulador!$X$8=1,0,Simulador!$V$14)+IF($D$8>0,$D$8,$D$7)/1000*IF(Simulador!$X$8=1,0,Simulador!$V$15)) -> 0 | L43: 0 | M43: =MAX(0,MIN(F42+G43+K43+L43-(I43+K43+L43),Simulador!$K$45)) -> 0 | O43: 0 | P43: 0 | S43: 0 | T43: 0 | U43: 0 | W43: 0 | X43: 0 | Y43: 0 | Z43: 0 | AA43: =IF(W42<0.01,0,+W42/1000*Simulador!$V$14+IF($D$8>0,$D$8,$D$7)/1000*Simulador!$V$15) -> 0 | AB43: =IF(W42<0.01,0,Simulador!$V$16) -> 0 | AC43: 0 | AD43: 0 | AE43: 0 | AF43: 0 | AG43: 0 | AI43: 0 | AJ43: 21
B44: 22 | C44: 1 | D44: 10 | E44: 0.1025 | F44: 0 | G44: 0 | H44: 0 | I44: 0 | J44: 0 | K44: =IF(F44<0.01,0,F44/1000*IF(Simulador!$X$8=1,0,Simulador!$V$14)+IF($D$8>0,$D$8,$D$7)/1000*IF(Simulador!$X$8=1,0,Simulador!$V$15)) -> 0 | L44: =IF(F43-H44=0,0,L42) -> 0 | M44: =MAX(0,MIN(F43+G44+K44+L44-(I44+K44+L44),Simulador!$K$45)) -> 0 | O44: 0 | P44: 0 | S44: 0 | T44: 0 | U44: 0 | W44: 0 | X44: 0 | Y44: 0 | Z44: 0 | AA44: =IF(W43<0.01,0,+W43/1000*Simulador!$V$14+IF($D$8>0,$D$8,$D$7)/1000*Simulador!$V$15) -> 0 | AB44: =IF(W43<0.01,0,Simulador!$V$16) -> 0 | AC44: 0 | AD44: 0 | AE44: 0 | AF44: 0 | AG44: 0 | AI44: 0 | AJ44: 22
B45: 23 | C45: 1 | D45: 11 | E45: 0.1025 | F45: 0 | G45: 0 | H45: 0 | I45: 0 | J45: 0 | K45: =IF(F45<0.01,0,F45/1000*IF(Simulador!$X$8=1,0,Simulador!$V$14)+IF($D$8>0,$D$8,$D$7)/1000*IF(Simulador!$X$8=1,0,Simulador!$V$15)) -> 0 | L45: 0 | M45: =MAX(0,MIN(F44+G45+K45+L45-(I45+K45+L45),Simulador!$K$45)) -> 0 | O45: 0 | P45: 0 | S45: 0 | T45: 0 | U45: 0 | W45: 0 | X45: 0 | Y45: 0 | Z45: 0 | AA45: =IF(W44<0.01,0,+W44/1000*Simulador!$V$14+IF($D$8>0,$D$8,$D$7)/1000*Simulador!$V$15) -> 0 | AB45: =IF(W44<0.01,0,Simulador!$V$16) -> 0 | AC45: 0 | AD45: 0 | AE45: 0 | AF45: 0 | AG45: 0 | AI45: 0 | AJ45: 23
B46: 24 | C46: 1 | D46: 12 | E46: 0.1025 | F46: 0 | G46: 0 | H46: 0 | I46: 0 | J46: 0 | K46: =IF(F46<0.01,0,F46/1000*IF(Simulador!$X$8=1,0,Simulador!$V$14)+IF($D$8>0,$D$8,$D$7)/1000*IF(Simulador!$X$8=1,0,Simulador!$V$15)) -> 0 | L46: =IF(F45-H46=0,0,L44) -> 0 | M46: =MAX(0,MIN(F45+G46+K46+L46-(I46+K46+L46),Simulador!$K$45)) -> 0 | O46: 0 | P46: 0 | S46: 0 | T46: 0 | U46: 0 | W46: 0 | X46: 0 | Y46: 0 | Z46: 0 | AA46: =IF(W45<0.01,0,+W45/1000*Simulador!$V$14+IF($D$8>0,$D$8,$D$7)/1000*Simulador!$V$15) -> 0 | AB46: =IF(W45<0.01,0,Simulador!$V$16) -> 0 | AC46: 0 | AD46: 0 | AE46: 0 | AF46: 0 | AG46: 0 | AI46: 0 | AJ46: 24
B47: 25 | C47: 2 | D47: 1 | E47: 0.1025 | F47: 0 | G47: 0 | H47: 0 | I47: 0 | J47: 0.026 | K47: =IF(F47<0.01,0,F47/1000*IF(Simulador!$X$8=1,0,Simulador!$V$14)+IF($D$8>0,$D$8,$D$7)/1000*IF(Simulador!$X$8=1,0,Simulador!$V$15)) -> 0 | L47: 0 | M47: =MAX(0,MIN(F46+G47+K47+L47-(I47+K47+L47),Simulador!$K$45)) -> 0 | O47: 0 | P47: 0 | S47: 0 | T47: 0 | U47: 0 | W47: 0 | X47: 0 | Y47: 0 | Z47: 0 | AA47: =IF(W46<0.01,0,+W46/1000*Simulador!$V$14+IF($D$8>0,$D$8,$D$7)/1000*Simulador!$V$15) -> 0 | AB47: =IF(W46<0.01,0,Simulador!$V$16) -> 0 | AC47: 0 | AD47: 0 | AE47: 0 | AF47: 0 | AG47: 0 | AI47: 0 | AJ47: 25
B48: 26 | C48: 2 | D48: 2 | E48: 0.1025 | F48: 0 | G48: 0 | H48: 0 | I48: 0 | J48: 0 | K48: =IF(F48<0.01,0,F48/1000*IF(Simulador!$X$8=1,0,Simulador!$V$14)+IF($D$8>0,$D$8,$D$7)/1000*IF(Simulador!$X$8=1,0,Simulador!$V$15)) -> 0 | L48: =IF(F47-H48=0,0,L46*(1+Simulador!$AH$28)) -> 0 | M48: =MAX(0,MIN(F47+G48+K48+L48-(I48+K48+L48),Simulador!$K$45)) -> 0 | O48: 0 | P48: 0 | S48: 0 | T48: 0 | U48: 0 | W48: 0 | X48: 0 | Y48: 0 | Z48: 0 | AA48: =IF(W47<0.01,0,+W47/1000*Simulador!$V$14+IF($D$8>0,$D$8,$D$7)/1000*Simulador!$V$15) -> 0 | AB48: =IF(W47<0.01,0,Simulador!$V$16) -> 0 | AC48: 0 | AD48: 0 | AE48: 0 | AF48: 0 | AG48: 0 | AI48: 0 | AJ48: 26
B49: 27 | C49: 2 | D49: 3 | E49: 0.1025 | F49: 0 | G49: 0 | H49: 0 | I49: 0 | J49: 0 | K49: =IF(F49<0.01,0,F49/1000*IF(Simulador!$X$8=1,0,Simulador!$V$14)+IF($D$8>0,$D$8,$D$7)/1000*IF(Simulador!$X$8=1,0,Simulador!$V$15)) -> 0 | L49: 0 | M49: =MAX(0,MIN(F48+G49+K49+L49-(I49+K49+L49),Simulador!$K$45)) -> 0 | O49: 0 | P49: 0 | S49: 0 | T49: 0 | U49: 0 | W49: 0 | X49: 0 | Y49: 0 | Z49: 0 | AA49: =IF(W48<0.01,0,+W48/1000*Simulador!$V$14+IF($D$8>0,$D$8,$D$7)/1000*Simulador!$V$15) -> 0 | AB49: =IF(W48<0.01,0,Simulador!$V$16) -> 0 | AC49: 0 | AD49: 0 | AE49: 0 | AF49: 0 | AG49: 0 | AI49: 0 | AJ49: 27
B50: 28 | C50: 2 | D50: 4 | E50: 0.1025 | F50: 0 | G50: 0 | H50: 0 | I50: 0 | J50: 0 | K50: =IF(F50<0.01,0,F50/1000*IF(Simulador!$X$8=1,0,Simulador!$V$14)+IF($D$8>0,$D$8,$D$7)/1000*IF(Simulador!$X$8=1,0,Simulador!$V$15)) -> 0 | L50: =IF(F49-H50=0,0,L48) -> 0 | M50: =MAX(0,MIN(F49+G50+K50+L50-(I50+K50+L50),Simulador!$K$45)) -> 0 | O50: 0 | P50: 0 | S50: 0 | T50: 0 | U50: 0 | W50: 0 | X50: 0 | Y50: 0 | Z50: 0 | AA50: =IF(W49<0.01,0,+W49/1000*Simulador!$V$14+IF($D$8>0,$D$8,$D$7)/1000*Simulador!$V$15) -> 0 | AB50: =IF(W49<0.01,0,Simulador!$V$16) -> 0 | AC50: 0 | AD50: 0 | AE50: 0 | AF50: 0 | AG50: 0 | AI50: 0 | AJ50: 28
B51: 29 | C51: 2 | D51: 5 | E51: 0.1025 | F51: 0 | G51: 0 | H51: 0 | I51: 0 | J51: 0 | K51: =IF(F51<0.01,0,F51/1000*IF(Simulador!$X$8=1,0,Simulador!$V$14)+IF($D$8>0,$D$8,$D$7)/1000*IF(Simulador!$X$8=1,0,Simulador!$V$15)) -> 0 | L51: 0 | M51: =MAX(0,MIN(F50+G51+K51+L51-(I51+K51+L51),Simulador!$K$45)) -> 0 | O51: 0 | P51: 0 | S51: 0 | T51: 0 | U51: 0 | W51: 0 | X51: 0 | Y51: 0 | Z51: 0 | AA51: =IF(W50<0.01,0,+W50/1000*Simulador!$V$14+IF($D$8>0,$D$8,$D$7)/1000*Simulador!$V$15) -> 0 | AB51: =IF(W50<0.01,0,Simulador!$V$16) -> 0 | AC51: 0 | AD51: 0 | AE51: 0 | AF51: 0 | AG51: 0 | AI51: 0 | AJ51: 29
B52: 30 | C52: 2 | D52: 6 | E52: 0.1025 | F52: 0 | G52: 0 | H52: 0 | I52: 0 | J52: 0 | K52: =IF(F52<0.01,0,F52/1000*IF(Simulador!$X$8=1,0,Simulador!$V$14)+IF($D$8>0,$D$8,$D$7)/1000*IF(Simulador!$X$8=1,0,Simulador!$V$15)) -> 0 | L52: =IF(F51-H52=0,0,L50) -> 0 | M52: =MAX(0,MIN(F51+G52+K52+L52-(I52+K52+L52),Simulador!$K$45)) -> 0 | O52: 0 | P52: 0 | S52: 0 | T52: 0 | U52: 0 | W52: 0 | X52: 0 | Y52: 0 | Z52: 0 | AA52: =IF(W51<0.01,0,+W51/1000*Simulador!$V$14+IF($D$8>0,$D$8,$D$7)/1000*Simulador!$V$15) -> 0 | AB52: =IF(W51<0.01,0,Simulador!$V$16) -> 0 | AC52: 0 | AD52: 0 | AE52: 0 | AF52: 0 | AG52: 0 | AI52: 0 | AJ52: 30
B53: 31 | C53: 2 | D53: 7 | E53: 0.1025 | F53: 0 | G53: 0 | H53: 0 | I53: 0 | J53: 0 | K53: =IF(F53<0.01,0,F53/1000*IF(Simulador!$X$8=1,0,Simulador!$V$14)+IF($D$8>0,$D$8,$D$7)/1000*IF(Simulador!$X$8=1,0,Simulador!$V$15)) -> 0 | L53: 0 | M53: =MAX(0,MIN(F52+G53+K53+L53-(I53+K53+L53),Simulador!$K$45)) -> 0 | O53: 0 | P53: 0 | S53: 0 | T53: 0 | U53: 0 | W53: 0 | X53: 0 | Y53: 0 | Z53: 0 | AA53: =IF(W52<0.01,0,+W52/1000*Simulador!$V$14+IF($D$8>0,$D$8,$D$7)/1000*Simulador!$V$15) -> 0 | AB53: =IF(W52<0.01,0,Simulador!$V$16) -> 0 | AC53: 0 | AD53: 0 | AE53: 0 | AF53: 0 | AG53: 0 | AI53: 0 | AJ53: 31
B54: 32 | C54: 2 | D54: 8 | E54: 0.1025 | F54: 0 | G54: 0 | H54: 0 | I54: 0 | J54: 0 | K54: =IF(F54<0.01,0,F54/1000*IF(Simulador!$X$8=1,0,Simulador!$V$14)+IF($D$8>0,$D$8,$D$7)/1000*IF(Simulador!$X$8=1,0,Simulador!$V$15)) -> 0 | L54: =IF(F53-H54=0,0,L52) -> 0 | M54: =MAX(0,MIN(F53+G54+K54+L54-(I54+K54+L54),Simulador!$K$45)) -> 0 | O54: 0 | P54: 0 | S54: 0 | T54: 0 | U54: 0 | W54: 0 | X54: 0 | Y54: 0 | Z54: 0 | AA54: =IF(W53<0.01,0,+W53/1000*Simulador!$V$14+IF($D$8>0,$D$8,$D$7)/1000*Simulador!$V$15) -> 0 | AB54: =IF(W53<0.01,0,Simulador!$V$16) -> 0 | AC54: 0 | AD54: 0 | AE54: 0 | AF54: 0 | AG54: 0 | AI54: 0 | AJ54: 32
B55: 33 | C55: 2 | D55: 9 | E55: 0.1025 | F55: 0 | G55: 0 | H55: 0 | I55: 0 | J55: 0 | K55: =IF(F55<0.01,0,F55/1000*IF(Simulador!$X$8=1,0,Simulador!$V$14)+IF($D$8>0,$D$8,$D$7)/1000*IF(Simulador!$X$8=1,0,Simulador!$V$15)) -> 0 | L55: 0 | M55: =MAX(0,MIN(F54+G55+K55+L55-(I55+K55+L55),Simulador!$K$45)) -> 0 | O55: 0 | P55: 0 | S55: 0 | T55: 0 | U55: 0 | W55: 0 | X55: 0 | Y55: 0 | Z55: 0 | AA55: =IF(W54<0.01,0,+W54/1000*Simulador!$V$14+IF($D$8>0,$D$8,$D$7)/1000*Simulador!$V$15) -> 0 | AB55: =IF(W54<0.01,0,Simulador!$V$16) -> 0 | AC55: 0 | AD55: 0 | AE55: 0 | AF55: 0 | AG55: 0 | AI55: 0 | AJ55: 33
B56: 34 | C56: 2 | D56: 10 | E56: 0.1025 | F56: 0 | G56: 0 | H56: 0 | I56: 0 | J56: 0 | K56: =IF(F56<0.01,0,F56/1000*IF(Simulador!$X$8=1,0,Simulador!$V$14)+IF($D$8>0,$D$8,$D$7)/1000*IF(Simulador!$X$8=1,0,Simulador!$V$15)) -> 0 | L56: =IF(F55-H56=0,0,L54) -> 0 | M56: =MAX(0,MIN(F55+G56+K56+L56-(I56+K56+L56),Simulador!$K$45)) -> 0 | O56: 0 | P56: 0 | S56: 0 | T56: 0 | U56: 0 | W56: 0 | X56: 0 | Y56: 0 | Z56: 0 | AA56: =IF(W55<0.01,0,+W55/1000*Simulador!$V$14+IF($D$8>0,$D$8,$D$7)/1000*Simulador!$V$15) -> 0 | AB56: =IF(W55<0.01,0,Simulador!$V$16) -> 0 | AC56: 0 | AD56: 0 | AE56: 0 | AF56: 0 | AG56: 0 | AI56: 0 | AJ56: 34
B57: 35 | C57: 2 | D57: 11 | E57: 0.1025 | F57: 0 | G57: 0 | H57: 0 | I57: 0 | J57: 0 | K57: =IF(F57<0.01,0,F57/1000*IF(Simulador!$X$8=1,0,Simulador!$V$14)+IF($D$8>0,$D$8,$D$7)/1000*IF(Simulador!$X$8=1,0,Simulador!$V$15)) -> 0 | L57: 0 | M57: =MAX(0,MIN(F56+G57+K57+L57-(I57+K57+L57),Simulador!$K$45)) -> 0 | O57: 0 | P57: 0 | S57: 0 | T57: 0 | U57: 0 | W57: 0 | X57: 0 | Y57: 0 | Z57: 0 | AA57: =IF(W56<0.01,0,+W56/1000*Simulador!$V$14+IF($D$8>0,$D$8,$D$7)/1000*Simulador!$V$15) -> 0 | AB57: =IF(W56<0.01,0,Simulador!$V$16) -> 0 | AC57: 0 | AD57: 0 | AE57: 0 | AF57: 0 | AG57: 0 | AI57: 0 | AJ57: 35
B58: 36 | C58: 2 | D58: 12 | E58: 0.1025 | F58: 0 | G58: 0 | H58: 0 | I58: 0 | J58: 0 | K58: =IF(F58<0.01,0,F58/1000*IF(Simulador!$X$8=1,0,Simulador!$V$14)+IF($D$8>0,$D$8,$D$7)/1000*IF(Simulador!$X$8=1,0,Simulador!$V$15)) -> 0 | L58: =IF(F57-H58=0,0,L56) -> 0 | M58: =MAX(0,MIN(F57+G58+K58+L58-(I58+K58+L58),Simulador!$K$45)) -> 0 | O58: 0 | P58: 0 | S58: 0 | T58: 0 | U58: 0 | W58: 0 | X58: 0 | Y58: 0 | Z58: 0 | AA58: =IF(W57<0.01,0,+W57/1000*Simulador!$V$14+IF($D$8>0,$D$8,$D$7)/1000*Simulador!$V$15) -> 0 | AB58: =IF(W57<0.01,0,Simulador!$V$16) -> 0 | AC58: 0 | AD58: 0 | AE58: 0 | AF58: 0 | AG58: 0 | AI58: 0 | AJ58: 36
B59: 37 | C59: 3 | D59: 1 | E59: =IF(D59=1,MAX(E58-0.0025,Simulador!$K$10),E58) -> 0.1025 | F59: 0 | G59: 0 | H59: 0 | I59: 0 | J59: 0.026 | K59: =IF(F59<0.01,0,F59/1000*IF(Simulador!$X$8=1,0,Simulador!$V$14)+IF($D$8>0,$D$8,$D$7)/1000*IF(Simulador!$X$8=1,0,Simulador!$V$15)) -> 0 | L59: 0 | M59: =MAX(0,MIN(F58+G59+K59+L59-(I59+K59+L59),Simulador!$K$45)) -> 0 | O59: 0 | P59: 0 | S59: 0 | T59: 0 | U59: 0 | W59: 0 | X59: 0 | Y59: 0 | Z59: 0 | AA59: =IF(W58<0.01,0,+W58/1000*Simulador!$V$14+IF($D$8>0,$D$8,$D$7)/1000*Simulador!$V$15) -> 0 | AB59: =IF(W58<0.01,0,Simulador!$V$16) -> 0 | AC59: 0 | AD59: 0 | AE59: 0 | AF59: 0 | AG59: 0 | AI59: 0 | AJ59: 37
B60: 38 | C60: 3 | D60: 2 | E60: =IF(D60=1,MAX(E59-0.0025,Simulador!$K$10),E59) -> 0.1025 | F60: 0 | G60: 0 | H60: 0 | I60: 0 | J60: 0 | K60: =IF(F60<0.01,0,F60/1000*IF(Simulador!$X$8=1,0,Simulador!$V$14)+IF($D$8>0,$D$8,$D$7)/1000*IF(Simulador!$X$8=1,0,Simulador!$V$15)) -> 0 | L60: =IF(F59-H60=0,0,L58*(1+Simulador!$AH$28)) -> 0 | M60: =MAX(0,MIN(F59+G60+K60+L60-(I60+K60+L60),Simulador!$K$45)) -> 0 | O60: 0 | P60: 0 | S60: 0 | T60: 0 | U60: 0 | W60: 0 | X60: 0 | Y60: 0 | Z60: 0 | AA60: =IF(W59<0.01,0,+W59/1000*Simulador!$V$14+IF($D$8>0,$D$8,$D$7)/1000*Simulador!$V$15) -> 0 | AB60: =IF(W59<0.01,0,Simulador!$V$16) -> 0 | AC60: 0 | AD60: 0 | AE60: 0 | AF60: 0 | AG60: 0 | AI60: 0 | AJ60: 38
B61: 39 | C61: 3 | D61: 3 | E61: =IF(D61=1,MAX(E60-0.0025,Simulador!$K$10),E60) -> 0.1025 | F61: 0 | G61: 0 | H61: 0 | I61: 0 | J61: 0 | K61: =IF(F61<0.01,0,F61/1000*IF(Simulador!$X$8=1,0,Simulador!$V$14)+IF($D$8>0,$D$8,$D$7)/1000*IF(Simulador!$X$8=1,0,Simulador!$V$15)) -> 0 | L61: 0 | M61: =MAX(0,MIN(F60+G61+K61+L61-(I61+K61+L61),Simulador!$K$45)) -> 0 | O61: 0 | P61: 0 | S61: 0 | T61: 0 | U61: 0 | W61: 0 | X61: 0 | Y61: 0 | Z61: 0 | AA61: =IF(W60<0.01,0,+W60/1000*Simulador!$V$14+IF($D$8>0,$D$8,$D$7)/1000*Simulador!$V$15) -> 0 | AB61: =IF(W60<0.01,0,Simulador!$V$16) -> 0 | AC61: 0 | AD61: 0 | AE61: 0 | AF61: 0 | AG61: 0 | AI61: 0 | AJ61: 39
B62: 40 | C62: 3 | D62: 4 | E62: =IF(D62=1,MAX(E61-0.0025,Simulador!$K$10),E61) -> 0.1025 | F62: 0 | G62: 0 | H62: 0 | I62: 0 | J62: 0 | K62: =IF(F62<0.01,0,F62/1000*IF(Simulador!$X$8=1,0,Simulador!$V$14)+IF($D$8>0,$D$8,$D$7)/1000*IF(Simulador!$X$8=1,0,Simulador!$V$15)) -> 0 | L62: =IF(F61-H62=0,0,L60) -> 0 | M62: =MAX(0,MIN(F61+G62+K62+L62-(I62+K62+L62),Simulador!$K$45)) -> 0 | O62: 0 | P62: 0 | S62: 0 | T62: 0 | U62: 0 | W62: 0 | X62: 0 | Y62: 0 | Z62: 0 | AA62: =IF(W61<0.01,0,+W61/1000*Simulador!$V$14+IF($D$8>0,$D$8,$D$7)/1000*Simulador!$V$15) -> 0 | AB62: =IF(W61<0.01,0,Simulador!$V$16) -> 0 | AC62: 0 | AD62: 0 | AE62: 0 | AF62: 0 | AG62: 0 | AI62: 0 | AJ62: 40
B63: 41 | C63: 3 | D63: 5 | E63: =IF(D63=1,MAX(E62-0.0025,Simulador!$K$10),E62) -> 0.1025 | F63: 0 | G63: 0 | H63: 0 | I63: 0 | J63: 0 | K63: =IF(F63<0.01,0,F63/1000*IF(Simulador!$X$8=1,0,Simulador!$V$14)+IF($D$8>0,$D$8,$D$7)/1000*IF(Simulador!$X$8=1,0,Simulador!$V$15)) -> 0 | L63: 0 | M63: =MAX(0,MIN(F62+G63+K63+L63-(I63+K63+L63),Simulador!$K$45)) -> 0 | O63: 0 | P63: 0 | S63: 0 | T63: 0 | U63: 0 | W63: 0 | X63: 0 | Y63: 0 | Z63: 0 | AA63: =IF(W62<0.01,0,+W62/1000*Simulador!$V$14+IF($D$8>0,$D$8,$D$7)/1000*Simulador!$V$15) -> 0 | AB63: =IF(W62<0.01,0,Simulador!$V$16) -> 0 | AC63: 0 | AD63: 0 | AE63: 0 | AF63: 0 | AG63: 0 | AI63: 0 | AJ63: 41
B64: 42 | C64: 3 | D64: 6 | E64: =IF(D64=1,MAX(E63-0.0025,Simulador!$K$10),E63) -> 0.1025 | F64: 0 | G64: 0 | H64: 0 | I64: 0 | J64: 0 | K64: =IF(F64<0.01,0,F64/1000*IF(Simulador!$X$8=1,0,Simulador!$V$14)+IF($D$8>0,$D$8,$D$7)/1000*IF(Simulador!$X$8=1,0,Simulador!$V$15)) -> 0 | L64: =IF(F63-H64=0,0,L62) -> 0 | M64: =MAX(0,MIN(F63+G64+K64+L64-(I64+K64+L64),Simulador!$K$45)) -> 0 | O64: 0 | P64: 0 | S64: 0 | T64: 0 | U64: 0 | W64: 0 | X64: 0 | Y64: 0 | Z64: 0 | AA64: =IF(W63<0.01,0,+W63/1000*Simulador!$V$14+IF($D$8>0,$D$8,$D$7)/1000*Simulador!$V$15) -> 0 | AB64: =IF(W63<0.01,0,Simulador!$V$16) -> 0 | AC64: 0 | AD64: 0 | AE64: 0 | AF64: 0 | AG64: 0 | AI64: 0 | AJ64: 42
B65: 43 | C65: 3 | D65: 7 | E65: =IF(D65=1,MAX(E64-0.0025,Simulador!$K$10),E64) -> 0.1025 | F65: 0 | G65: 0 | H65: 0 | I65: 0 | J65: 0 | K65: =IF(F65<0.01,0,F65/1000*IF(Simulador!$X$8=1,0,Simulador!$V$14)+IF($D$8>0,$D$8,$D$7)/1000*IF(Simulador!$X$8=1,0,Simulador!$V$15)) -> 0 | L65: 0 | M65: =MAX(0,MIN(F64+G65+K65+L65-(I65+K65+L65),Simulador!$K$45)) -> 0 | O65: 0 | P65: 0 | S65: 0 | T65: 0 | U65: 0 | W65: 0 | X65: 0 | Y65: 0 | Z65: 0 | AA65: =IF(W64<0.01,0,+W64/1000*Simulador!$V$14+IF($D$8>0,$D$8,$D$7)/1000*Simulador!$V$15) -> 0 | AB65: =IF(W64<0.01,0,Simulador!$V$16) -> 0 | AC65: 0 | AD65: 0 | AE65: 0 | AF65: 0 | AG65: 0 | AI65: 0 | AJ65: 43
B66: 44 | C66: 3 | D66: 8 | E66: =IF(D66=1,MAX(E65-0.0025,Simulador!$K$10),E65) -> 0.1025 | F66: 0 | G66: 0 | H66: 0 | I66: 0 | J66: 0 | K66: =IF(F66<0.01,0,F66/1000*IF(Simulador!$X$8=1,0,Simulador!$V$14)+IF($D$8>0,$D$8,$D$7)/1000*IF(Simulador!$X$8=1,0,Simulador!$V$15)) -> 0 | L66: =IF(F65-H66=0,0,L64) -> 0 | M66: =MAX(0,MIN(F65+G66+K66+L66-(I66+K66+L66),Simulador!$K$45)) -> 0 | O66: 0 | P66: 0 | S66: 0 | T66: 0 | U66: 0 | W66: 0 | X66: 0 | Y66: 0 | Z66: 0 | AA66: =IF(W65<0.01,0,+W65/1000*Simulador!$V$14+IF($D$8>0,$D$8,$D$7)/1000*Simulador!$V$15) -> 0 | AB66: =IF(W65<0.01,0,Simulador!$V$16) -> 0 | AC66: 0 | AD66: 0 | AE66: 0 | AF66: 0 | AG66: 0 | AI66: 0 | AJ66: 44
B67: 45 | C67: 3 | D67: 9 | E67: =IF(D67=1,MAX(E66-0.0025,Simulador!$K$10),E66) -> 0.1025 | F67: 0 | G67: 0 | H67: 0 | I67: 0 | J67: 0 | K67: =IF(F67<0.01,0,F67/1000*IF(Simulador!$X$8=1,0,Simulador!$V$14)+IF($D$8>0,$D$8,$D$7)/1000*IF(Simulador!$X$8=1,0,Simulador!$V$15)) -> 0 | L67: 0 | M67: =MAX(0,MIN(F66+G67+K67+L67-(I67+K67+L67),Simulador!$K$45)) -> 0 | O67: 0 | P67: 0 | S67: 0 | T67: 0 | U67: 0 | W67: 0 | X67: 0 | Y67: 0 | Z67: 0 | AA67: =IF(W66<0.01,0,+W66/1000*Simulador!$V$14+IF($D$8>0,$D$8,$D$7)/1000*Simulador!$V$15) -> 0 | AB67: =IF(W66<0.01,0,Simulador!$V$16) -> 0 | AC67: 0 | AD67: 0 | AE67: 0 | AF67: 0 | AG67: 0 | AI67: 0 | AJ67: 45
B68: 46 | C68: 3 | D68: 10 | E68: =IF(D68=1,MAX(E67-0.0025,Simulador!$K$10),E67) -> 0.1025 | F68: 0 | G68: 0 | H68: 0 | I68: 0 | J68: 0 | K68: =IF(F68<0.01,0,F68/1000*IF(Simulador!$X$8=1,0,Simulador!$V$14)+IF($D$8>0,$D$8,$D$7)/1000*IF(Simulador!$X$8=1,0,Simulador!$V$15)) -> 0 | L68: =IF(F67-H68=0,0,L66) -> 0 | M68: =MAX(0,MIN(F67+G68+K68+L68-(I68+K68+L68),Simulador!$K$45)) -> 0 | O68: 0 | P68: 0 | S68: 0 | T68: 0 | U68: 0 | W68: 0 | X68: 0 | Y68: 0 | Z68: 0 | AA68: =IF(W67<0.01,0,+W67/1000*Simulador!$V$14+IF($D$8>0,$D$8,$D$7)/1000*Simulador!$V$15) -> 0 | AB68: =IF(W67<0.01,0,Simulador!$V$16) -> 0 | AC68: 0 | AD68: 0 | AE68: 0 | AF68: 0 | AG68: 0 | AI68: 0 | AJ68: 46
B69: 47 | C69: 3 | D69: 11 | E69: =IF(D69=1,MAX(E68-0.0025,Simulador!$K$10),E68) -> 0.1025 | F69: 0 | G69: 0 | H69: 0 | I69: 0 | J69: 0 | K69: =IF(F69<0.01,0,F69/1000*IF(Simulador!$X$8=1,0,Simulador!$V$14)+IF($D$8>0,$D$8,$D$7)/1000*IF(Simulador!$X$8=1,0,Simulador!$V$15)) -> 0 | L69: 0 | M69: =MAX(0,MIN(F68+G69+K69+L69-(I69+K69+L69),Simulador!$K$45)) -> 0 | O69: 0 | P69: 0 | S69: 0 | T69: 0 | U69: 0 | W69: 0 | X69: 0 | Y69: 0 | Z69: 0 | AA69: =IF(W68<0.01,0,+W68/1000*Simulador!$V$14+IF($D$8>0,$D$8,$D$7)/1000*Simulador!$V$15) -> 0 | AB69: =IF(W68<0.01,0,Simulador!$V$16) -> 0 | AC69: 0 | AD69: 0 | AE69: 0 | AF69: 0 | AG69: 0 | AI69: 0 | AJ69: 47
B70: 48 | C70: 3 | D70: 12 | E70: =IF(D70=1,MAX(E69-0.0025,Simulador!$K$10),E69) -> 0.1025 | F70: 0 | G70: 0 | H70: 0 | I70: 0 | J70: 0 | K70: =IF(F70<0.01,0,F70/1000*IF(Simulador!$X$8=1,0,Simulador!$V$14)+IF($D$8>0,$D$8,$D$7)/1000*IF(Simulador!$X$8=1,0,Simulador!$V$15)) -> 0 | L70: =IF(F69-H70=0,0,L68) -> 0 | M70: =MAX(0,MIN(F69+G70+K70+L70-(I70+K70+L70),Simulador!$K$45)) -> 0 | O70: 0 | P70: 0 | S70: 0 | T70: 0 | U70: 0 | W70: 0 | X70: 0 | Y70: 0 | Z70: 0 | AA70: =IF(W69<0.01,0,+W69/1000*Simulador!$V$14+IF($D$8>0,$D$8,$D$7)/1000*Simulador!$V$15) -> 0 | AB70: =IF(W69<0.01,0,Simulador!$V$16) -> 0 | AC70: 0 | AD70: 0 | AE70: 0 | AF70: 0 | AG70: 0 | AI70: 0 | AJ70: 48
B71: 49 | C71: 4 | D71: 1 | E71: =IF(D71=1,MAX(E70-0.0025,Simulador!$K$10),E70) -> 0.1025 | F71: 0 | G71: 0 | H71: 0 | I71: 0 | J71: 0.026 | K71: =IF(F71<0.01,0,F71/1000*IF(Simulador!$X$8=1,0,Simulador!$V$14)+IF($D$8>0,$D$8,$D$7)/1000*IF(Simulador!$X$8=1,0,Simulador!$V$15)) -> 0 | L71: 0 | M71: =MAX(0,MIN(F70+G71+K71+L71-(I71+K71+L71),Simulador!$K$45)) -> 0 | O71: 0 | P71: 0 | S71: 0 | T71: 0 | U71: 0 | W71: 0 | X71: 0 | Y71: 0 | Z71: 0 | AA71: =IF(W70<0.01,0,+W70/1000*Simulador!$V$14+IF($D$8>0,$D$8,$D$7)/1000*Simulador!$V$15) -> 0 | AB71: =IF(W70<0.01,0,Simulador!$V$16) -> 0 | AC71: 0 | AD71: 0 | AE71: 0 | AF71: 0 | AG71: 0 | AI71: 0 | AJ71: 49
B72: 50 | C72: 4 | D72: 2 | E72: =IF(D72=1,MAX(E71-0.0025,Simulador!$K$10),E71) -> 0.1025 | F72: 0 | G72: 0 | H72: 0 | I72: 0 | J72: 0 | K72: =IF(F72<0.01,0,F72/1000*IF(Simulador!$X$8=1,0,Simulador!$V$14)+IF($D$8>0,$D$8,$D$7)/1000*IF(Simulador!$X$8=1,0,Simulador!$V$15)) -> 0 | L72: =IF(F71-H72=0,0,L70*(1+Simulador!$AH$28)) -> 0 | M72: =MAX(0,MIN(F71+G72+K72+L72-(I72+K72+L72),Simulador!$K$45)) -> 0 | O72: 0 | P72: 0 | S72: 0 | T72: 0 | U72: 0 | W72: 0 | X72: 0 | Y72: 0 | Z72: 0 | AA72: =IF(W71<0.01,0,+W71/1000*Simulador!$V$14+IF($D$8>0,$D$8,$D$7)/1000*Simulador!$V$15) -> 0 | AB72: =IF(W71<0.01,0,Simulador!$V$16) -> 0 | AC72: 0 | AD72: 0 | AE72: 0 | AF72: 0 | AG72: 0 | AI72: 0 | AJ72: 50
B73: 51 | C73: 4 | D73: 3 | E73: =IF(D73=1,MAX(E72-0.0025,Simulador!$K$10),E72) -> 0.1025 | F73: 0 | G73: 0 | H73: 0 | I73: 0 | J73: 0 | K73: =IF(F73<0.01,0,F73/1000*IF(Simulador!$X$8=1,0,Simulador!$V$14)+IF($D$8>0,$D$8,$D$7)/1000*IF(Simulador!$X$8=1,0,Simulador!$V$15)) -> 0 | L73: 0 | M73: =MAX(0,MIN(F72+G73+K73+L73-(I73+K73+L73),Simulador!$K$45)) -> 0 | O73: 0 | P73: 0 | S73: 0 | T73: 0 | U73: 0 | W73: 0 | X73: 0 | Y73: 0 | Z73: 0 | AA73: =IF(W72<0.01,0,+W72/1000*Simulador!$V$14+IF($D$8>0,$D$8,$D$7)/1000*Simulador!$V$15) -> 0 | AB73: =IF(W72<0.01,0,Simulador!$V$16) -> 0 | AC73: 0 | AD73: 0 | AE73: 0 | AF73: 0 | AG73: 0 | AI73: 0 | AJ73: 51
B74: 52 | C74: 4 | D74: 4 | E74: =IF(D74=1,MAX(E73-0.0025,Simulador!$K$10),E73) -> 0.1025 | F74: 0 | G74: 0 | H74: 0 | I74: 0 | J74: 0 | K74: =IF(F74<0.01,0,F74/1000*IF(Simulador!$X$8=1,0,Simulador!$V$14)+IF($D$8>0,$D$8,$D$7)/1000*IF(Simulador!$X$8=1,0,Simulador!$V$15)) -> 0 | L74: =IF(F73-H74=0,0,L72) -> 0 | M74: =MAX(0,MIN(F73+G74+K74+L74-(I74+K74+L74),Simulador!$K$45)) -> 0 | O74: 0 | P74: 0 | S74: 0 | T74: 0 | U74: 0 | W74: 0 | X74: 0 | Y74: 0 | Z74: 0 | AA74: =IF(W73<0.01,0,+W73/1000*Simulador!$V$14+IF($D$8>0,$D$8,$D$7)/1000*Simulador!$V$15) -> 0 | AB74: =IF(W73<0.01,0,Simulador!$V$16) -> 0 | AC74: 0 | AD74: 0 | AE74: 0 | AF74: 0 | AG74: 0 | AI74: 0 | AJ74: 52
B75: 53 | C75: 4 | D75: 5 | E75: =IF(D75=1,MAX(E74-0.0025,Simulador!$K$10),E74) -> 0.1025 | F75: 0 | G75: 0 | H75: 0 | I75: 0 | J75: 0 | K75: =IF(F75<0.01,0,F75/1000*IF(Simulador!$X$8=1,0,Simulador!$V$14)+IF($D$8>0,$D$8,$D$7)/1000*IF(Simulador!$X$8=1,0,Simulador!$V$15)) -> 0 | L75: 0 | M75: =MAX(0,MIN(F74+G75+K75+L75-(I75+K75+L75),Simulador!$K$45)) -> 0 | O75: 0 | P75: 0 | S75: 0 | T75: 0 | U75: 0 | W75: 0 | X75: 0 | Y75: 0 | Z75: 0 | AA75: =IF(W74<0.01,0,+W74/1000*Simulador!$V$14+IF($D$8>0,$D$8,$D$7)/1000*Simulador!$V$15) -> 0 | AB75: =IF(W74<0.01,0,Simulador!$V$16) -> 0 | AC75: 0 | AD75: 0 | AE75: 0 | AF75: 0 | AG75: 0 | AI75: 0 | AJ75: 53
B76: 54 | C76: 4 | D76: 6 | E76: =IF(D76=1,MAX(E75-0.0025,Simulador!$K$10),E75) -> 0.1025 | F76: 0 | G76: 0 | H76: 0 | I76: 0 | J76: 0 | K76: =IF(F76<0.01,0,F76/1000*IF(Simulador!$X$8=1,0,Simulador!$V$14)+IF($D$8>0,$D$8,$D$7)/1000*IF(Simulador!$X$8=1,0,Simulador!$V$15)) -> 0 | L76: =IF(F75-H76=0,0,L74) -> 0 | M76: =MAX(0,MIN(F75+G76+K76+L76-(I76+K76+L76),Simulador!$K$45)) -> 0 | O76: 0 | P76: 0 | S76: 0 | T76: 0 | U76: 0 | W76: 0 | X76: 0 | Y76: 0 | Z76: 0 | AA76: =IF(W75<0.01,0,+W75/1000*Simulador!$V$14+IF($D$8>0,$D$8,$D$7)/1000*Simulador!$V$15) -> 0 | AB76: =IF(W75<0.01,0,Simulador!$V$16) -> 0 | AC76: 0 | AD76: 0 | AE76: 0 | AF76: 0 | AG76: 0 | AI76: 0 | AJ76: 54
B77: 55 | C77: 4 | D77: 7 | E77: =IF(D77=1,MAX(E76-0.0025,Simulador!$K$10),E76) -> 0.1025 | F77: 0 | G77: 0 | H77: 0 | I77: 0 | J77: 0 | K77: =IF(F77<0.01,0,F77/1000*IF(Simulador!$X$8=1,0,Simulador!$V$14)+IF($D$8>0,$D$8,$D$7)/1000*IF(Simulador!$X$8=1,0,Simulador!$V$15)) -> 0 | L77: 0 | M77: =MAX(0,MIN(F76+G77+K77+L77-(I77+K77+L77),Simulador!$K$45)) -> 0 | O77: 0 | P77: 0 | S77: 0 | T77: 0 | U77: 0 | W77: 0 | X77: 0 | Y77: 0 | Z77: 0 | AA77: =IF(W76<0.01,0,+W76/1000*Simulador!$V$14+IF($D$8>0,$D$8,$D$7)/1000*Simulador!$V$15) -> 0 | AB77: =IF(W76<0.01,0,Simulador!$V$16) -> 0 | AC77: 0 | AD77: 0 | AE77: 0 | AF77: 0 | AG77: 0 | AI77: 0 | AJ77: 55
B78: 56 | C78: 4 | D78: 8 | E78: =IF(D78=1,MAX(E77-0.0025,Simulador!$K$10),E77) -> 0.1025 | F78: 0 | G78: 0 | H78: 0 | I78: 0 | J78: 0 | K78: =IF(F78<0.01,0,F78/1000*IF(Simulador!$X$8=1,0,Simulador!$V$14)+IF($D$8>0,$D$8,$D$7)/1000*IF(Simulador!$X$8=1,0,Simulador!$V$15)) -> 0 | L78: =IF(F77-H78=0,0,L76) -> 0 | M78: =MAX(0,MIN(F77+G78+K78+L78-(I78+K78+L78),Simulador!$K$45)) -> 0 | O78: 0 | P78: 0 | S78: 0 | T78: 0 | U78: 0 | W78: 0 | X78: 0 | Y78: 0 | Z78: 0 | AA78: =IF(W77<0.01,0,+W77/1000*Simulador!$V$14+IF($D$8>0,$D$8,$D$7)/1000*Simulador!$V$15) -> 0 | AB78: =IF(W77<0.01,0,Simulador!$V$16) -> 0 | AC78: 0 | AD78: 0 | AE78: 0 | AF78: 0 | AG78: 0 | AI78: 0 | AJ78: 56
B79: 57 | C79: 4 | D79: 9 | E79: =IF(D79=1,MAX(E78-0.0025,Simulador!$K$10),E78) -> 0.1025 | F79: 0 | G79: 0 | H79: 0 | I79: 0 | J79: 0 | K79: =IF(F79<0.01,0,F79/1000*IF(Simulador!$X$8=1,0,Simulador!$V$14)+IF($D$8>0,$D$8,$D$7)/1000*IF(Simulador!$X$8=1,0,Simulador!$V$15)) -> 0 | L79: 0 | M79: =MAX(0,MIN(F78+G79+K79+L79-(I79+K79+L79),Simulador!$K$45)) -> 0 | O79: 0 | P79: 0 | S79: 0 | T79: 0 | U79: 0 | W79: 0 | X79: 0 | Y79: 0 | Z79: 0 | AA79: =IF(W78<0.01,0,+W78/1000*Simulador!$V$14+IF($D$8>0,$D$8,$D$7)/1000*Simulador!$V$15) -> 0 | AB79: =IF(W78<0.01,0,Simulador!$V$16) -> 0 | AC79: 0 | AD79: 0 | AE79: 0 | AF79: 0 | AG79: 0 | AI79: 0 | AJ79: 57
B80: 58 | C80: 4 | D80: 10 | E80: =IF(D80=1,MAX(E79-0.0025,Simulador!$K$10),E79) -> 0.1025 | F80: 0 | G80: 0 | H80: 0 | I80: 0 | J80: 0 | K80: =IF(F80<0.01,0,F80/1000*IF(Simulador!$X$8=1,0,Simulador!$V$14)+IF($D$8>0,$D$8,$D$7)/1000*IF(Simulador!$X$8=1,0,Simulador!$V$15)) -> 0 | L80: =IF(F79-H80=0,0,L78) -> 0 | M80: =MAX(0,MIN(F79+G80+K80+L80-(I80+K80+L80),Simulador!$K$45)) -> 0 | O80: 0 | P80: 0 | S80: 0 | T80: 0 | U80: 0 | W80: 0 | X80: 0 | Y80: 0 | Z80: 0 | AA80: =IF(W79<0.01,0,+W79/1000*Simulador!$V$14+IF($D$8>0,$D$8,$D$7)/1000*Simulador!$V$15) -> 0 | AB80: =IF(W79<0.01,0,Simulador!$V$16) -> 0 | AC80: 0 | AD80: 0 | AE80: 0 | AF80: 0 | AG80: 0 | AI80: 0 | AJ80: 58
B81: 59 | C81: 4 | D81: 11 | E81: =IF(D81=1,MAX(E80-0.0025,Simulador!$K$10),E80) -> 0.1025 | F81: 0 | G81: 0 | H81: 0 | I81: 0 | J81: 0 | K81: =IF(F81<0.01,0,F81/1000*IF(Simulador!$X$8=1,0,Simulador!$V$14)+IF($D$8>0,$D$8,$D$7)/1000*IF(Simulador!$X$8=1,0,Simulador!$V$15)) -> 0 | L81: 0 | M81: =MAX(0,MIN(F80+G81+K81+L81-(I81+K81+L81),Simulador!$K$45)) -> 0 | O81: 0 | P81: 0 | S81: 0 | T81: 0 | U81: 0 | W81: 0 | X81: 0 | Y81: 0 | Z81: 0 | AA81: =IF(W80<0.01,0,+W80/1000*Simulador!$V$14+IF($D$8>0,$D$8,$D$7)/1000*Simulador!$V$15) -> 0 | AB81: =IF(W80<0.01,0,Simulador!$V$16) -> 0 | AC81: 0 | AD81: 0 | AE81: 0 | AF81: 0 | AG81: 0 | AI81: 0 | AJ81: 59
B82: 60 | C82: 4 | D82: 12 | E82: =IF(D82=1,MAX(E81-0.0025,Simulador!$K$10),E81) -> 0.1025 | F82: 0 | G82: 0 | H82: 0 | I82: 0 | J82: 0 | K82: =IF(F82<0.01,0,F82/1000*IF(Simulador!$X$8=1,0,Simulador!$V$14)+IF($D$8>0,$D$8,$D$7)/1000*IF(Simulador!$X$8=1,0,Simulador!$V$15)) -> 0 | L82: =IF(F81-H82=0,0,L80) -> 0 | M82: =MAX(0,MIN(F81+G82+K82+L82-(I82+K82+L82),Simulador!$K$45)) -> 0 | O82: 0 | P82: 0 | S82: 0 | T82: 0 | U82: 0 | W82: 0 | X82: 0 | Y82: 0 | Z82: 0 | AA82: =IF(W81<0.01,0,+W81/1000*Simulador!$V$14+IF($D$8>0,$D$8,$D$7)/1000*Simulador!$V$15) -> 0 | AB82: =IF(W81<0.01,0,Simulador!$V$16) -> 0 | AC82: 0 | AD82: 0 | AE82: 0 | AF82: 0 | AG82: 0 | AI82: 0 | AJ82: 60
B83: 61 | C83: 5 | D83: 1 | E83: =IF(D83=1,MAX(E82-0.0025,Simulador!$K$10),E82) -> 0.1025 | F83: 0 | G83: 0 | H83: 0 | I83: 0 | J83: 0.026 | K83: =IF(F83<0.01,0,F83/1000*IF(Simulador!$X$8=1,0,Simulador!$V$14)+IF($D$8>0,$D$8,$D$7)/1000*IF(Simulador!$X$8=1,0,Simulador!$V$15)) -> 0 | L83: 0 | M83: =MAX(0,MIN(F82+G83+K83+L83-(I83+K83+L83),Simulador!$K$45)) -> 0 | O83: 0 | P83: 0 | S83: 0 | T83: 0 | U83: 0 | W83: 0 | X83: 0 | Y83: 0 | Z83: 0 | AA83: =IF(W82<0.01,0,+W82/1000*Simulador!$V$14+IF($D$8>0,$D$8,$D$7)/1000*Simulador!$V$15) -> 0 | AB83: =IF(W82<0.01,0,Simulador!$V$16) -> 0 | AC83: 0 | AD83: 0 | AE83: 0 | AF83: 0 | AG83: 0 | AI83: 0 | AJ83: 61
B84: 62 | C84: 5 | D84: 2 | E84: =IF(D84=1,MAX(E83-0.0025,Simulador!$K$10),E83) -> 0.1025 | F84: 0 | G84: 0 | H84: 0 | I84: 0 | J84: 0 | K84: =IF(F84<0.01,0,F84/1000*IF(Simulador!$X$8=1,0,Simulador!$V$14)+IF($D$8>0,$D$8,$D$7)/1000*IF(Simulador!$X$8=1,0,Simulador!$V$15)) -> 0 | L84: =IF(F83-H84=0,0,L82*(1+Simulador!$AH$28)) -> 0 | M84: =MAX(0,MIN(F83+G84+K84+L84-(I84+K84+L84),Simulador!$K$45)) -> 0 | O84: 0 | P84: 0 | S84: 0 | T84: 0 | U84: 0 | W84: 0 | X84: 0 | Y84: 0 | Z84: 0 | AA84: =IF(W83<0.01,0,+W83/1000*Simulador!$V$14+IF($D$8>0,$D$8,$D$7)/1000*Simulador!$V$15) -> 0 | AB84: =IF(W83<0.01,0,Simulador!$V$16) -> 0 | AC84: 0 | AD84: 0 | AE84: 0 | AF84: 0 | AG84: 0 | AI84: 0 | AJ84: 62
B85: 63 | C85: 5 | D85: 3 | E85: =IF(D85=1,MAX(E84-0.0025,Simulador!$K$10),E84) -> 0.1025 | F85: 0 | G85: 0 | H85: 0 | I85: 0 | J85: 0 | K85: =IF(F85<0.01,0,F85/1000*IF(Simulador!$X$8=1,0,Simulador!$V$14)+IF($D$8>0,$D$8,$D$7)/1000*IF(Simulador!$X$8=1,0,Simulador!$V$15)) -> 0 | L85: 0 | M85: =MAX(0,MIN(F84+G85+K85+L85-(I85+K85+L85),Simulador!$K$45)) -> 0 | O85: 0 | P85: 0 | S85: 0 | T85: 0 | U85: 0 | W85: 0 | X85: 0 | Y85: 0 | Z85: 0 | AA85: =IF(W84<0.01,0,+W84/1000*Simulador!$V$14+IF($D$8>0,$D$8,$D$7)/1000*Simulador!$V$15) -> 0 | AB85: =IF(W84<0.01,0,Simulador!$V$16) -> 0 | AC85: 0 | AD85: 0 | AE85: 0 | AF85: 0 | AG85: 0 | AI85: 0 | AJ85: 63
B86: 64 | C86: 5 | D86: 4 | E86: =IF(D86=1,MAX(E85-0.0025,Simulador!$K$10),E85) -> 0.1025 | F86: 0 | G86: 0 | H86: 0 | I86: 0 | J86: 0 | K86: =IF(F86<0.01,0,F86/1000*IF(Simulador!$X$8=1,0,Simulador!$V$14)+IF($D$8>0,$D$8,$D$7)/1000*IF(Simulador!$X$8=1,0,Simulador!$V$15)) -> 0 | L86: =IF(F85-H86=0,0,L84) -> 0 | M86: =MAX(0,MIN(F85+G86+K86+L86-(I86+K86+L86),Simulador!$K$45)) -> 0 | O86: 0 | P86: 0 | S86: 0 | T86: 0 | U86: 0 | W86: 0 | X86: 0 | Y86: 0 | Z86: 0 | AA86: =IF(W85<0.01,0,+W85/1000*Simulador!$V$14+IF($D$8>0,$D$8,$D$7)/1000*Simulador!$V$15) -> 0 | AB86: =IF(W85<0.01,0,Simulador!$V$16) -> 0 | AC86: 0 | AD86: 0 | AE86: 0 | AF86: 0 | AG86: 0 | AI86: 0 | AJ86: 64
B87: 65 | C87: 5 | D87: 5 | E87: =IF(D87=1,MAX(E86-0.0025,Simulador!$K$10),E86) -> 0.1025 | F87: 0 | G87: 0 | H87: 0 | I87: 0 | J87: 0 | K87: =IF(F87<0.01,0,F87/1000*IF(Simulador!$X$8=1,0,Simulador!$V$14)+IF($D$8>0,$D$8,$D$7)/1000*IF(Simulador!$X$8=1,0,Simulador!$V$15)) -> 0 | L87: 0 | M87: =MAX(0,MIN(F86+G87+K87+L87-(I87+K87+L87),Simulador!$K$45)) -> 0 | O87: 0 | P87: 0 | S87: 0 | T87: =IF(AND(F86>0.01,F87<=0.01),B87,0) -> 0 | U87: 0 | W87: 0 | X87: 0 | Y87: 0 | Z87: 0 | AA87: =IF(W86<0.01,0,+W86/1000*Simulador!$V$14+IF($D$8>0,$D$8,$D$7)/1000*Simulador!$V$15) -> 0 | AB87: =IF(W86<0.01,0,Simulador!$V$16) -> 0 | AC87: 0 | AD87: 0 | AE87: 0 | AF87: 0 | AG87: 0 | AI87: 0 | AJ87: 65
B88: 66 | C88: 5 | D88: =IF(D87=12,1,D87+1) -> 6 | E88: =IF(D88=1,MAX(E87-0.0025,Simulador!$K$10),E87) -> 0.1025 | F88: =+O87 -> 0 | G88: 0 | H88: =+I88-G88 -> 0 | I88: 0 | J88: =IF(D88=1,$D$13,0) -> 0 | K88: =IF(F88<0.01,0,F88/1000*IF(Simulador!$X$8=1,0,Simulador!$V$14)+IF($D$8>0,$D$8,$D$7)/1000*IF(Simulador!$X$8=1,0,Simulador!$V$15)) -> 0 | L88: =IF(F87-H88=0,0,L86) -> 0 | M88: =MAX(0,MIN(F87+G88+K88+L88-(I88+K88+L88),Simulador!$K$45)) -> 0 | O88: =MAX(0,O87-H88-L88-M88-N88) -> 0 | P88: =MAX(0,MIN(F87+G88+K88,I88+K88+M88+N88)) -> 0 | S88: 0 | T88: 0 | U88: =+P88 -> 0 | W88: =+W87-Y88 -> 0 | X88: =W87*E88/360*AI88 -> 0 | Y88: =+Z88-X88 -> 0 | Z88: 0 | AA88: =IF(W87<0.01,0,+W87/1000*Simulador!$V$14+IF($D$8>0,$D$8,$D$7)/1000*Simulador!$V$15) -> 0 | AB88: =IF(W87<0.01,0,Simulador!$V$16) -> 0 | AC88: 0 | AD88: =IF(W87<0.01,0,+Z88+AA88+AB88-AC88) -> 0 | AE88: =+AD88 -> 0 | AF88: =IFERROR(Z88/W87,0) -> 0 | AG88: 0 | AI88: =IFERROR(DAY(DATE(YEAR(AH88),MONTH(AH88)+1,0)),0) -> 0 | AJ88: 66
B89: 67 | C89: =IF(D88=12,C88+1,C88) -> 5 | D89: 7 | E89: =IF(D89=1,MAX(E88-0.0025,Simulador!$K$10),E88) -> 0.1025 | F89: 0 | G89: =IF(F89<0.01,0,F89*E89/360*AI89) -> 0 | H89: 0 | I89: =IF($W$16=2,MAX(0,(MIN(+I88*(1+J89),F89*AF89))),MAX(0,(MIN(+I88*(1+J89),F89+G89)))) -> 0 | J89: 0 | K89: =IF(F89<0.01,0,F89/1000*IF(Simulador!$X$8=1,0,Simulador!$V$14)+IF($D$8>0,$D$8,$D$7)/1000*IF(Simulador!$X$8=1,0,Simulador!$V$15)) -> 0 | L89: 0 | M89: =MAX(0,MIN(F88+G89+K89+L89-(I89+K89+L89),Simulador!$K$45)) -> 0 | O89: 0 | P89: 0 | S89: 0 | T89: 0 | U89: 0 | W89: 0 | X89: 0 | Y89: 0 | Z89: =MAX(0,(MIN(+Z88*(1+J89),W88+X89))) -> 0 | AA89: =IF(W88<0.01,0,+W88/1000*Simulador!$V$14+IF($D$8>0,$D$8,$D$7)/1000*Simulador!$V$15) -> 0 | AB89: =IF(W88<0.01,0,Simulador!$V$16) -> 0 | AC89: 0 | AD89: 0 | AE89: 0 | AF89: 0 | AG89: 0 | AI89: 0 | AJ89: 67
B90: 68 | C90: 5 | D90: 8 | E90: =IF(D90=1,MAX(E89-0.0025,Simulador!$K$10),E89) -> 0.1025 | F90: 0 | G90: 0 | H90: 0 | I90: 0 | J90: 0 | K90: =IF(F90<0.01,0,F90/1000*IF(Simulador!$X$8=1,0,Simulador!$V$14)+IF($D$8>0,$D$8,$D$7)/1000*IF(Simulador!$X$8=1,0,Simulador!$V$15)) -> 0 | L90: =IF(F89-H90=0,0,L88) -> 0 | M90: =MAX(0,MIN(F89+G90+K90+L90-(I90+K90+L90),Simulador!$K$45)) -> 0 | O90: 0 | P90: 0 | S90: 0 | T90: 0 | U90: 0 | W90: 0 | X90: 0 | Y90: 0 | Z90: 0 | AA90: =IF(W89<0.01,0,+W89/1000*Simulador!$V$14+IF($D$8>0,$D$8,$D$7)/1000*Simulador!$V$15) -> 0 | AB90: =IF(W89<0.01,0,Simulador!$V$16) -> 0 | AC90: 0 | AD90: 0 | AE90: 0 | AF90: 0 | AG90: 0 | AI90: 0 | AJ90: 68
B91: 69 | C91: 5 | D91: 9 | E91: =IF(D91=1,MAX(E90-0.0025,Simulador!$K$10),E90) -> 0.1025 | F91: 0 | G91: 0 | H91: 0 | I91: 0 | J91: 0 | K91: =IF(F91<0.01,0,F91/1000*IF(Simulador!$X$8=1,0,Simulador!$V$14)+IF($D$8>0,$D$8,$D$7)/1000*IF(Simulador!$X$8=1,0,Simulador!$V$15)) -> 0 | L91: 0 | M91: =MAX(0,MIN(F90+G91+K91+L91-(I91+K91+L91),Simulador!$K$45)) -> 0 | O91: 0 | P91: 0 | S91: 0 | T91: 0 | U91: 0 | W91: 0 | X91: 0 | Y91: 0 | Z91: 0 | AA91: =IF(W90<0.01,0,+W90/1000*Simulador!$V$14+IF($D$8>0,$D$8,$D$7)/1000*Simulador!$V$15) -> 0 | AB91: =IF(W90<0.01,0,Simulador!$V$16) -> 0 | AC91: 0 | AD91: 0 | AE91: 0 | AF91: 0 | AG91: =IFERROR(IF(Y90<=0.01,0,AG90-1),0) -> 0 | AH91: =IF(Y90=0,"",DATE(YEAR(AH90),MONTH(AH90)+1,1)) ->  | AI91: 0 | AJ91: 69
B92: 70 | C92: 5 | D92: 10 | E92: =IF(D92=1,MAX(E91-0.0025,Simulador!$K$10),E91) -> 0.1025 | F92: 0 | G92: 0 | H92: 0 | I92: 0 | J92: 0 | K92: =IF(F92<0.01,0,F92/1000*IF(Simulador!$X$8=1,0,Simulador!$V$14)+IF($D$8>0,$D$8,$D$7)/1000*IF(Simulador!$X$8=1,0,Simulador!$V$15)) -> 0 | L92: =IF(F91-H92=0,0,L90) -> 0 | M92: =MAX(0,MIN(F91+G92+K92+L92-(I92+K92+L92),Simulador!$K$45)) -> 0 | O92: 0 | P92: 0 | S92: 0 | T92: 0 | U92: 0 | W92: 0 | X92: 0 | Y92: 0 | Z92: 0 | AA92: =IF(W91<0.01,0,+W91/1000*Simulador!$V$14+IF($D$8>0,$D$8,$D$7)/1000*Simulador!$V$15) -> 0 | AB92: =IF(W91<0.01,0,Simulador!$V$16) -> 0 | AC92: 0 | AD92: 0 | AE92: 0 | AF92: 0 | AG92: 0 | AI92: 0 | AJ92: 70
B93: 71 | C93: 5 | D93: 11 | E93: =IF(D93=1,MAX(E92-0.0025,Simulador!$K$10),E92) -> 0.1025 | F93: 0 | G93: 0 | H93: 0 | I93: 0 | J93: 0 | K93: =IF(F93<0.01,0,F93/1000*IF(Simulador!$X$8=1,0,Simulador!$V$14)+IF($D$8>0,$D$8,$D$7)/1000*IF(Simulador!$X$8=1,0,Simulador!$V$15)) -> 0 | L93: 0 | M93: =MAX(0,MIN(F92+G93+K93+L93-(I93+K93+L93),Simulador!$K$45)) -> 0 | O93: 0 | P93: 0 | S93: 0 | T93: 0 | U93: 0 | W93: 0 | X93: 0 | Y93: 0 | Z93: 0 | AA93: =IF(W92<0.01,0,+W92/1000*Simulador!$V$14+IF($D$8>0,$D$8,$D$7)/1000*Simulador!$V$15) -> 0 | AB93: =IF(W92<0.01,0,Simulador!$V$16) -> 0 | AC93: 0 | AD93: 0 | AE93: 0 | AF93: 0 | AG93: 0 | AI93: 0 | AJ93: 71
B94: 72 | C94: 5 | D94: 12 | E94: =IF(D94=1,MAX(E93-0.0025,Simulador!$K$10),E93) -> 0.1025 | F94: 0 | G94: 0 | H94: 0 | I94: 0 | J94: 0 | K94: =IF(F94<0.01,0,F94/1000*IF(Simulador!$X$8=1,0,Simulador!$V$14)+IF($D$8>0,$D$8,$D$7)/1000*IF(Simulador!$X$8=1,0,Simulador!$V$15)) -> 0 | L94: =IF(F93-H94=0,0,L92) -> 0 | M94: =MAX(0,MIN(F93+G94+K94+L94-(I94+K94+L94),Simulador!$K$45)) -> 0 | O94: 0 | P94: 0 | S94: 0 | T94: 0 | U94: 0 | W94: 0 | X94: 0 | Y94: 0 | Z94: 0 | AA94: =IF(W93<0.01,0,+W93/1000*Simulador!$V$14+IF($D$8>0,$D$8,$D$7)/1000*Simulador!$V$15) -> 0 | AB94: =IF(W93<0.01,0,Simulador!$V$16) -> 0 | AC94: 0 | AD94: 0 | AE94: 0 | AF94: 0 | AG94: 0 | AI94: 0 | AJ94: 72
B95: 73 | C95: 6 | D95: 1 | E95: =IF(D95=1,MAX(E94-0.0025,Simulador!$K$10),E94) -> 0.1025 | F95: 0 | G95: 0 | H95: 0 | I95: 0 | J95: 0.026 | K95: =IF(F95<0.01,0,F95/1000*IF(Simulador!$X$8=1,0,Simulador!$V$14)+IF($D$8>0,$D$8,$D$7)/1000*IF(Simulador!$X$8=1,0,Simulador!$V$15)) -> 0 | L95: 0 | M95: =MAX(0,MIN(F94+G95+K95+L95-(I95+K95+L95),Simulador!$K$45)) -> 0 | O95: 0 | P95: 0 | S95: 0 | T95: 0 | U95: 0 | W95: 0 | X95: 0 | Y95: 0 | Z95: 0 | AA95: =IF(W94<0.01,0,+W94/1000*Simulador!$V$14+IF($D$8>0,$D$8,$D$7)/1000*Simulador!$V$15) -> 0 | AB95: =IF(W94<0.01,0,Simulador!$V$16) -> 0 | AC95: 0 | AD95: 0 | AE95: 0 | AF95: 0 | AG95: 0 | AI95: 0 | AJ95: 73
B96: 74 | C96: 6 | D96: 2 | E96: =IF(D96=1,MAX(E95-0.0025,Simulador!$K$10),E95) -> 0.1025 | F96: 0 | G96: 0 | H96: 0 | I96: 0 | J96: 0 | K96: =IF(F96<0.01,0,F96/1000*IF(Simulador!$X$8=1,0,Simulador!$V$14)+IF($D$8>0,$D$8,$D$7)/1000*IF(Simulador!$X$8=1,0,Simulador!$V$15)) -> 0 | L96: =IF(F95-H96=0,0,L94*(1+Simulador!$AH$28)) -> 0 | M96: =MAX(0,MIN(F95+G96+K96+L96-(I96+K96+L96),Simulador!$K$45)) -> 0 | O96: 0 | P96: 0 | S96: 0 | T96: 0 | U96: 0 | W96: 0 | X96: 0 | Y96: 0 | Z96: 0 | AA96: =IF(W95<0.01,0,+W95/1000*Simulador!$V$14+IF($D$8>0,$D$8,$D$7)/1000*Simulador!$V$15) -> 0 | AB96: =IF(W95<0.01,0,Simulador!$V$16) -> 0 | AC96: 0 | AD96: 0 | AE96: 0 | AF96: 0 | AG96: 0 | AI96: 0 | AJ96: 74
B97: 75 | C97: 6 | D97: 3 | E97: =IF(D97=1,MAX(E96-0.0025,Simulador!$K$10),E96) -> 0.1025 | F97: 0 | G97: 0 | H97: 0 | I97: 0 | J97: 0 | K97: =IF(F97<0.01,0,F97/1000*IF(Simulador!$X$8=1,0,Simulador!$V$14)+IF($D$8>0,$D$8,$D$7)/1000*IF(Simulador!$X$8=1,0,Simulador!$V$15)) -> 0 | L97: 0 | M97: =MAX(0,MIN(F96+G97+K97+L97-(I97+K97+L97),Simulador!$K$45)) -> 0 | O97: 0 | P97: 0 | S97: 0 | T97: 0 | U97: 0 | W97: 0 | X97: 0 | Y97: 0 | Z97: 0 | AA97: =IF(W96<0.01,0,+W96/1000*Simulador!$V$14+IF($D$8>0,$D$8,$D$7)/1000*Simulador!$V$15) -> 0 | AB97: =IF(W96<0.01,0,Simulador!$V$16) -> 0 | AC97: 0 | AD97: 0 | AE97: 0 | AF97: 0 | AG97: 0 | AI97: 0 | AJ97: 75
B98: 76 | C98: 6 | D98: 4 | E98: =IF(D98=1,MAX(E97-0.0025,Simulador!$K$10),E97) -> 0.1025 | F98: 0 | G98: 0 | H98: 0 | I98: 0 | J98: 0 | K98: =IF(F98<0.01,0,F98/1000*IF(Simulador!$X$8=1,0,Simulador!$V$14)+IF($D$8>0,$D$8,$D$7)/1000*IF(Simulador!$X$8=1,0,Simulador!$V$15)) -> 0 | L98: =IF(F97-H98=0,0,L96) -> 0 | M98: =MAX(0,MIN(F97+G98+K98+L98-(I98+K98+L98),Simulador!$K$45)) -> 0 | O98: 0 | P98: 0 | S98: 0 | T98: 0 | U98: 0 | W98: 0 | X98: 0 | Y98: 0 | Z98: 0 | AA98: =IF(W97<0.01,0,+W97/1000*Simulador!$V$14+IF($D$8>0,$D$8,$D$7)/1000*Simulador!$V$15) -> 0 | AB98: =IF(W97<0.01,0,Simulador!$V$16) -> 0 | AC98: 0 | AD98: 0 | AE98: 0 | AF98: 0 | AG98: 0 | AI98: 0 | AJ98: 76
B99: 77 | C99: 6 | D99: 5 | E99: =IF(D99=1,MAX(E98-0.0025,Simulador!$K$10),E98) -> 0.1025 | F99: 0 | G99: 0 | H99: 0 | I99: 0 | J99: 0 | K99: =IF(F99<0.01,0,F99/1000*IF(Simulador!$X$8=1,0,Simulador!$V$14)+IF($D$8>0,$D$8,$D$7)/1000*IF(Simulador!$X$8=1,0,Simulador!$V$15)) -> 0 | L99: 0 | M99: =MAX(0,MIN(F98+G99+K99+L99-(I99+K99+L99),Simulador!$K$45)) -> 0 | O99: 0 | P99: 0 | S99: 0 | T99: 0 | U99: 0 | W99: 0 | X99: 0 | Y99: 0 | Z99: 0 | AA99: =IF(W98<0.01,0,+W98/1000*Simulador!$V$14+IF($D$8>0,$D$8,$D$7)/1000*Simulador!$V$15) -> 0 | AB99: =IF(W98<0.01,0,Simulador!$V$16) -> 0 | AC99: 0 | AD99: 0 | AE99: 0 | AF99: 0 | AG99: 0 | AI99: 0 | AJ99: 77
B100: 78 | C100: 6 | D100: 6 | E100: =IF(D100=1,MAX(E99-0.0025,Simulador!$K$10),E99) -> 0.1025 | F100: 0 | G100: 0 | H100: 0 | I100: 0 | J100: 0 | K100: =IF(F100<0.01,0,F100/1000*IF(Simulador!$X$8=1,0,Simulador!$V$14)+IF($D$8>0,$D$8,$D$7)/1000*IF(Simulador!$X$8=1,0,Simulador!$V$15)) -> 0 | L100: =IF(F99-H100=0,0,L98) -> 0 | M100: =MAX(0,MIN(F99+G100+K100+L100-(I100+K100+L100),Simulador!$K$45)) -> 0 | O100: 0 | P100: 0 | S100: 0 | T100: 0 | U100: 0 | W100: 0 | X100: 0 | Y100: 0 | Z100: 0 | AA100: =IF(W99<0.01,0,+W99/1000*Simulador!$V$14+IF($D$8>0,$D$8,$D$7)/1000*Simulador!$V$15) -> 0 | AB100: =IF(W99<0.01,0,Simulador!$V$16) -> 0 | AC100: =IF(W99<0.01,0,IF(D100=1,SUM(AB88:AB99),0)) -> 0 | AD100: 0 | AE100: 0 | AF100: 0 | AG100: 0 | AI100: 0 | AJ100: 78
B101: 79 | C101: 6 | D101: 7 | E101: =IF(D101=1,MAX(E100-0.0025,Simulador!$K$10),E100) -> 0.1025 | F101: 0 | G101: 0 | H101: 0 | I101: 0 | J101: 0 | K101: =IF(F101<0.01,0,F101/1000*IF(Simulador!$X$8=1,0,Simulador!$V$14)+IF($D$8>0,$D$8,$D$7)/1000*IF(Simulador!$X$8=1,0,Simulador!$V$15)) -> 0 | L101: 0 | M101: =MAX(0,MIN(F100+G101+K101+L101-(I101+K101+L101),Simulador!$K$45)) -> 0 | O101: 0 | P101: 0 | S101: 0 | T101: 0 | U101: 0 | W101: 0 | X101: 0 | Y101: 0 | Z101: 0 | AA101: =IF(W100<0.01,0,+W100/1000*Simulador!$V$14+IF($D$8>0,$D$8,$D$7)/1000*Simulador!$V$15) -> 0 | AB101: =IF(W100<0.01,0,Simulador!$V$16) -> 0 | AC101: 0 | AD101: 0 | AE101: 0 | AF101: 0 | AG101: 0 | AI101: 0 | AJ101: 79
B102: 80 | C102: 6 | D102: 8 | E102: =IF(D102=1,MAX(E101-0.0025,Simulador!$K$10),E101) -> 0.1025 | F102: 0 | G102: 0 | H102: 0 | I102: 0 | J102: 0 | K102: =IF(F102<0.01,0,F102/1000*IF(Simulador!$X$8=1,0,Simulador!$V$14)+IF($D$8>0,$D$8,$D$7)/1000*IF(Simulador!$X$8=1,0,Simulador!$V$15)) -> 0 | L102: =IF(F101-H102=0,0,L100) -> 0 | M102: =MAX(0,MIN(F101+G102+K102+L102-(I102+K102+L102),Simulador!$K$45)) -> 0 | O102: 0 | P102: 0 | S102: 0 | T102: 0 | U102: 0 | W102: 0 | X102: 0 | Y102: 0 | Z102: 0 | AA102: =IF(W101<0.01,0,+W101/1000*Simulador!$V$14+IF($D$8>0,$D$8,$D$7)/1000*Simulador!$V$15) -> 0 | AB102: =IF(W101<0.01,0,Simulador!$V$16) -> 0 | AC102: 0 | AD102: 0 | AE102: 0 | AF102: 0 | AG102: 0 | AI102: 0 | AJ102: 80
B103: 81 | C103: 6 | D103: 9 | E103: =IF(D103=1,MAX(E102-0.0025,Simulador!$K$10),E102) -> 0.1025 | F103: 0 | G103: 0 | H103: 0 | I103: 0 | J103: 0 | K103: =IF(F103<0.01,0,F103/1000*IF(Simulador!$X$8=1,0,Simulador!$V$14)+IF($D$8>0,$D$8,$D$7)/1000*IF(Simulador!$X$8=1,0,Simulador!$V$15)) -> 0 | L103: 0 | M103: =MAX(0,MIN(F102+G103+K103+L103-(I103+K103+L103),Simulador!$K$45)) -> 0 | O103: 0 | P103: 0 | S103: 0 | T103: 0 | U103: 0 | W103: 0 | X103: 0 | Y103: 0 | Z103: 0 | AA103: =IF(W102<0.01,0,+W102/1000*Simulador!$V$14+IF($D$8>0,$D$8,$D$7)/1000*Simulador!$V$15) -> 0 | AB103: =IF(W102<0.01,0,Simulador!$V$16) -> 0 | AC103: 0 | AD103: 0 | AE103: 0 | AF103: 0 | AG103: 0 | AI103: 0 | AJ103: 81
B104: 82 | C104: 6 | D104: 10 | E104: =IF(D104=1,MAX(E103-0.0025,Simulador!$K$10),E103) -> 0.1025 | F104: 0 | G104: 0 | H104: 0 | I104: 0 | J104: 0 | K104: =IF(F104<0.01,0,F104/1000*IF(Simulador!$X$8=1,0,Simulador!$V$14)+IF($D$8>0,$D$8,$D$7)/1000*IF(Simulador!$X$8=1,0,Simulador!$V$15)) -> 0 | L104: =IF(F103-H104=0,0,L102) -> 0 | M104: =MAX(0,MIN(F103+G104+K104+L104-(I104+K104+L104),Simulador!$K$45)) -> 0 | O104: 0 | P104: 0 | S104: 0 | T104: 0 | U104: 0 | W104: 0 | X104: 0 | Y104: 0 | Z104: 0 | AA104: =IF(W103<0.01,0,+W103/1000*Simulador!$V$14+IF($D$8>0,$D$8,$D$7)/1000*Simulador!$V$15) -> 0 | AB104: =IF(W103<0.01,0,Simulador!$V$16) -> 0 | AC104: 0 | AD104: 0 | AE104: 0 | AF104: 0 | AG104: 0 | AI104: 0 | AJ104: 82
B105: 83 | C105: 6 | D105: 11 | E105: =IF(D105=1,MAX(E104-0.0025,Simulador!$K$10),E104) -> 0.1025 | F105: 0 | G105: 0 | H105: 0 | I105: 0 | J105: 0 | K105: =IF(F105<0.01,0,F105/1000*IF(Simulador!$X$8=1,0,Simulador!$V$14)+IF($D$8>0,$D$8,$D$7)/1000*IF(Simulador!$X$8=1,0,Simulador!$V$15)) -> 0 | L105: 0 | M105: =MAX(0,MIN(F104+G105+K105+L105-(I105+K105+L105),Simulador!$K$45)) -> 0 | O105: 0 | P105: 0 | S105: 0 | T105: 0 | U105: 0 | W105: 0 | X105: 0 | Y105: 0 | Z105: 0 | AA105: =IF(W104<0.01,0,+W104/1000*Simulador!$V$14+IF($D$8>0,$D$8,$D$7)/1000*Simulador!$V$15) -> 0 | AB105: =IF(W104<0.01,0,Simulador!$V$16) -> 0 | AC105: 0 | AD105: 0 | AE105: 0 | AF105: 0 | AG105: 0 | AI105: 0 | AJ105: 83
B106: 84 | C106: 6 | D106: 12 | E106: =IF(D106=1,MAX(E105-0.0025,Simulador!$K$10),E105) -> 0.1025 | F106: 0 | G106: 0 | H106: 0 | I106: 0 | J106: 0 | K106: =IF(F106<0.01,0,F106/1000*IF(Simulador!$X$8=1,0,Simulador!$V$14)+IF($D$8>0,$D$8,$D$7)/1000*IF(Simulador!$X$8=1,0,Simulador!$V$15)) -> 0 | L106: =IF(F105-H106=0,0,L104) -> 0 | M106: =MAX(0,MIN(F105+G106+K106+L106-(I106+K106+L106),Simulador!$K$45)) -> 0 | O106: 0 | P106: 0 | S106: 0 | T106: 0 | U106: 0 | W106: 0 | X106: 0 | Y106: 0 | Z106: 0 | AA106: =IF(W105<0.01,0,+W105/1000*Simulador!$V$14+IF($D$8>0,$D$8,$D$7)/1000*Simulador!$V$15) -> 0 | AB106: =IF(W105<0.01,0,Simulador!$V$16) -> 0 | AC106: 0 | AD106: 0 | AE106: 0 | AF106: 0 | AG106: 0 | AI106: 0 | AJ106: 84
B107: 85 | C107: 7 | D107: 1 | E107: =IF(D107=1,MAX(E106-0.0025,Simulador!$K$10),E106) -> 0.1025 | F107: 0 | G107: 0 | H107: 0 | I107: 0 | J107: 0.026 | K107: =IF(F107<0.01,0,F107/1000*IF(Simulador!$X$8=1,0,Simulador!$V$14)+IF($D$8>0,$D$8,$D$7)/1000*IF(Simulador!$X$8=1,0,Simulador!$V$15)) -> 0 | L107: 0 | M107: =MAX(0,MIN(F106+G107+K107+L107-(I107+K107+L107),Simulador!$K$45)) -> 0 | O107: 0 | P107: 0 | S107: 0 | T107: 0 | U107: 0 | W107: 0 | X107: 0 | Y107: 0 | Z107: 0 | AA107: =IF(W106<0.01,0,+W106/1000*Simulador!$V$14+IF($D$8>0,$D$8,$D$7)/1000*Simulador!$V$15) -> 0 | AB107: =IF(W106<0.01,0,Simulador!$V$16) -> 0 | AC107: 0 | AD107: 0 | AE107: 0 | AF107: 0 | AG107: 0 | AI107: 0 | AJ107: 85
B108: 86 | C108: 7 | D108: 2 | E108: =IF(D108=1,MAX(E107-0.0025,Simulador!$K$10),E107) -> 0.1025 | F108: 0 | G108: 0 | H108: 0 | I108: 0 | J108: 0 | K108: =IF(F108<0.01,0,F108/1000*IF(Simulador!$X$8=1,0,Simulador!$V$14)+IF($D$8>0,$D$8,$D$7)/1000*IF(Simulador!$X$8=1,0,Simulador!$V$15)) -> 0 | L108: =IF(F107-H108=0,0,L106*(1+Simulador!$AH$28)) -> 0 | M108: =MAX(0,MIN(F107+G108+K108+L108-(I108+K108+L108),Simulador!$K$45)) -> 0 | O108: 0 | P108: 0 | S108: 0 | T108: 0 | U108: 0 | W108: 0 | X108: 0 | Y108: 0 | Z108: 0 | AA108: =IF(W107<0.01,0,+W107/1000*Simulador!$V$14+IF($D$8>0,$D$8,$D$7)/1000*Simulador!$V$15) -> 0 | AB108: =IF(W107<0.01,0,Simulador!$V$16) -> 0 | AC108: 0 | AD108: 0 | AE108: 0 | AF108: 0 | AG108: 0 | AI108: 0 | AJ108: 86
B109: 87 | C109: 7 | D109: 3 | E109: =IF(D109=1,MAX(E108-0.0025,Simulador!$K$10),E108) -> 0.1025 | F109: 0 | G109: 0 | H109: 0 | I109: 0 | J109: 0 | K109: =IF(F109<0.01,0,F109/1000*IF(Simulador!$X$8=1,0,Simulador!$V$14)+IF($D$8>0,$D$8,$D$7)/1000*IF(Simulador!$X$8=1,0,Simulador!$V$15)) -> 0 | L109: 0 | M109: =MAX(0,MIN(F108+G109+K109+L109-(I109+K109+L109),Simulador!$K$45)) -> 0 | O109: 0 | P109: 0 | S109: 0 | T109: 0 | U109: 0 | W109: 0 | X109: 0 | Y109: 0 | Z109: 0 | AA109: =IF(W108<0.01,0,+W108/1000*Simulador!$V$14+IF($D$8>0,$D$8,$D$7)/1000*Simulador!$V$15) -> 0 | AB109: =IF(W108<0.01,0,Simulador!$V$16) -> 0 | AC109: 0 | AD109: 0 | AE109: 0 | AF109: 0 | AG109: 0 | AI109: 0 | AJ109: 87
B110: 88 | C110: 7 | D110: 4 | E110: =IF(D110=1,MAX(E109-0.0025,Simulador!$K$10),E109) -> 0.1025 | F110: 0 | G110: 0 | H110: 0 | I110: 0 | J110: 0 | K110: =IF(F110<0.01,0,F110/1000*IF(Simulador!$X$8=1,0,Simulador!$V$14)+IF($D$8>0,$D$8,$D$7)/1000*IF(Simulador!$X$8=1,0,Simulador!$V$15)) -> 0 | L110: =IF(F109-H110=0,0,L108) -> 0 | M110: =MAX(0,MIN(F109+G110+K110+L110-(I110+K110+L110),Simulador!$K$45)) -> 0 | O110: 0 | P110: 0 | S110: 0 | T110: 0 | U110: 0 | W110: 0 | X110: 0 | Y110: 0 | Z110: 0 | AA110: =IF(W109<0.01,0,+W109/1000*Simulador!$V$14+IF($D$8>0,$D$8,$D$7)/1000*Simulador!$V$15) -> 0 | AB110: =IF(W109<0.01,0,Simulador!$V$16) -> 0 | AC110: 0 | AD110: 0 | AE110: 0 | AF110: 0 | AG110: 0 | AI110: 0 | AJ110: 88
B111: 89 | C111: 7 | D111: 5 | E111: =IF(D111=1,MAX(E110-0.0025,Simulador!$K$10),E110) -> 0.1025 | F111: 0 | G111: 0 | H111: 0 | I111: 0 | J111: 0 | K111: =IF(F111<0.01,0,F111/1000*IF(Simulador!$X$8=1,0,Simulador!$V$14)+IF($D$8>0,$D$8,$D$7)/1000*IF(Simulador!$X$8=1,0,Simulador!$V$15)) -> 0 | L111: 0 | M111: =MAX(0,MIN(F110+G111+K111+L111-(I111+K111+L111),Simulador!$K$45)) -> 0 | O111: 0 | P111: 0 | S111: 0 | T111: 0 | U111: 0 | W111: 0 | X111: 0 | Y111: 0 | Z111: 0 | AA111: =IF(W110<0.01,0,+W110/1000*Simulador!$V$14+IF($D$8>0,$D$8,$D$7)/1000*Simulador!$V$15) -> 0 | AB111: =IF(W110<0.01,0,Simulador!$V$16) -> 0 | AC111: 0 | AD111: 0 | AE111: 0 | AF111: 0 | AG111: 0 | AI111: 0 | AJ111: 89
B112: 90 | C112: 7 | D112: 6 | E112: =IF(D112=1,MAX(E111-0.0025,Simulador!$K$10),E111) -> 0.1025 | F112: 0 | G112: 0 | H112: 0 | I112: 0 | J112: 0 | K112: =IF(F112<0.01,0,F112/1000*IF(Simulador!$X$8=1,0,Simulador!$V$14)+IF($D$8>0,$D$8,$D$7)/1000*IF(Simulador!$X$8=1,0,Simulador!$V$15)) -> 0 | L112: =IF(F111-H112=0,0,L110) -> 0 | M112: =MAX(0,MIN(F111+G112+K112+L112-(I112+K112+L112),Simulador!$K$45)) -> 0 | O112: 0 | P112: 0 | S112: 0 | T112: 0 | U112: 0 | W112: 0 | X112: 0 | Y112: 0 | Z112: 0 | AA112: =IF(W111<0.01,0,+W111/1000*Simulador!$V$14+IF($D$8>0,$D$8,$D$7)/1000*Simulador!$V$15) -> 0 | AB112: =IF(W111<0.01,0,Simulador!$V$16) -> 0 | AC112: 0 | AD112: 0 | AE112: 0 | AF112: 0 | AG112: 0 | AI112: 0 | AJ112: 90
B113: 91 | C113: 7 | D113: 7 | E113: =IF(D113=1,MAX(E112-0.0025,Simulador!$K$10),E112) -> 0.1025 | F113: 0 | G113: 0 | H113: 0 | I113: 0 | J113: 0 | K113: =IF(F113<0.01,0,F113/1000*IF(Simulador!$X$8=1,0,Simulador!$V$14)+IF($D$8>0,$D$8,$D$7)/1000*IF(Simulador!$X$8=1,0,Simulador!$V$15)) -> 0 | L113: 0 | M113: =MAX(0,MIN(F112+G113+K113+L113-(I113+K113+L113),Simulador!$K$45)) -> 0 | O113: 0 | P113: 0 | S113: 0 | T113: 0 | U113: 0 | W113: 0 | X113: 0 | Y113: 0 | Z113: 0 | AA113: =IF(W112<0.01,0,+W112/1000*Simulador!$V$14+IF($D$8>0,$D$8,$D$7)/1000*Simulador!$V$15) -> 0 | AB113: =IF(W112<0.01,0,Simulador!$V$16) -> 0 | AC113: 0 | AD113: 0 | AE113: 0 | AF113: 0 | AG113: 0 | AI113: 0 | AJ113: 91
B114: 92 | C114: 7 | D114: 8 | E114: =IF(D114=1,MAX(E113-0.0025,Simulador!$K$10),E113) -> 0.1025 | F114: 0 | G114: 0 | H114: 0 | I114: 0 | J114: 0 | K114: =IF(F114<0.01,0,F114/1000*IF(Simulador!$X$8=1,0,Simulador!$V$14)+IF($D$8>0,$D$8,$D$7)/1000*IF(Simulador!$X$8=1,0,Simulador!$V$15)) -> 0 | L114: =IF(F113-H114=0,0,L112) -> 0 | M114: =MAX(0,MIN(F113+G114+K114+L114-(I114+K114+L114),Simulador!$K$45)) -> 0 | O114: 0 | P114: 0 | S114: 0 | T114: 0 | U114: 0 | W114: 0 | X114: 0 | Y114: 0 | Z114: 0 | AA114: =IF(W113<0.01,0,+W113/1000*Simulador!$V$14+IF($D$8>0,$D$8,$D$7)/1000*Simulador!$V$15) -> 0 | AB114: =IF(W113<0.01,0,Simulador!$V$16) -> 0 | AC114: 0 | AD114: 0 | AE114: 0 | AF114: 0 | AG114: 0 | AI114: 0 | AJ114: 92
B115: 93 | C115: 7 | D115: 9 | E115: =IF(D115=1,MAX(E114-0.0025,Simulador!$K$10),E114) -> 0.1025 | F115: 0 | G115: 0 | H115: 0 | I115: 0 | J115: 0 | K115: =IF(F115<0.01,0,F115/1000*IF(Simulador!$X$8=1,0,Simulador!$V$14)+IF($D$8>0,$D$8,$D$7)/1000*IF(Simulador!$X$8=1,0,Simulador!$V$15)) -> 0 | L115: 0 | M115: =MAX(0,MIN(F114+G115+K115+L115-(I115+K115+L115),Simulador!$K$45)) -> 0 | O115: 0 | P115: 0 | S115: 0 | T115: 0 | U115: 0 | W115: 0 | X115: 0 | Y115: 0 | Z115: 0 | AA115: =IF(W114<0.01,0,+W114/1000*Simulador!$V$14+IF($D$8>0,$D$8,$D$7)/1000*Simulador!$V$15) -> 0 | AB115: =IF(W114<0.01,0,Simulador!$V$16) -> 0 | AC115: 0 | AD115: 0 | AE115: 0 | AF115: 0 | AG115: 0 | AI115: 0 | AJ115: 93
B116: 94 | C116: 7 | D116: 10 | E116: =IF(D116=1,MAX(E115-0.0025,Simulador!$K$10),E115) -> 0.1025 | F116: 0 | G116: 0 | H116: 0 | I116: 0 | J116: 0 | K116: =IF(F116<0.01,0,F116/1000*IF(Simulador!$X$8=1,0,Simulador!$V$14)+IF($D$8>0,$D$8,$D$7)/1000*IF(Simulador!$X$8=1,0,Simulador!$V$15)) -> 0 | L116: =IF(F115-H116=0,0,L114) -> 0 | M116: =MAX(0,MIN(F115+G116+K116+L116-(I116+K116+L116),Simulador!$K$45)) -> 0 | O116: 0 | P116: 0 | S116: 0 | T116: 0 | U116: 0 | W116: 0 | X116: 0 | Y116: 0 | Z116: 0 | AA116: =IF(W115<0.01,0,+W115/1000*Simulador!$V$14+IF($D$8>0,$D$8,$D$7)/1000*Simulador!$V$15) -> 0 | AB116: =IF(W115<0.01,0,Simulador!$V$16) -> 0 | AC116: 0 | AD116: 0 | AE116: 0 | AF116: 0 | AG116: 0 | AI116: 0 | AJ116: 94
B117: 95 | C117: 7 | D117: 11 | E117: =IF(D117=1,MAX(E116-0.0025,Simulador!$K$10),E116) -> 0.1025 | F117: 0 | G117: 0 | H117: 0 | I117: 0 | J117: 0 | K117: =IF(F117<0.01,0,F117/1000*IF(Simulador!$X$8=1,0,Simulador!$V$14)+IF($D$8>0,$D$8,$D$7)/1000*IF(Simulador!$X$8=1,0,Simulador!$V$15)) -> 0 | L117: 0 | M117: =MAX(0,MIN(F116+G117+K117+L117-(I117+K117+L117),Simulador!$K$45)) -> 0 | O117: 0 | P117: 0 | S117: 0 | T117: 0 | U117: 0 | W117: 0 | X117: 0 | Y117: 0 | Z117: 0 | AA117: =IF(W116<0.01,0,+W116/1000*Simulador!$V$14+IF($D$8>0,$D$8,$D$7)/1000*Simulador!$V$15) -> 0 | AB117: =IF(W116<0.01,0,Simulador!$V$16) -> 0 | AC117: 0 | AD117: 0 | AE117: 0 | AF117: 0 | AG117: 0 | AI117: 0 | AJ117: 95
B118: 96 | C118: 7 | D118: 12 | E118: =IF(D118=1,MAX(E117-0.0025,Simulador!$K$10),E117) -> 0.1025 | F118: 0 | G118: 0 | H118: 0 | I118: 0 | J118: 0 | K118: =IF(F118<0.01,0,F118/1000*IF(Simulador!$X$8=1,0,Simulador!$V$14)+IF($D$8>0,$D$8,$D$7)/1000*IF(Simulador!$X$8=1,0,Simulador!$V$15)) -> 0 | L118: =IF(F117-H118=0,0,L116) -> 0 | M118: =MAX(0,MIN(F117+G118+K118+L118-(I118+K118+L118),Simulador!$K$45)) -> 0 | O118: 0 | P118: 0 | S118: 0 | T118: 0 | U118: 0 | W118: 0 | X118: 0 | Y118: 0 | Z118: 0 | AA118: =IF(W117<0.01,0,+W117/1000*Simulador!$V$14+IF($D$8>0,$D$8,$D$7)/1000*Simulador!$V$15) -> 0 | AB118: =IF(W117<0.01,0,Simulador!$V$16) -> 0 | AC118: 0 | AD118: 0 | AE118: 0 | AF118: 0 | AG118: 0 | AI118: 0 | AJ118: 96
B119: 97 | C119: 8 | D119: 1 | E119: =IF(D119=1,MAX(E118-0.0025,Simulador!$K$10),E118) -> 0.1025 | F119: 0 | G119: 0 | H119: 0 | I119: 0 | J119: 0.026 | K119: =IF(F119<0.01,0,F119/1000*IF(Simulador!$X$8=1,0,Simulador!$V$14)+IF($D$8>0,$D$8,$D$7)/1000*IF(Simulador!$X$8=1,0,Simulador!$V$15)) -> 0 | L119: 0 | M119: =MAX(0,MIN(F118+G119+K119+L119-(I119+K119+L119),Simulador!$K$45)) -> 0 | O119: 0 | P119: 0 | S119: 0 | T119: 0 | U119: 0 | W119: 0 | X119: 0 | Y119: 0 | Z119: 0 | AA119: =IF(W118<0.01,0,+W118/1000*Simulador!$V$14+IF($D$8>0,$D$8,$D$7)/1000*Simulador!$V$15) -> 0 | AB119: =IF(W118<0.01,0,Simulador!$V$16) -> 0 | AC119: 0 | AD119: 0 | AE119: 0 | AF119: 0 | AG119: 0 | AI119: 0 | AJ119: 97
B120: 98 | C120: 8 | D120: 2 | E120: =IF(D120=1,MAX(E119-0.0025,Simulador!$K$10),E119) -> 0.1025 | F120: 0 | G120: 0 | H120: 0 | I120: 0 | J120: 0 | K120: =IF(F120<0.01,0,F120/1000*IF(Simulador!$X$8=1,0,Simulador!$V$14)+IF($D$8>0,$D$8,$D$7)/1000*IF(Simulador!$X$8=1,0,Simulador!$V$15)) -> 0 | L120: =IF(F119-H120=0,0,L118*(1+Simulador!$AH$28)) -> 0 | M120: =MAX(0,MIN(F119+G120+K120+L120-(I120+K120+L120),Simulador!$K$45)) -> 0 | O120: 0 | P120: 0 | S120: 0 | T120: 0 | U120: 0 | W120: 0 | X120: 0 | Y120: 0 | Z120: 0 | AA120: =IF(W119<0.01,0,+W119/1000*Simulador!$V$14+IF($D$8>0,$D$8,$D$7)/1000*Simulador!$V$15) -> 0 | AB120: =IF(W119<0.01,0,Simulador!$V$16) -> 0 | AC120: 0 | AD120: 0 | AE120: 0 | AF120: 0 | AG120: 0 | AI120: 0 | AJ120: 98
B121: 99 | C121: 8 | D121: 3 | E121: =IF(D121=1,MAX(E120-0.0025,Simulador!$K$10),E120) -> 0.1025 | F121: 0 | G121: 0 | H121: 0 | I121: 0 | J121: 0 | K121: =IF(F121<0.01,0,F121/1000*IF(Simulador!$X$8=1,0,Simulador!$V$14)+IF($D$8>0,$D$8,$D$7)/1000*IF(Simulador!$X$8=1,0,Simulador!$V$15)) -> 0 | L121: 0 | M121: =MAX(0,MIN(F120+G121+K121+L121-(I121+K121+L121),Simulador!$K$45)) -> 0 | O121: 0 | P121: 0 | S121: 0 | T121: 0 | U121: 0 | W121: 0 | X121: 0 | Y121: 0 | Z121: 0 | AA121: =IF(W120<0.01,0,+W120/1000*Simulador!$V$14+IF($D$8>0,$D$8,$D$7)/1000*Simulador!$V$15) -> 0 | AB121: =IF(W120<0.01,0,Simulador!$V$16) -> 0 | AC121: 0 | AD121: 0 | AE121: 0 | AF121: 0 | AG121: 0 | AI121: 0 | AJ121: 99
B122: 100 | C122: 8 | D122: 4 | E122: =IF(D122=1,MAX(E121-0.0025,Simulador!$K$10),E121) -> 0.1025 | F122: 0 | G122: 0 | H122: 0 | I122: 0 | J122: 0 | K122: =IF(F122<0.01,0,F122/1000*IF(Simulador!$X$8=1,0,Simulador!$V$14)+IF($D$8>0,$D$8,$D$7)/1000*IF(Simulador!$X$8=1,0,Simulador!$V$15)) -> 0 | L122: =IF(F121-H122=0,0,L120) -> 0 | M122: =MAX(0,MIN(F121+G122+K122+L122-(I122+K122+L122),Simulador!$K$45)) -> 0 | O122: 0 | P122: 0 | S122: 0 | T122: 0 | U122: 0 | W122: 0 | X122: 0 | Y122: 0 | Z122: 0 | AA122: =IF(W121<0.01,0,+W121/1000*Simulador!$V$14+IF($D$8>0,$D$8,$D$7)/1000*Simulador!$V$15) -> 0 | AB122: =IF(W121<0.01,0,Simulador!$V$16) -> 0 | AC122: 0 | AD122: 0 | AE122: 0 | AF122: 0 | AG122: 0 | AI122: 0 | AJ122: 100
B123: 101 | C123: 8 | D123: 5 | E123: =IF(D123=1,MAX(E122-0.0025,Simulador!$K$10),E122) -> 0.1025 | F123: 0 | G123: 0 | H123: 0 | I123: 0 | J123: 0 | K123: =IF(F123<0.01,0,F123/1000*IF(Simulador!$X$8=1,0,Simulador!$V$14)+IF($D$8>0,$D$8,$D$7)/1000*IF(Simulador!$X$8=1,0,Simulador!$V$15)) -> 0 | L123: 0 | M123: =MAX(0,MIN(F122+G123+K123+L123-(I123+K123+L123),Simulador!$K$45)) -> 0 | O123: 0 | P123: 0 | S123: 0 | T123: 0 | U123: 0 | W123: 0 | X123: 0 | Y123: 0 | Z123: 0 | AA123: =IF(W122<0.01,0,+W122/1000*Simulador!$V$14+IF($D$8>0,$D$8,$D$7)/1000*Simulador!$V$15) -> 0 | AB123: =IF(W122<0.01,0,Simulador!$V$16) -> 0 | AC123: 0 | AD123: 0 | AE123: 0 | AF123: 0 | AG123: 0 | AI123: 0 | AJ123: 101
B124: 102 | C124: 8 | D124: 6 | E124: =IF(D124=1,MAX(E123-0.0025,Simulador!$K$10),E123) -> 0.1025 | F124: 0 | G124: 0 | H124: 0 | I124: 0 | J124: 0 | K124: =IF(F124<0.01,0,F124/1000*IF(Simulador!$X$8=1,0,Simulador!$V$14)+IF($D$8>0,$D$8,$D$7)/1000*IF(Simulador!$X$8=1,0,Simulador!$V$15)) -> 0 | L124: =IF(F123-H124=0,0,L122) -> 0 | M124: =MAX(0,MIN(F123+G124+K124+L124-(I124+K124+L124),Simulador!$K$45)) -> 0 | O124: 0 | P124: 0 | S124: 0 | T124: 0 | U124: 0 | W124: 0 | X124: 0 | Y124: 0 | Z124: 0 | AA124: =IF(W123<0.01,0,+W123/1000*Simulador!$V$14+IF($D$8>0,$D$8,$D$7)/1000*Simulador!$V$15) -> 0 | AB124: =IF(W123<0.01,0,Simulador!$V$16) -> 0 | AC124: 0 | AD124: 0 | AE124: 0 | AF124: 0 | AG124: 0 | AI124: 0 | AJ124: 102
B125: 103 | C125: 8 | D125: 7 | E125: =IF(D125=1,MAX(E124-0.0025,Simulador!$K$10),E124) -> 0.1025 | F125: 0 | G125: 0 | H125: 0 | I125: 0 | J125: 0 | K125: =IF(F125<0.01,0,F125/1000*IF(Simulador!$X$8=1,0,Simulador!$V$14)+IF($D$8>0,$D$8,$D$7)/1000*IF(Simulador!$X$8=1,0,Simulador!$V$15)) -> 0 | L125: 0 | M125: =MAX(0,MIN(F124+G125+K125+L125-(I125+K125+L125),Simulador!$K$45)) -> 0 | O125: 0 | P125: 0 | S125: 0 | T125: 0 | U125: 0 | W125: 0 | X125: 0 | Y125: 0 | Z125: 0 | AA125: =IF(W124<0.01,0,+W124/1000*Simulador!$V$14+IF($D$8>0,$D$8,$D$7)/1000*Simulador!$V$15) -> 0 | AB125: =IF(W124<0.01,0,Simulador!$V$16) -> 0 | AC125: 0 | AD125: 0 | AE125: 0 | AF125: 0 | AG125: 0 | AI125: 0 | AJ125: 103
B126: 104 | C126: 8 | D126: 8 | E126: =IF(D126=1,MAX(E125-0.0025,Simulador!$K$10),E125) -> 0.1025 | F126: 0 | G126: 0 | H126: 0 | I126: 0 | J126: 0 | K126: =IF(F126<0.01,0,F126/1000*IF(Simulador!$X$8=1,0,Simulador!$V$14)+IF($D$8>0,$D$8,$D$7)/1000*IF(Simulador!$X$8=1,0,Simulador!$V$15)) -> 0 | L126: =IF(F125-H126=0,0,L124) -> 0 | M126: =MAX(0,MIN(F125+G126+K126+L126-(I126+K126+L126),Simulador!$K$45)) -> 0 | O126: 0 | P126: 0 | S126: 0 | T126: 0 | U126: 0 | W126: 0 | X126: 0 | Y126: 0 | Z126: 0 | AA126: =IF(W125<0.01,0,+W125/1000*Simulador!$V$14+IF($D$8>0,$D$8,$D$7)/1000*Simulador!$V$15) -> 0 | AB126: =IF(W125<0.01,0,Simulador!$V$16) -> 0 | AC126: 0 | AD126: 0 | AE126: 0 | AF126: 0 | AG126: 0 | AI126: 0 | AJ126: 104
B127: 105 | C127: 8 | D127: 9 | E127: =IF(D127=1,MAX(E126-0.0025,Simulador!$K$10),E126) -> 0.1025 | F127: 0 | G127: 0 | H127: 0 | I127: 0 | J127: 0 | K127: =IF(F127<0.01,0,F127/1000*IF(Simulador!$X$8=1,0,Simulador!$V$14)+IF($D$8>0,$D$8,$D$7)/1000*IF(Simulador!$X$8=1,0,Simulador!$V$15)) -> 0 | L127: 0 | M127: =MAX(0,MIN(F126+G127+K127+L127-(I127+K127+L127),Simulador!$K$45)) -> 0 | O127: 0 | P127: 0 | S127: 0 | T127: 0 | U127: 0 | W127: 0 | X127: 0 | Y127: 0 | Z127: 0 | AA127: =IF(W126<0.01,0,+W126/1000*Simulador!$V$14+IF($D$8>0,$D$8,$D$7)/1000*Simulador!$V$15) -> 0 | AB127: =IF(W126<0.01,0,Simulador!$V$16) -> 0 | AC127: 0 | AD127: 0 | AE127: 0 | AF127: 0 | AG127: 0 | AI127: 0 | AJ127: 105
B128: 106 | C128: 8 | D128: 10 | E128: =IF(D128=1,MAX(E127-0.0025,Simulador!$K$10),E127) -> 0.1025 | F128: 0 | G128: 0 | H128: 0 | I128: 0 | J128: 0 | K128: =IF(F128<0.01,0,F128/1000*IF(Simulador!$X$8=1,0,Simulador!$V$14)+IF($D$8>0,$D$8,$D$7)/1000*IF(Simulador!$X$8=1,0,Simulador!$V$15)) -> 0 | L128: =IF(F127-H128=0,0,L126) -> 0 | M128: =MAX(0,MIN(F127+G128+K128+L128-(I128+K128+L128),Simulador!$K$45)) -> 0 | O128: 0 | P128: 0 | S128: 0 | T128: 0 | U128: 0 | W128: 0 | X128: 0 | Y128: 0 | Z128: 0 | AA128: =IF(W127<0.01,0,+W127/1000*Simulador!$V$14+IF($D$8>0,$D$8,$D$7)/1000*Simulador!$V$15) -> 0 | AB128: =IF(W127<0.01,0,Simulador!$V$16) -> 0 | AC128: 0 | AD128: 0 | AE128: 0 | AF128: 0 | AG128: 0 | AI128: 0 | AJ128: 106
B129: 107 | C129: 8 | D129: 11 | E129: =IF(D129=1,MAX(E128-0.0025,Simulador!$K$10),E128) -> 0.1025 | F129: 0 | G129: 0 | H129: 0 | I129: 0 | J129: 0 | K129: =IF(F129<0.01,0,F129/1000*IF(Simulador!$X$8=1,0,Simulador!$V$14)+IF($D$8>0,$D$8,$D$7)/1000*IF(Simulador!$X$8=1,0,Simulador!$V$15)) -> 0 | L129: 0 | M129: =MAX(0,MIN(F128+G129+K129+L129-(I129+K129+L129),Simulador!$K$45)) -> 0 | O129: 0 | P129: 0 | S129: 0 | T129: 0 | U129: 0 | W129: 0 | X129: 0 | Y129: 0 | Z129: 0 | AA129: =IF(W128<0.01,0,+W128/1000*Simulador!$V$14+IF($D$8>0,$D$8,$D$7)/1000*Simulador!$V$15) -> 0 | AB129: =IF(W128<0.01,0,Simulador!$V$16) -> 0 | AC129: 0 | AD129: 0 | AE129: 0 | AF129: 0 | AG129: 0 | AI129: 0 | AJ129: 107
B130: 108 | C130: 8 | D130: 12 | E130: =IF(D130=1,MAX(E129-0.0025,Simulador!$K$10),E129) -> 0.1025 | F130: 0 | G130: 0 | H130: 0 | I130: 0 | J130: 0 | K130: =IF(F130<0.01,0,F130/1000*IF(Simulador!$X$8=1,0,Simulador!$V$14)+IF($D$8>0,$D$8,$D$7)/1000*IF(Simulador!$X$8=1,0,Simulador!$V$15)) -> 0 | L130: =IF(F129-H130=0,0,L128) -> 0 | M130: =MAX(0,MIN(F129+G130+K130+L130-(I130+K130+L130),Simulador!$K$45)) -> 0 | O130: 0 | P130: 0 | S130: 0 | T130: 0 | U130: 0 | W130: 0 | X130: 0 | Y130: 0 | Z130: 0 | AA130: =IF(W129<0.01,0,+W129/1000*Simulador!$V$14+IF($D$8>0,$D$8,$D$7)/1000*Simulador!$V$15) -> 0 | AB130: =IF(W129<0.01,0,Simulador!$V$16) -> 0 | AC130: 0 | AD130: 0 | AE130: 0 | AF130: 0 | AG130: 0 | AI130: 0 | AJ130: 108
B131: 109 | C131: 9 | D131: 1 | E131: =IF(D131=1,MAX(E130-0.0025,Simulador!$K$10),E130) -> 0.1025 | F131: 0 | G131: 0 | H131: 0 | I131: 0 | J131: 0.026 | K131: =IF(F131<0.01,0,F131/1000*IF(Simulador!$X$8=1,0,Simulador!$V$14)+IF($D$8>0,$D$8,$D$7)/1000*IF(Simulador!$X$8=1,0,Simulador!$V$15)) -> 0 | L131: 0 | M131: =MAX(0,MIN(F130+G131+K131+L131-(I131+K131+L131),Simulador!$K$45)) -> 0 | O131: 0 | P131: 0 | S131: 0 | T131: 0 | U131: 0 | W131: 0 | X131: 0 | Y131: 0 | Z131: 0 | AA131: =IF(W130<0.01,0,+W130/1000*Simulador!$V$14+IF($D$8>0,$D$8,$D$7)/1000*Simulador!$V$15) -> 0 | AB131: =IF(W130<0.01,0,Simulador!$V$16) -> 0 | AC131: 0 | AD131: 0 | AE131: 0 | AF131: 0 | AG131: 0 | AI131: 0 | AJ131: 109
B132: 110 | C132: 9 | D132: 2 | E132: =IF(D132=1,MAX(E131-0.0025,Simulador!$K$10),E131) -> 0.1025 | F132: 0 | G132: 0 | H132: 0 | I132: 0 | J132: 0 | K132: =IF(F132<0.01,0,F132/1000*IF(Simulador!$X$8=1,0,Simulador!$V$14)+IF($D$8>0,$D$8,$D$7)/1000*IF(Simulador!$X$8=1,0,Simulador!$V$15)) -> 0 | L132: =IF(F131-H132=0,0,L130*(1+Simulador!$AH$28)) -> 0 | M132: =MAX(0,MIN(F131+G132+K132+L132-(I132+K132+L132),Simulador!$K$45)) -> 0 | O132: 0 | P132: 0 | S132: 0 | T132: 0 | U132: 0 | W132: 0 | X132: 0 | Y132: 0 | Z132: 0 | AA132: =IF(W131<0.01,0,+W131/1000*Simulador!$V$14+IF($D$8>0,$D$8,$D$7)/1000*Simulador!$V$15) -> 0 | AB132: =IF(W131<0.01,0,Simulador!$V$16) -> 0 | AC132: 0 | AD132: 0 | AE132: 0 | AF132: 0 | AG132: 0 | AI132: 0 | AJ132: 110
B133: 111 | C133: 9 | D133: 3 | E133: =IF(D133=1,MAX(E132-0.0025,Simulador!$K$10),E132) -> 0.1025 | F133: 0 | G133: 0 | H133: 0 | I133: 0 | J133: 0 | K133: =IF(F133<0.01,0,F133/1000*IF(Simulador!$X$8=1,0,Simulador!$V$14)+IF($D$8>0,$D$8,$D$7)/1000*IF(Simulador!$X$8=1,0,Simulador!$V$15)) -> 0 | L133: 0 | M133: =MAX(0,MIN(F132+G133+K133+L133-(I133+K133+L133),Simulador!$K$45)) -> 0 | O133: 0 | P133: 0 | S133: 0 | T133: 0 | U133: 0 | W133: 0 | X133: 0 | Y133: 0 | Z133: 0 | AA133: =IF(W132<0.01,0,+W132/1000*Simulador!$V$14+IF($D$8>0,$D$8,$D$7)/1000*Simulador!$V$15) -> 0 | AB133: =IF(W132<0.01,0,Simulador!$V$16) -> 0 | AC133: 0 | AD133: 0 | AE133: 0 | AF133: 0 | AG133: 0 | AI133: 0 | AJ133: 111
B134: 112 | C134: 9 | D134: 4 | E134: =IF(D134=1,MAX(E133-0.0025,Simulador!$K$10),E133) -> 0.1025 | F134: 0 | G134: 0 | H134: 0 | I134: 0 | J134: 0 | K134: =IF(F134<0.01,0,F134/1000*IF(Simulador!$X$8=1,0,Simulador!$V$14)+IF($D$8>0,$D$8,$D$7)/1000*IF(Simulador!$X$8=1,0,Simulador!$V$15)) -> 0 | L134: =IF(F133-H134=0,0,L132) -> 0 | M134: =MAX(0,MIN(F133+G134+K134+L134-(I134+K134+L134),Simulador!$K$45)) -> 0 | O134: 0 | P134: 0 | S134: 0 | T134: 0 | U134: 0 | W134: 0 | X134: 0 | Y134: 0 | Z134: 0 | AA134: =IF(W133<0.01,0,+W133/1000*Simulador!$V$14+IF($D$8>0,$D$8,$D$7)/1000*Simulador!$V$15) -> 0 | AB134: =IF(W133<0.01,0,Simulador!$V$16) -> 0 | AC134: 0 | AD134: 0 | AE134: 0 | AF134: 0 | AG134: 0 | AI134: 0 | AJ134: 112
B135: 113 | C135: 9 | D135: 5 | E135: =IF(D135=1,MAX(E134-0.0025,Simulador!$K$10),E134) -> 0.1025 | F135: 0 | G135: 0 | H135: 0 | I135: 0 | J135: 0 | K135: =IF(F135<0.01,0,F135/1000*IF(Simulador!$X$8=1,0,Simulador!$V$14)+IF($D$8>0,$D$8,$D$7)/1000*IF(Simulador!$X$8=1,0,Simulador!$V$15)) -> 0 | L135: 0 | M135: =MAX(0,MIN(F134+G135+K135+L135-(I135+K135+L135),Simulador!$K$45)) -> 0 | O135: 0 | P135: 0 | S135: 0 | T135: 0 | U135: 0 | W135: 0 | X135: 0 | Y135: 0 | Z135: 0 | AA135: =IF(W134<0.01,0,+W134/1000*Simulador!$V$14+IF($D$8>0,$D$8,$D$7)/1000*Simulador!$V$15) -> 0 | AB135: =IF(W134<0.01,0,Simulador!$V$16) -> 0 | AC135: 0 | AD135: 0 | AE135: 0 | AF135: 0 | AG135: 0 | AI135: 0 | AJ135: 113
B136: 114 | C136: 9 | D136: 6 | E136: =IF(D136=1,MAX(E135-0.0025,Simulador!$K$10),E135) -> 0.1025 | F136: 0 | G136: 0 | H136: 0 | I136: 0 | J136: 0 | K136: =IF(F136<0.01,0,F136/1000*IF(Simulador!$X$8=1,0,Simulador!$V$14)+IF($D$8>0,$D$8,$D$7)/1000*IF(Simulador!$X$8=1,0,Simulador!$V$15)) -> 0 | L136: =IF(F135-H136=0,0,L134) -> 0 | M136: =MAX(0,MIN(F135+G136+K136+L136-(I136+K136+L136),Simulador!$K$45)) -> 0 | O136: 0 | P136: 0 | S136: 0 | T136: 0 | U136: 0 | W136: 0 | X136: 0 | Y136: 0 | Z136: 0 | AA136: =IF(W135<0.01,0,+W135/1000*Simulador!$V$14+IF($D$8>0,$D$8,$D$7)/1000*Simulador!$V$15) -> 0 | AB136: =IF(W135<0.01,0,Simulador!$V$16) -> 0 | AC136: 0 | AD136: 0 | AE136: 0 | AF136: 0 | AG136: 0 | AI136: 0 | AJ136: 114
B137: 115 | C137: 9 | D137: 7 | E137: =IF(D137=1,MAX(E136-0.0025,Simulador!$K$10),E136) -> 0.1025 | F137: 0 | G137: 0 | H137: 0 | I137: 0 | J137: 0 | K137: =IF(F137<0.01,0,F137/1000*IF(Simulador!$X$8=1,0,Simulador!$V$14)+IF($D$8>0,$D$8,$D$7)/1000*IF(Simulador!$X$8=1,0,Simulador!$V$15)) -> 0 | L137: 0 | M137: =MAX(0,MIN(F136+G137+K137+L137-(I137+K137+L137),Simulador!$K$45)) -> 0 | O137: 0 | P137: 0 | S137: 0 | T137: 0 | U137: 0 | W137: 0 | X137: 0 | Y137: 0 | Z137: 0 | AA137: =IF(W136<0.01,0,+W136/1000*Simulador!$V$14+IF($D$8>0,$D$8,$D$7)/1000*Simulador!$V$15) -> 0 | AB137: =IF(W136<0.01,0,Simulador!$V$16) -> 0 | AC137: 0 | AD137: 0 | AE137: 0 | AF137: 0 | AG137: 0 | AI137: 0 | AJ137: 115
B138: 116 | C138: 9 | D138: 8 | E138: =IF(D138=1,MAX(E137-0.0025,Simulador!$K$10),E137) -> 0.1025 | F138: 0 | G138: 0 | H138: 0 | I138: 0 | J138: 0 | K138: =IF(F138<0.01,0,F138/1000*IF(Simulador!$X$8=1,0,Simulador!$V$14)+IF($D$8>0,$D$8,$D$7)/1000*IF(Simulador!$X$8=1,0,Simulador!$V$15)) -> 0 | L138: =IF(F137-H138=0,0,L136) -> 0 | M138: =MAX(0,MIN(F137+G138+K138+L138-(I138+K138+L138),Simulador!$K$45)) -> 0 | O138: 0 | P138: 0 | S138: 0 | T138: 0 | U138: 0 | W138: 0 | X138: 0 | Y138: 0 | Z138: 0 | AA138: =IF(W137<0.01,0,+W137/1000*Simulador!$V$14+IF($D$8>0,$D$8,$D$7)/1000*Simulador!$V$15) -> 0 | AB138: =IF(W137<0.01,0,Simulador!$V$16) -> 0 | AC138: 0 | AD138: 0 | AE138: 0 | AF138: 0 | AG138: 0 | AI138: 0 | AJ138: 116
B139: 117 | C139: 9 | D139: 9 | E139: =IF(D139=1,MAX(E138-0.0025,Simulador!$K$10),E138) -> 0.1025 | F139: 0 | G139: 0 | H139: 0 | I139: 0 | J139: 0 | K139: =IF(F139<0.01,0,F139/1000*IF(Simulador!$X$8=1,0,Simulador!$V$14)+IF($D$8>0,$D$8,$D$7)/1000*IF(Simulador!$X$8=1,0,Simulador!$V$15)) -> 0 | L139: 0 | M139: =MAX(0,MIN(F138+G139+K139+L139-(I139+K139+L139),Simulador!$K$45)) -> 0 | O139: 0 | P139: 0 | S139: 0 | T139: 0 | U139: 0 | W139: 0 | X139: 0 | Y139: 0 | Z139: 0 | AA139: =IF(W138<0.01,0,+W138/1000*Simulador!$V$14+IF($D$8>0,$D$8,$D$7)/1000*Simulador!$V$15) -> 0 | AB139: =IF(W138<0.01,0,Simulador!$V$16) -> 0 | AC139: 0 | AD139: 0 | AE139: 0 | AF139: 0 | AG139: 0 | AI139: 0 | AJ139: 117
B140: 118 | C140: 9 | D140: 10 | E140: =IF(D140=1,MAX(E139-0.0025,Simulador!$K$10),E139) -> 0.1025 | F140: 0 | G140: 0 | H140: 0 | I140: 0 | J140: 0 | K140: =IF(F140<0.01,0,F140/1000*IF(Simulador!$X$8=1,0,Simulador!$V$14)+IF($D$8>0,$D$8,$D$7)/1000*IF(Simulador!$X$8=1,0,Simulador!$V$15)) -> 0 | L140: =IF(F139-H140=0,0,L138) -> 0 | M140: =MAX(0,MIN(F139+G140+K140+L140-(I140+K140+L140),Simulador!$K$45)) -> 0 | O140: 0 | P140: 0 | S140: 0 | T140: 0 | U140: 0 | W140: 0 | X140: 0 | Y140: 0 | Z140: 0 | AA140: =IF(W139<0.01,0,+W139/1000*Simulador!$V$14+IF($D$8>0,$D$8,$D$7)/1000*Simulador!$V$15) -> 0 | AB140: =IF(W139<0.01,0,Simulador!$V$16) -> 0 | AC140: 0 | AD140: 0 | AE140: 0 | AF140: 0 | AG140: 0 | AI140: 0 | AJ140: 118
B141: 119 | C141: 9 | D141: 11 | E141: =IF(D141=1,MAX(E140-0.0025,Simulador!$K$10),E140) -> 0.1025 | F141: 0 | G141: 0 | H141: 0 | I141: 0 | J141: 0 | K141: =IF(F141<0.01,0,F141/1000*IF(Simulador!$X$8=1,0,Simulador!$V$14)+IF($D$8>0,$D$8,$D$7)/1000*IF(Simulador!$X$8=1,0,Simulador!$V$15)) -> 0 | L141: 0 | M141: =MAX(0,MIN(F140+G141+K141+L141-(I141+K141+L141),Simulador!$K$45)) -> 0 | O141: 0 | P141: 0 | S141: 0 | T141: 0 | U141: 0 | W141: 0 | X141: 0 | Y141: 0 | Z141: 0 | AA141: =IF(W140<0.01,0,+W140/1000*Simulador!$V$14+IF($D$8>0,$D$8,$D$7)/1000*Simulador!$V$15) -> 0 | AB141: =IF(W140<0.01,0,Simulador!$V$16) -> 0 | AC141: 0 | AD141: 0 | AE141: 0 | AF141: 0 | AG141: 0 | AI141: 0 | AJ141: 119
B142: 120 | C142: 9 | D142: 12 | E142: =IF(D142=1,MAX(E141-0.0025,Simulador!$K$10),E141) -> 0.1025 | F142: 0 | G142: 0 | H142: 0 | I142: 0 | J142: 0 | K142: =IF(F142<0.01,0,F142/1000*IF(Simulador!$X$8=1,0,Simulador!$V$14)+IF($D$8>0,$D$8,$D$7)/1000*IF(Simulador!$X$8=1,0,Simulador!$V$15)) -> 0 | L142: =IF(F141-H142=0,0,L140) -> 0 | M142: =MAX(0,MIN(F141+G142+K142+L142-(I142+K142+L142),Simulador!$K$45)) -> 0 | O142: 0 | P142: 0 | S142: 0 | T142: 0 | U142: 0 | W142: 0 | X142: 0 | Y142: 0 | Z142: 0 | AA142: =IF(W141<0.01,0,+W141/1000*Simulador!$V$14+IF($D$8>0,$D$8,$D$7)/1000*Simulador!$V$15) -> 0 | AB142: =IF(W141<0.01,0,Simulador!$V$16) -> 0 | AC142: 0 | AD142: 0 | AE142: 0 | AF142: 0 | AG142: 0 | AI142: 0 | AJ142: 120
B143: 121 | C143: 10 | D143: 1 | E143: =IF(D143=1,MAX(E142-0.0025,Simulador!$K$10),E142) -> 0.1025 | F143: 0 | G143: 0 | H143: 0 | I143: 0 | J143: 0.026 | K143: =IF(F143<0.01,0,F143/1000*IF(Simulador!$X$8=1,0,Simulador!$V$14)+IF($D$8>0,$D$8,$D$7)/1000*IF(Simulador!$X$8=1,0,Simulador!$V$15)) -> 0 | L143: 0 | M143: =MAX(0,MIN(F142+G143+K143+L143-(I143+K143+L143),Simulador!$K$45)) -> 0 | O143: 0 | P143: 0 | S143: 0 | T143: 0 | U143: 0 | W143: 0 | X143: 0 | Y143: 0 | Z143: 0 | AA143: =IF(W142<0.01,0,+W142/1000*Simulador!$V$14+IF($D$8>0,$D$8,$D$7)/1000*Simulador!$V$15) -> 0 | AB143: =IF(W142<0.01,0,Simulador!$V$16) -> 0 | AC143: 0 | AD143: 0 | AE143: 0 | AF143: 0 | AG143: 0 | AI143: 0 | AJ143: 121
B144: 122 | C144: 10 | D144: 2 | E144: =IF(D144=1,MAX(E143-0.0025,Simulador!$K$10),E143) -> 0.1025 | F144: 0 | G144: 0 | H144: 0 | I144: 0 | J144: 0 | K144: =IF(F144<0.01,0,F144/1000*IF(Simulador!$X$8=1,0,Simulador!$V$14)+IF($D$8>0,$D$8,$D$7)/1000*IF(Simulador!$X$8=1,0,Simulador!$V$15)) -> 0 | L144: =IF(F143-H144=0,0,L142*(1+Simulador!$AH$28)) -> 0 | M144: =MAX(0,MIN(F143+G144+K144+L144-(I144+K144+L144),Simulador!$K$45)) -> 0 | O144: 0 | P144: 0 | S144: 0 | T144: 0 | U144: 0 | W144: 0 | X144: 0 | Y144: 0 | Z144: 0 | AA144: =IF(W143<0.01,0,+W143/1000*Simulador!$V$14+IF($D$8>0,$D$8,$D$7)/1000*Simulador!$V$15) -> 0 | AB144: =IF(W143<0.01,0,Simulador!$V$16) -> 0 | AC144: 0 | AD144: 0 | AE144: 0 | AF144: 0 | AG144: 0 | AI144: 0 | AJ144: 122
B145: 123 | C145: 10 | D145: 3 | E145: =IF(D145=1,MAX(E144-0.0025,Simulador!$K$10),E144) -> 0.1025 | F145: 0 | G145: 0 | H145: 0 | I145: 0 | J145: 0 | K145: =IF(F145<0.01,0,F145/1000*IF(Simulador!$X$8=1,0,Simulador!$V$14)+IF($D$8>0,$D$8,$D$7)/1000*IF(Simulador!$X$8=1,0,Simulador!$V$15)) -> 0 | L145: 0 | M145: =MAX(0,MIN(F144+G145+K145+L145-(I145+K145+L145),Simulador!$K$45)) -> 0 | O145: 0 | P145: 0 | S145: 0 | T145: 0 | U145: 0 | W145: 0 | X145: 0 | Y145: 0 | Z145: 0 | AA145: =IF(W144<0.01,0,+W144/1000*Simulador!$V$14+IF($D$8>0,$D$8,$D$7)/1000*Simulador!$V$15) -> 0 | AB145: =IF(W144<0.01,0,Simulador!$V$16) -> 0 | AC145: 0 | AD145: 0 | AE145: 0 | AF145: 0 | AG145: 0 | AI145: 0 | AJ145: 123
B146: 124 | C146: 10 | D146: 4 | E146: =IF(D146=1,MAX(E145-0.0025,Simulador!$K$10),E145) -> 0.1025 | F146: 0 | G146: 0 | H146: 0 | I146: 0 | J146: 0 | K146: =IF(F146<0.01,0,F146/1000*IF(Simulador!$X$8=1,0,Simulador!$V$14)+IF($D$8>0,$D$8,$D$7)/1000*IF(Simulador!$X$8=1,0,Simulador!$V$15)) -> 0 | L146: =IF(F145-H146=0,0,L144) -> 0 | M146: =MAX(0,MIN(F145+G146+K146+L146-(I146+K146+L146),Simulador!$K$45)) -> 0 | O146: 0 | P146: 0 | S146: 0 | T146: 0 | U146: 0 | W146: 0 | X146: 0 | Y146: 0 | Z146: 0 | AA146: =IF(W145<0.01,0,+W145/1000*Simulador!$V$14+IF($D$8>0,$D$8,$D$7)/1000*Simulador!$V$15) -> 0 | AB146: =IF(W145<0.01,0,Simulador!$V$16) -> 0 | AC146: 0 | AD146: 0 | AE146: 0 | AF146: 0 | AG146: 0 | AI146: 0 | AJ146: 124
B147: 125 | C147: 10 | D147: 5 | E147: =IF(D147=1,MAX(E146-0.0025,Simulador!$K$10),E146) -> 0.1025 | F147: 0 | G147: 0 | H147: 0 | I147: 0 | J147: 0 | K147: =IF(F147<0.01,0,F147/1000*IF(Simulador!$X$8=1,0,Simulador!$V$14)+IF($D$8>0,$D$8,$D$7)/1000*IF(Simulador!$X$8=1,0,Simulador!$V$15)) -> 0 | L147: 0 | M147: =MAX(0,MIN(F146+G147+K147+L147-(I147+K147+L147),Simulador!$K$45)) -> 0 | O147: 0 | P147: 0 | S147: 0 | T147: 0 | U147: 0 | W147: 0 | X147: 0 | Y147: 0 | Z147: 0 | AA147: =IF(W146<0.01,0,+W146/1000*Simulador!$V$14+IF($D$8>0,$D$8,$D$7)/1000*Simulador!$V$15) -> 0 | AB147: =IF(W146<0.01,0,Simulador!$V$16) -> 0 | AC147: 0 | AD147: 0 | AE147: 0 | AF147: 0 | AG147: 0 | AI147: 0 | AJ147: 125
B148: 126 | C148: 10 | D148: 6 | E148: =IF(D148=1,MAX(E147-0.0025,Simulador!$K$10),E147) -> 0.1025 | F148: 0 | G148: 0 | H148: 0 | I148: 0 | J148: 0 | K148: =IF(F148<0.01,0,F148/1000*IF(Simulador!$X$8=1,0,Simulador!$V$14)+IF($D$8>0,$D$8,$D$7)/1000*IF(Simulador!$X$8=1,0,Simulador!$V$15)) -> 0 | L148: =IF(F147-H148=0,0,L146) -> 0 | M148: =MAX(0,MIN(F147+G148+K148+L148-(I148+K148+L148),Simulador!$K$45)) -> 0 | O148: 0 | P148: 0 | S148: 0 | T148: 0 | U148: 0 | W148: 0 | X148: 0 | Y148: 0 | Z148: 0 | AA148: =IF(W147<0.01,0,+W147/1000*Simulador!$V$14+IF($D$8>0,$D$8,$D$7)/1000*Simulador!$V$15) -> 0 | AB148: =IF(W147<0.01,0,Simulador!$V$16) -> 0 | AC148: 0 | AD148: 0 | AE148: 0 | AF148: 0 | AG148: 0 | AI148: 0 | AJ148: 126
B149: 127 | C149: 10 | D149: 7 | E149: =IF(D149=1,MAX(E148-0.0025,Simulador!$K$10),E148) -> 0.1025 | F149: 0 | G149: 0 | H149: 0 | I149: 0 | J149: 0 | K149: =IF(F149<0.01,0,F149/1000*IF(Simulador!$X$8=1,0,Simulador!$V$14)+IF($D$8>0,$D$8,$D$7)/1000*IF(Simulador!$X$8=1,0,Simulador!$V$15)) -> 0 | L149: 0 | M149: =MAX(0,MIN(F148+G149+K149+L149-(I149+K149+L149),Simulador!$K$45)) -> 0 | O149: 0 | P149: 0 | S149: 0 | T149: 0 | U149: 0 | W149: 0 | X149: 0 | Y149: 0 | Z149: 0 | AA149: =IF(W148<0.01,0,+W148/1000*Simulador!$V$14+IF($D$8>0,$D$8,$D$7)/1000*Simulador!$V$15) -> 0 | AB149: =IF(W148<0.01,0,Simulador!$V$16) -> 0 | AC149: 0 | AD149: 0 | AE149: 0 | AF149: 0 | AG149: 0 | AI149: 0 | AJ149: 127
B150: 128 | C150: 10 | D150: 8 | E150: =IF(D150=1,MAX(E149-0.0025,Simulador!$K$10),E149) -> 0.1025 | F150: 0 | G150: 0 | H150: 0 | I150: 0 | J150: 0 | K150: =IF(F150<0.01,0,F150/1000*IF(Simulador!$X$8=1,0,Simulador!$V$14)+IF($D$8>0,$D$8,$D$7)/1000*IF(Simulador!$X$8=1,0,Simulador!$V$15)) -> 0 | L150: =IF(F149-H150=0,0,L148) -> 0 | M150: =MAX(0,MIN(F149+G150+K150+L150-(I150+K150+L150),Simulador!$K$45)) -> 0 | O150: 0 | P150: 0 | S150: 0 | T150: 0 | U150: 0 | W150: 0 | X150: 0 | Y150: 0 | Z150: 0 | AA150: =IF(W149<0.01,0,+W149/1000*Simulador!$V$14+IF($D$8>0,$D$8,$D$7)/1000*Simulador!$V$15) -> 0 | AB150: =IF(W149<0.01,0,Simulador!$V$16) -> 0 | AC150: 0 | AD150: 0 | AE150: 0 | AF150: 0 | AG150: 0 | AI150: 0 | AJ150: 128
B151: 129 | C151: 10 | D151: 9 | E151: =IF(D151=1,MAX(E150-0.0025,Simulador!$K$10),E150) -> 0.1025 | F151: 0 | G151: 0 | H151: 0 | I151: 0 | J151: 0 | K151: =IF(F151<0.01,0,F151/1000*IF(Simulador!$X$8=1,0,Simulador!$V$14)+IF($D$8>0,$D$8,$D$7)/1000*IF(Simulador!$X$8=1,0,Simulador!$V$15)) -> 0 | L151: 0 | M151: =MAX(0,MIN(F150+G151+K151+L151-(I151+K151+L151),Simulador!$K$45)) -> 0 | O151: 0 | P151: 0 | S151: 0 | T151: =IF(AND(F150>0.01,F151<=0.01),B151,0) -> 0 | U151: 0 | W151: 0 | X151: 0 | Y151: 0 | Z151: 0 | AA151: =IF(W150<0.01,0,+W150/1000*Simulador!$V$14+IF($D$8>0,$D$8,$D$7)/1000*Simulador!$V$15) -> 0 | AB151: =IF(W150<0.01,0,Simulador!$V$16) -> 0 | AC151: 0 | AD151: 0 | AE151: 0 | AF151: 0 | AG151: 0 | AI151: 0 | AJ151: 129
B152: 130 | C152: 10 | D152: =IF(D151=12,1,D151+1) -> 10 | E152: =IF(D152=1,MAX(E151-0.0025,Simulador!$K$10),E151) -> 0.1025 | F152: =+O151 -> 0 | G152: 0 | H152: =+I152-G152 -> 0 | I152: 0 | J152: =IF(D152=1,$D$13,0) -> 0 | K152: =IF(F152<0.01,0,F152/1000*IF(Simulador!$X$8=1,0,Simulador!$V$14)+IF($D$8>0,$D$8,$D$7)/1000*IF(Simulador!$X$8=1,0,Simulador!$V$15)) -> 0 | L152: =IF(F151-H152=0,0,L150) -> 0 | M152: =MAX(0,MIN(F151+G152+K152+L152-(I152+K152+L152),Simulador!$K$45)) -> 0 | O152: =MAX(0,O151-H152-L152-M152-N152) -> 0 | P152: =MAX(0,MIN(F151+G152+K152,I152+K152+M152+N152)) -> 0 | S152: 0 | T152: 0 | U152: =+P152 -> 0 | W152: =+W151-Y152 -> 0 | X152: =W151*E152/360*AI152 -> 0 | Y152: =+Z152-X152 -> 0 | Z152: 0 | AA152: =IF(W151<0.01,0,+W151/1000*Simulador!$V$14+IF($D$8>0,$D$8,$D$7)/1000*Simulador!$V$15) -> 0 | AB152: =IF(W151<0.01,0,Simulador!$V$16) -> 0 | AC152: 0 | AD152: =IF(W151<0.01,0,+Z152+AA152+AB152-AC152) -> 0 | AE152: =+AD152 -> 0 | AF152: =IFERROR(Z152/W151,0) -> 0 | AG152: 0 | AI152: =IFERROR(DAY(DATE(YEAR(AH152),MONTH(AH152)+1,0)),0) -> 0 | AJ152: 130
B153: 131 | C153: =IF(D152=12,C152+1,C152) -> 10 | D153: 11 | E153: =IF(D153=1,MAX(E152-0.0025,Simulador!$K$10),E152) -> 0.1025 | F153: 0 | G153: =IF(F153<0.01,0,F153*E153/360*AI153) -> 0 | H153: 0 | I153: =IF($W$16=2,MAX(0,(MIN(+I152*(1+J153),F153*AF153))),MAX(0,(MIN(+I152*(1+J153),F153+G153)))) -> 0 | J153: 0 | K153: =IF(F153<0.01,0,F153/1000*IF(Simulador!$X$8=1,0,Simulador!$V$14)+IF($D$8>0,$D$8,$D$7)/1000*IF(Simulador!$X$8=1,0,Simulador!$V$15)) -> 0 | L153: 0 | M153: =MAX(0,MIN(F152+G153+K153+L153-(I153+K153+L153),Simulador!$K$45)) -> 0 | O153: 0 | P153: 0 | S153: 0 | T153: 0 | U153: 0 | W153: 0 | X153: 0 | Y153: 0 | Z153: =MAX(0,(MIN(+Z152*(1+J153),W152+X153))) -> 0 | AA153: =IF(W152<0.01,0,+W152/1000*Simulador!$V$14+IF($D$8>0,$D$8,$D$7)/1000*Simulador!$V$15) -> 0 | AB153: =IF(W152<0.01,0,Simulador!$V$16) -> 0 | AC153: 0 | AD153: 0 | AE153: 0 | AF153: 0 | AG153: 0 | AI153: 0 | AJ153: 131
B154: 132 | C154: 10 | D154: 12 | E154: =IF(D154=1,MAX(E153-0.0025,Simulador!$K$10),E153) -> 0.1025 | F154: 0 | G154: 0 | H154: 0 | I154: 0 | J154: 0 | K154: =IF(F154<0.01,0,F154/1000*IF(Simulador!$X$8=1,0,Simulador!$V$14)+IF($D$8>0,$D$8,$D$7)/1000*IF(Simulador!$X$8=1,0,Simulador!$V$15)) -> 0 | L154: =IF(F153-H154=0,0,L152) -> 0 | M154: =MAX(0,MIN(F153+G154+K154+L154-(I154+K154+L154),Simulador!$K$45)) -> 0 | O154: 0 | P154: 0 | S154: 0 | T154: 0 | U154: 0 | W154: 0 | X154: 0 | Y154: 0 | Z154: 0 | AA154: =IF(W153<0.01,0,+W153/1000*Simulador!$V$14+IF($D$8>0,$D$8,$D$7)/1000*Simulador!$V$15) -> 0 | AB154: =IF(W153<0.01,0,Simulador!$V$16) -> 0 | AC154: 0 | AD154: 0 | AE154: 0 | AF154: 0 | AG154: 0 | AI154: 0 | AJ154: 132
B155: 133 | C155: 11 | D155: 1 | E155: =IF(D155=1,MAX(E154-0.0025,Simulador!$K$10),E154) -> 0.1025 | F155: 0 | G155: 0 | H155: 0 | I155: 0 | J155: 0.026 | K155: =IF(F155<0.01,0,F155/1000*IF(Simulador!$X$8=1,0,Simulador!$V$14)+IF($D$8>0,$D$8,$D$7)/1000*IF(Simulador!$X$8=1,0,Simulador!$V$15)) -> 0 | L155: 0 | M155: =MAX(0,MIN(F154+G155+K155+L155-(I155+K155+L155),Simulador!$K$45)) -> 0 | O155: 0 | P155: 0 | S155: 0 | T155: 0 | U155: 0 | W155: 0 | X155: 0 | Y155: 0 | Z155: 0 | AA155: =IF(W154<0.01,0,+W154/1000*Simulador!$V$14+IF($D$8>0,$D$8,$D$7)/1000*Simulador!$V$15) -> 0 | AB155: =IF(W154<0.01,0,Simulador!$V$16) -> 0 | AC155: 0 | AD155: 0 | AE155: 0 | AF155: 0 | AG155: =IFERROR(IF(Y154<=0.01,0,AG154-1),0) -> 0 | AH155: =IF(Y154=0,"",DATE(YEAR(AH154),MONTH(AH154)+1,1)) ->  | AI155: 0 | AJ155: 133
B156: 134 | C156: 11 | D156: 2 | E156: =IF(D156=1,MAX(E155-0.0025,Simulador!$K$10),E155) -> 0.1025 | F156: 0 | G156: 0 | H156: 0 | I156: 0 | J156: 0 | K156: =IF(F156<0.01,0,F156/1000*IF(Simulador!$X$8=1,0,Simulador!$V$14)+IF($D$8>0,$D$8,$D$7)/1000*IF(Simulador!$X$8=1,0,Simulador!$V$15)) -> 0 | L156: =IF(F155-H156=0,0,L154*(1+Simulador!$AH$28)) -> 0 | M156: =MAX(0,MIN(F155+G156+K156+L156-(I156+K156+L156),Simulador!$K$45)) -> 0 | O156: 0 | P156: 0 | S156: 0 | T156: 0 | U156: 0 | W156: 0 | X156: 0 | Y156: 0 | Z156: 0 | AA156: =IF(W155<0.01,0,+W155/1000*Simulador!$V$14+IF($D$8>0,$D$8,$D$7)/1000*Simulador!$V$15) -> 0 | AB156: =IF(W155<0.01,0,Simulador!$V$16) -> 0 | AC156: 0 | AD156: 0 | AE156: 0 | AF156: 0 | AG156: 0 | AI156: 0 | AJ156: 134
B157: 135 | C157: 11 | D157: 3 | E157: =IF(D157=1,MAX(E156-0.0025,Simulador!$K$10),E156) -> 0.1025 | F157: 0 | G157: 0 | H157: 0 | I157: 0 | J157: 0 | K157: =IF(F157<0.01,0,F157/1000*IF(Simulador!$X$8=1,0,Simulador!$V$14)+IF($D$8>0,$D$8,$D$7)/1000*IF(Simulador!$X$8=1,0,Simulador!$V$15)) -> 0 | L157: 0 | M157: =MAX(0,MIN(F156+G157+K157+L157-(I157+K157+L157),Simulador!$K$45)) -> 0 | O157: 0 | P157: 0 | S157: 0 | T157: 0 | U157: 0 | W157: 0 | X157: 0 | Y157: 0 | Z157: 0 | AA157: =IF(W156<0.01,0,+W156/1000*Simulador!$V$14+IF($D$8>0,$D$8,$D$7)/1000*Simulador!$V$15) -> 0 | AB157: =IF(W156<0.01,0,Simulador!$V$16) -> 0 | AC157: 0 | AD157: 0 | AE157: 0 | AF157: 0 | AG157: 0 | AI157: 0 | AJ157: 135
B158: 136 | C158: 11 | D158: 4 | E158: =IF(D158=1,MAX(E157-0.0025,Simulador!$K$10),E157) -> 0.1025 | F158: 0 | G158: 0 | H158: 0 | I158: 0 | J158: 0 | K158: =IF(F158<0.01,0,F158/1000*IF(Simulador!$X$8=1,0,Simulador!$V$14)+IF($D$8>0,$D$8,$D$7)/1000*IF(Simulador!$X$8=1,0,Simulador!$V$15)) -> 0 | L158: =IF(F157-H158=0,0,L156) -> 0 | M158: =MAX(0,MIN(F157+G158+K158+L158-(I158+K158+L158),Simulador!$K$45)) -> 0 | O158: 0 | P158: 0 | S158: 0 | T158: 0 | U158: 0 | W158: 0 | X158: 0 | Y158: 0 | Z158: 0 | AA158: =IF(W157<0.01,0,+W157/1000*Simulador!$V$14+IF($D$8>0,$D$8,$D$7)/1000*Simulador!$V$15) -> 0 | AB158: =IF(W157<0.01,0,Simulador!$V$16) -> 0 | AC158: 0 | AD158: 0 | AE158: 0 | AF158: 0 | AG158: 0 | AI158: 0 | AJ158: 136
B159: 137 | C159: 11 | D159: 5 | E159: =IF(D159=1,MAX(E158-0.0025,Simulador!$K$10),E158) -> 0.1025 | F159: 0 | G159: 0 | H159: 0 | I159: 0 | J159: 0 | K159: =IF(F159<0.01,0,F159/1000*IF(Simulador!$X$8=1,0,Simulador!$V$14)+IF($D$8>0,$D$8,$D$7)/1000*IF(Simulador!$X$8=1,0,Simulador!$V$15)) -> 0 | L159: 0 | M159: =MAX(0,MIN(F158+G159+K159+L159-(I159+K159+L159),Simulador!$K$45)) -> 0 | O159: 0 | P159: 0 | S159: 0 | T159: 0 | U159: 0 | W159: 0 | X159: 0 | Y159: 0 | Z159: 0 | AA159: =IF(W158<0.01,0,+W158/1000*Simulador!$V$14+IF($D$8>0,$D$8,$D$7)/1000*Simulador!$V$15) -> 0 | AB159: =IF(W158<0.01,0,Simulador!$V$16) -> 0 | AC159: 0 | AD159: 0 | AE159: 0 | AF159: 0 | AG159: 0 | AI159: 0 | AJ159: 137
B160: 138 | C160: 11 | D160: 6 | E160: =IF(D160=1,MAX(E159-0.0025,Simulador!$K$10),E159) -> 0.1025 | F160: 0 | G160: 0 | H160: 0 | I160: 0 | J160: 0 | K160: =IF(F160<0.01,0,F160/1000*IF(Simulador!$X$8=1,0,Simulador!$V$14)+IF($D$8>0,$D$8,$D$7)/1000*IF(Simulador!$X$8=1,0,Simulador!$V$15)) -> 0 | L160: =IF(F159-H160=0,0,L158) -> 0 | M160: =MAX(0,MIN(F159+G160+K160+L160-(I160+K160+L160),Simulador!$K$45)) -> 0 | O160: 0 | P160: 0 | S160: 0 | T160: 0 | U160: 0 | W160: 0 | X160: 0 | Y160: 0 | Z160: 0 | AA160: =IF(W159<0.01,0,+W159/1000*Simulador!$V$14+IF($D$8>0,$D$8,$D$7)/1000*Simulador!$V$15) -> 0 | AB160: =IF(W159<0.01,0,Simulador!$V$16) -> 0 | AC160: 0 | AD160: 0 | AE160: 0 | AF160: 0 | AG160: 0 | AI160: 0 | AJ160: 138
B161: 139 | C161: 11 | D161: 7 | E161: =IF(D161=1,MAX(E160-0.0025,Simulador!$K$10),E160) -> 0.1025 | F161: 0 | G161: 0 | H161: 0 | I161: 0 | J161: 0 | K161: =IF(F161<0.01,0,F161/1000*IF(Simulador!$X$8=1,0,Simulador!$V$14)+IF($D$8>0,$D$8,$D$7)/1000*IF(Simulador!$X$8=1,0,Simulador!$V$15)) -> 0 | L161: 0 | M161: =MAX(0,MIN(F160+G161+K161+L161-(I161+K161+L161),Simulador!$K$45)) -> 0 | O161: 0 | P161: 0 | S161: 0 | T161: 0 | U161: 0 | W161: 0 | X161: 0 | Y161: 0 | Z161: 0 | AA161: =IF(W160<0.01,0,+W160/1000*Simulador!$V$14+IF($D$8>0,$D$8,$D$7)/1000*Simulador!$V$15) -> 0 | AB161: =IF(W160<0.01,0,Simulador!$V$16) -> 0 | AC161: 0 | AD161: 0 | AE161: 0 | AF161: 0 | AG161: 0 | AI161: 0 | AJ161: 139
B162: 140 | C162: 11 | D162: 8 | E162: =IF(D162=1,MAX(E161-0.0025,Simulador!$K$10),E161) -> 0.1025 | F162: 0 | G162: 0 | H162: 0 | I162: 0 | J162: 0 | K162: =IF(F162<0.01,0,F162/1000*IF(Simulador!$X$8=1,0,Simulador!$V$14)+IF($D$8>0,$D$8,$D$7)/1000*IF(Simulador!$X$8=1,0,Simulador!$V$15)) -> 0 | L162: =IF(F161-H162=0,0,L160) -> 0 | M162: =MAX(0,MIN(F161+G162+K162+L162-(I162+K162+L162),Simulador!$K$45)) -> 0 | O162: 0 | P162: 0 | S162: 0 | T162: 0 | U162: 0 | W162: 0 | X162: 0 | Y162: 0 | Z162: 0 | AA162: =IF(W161<0.01,0,+W161/1000*Simulador!$V$14+IF($D$8>0,$D$8,$D$7)/1000*Simulador!$V$15) -> 0 | AB162: =IF(W161<0.01,0,Simulador!$V$16) -> 0 | AC162: 0 | AD162: 0 | AE162: 0 | AF162: 0 | AG162: 0 | AI162: 0 | AJ162: 140
B163: 141 | C163: 11 | D163: 9 | E163: =IF(D163=1,MAX(E162-0.0025,Simulador!$K$10),E162) -> 0.1025 | F163: 0 | G163: 0 | H163: 0 | I163: 0 | J163: 0 | K163: =IF(F163<0.01,0,F163/1000*IF(Simulador!$X$8=1,0,Simulador!$V$14)+IF($D$8>0,$D$8,$D$7)/1000*IF(Simulador!$X$8=1,0,Simulador!$V$15)) -> 0 | L163: 0 | M163: =MAX(0,MIN(F162+G163+K163+L163-(I163+K163+L163),Simulador!$K$45)) -> 0 | O163: 0 | P163: 0 | S163: 0 | T163: 0 | U163: 0 | W163: 0 | X163: 0 | Y163: 0 | Z163: 0 | AA163: =IF(W162<0.01,0,+W162/1000*Simulador!$V$14+IF($D$8>0,$D$8,$D$7)/1000*Simulador!$V$15) -> 0 | AB163: =IF(W162<0.01,0,Simulador!$V$16) -> 0 | AC163: 0 | AD163: 0 | AE163: 0 | AF163: 0 | AG163: 0 | AI163: 0 | AJ163: 141
B164: 142 | C164: 11 | D164: 10 | E164: =IF(D164=1,MAX(E163-0.0025,Simulador!$K$10),E163) -> 0.1025 | F164: 0 | G164: 0 | H164: 0 | I164: 0 | J164: 0 | K164: =IF(F164<0.01,0,F164/1000*IF(Simulador!$X$8=1,0,Simulador!$V$14)+IF($D$8>0,$D$8,$D$7)/1000*IF(Simulador!$X$8=1,0,Simulador!$V$15)) -> 0 | L164: =IF(F163-H164=0,0,L162) -> 0 | M164: =MAX(0,MIN(F163+G164+K164+L164-(I164+K164+L164),Simulador!$K$45)) -> 0 | O164: 0 | P164: 0 | S164: 0 | T164: 0 | U164: 0 | W164: 0 | X164: 0 | Y164: 0 | Z164: 0 | AA164: =IF(W163<0.01,0,+W163/1000*Simulador!$V$14+IF($D$8>0,$D$8,$D$7)/1000*Simulador!$V$15) -> 0 | AB164: =IF(W163<0.01,0,Simulador!$V$16) -> 0 | AC164: =IF(W163<0.01,0,IF(D164=1,SUM(AB152:AB163),0)) -> 0 | AD164: 0 | AE164: 0 | AF164: 0 | AG164: 0 | AI164: 0 | AJ164: 142
B165: 143 | C165: 11 | D165: 11 | E165: =IF(D165=1,MAX(E164-0.0025,Simulador!$K$10),E164) -> 0.1025 | F165: 0 | G165: 0 | H165: 0 | I165: 0 | J165: 0 | K165: =IF(F165<0.01,0,F165/1000*IF(Simulador!$X$8=1,0,Simulador!$V$14)+IF($D$8>0,$D$8,$D$7)/1000*IF(Simulador!$X$8=1,0,Simulador!$V$15)) -> 0 | L165: 0 | M165: =MAX(0,MIN(F164+G165+K165+L165-(I165+K165+L165),Simulador!$K$45)) -> 0 | O165: 0 | P165: 0 | S165: 0 | T165: 0 | U165: 0 | W165: 0 | X165: 0 | Y165: 0 | Z165: 0 | AA165: =IF(W164<0.01,0,+W164/1000*Simulador!$V$14+IF($D$8>0,$D$8,$D$7)/1000*Simulador!$V$15) -> 0 | AB165: =IF(W164<0.01,0,Simulador!$V$16) -> 0 | AC165: 0 | AD165: 0 | AE165: 0 | AF165: 0 | AG165: 0 | AI165: 0 | AJ165: 143
B166: 144 | C166: 11 | D166: 12 | E166: =IF(D166=1,MAX(E165-0.0025,Simulador!$K$10),E165) -> 0.1025 | F166: 0 | G166: 0 | H166: 0 | I166: 0 | J166: 0 | K166: =IF(F166<0.01,0,F166/1000*IF(Simulador!$X$8=1,0,Simulador!$V$14)+IF($D$8>0,$D$8,$D$7)/1000*IF(Simulador!$X$8=1,0,Simulador!$V$15)) -> 0 | L166: =IF(F165-H166=0,0,L164) -> 0 | M166: =MAX(0,MIN(F165+G166+K166+L166-(I166+K166+L166),Simulador!$K$45)) -> 0 | O166: 0 | P166: 0 | S166: 0 | T166: 0 | U166: 0 | W166: 0 | X166: 0 | Y166: 0 | Z166: 0 | AA166: =IF(W165<0.01,0,+W165/1000*Simulador!$V$14+IF($D$8>0,$D$8,$D$7)/1000*Simulador!$V$15) -> 0 | AB166: =IF(W165<0.01,0,Simulador!$V$16) -> 0 | AC166: 0 | AD166: 0 | AE166: 0 | AF166: 0 | AG166: 0 | AI166: 0 | AJ166: 144
B167: 145 | C167: 12 | D167: 1 | E167: =IF(D167=1,MAX(E166-0.0025,Simulador!$K$10),E166) -> 0.1025 | F167: 0 | G167: 0 | H167: 0 | I167: 0 | J167: 0.026 | K167: =IF(F167<0.01,0,F167/1000*IF(Simulador!$X$8=1,0,Simulador!$V$14)+IF($D$8>0,$D$8,$D$7)/1000*IF(Simulador!$X$8=1,0,Simulador!$V$15)) -> 0 | L167: 0 | M167: =MAX(0,MIN(F166+G167+K167+L167-(I167+K167+L167),Simulador!$K$45)) -> 0 | O167: 0 | P167: 0 | S167: 0 | T167: 0 | U167: 0 | W167: 0 | X167: 0 | Y167: 0 | Z167: 0 | AA167: =IF(W166<0.01,0,+W166/1000*Simulador!$V$14+IF($D$8>0,$D$8,$D$7)/1000*Simulador!$V$15) -> 0 | AB167: =IF(W166<0.01,0,Simulador!$V$16) -> 0 | AC167: 0 | AD167: 0 | AE167: 0 | AF167: 0 | AG167: 0 | AI167: 0 | AJ167: 145
B168: 146 | C168: 12 | D168: 2 | E168: =IF(D168=1,MAX(E167-0.0025,Simulador!$K$10),E167) -> 0.1025 | F168: 0 | G168: 0 | H168: 0 | I168: 0 | J168: 0 | K168: =IF(F168<0.01,0,F168/1000*IF(Simulador!$X$8=1,0,Simulador!$V$14)+IF($D$8>0,$D$8,$D$7)/1000*IF(Simulador!$X$8=1,0,Simulador!$V$15)) -> 0 | L168: =IF(F167-H168=0,0,L166*(1+Simulador!$AH$28)) -> 0 | M168: =MAX(0,MIN(F167+G168+K168+L168-(I168+K168+L168),Simulador!$K$45)) -> 0 | O168: 0 | P168: 0 | S168: 0 | T168: 0 | U168: 0 | W168: 0 | X168: 0 | Y168: 0 | Z168: 0 | AA168: =IF(W167<0.01,0,+W167/1000*Simulador!$V$14+IF($D$8>0,$D$8,$D$7)/1000*Simulador!$V$15) -> 0 | AB168: =IF(W167<0.01,0,Simulador!$V$16) -> 0 | AC168: 0 | AD168: 0 | AE168: 0 | AF168: 0 | AG168: 0 | AI168: 0 | AJ168: 146
B169: 147 | C169: 12 | D169: 3 | E169: =IF(D169=1,MAX(E168-0.0025,Simulador!$K$10),E168) -> 0.1025 | F169: 0 | G169: 0 | H169: 0 | I169: 0 | J169: 0 | K169: =IF(F169<0.01,0,F169/1000*IF(Simulador!$X$8=1,0,Simulador!$V$14)+IF($D$8>0,$D$8,$D$7)/1000*IF(Simulador!$X$8=1,0,Simulador!$V$15)) -> 0 | L169: 0 | M169: =MAX(0,MIN(F168+G169+K169+L169-(I169+K169+L169),Simulador!$K$45)) -> 0 | O169: 0 | P169: 0 | S169: 0 | T169: 0 | U169: 0 | W169: 0 | X169: 0 | Y169: 0 | Z169: 0 | AA169: =IF(W168<0.01,0,+W168/1000*Simulador!$V$14+IF($D$8>0,$D$8,$D$7)/1000*Simulador!$V$15) -> 0 | AB169: =IF(W168<0.01,0,Simulador!$V$16) -> 0 | AC169: 0 | AD169: 0 | AE169: 0 | AF169: 0 | AG169: 0 | AI169: 0 | AJ169: 147
B170: 148 | C170: 12 | D170: 4 | E170: =IF(D170=1,MAX(E169-0.0025,Simulador!$K$10),E169) -> 0.1025 | F170: 0 | G170: 0 | H170: 0 | I170: 0 | J170: 0 | K170: =IF(F170<0.01,0,F170/1000*IF(Simulador!$X$8=1,0,Simulador!$V$14)+IF($D$8>0,$D$8,$D$7)/1000*IF(Simulador!$X$8=1,0,Simulador!$V$15)) -> 0 | L170: =IF(F169-H170=0,0,L168) -> 0 | M170: =MAX(0,MIN(F169+G170+K170+L170-(I170+K170+L170),Simulador!$K$45)) -> 0 | O170: 0 | P170: 0 | S170: 0 | T170: 0 | U170: 0 | W170: 0 | X170: 0 | Y170: 0 | Z170: 0 | AA170: =IF(W169<0.01,0,+W169/1000*Simulador!$V$14+IF($D$8>0,$D$8,$D$7)/1000*Simulador!$V$15) -> 0 | AB170: =IF(W169<0.01,0,Simulador!$V$16) -> 0 | AC170: 0 | AD170: 0 | AE170: 0 | AF170: 0 | AG170: 0 | AI170: 0 | AJ170: 148
B171: 149 | C171: 12 | D171: 5 | E171: =IF(D171=1,MAX(E170-0.0025,Simulador!$K$10),E170) -> 0.1025 | F171: 0 | G171: 0 | H171: 0 | I171: 0 | J171: 0 | K171: =IF(F171<0.01,0,F171/1000*IF(Simulador!$X$8=1,0,Simulador!$V$14)+IF($D$8>0,$D$8,$D$7)/1000*IF(Simulador!$X$8=1,0,Simulador!$V$15)) -> 0 | L171: 0 | M171: =MAX(0,MIN(F170+G171+K171+L171-(I171+K171+L171),Simulador!$K$45)) -> 0 | O171: 0 | P171: 0 | S171: 0 | T171: 0 | U171: 0 | W171: 0 | X171: 0 | Y171: 0 | Z171: 0 | AA171: =IF(W170<0.01,0,+W170/1000*Simulador!$V$14+IF($D$8>0,$D$8,$D$7)/1000*Simulador!$V$15) -> 0 | AB171: =IF(W170<0.01,0,Simulador!$V$16) -> 0 | AC171: 0 | AD171: 0 | AE171: 0 | AF171: 0 | AG171: 0 | AI171: 0 | AJ171: 149
B172: 150 | C172: 12 | D172: 6 | E172: =IF(D172=1,MAX(E171-0.0025,Simulador!$K$10),E171) -> 0.1025 | F172: 0 | G172: 0 | H172: 0 | I172: 0 | J172: 0 | K172: =IF(F172<0.01,0,F172/1000*IF(Simulador!$X$8=1,0,Simulador!$V$14)+IF($D$8>0,$D$8,$D$7)/1000*IF(Simulador!$X$8=1,0,Simulador!$V$15)) -> 0 | L172: =IF(F171-H172=0,0,L170) -> 0 | M172: =MAX(0,MIN(F171+G172+K172+L172-(I172+K172+L172),Simulador!$K$45)) -> 0 | O172: 0 | P172: 0 | S172: 0 | T172: 0 | U172: 0 | W172: 0 | X172: 0 | Y172: 0 | Z172: 0 | AA172: =IF(W171<0.01,0,+W171/1000*Simulador!$V$14+IF($D$8>0,$D$8,$D$7)/1000*Simulador!$V$15) -> 0 | AB172: =IF(W171<0.01,0,Simulador!$V$16) -> 0 | AC172: 0 | AD172: 0 | AE172: 0 | AF172: 0 | AG172: 0 | AI172: 0 | AJ172: 150
B173: 151 | C173: 12 | D173: 7 | E173: =IF(D173=1,MAX(E172-0.0025,Simulador!$K$10),E172) -> 0.1025 | F173: 0 | G173: 0 | H173: 0 | I173: 0 | J173: 0 | K173: =IF(F173<0.01,0,F173/1000*IF(Simulador!$X$8=1,0,Simulador!$V$14)+IF($D$8>0,$D$8,$D$7)/1000*IF(Simulador!$X$8=1,0,Simulador!$V$15)) -> 0 | L173: 0 | M173: =MAX(0,MIN(F172+G173+K173+L173-(I173+K173+L173),Simulador!$K$45)) -> 0 | O173: 0 | P173: 0 | S173: 0 | T173: 0 | U173: 0 | W173: 0 | X173: 0 | Y173: 0 | Z173: 0 | AA173: =IF(W172<0.01,0,+W172/1000*Simulador!$V$14+IF($D$8>0,$D$8,$D$7)/1000*Simulador!$V$15) -> 0 | AB173: =IF(W172<0.01,0,Simulador!$V$16) -> 0 | AC173: 0 | AD173: 0 | AE173: 0 | AF173: 0 | AG173: 0 | AI173: 0 | AJ173: 151
B174: 152 | C174: 12 | D174: 8 | E174: =IF(D174=1,MAX(E173-0.0025,Simulador!$K$10),E173) -> 0.1025 | F174: 0 | G174: 0 | H174: 0 | I174: 0 | J174: 0 | K174: =IF(F174<0.01,0,F174/1000*IF(Simulador!$X$8=1,0,Simulador!$V$14)+IF($D$8>0,$D$8,$D$7)/1000*IF(Simulador!$X$8=1,0,Simulador!$V$15)) -> 0 | L174: =IF(F173-H174=0,0,L172) -> 0 | M174: =MAX(0,MIN(F173+G174+K174+L174-(I174+K174+L174),Simulador!$K$45)) -> 0 | O174: 0 | P174: 0 | S174: 0 | T174: 0 | U174: 0 | W174: 0 | X174: 0 | Y174: 0 | Z174: 0 | AA174: =IF(W173<0.01,0,+W173/1000*Simulador!$V$14+IF($D$8>0,$D$8,$D$7)/1000*Simulador!$V$15) -> 0 | AB174: =IF(W173<0.01,0,Simulador!$V$16) -> 0 | AC174: 0 | AD174: 0 | AE174: 0 | AF174: 0 | AG174: 0 | AI174: 0 | AJ174: 152
B175: 153 | C175: 12 | D175: 9 | E175: =IF(D175=1,MAX(E174-0.0025,Simulador!$K$10),E174) -> 0.1025 | F175: 0 | G175: 0 | H175: 0 | I175: 0 | J175: 0 | K175: =IF(F175<0.01,0,F175/1000*IF(Simulador!$X$8=1,0,Simulador!$V$14)+IF($D$8>0,$D$8,$D$7)/1000*IF(Simulador!$X$8=1,0,Simulador!$V$15)) -> 0 | L175: 0 | M175: =MAX(0,MIN(F174+G175+K175+L175-(I175+K175+L175),Simulador!$K$45)) -> 0 | O175: 0 | P175: 0 | S175: 0 | T175: 0 | U175: 0 | W175: 0 | X175: 0 | Y175: 0 | Z175: 0 | AA175: =IF(W174<0.01,0,+W174/1000*Simulador!$V$14+IF($D$8>0,$D$8,$D$7)/1000*Simulador!$V$15) -> 0 | AB175: =IF(W174<0.01,0,Simulador!$V$16) -> 0 | AC175: 0 | AD175: 0 | AE175: 0 | AF175: 0 | AG175: 0 | AI175: 0 | AJ175: 153
B176: 154 | C176: 12 | D176: 10 | E176: =IF(D176=1,MAX(E175-0.0025,Simulador!$K$10),E175) -> 0.1025 | F176: 0 | G176: 0 | H176: 0 | I176: 0 | J176: 0 | K176: =IF(F176<0.01,0,F176/1000*IF(Simulador!$X$8=1,0,Simulador!$V$14)+IF($D$8>0,$D$8,$D$7)/1000*IF(Simulador!$X$8=1,0,Simulador!$V$15)) -> 0 | L176: =IF(F175-H176=0,0,L174) -> 0 | M176: =MAX(0,MIN(F175+G176+K176+L176-(I176+K176+L176),Simulador!$K$45)) -> 0 | O176: 0 | P176: 0 | S176: 0 | T176: 0 | U176: 0 | W176: 0 | X176: 0 | Y176: 0 | Z176: 0 | AA176: =IF(W175<0.01,0,+W175/1000*Simulador!$V$14+IF($D$8>0,$D$8,$D$7)/1000*Simulador!$V$15) -> 0 | AB176: =IF(W175<0.01,0,Simulador!$V$16) -> 0 | AC176: 0 | AD176: 0 | AE176: 0 | AF176: 0 | AG176: 0 | AI176: 0 | AJ176: 154
B177: 155 | C177: 12 | D177: 11 | E177: =IF(D177=1,MAX(E176-0.0025,Simulador!$K$10),E176) -> 0.1025 | F177: 0 | G177: 0 | H177: 0 | I177: 0 | J177: 0 | K177: =IF(F177<0.01,0,F177/1000*IF(Simulador!$X$8=1,0,Simulador!$V$14)+IF($D$8>0,$D$8,$D$7)/1000*IF(Simulador!$X$8=1,0,Simulador!$V$15)) -> 0 | L177: 0 | M177: =MAX(0,MIN(F176+G177+K177+L177-(I177+K177+L177),Simulador!$K$45)) -> 0 | O177: 0 | P177: 0 | S177: 0 | T177: 0 | U177: 0 | W177: 0 | X177: 0 | Y177: 0 | Z177: 0 | AA177: =IF(W176<0.01,0,+W176/1000*Simulador!$V$14+IF($D$8>0,$D$8,$D$7)/1000*Simulador!$V$15) -> 0 | AB177: =IF(W176<0.01,0,Simulador!$V$16) -> 0 | AC177: 0 | AD177: 0 | AE177: 0 | AF177: 0 | AG177: 0 | AI177: 0 | AJ177: 155
B178: 156 | C178: 12 | D178: 12 | E178: =IF(D178=1,MAX(E177-0.0025,Simulador!$K$10),E177) -> 0.1025 | F178: 0 | G178: 0 | H178: 0 | I178: 0 | J178: 0 | K178: =IF(F178<0.01,0,F178/1000*IF(Simulador!$X$8=1,0,Simulador!$V$14)+IF($D$8>0,$D$8,$D$7)/1000*IF(Simulador!$X$8=1,0,Simulador!$V$15)) -> 0 | L178: =IF(F177-H178=0,0,L176) -> 0 | M178: =MAX(0,MIN(F177+G178+K178+L178-(I178+K178+L178),Simulador!$K$45)) -> 0 | O178: 0 | P178: 0 | S178: 0 | T178: 0 | U178: 0 | W178: 0 | X178: 0 | Y178: 0 | Z178: 0 | AA178: =IF(W177<0.01,0,+W177/1000*Simulador!$V$14+IF($D$8>0,$D$8,$D$7)/1000*Simulador!$V$15) -> 0 | AB178: =IF(W177<0.01,0,Simulador!$V$16) -> 0 | AC178: 0 | AD178: 0 | AE178: 0 | AF178: 0 | AG178: 0 | AI178: 0 | AJ178: 156
B179: 157 | C179: 13 | D179: 1 | E179: =IF(D179=1,MAX(E178-0.0025,Simulador!$K$10),E178) -> 0.1025 | F179: 0 | G179: 0 | H179: 0 | I179: 0 | J179: 0.026 | K179: =IF(F179<0.01,0,F179/1000*IF(Simulador!$X$8=1,0,Simulador!$V$14)+IF($D$8>0,$D$8,$D$7)/1000*IF(Simulador!$X$8=1,0,Simulador!$V$15)) -> 0 | L179: 0 | M179: =MAX(0,MIN(F178+G179+K179+L179-(I179+K179+L179),Simulador!$K$45)) -> 0 | O179: 0 | P179: 0 | S179: 0 | T179: 0 | U179: 0 | W179: 0 | X179: 0 | Y179: 0 | Z179: 0 | AA179: =IF(W178<0.01,0,+W178/1000*Simulador!$V$14+IF($D$8>0,$D$8,$D$7)/1000*Simulador!$V$15) -> 0 | AB179: =IF(W178<0.01,0,Simulador!$V$16) -> 0 | AC179: 0 | AD179: 0 | AE179: 0 | AF179: 0 | AG179: 0 | AI179: 0 | AJ179: 157
B180: 158 | C180: 13 | D180: 2 | E180: =IF(D180=1,MAX(E179-0.0025,Simulador!$K$10),E179) -> 0.1025 | F180: 0 | G180: 0 | H180: 0 | I180: 0 | J180: 0 | K180: =IF(F180<0.01,0,F180/1000*IF(Simulador!$X$8=1,0,Simulador!$V$14)+IF($D$8>0,$D$8,$D$7)/1000*IF(Simulador!$X$8=1,0,Simulador!$V$15)) -> 0 | L180: =IF(F179-H180=0,0,L178*(1+Simulador!$AH$28)) -> 0 | M180: =MAX(0,MIN(F179+G180+K180+L180-(I180+K180+L180),Simulador!$K$45)) -> 0 | O180: 0 | P180: 0 | S180: 0 | T180: 0 | U180: 0 | W180: 0 | X180: 0 | Y180: 0 | Z180: 0 | AA180: =IF(W179<0.01,0,+W179/1000*Simulador!$V$14+IF($D$8>0,$D$8,$D$7)/1000*Simulador!$V$15) -> 0 | AB180: =IF(W179<0.01,0,Simulador!$V$16) -> 0 | AC180: 0 | AD180: 0 | AE180: 0 | AF180: 0 | AG180: 0 | AI180: 0 | AJ180: 158
B181: 159 | C181: 13 | D181: 3 | E181: =IF(D181=1,MAX(E180-0.0025,Simulador!$K$10),E180) -> 0.1025 | F181: 0 | G181: 0 | H181: 0 | I181: 0 | J181: 0 | K181: =IF(F181<0.01,0,F181/1000*IF(Simulador!$X$8=1,0,Simulador!$V$14)+IF($D$8>0,$D$8,$D$7)/1000*IF(Simulador!$X$8=1,0,Simulador!$V$15)) -> 0 | L181: 0 | M181: =MAX(0,MIN(F180+G181+K181+L181-(I181+K181+L181),Simulador!$K$45)) -> 0 | O181: 0 | P181: 0 | S181: 0 | T181: 0 | U181: 0 | W181: 0 | X181: 0 | Y181: 0 | Z181: 0 | AA181: =IF(W180<0.01,0,+W180/1000*Simulador!$V$14+IF($D$8>0,$D$8,$D$7)/1000*Simulador!$V$15) -> 0 | AB181: =IF(W180<0.01,0,Simulador!$V$16) -> 0 | AC181: 0 | AD181: 0 | AE181: 0 | AF181: 0 | AG181: 0 | AI181: 0 | AJ181: 159
B182: 160 | C182: 13 | D182: 4 | E182: =IF(D182=1,MAX(E181-0.0025,Simulador!$K$10),E181) -> 0.1025 | F182: 0 | G182: 0 | H182: 0 | I182: 0 | J182: 0 | K182: =IF(F182<0.01,0,F182/1000*IF(Simulador!$X$8=1,0,Simulador!$V$14)+IF($D$8>0,$D$8,$D$7)/1000*IF(Simulador!$X$8=1,0,Simulador!$V$15)) -> 0 | L182: =IF(F181-H182=0,0,L180) -> 0 | M182: =MAX(0,MIN(F181+G182+K182+L182-(I182+K182+L182),Simulador!$K$45)) -> 0 | O182: 0 | P182: 0 | S182: 0 | T182: 0 | U182: 0 | W182: 0 | X182: 0 | Y182: 0 | Z182: 0 | AA182: =IF(W181<0.01,0,+W181/1000*Simulador!$V$14+IF($D$8>0,$D$8,$D$7)/1000*Simulador!$V$15) -> 0 | AB182: =IF(W181<0.01,0,Simulador!$V$16) -> 0 | AC182: 0 | AD182: 0 | AE182: 0 | AF182: 0 | AG182: 0 | AI182: 0 | AJ182: 160
B183: 161 | C183: 13 | D183: 5 | E183: =IF(D183=1,MAX(E182-0.0025,Simulador!$K$10),E182) -> 0.1025 | F183: 0 | G183: 0 | H183: 0 | I183: 0 | J183: 0 | K183: =IF(F183<0.01,0,F183/1000*IF(Simulador!$X$8=1,0,Simulador!$V$14)+IF($D$8>0,$D$8,$D$7)/1000*IF(Simulador!$X$8=1,0,Simulador!$V$15)) -> 0 | L183: 0 | M183: =MAX(0,MIN(F182+G183+K183+L183-(I183+K183+L183),Simulador!$K$45)) -> 0 | O183: 0 | P183: 0 | S183: 0 | T183: 0 | U183: 0 | W183: 0 | X183: 0 | Y183: 0 | Z183: 0 | AA183: =IF(W182<0.01,0,+W182/1000*Simulador!$V$14+IF($D$8>0,$D$8,$D$7)/1000*Simulador!$V$15) -> 0 | AB183: =IF(W182<0.01,0,Simulador!$V$16) -> 0 | AC183: 0 | AD183: 0 | AE183: 0 | AF183: 0 | AG183: 0 | AI183: 0 | AJ183: 161
B184: 162 | C184: 13 | D184: 6 | E184: =IF(D184=1,MAX(E183-0.0025,Simulador!$K$10),E183) -> 0.1025 | F184: 0 | G184: 0 | H184: 0 | I184: 0 | J184: 0 | K184: =IF(F184<0.01,0,F184/1000*IF(Simulador!$X$8=1,0,Simulador!$V$14)+IF($D$8>0,$D$8,$D$7)/1000*IF(Simulador!$X$8=1,0,Simulador!$V$15)) -> 0 | L184: =IF(F183-H184=0,0,L182) -> 0 | M184: =MAX(0,MIN(F183+G184+K184+L184-(I184+K184+L184),Simulador!$K$45)) -> 0 | O184: 0 | P184: 0 | S184: 0 | T184: 0 | U184: 0 | W184: 0 | X184: 0 | Y184: 0 | Z184: 0 | AA184: =IF(W183<0.01,0,+W183/1000*Simulador!$V$14+IF($D$8>0,$D$8,$D$7)/1000*Simulador!$V$15) -> 0 | AB184: =IF(W183<0.01,0,Simulador!$V$16) -> 0 | AC184: 0 | AD184: 0 | AE184: 0 | AF184: 0 | AG184: 0 | AI184: 0 | AJ184: 162
B185: 163 | C185: 13 | D185: 7 | E185: =IF(D185=1,MAX(E184-0.0025,Simulador!$K$10),E184) -> 0.1025 | F185: 0 | G185: 0 | H185: 0 | I185: 0 | J185: 0 | K185: =IF(F185<0.01,0,F185/1000*IF(Simulador!$X$8=1,0,Simulador!$V$14)+IF($D$8>0,$D$8,$D$7)/1000*IF(Simulador!$X$8=1,0,Simulador!$V$15)) -> 0 | L185: 0 | M185: =MAX(0,MIN(F184+G185+K185+L185-(I185+K185+L185),Simulador!$K$45)) -> 0 | O185: 0 | P185: 0 | S185: 0 | T185: 0 | U185: 0 | W185: 0 | X185: 0 | Y185: 0 | Z185: 0 | AA185: =IF(W184<0.01,0,+W184/1000*Simulador!$V$14+IF($D$8>0,$D$8,$D$7)/1000*Simulador!$V$15) -> 0 | AB185: =IF(W184<0.01,0,Simulador!$V$16) -> 0 | AC185: 0 | AD185: 0 | AE185: 0 | AF185: 0 | AG185: 0 | AI185: 0 | AJ185: 163
B186: 164 | C186: 13 | D186: 8 | E186: =IF(D186=1,MAX(E185-0.0025,Simulador!$K$10),E185) -> 0.1025 | F186: 0 | G186: 0 | H186: 0 | I186: 0 | J186: 0 | K186: =IF(F186<0.01,0,F186/1000*IF(Simulador!$X$8=1,0,Simulador!$V$14)+IF($D$8>0,$D$8,$D$7)/1000*IF(Simulador!$X$8=1,0,Simulador!$V$15)) -> 0 | L186: =IF(F185-H186=0,0,L184) -> 0 | M186: =MAX(0,MIN(F185+G186+K186+L186-(I186+K186+L186),Simulador!$K$45)) -> 0 | O186: 0 | P186: 0 | S186: 0 | T186: 0 | U186: 0 | W186: 0 | X186: 0 | Y186: 0 | Z186: 0 | AA186: =IF(W185<0.01,0,+W185/1000*Simulador!$V$14+IF($D$8>0,$D$8,$D$7)/1000*Simulador!$V$15) -> 0 | AB186: =IF(W185<0.01,0,Simulador!$V$16) -> 0 | AC186: 0 | AD186: 0 | AE186: 0 | AF186: 0 | AG186: 0 | AI186: 0 | AJ186: 164
B187: 165 | C187: 13 | D187: 9 | E187: =IF(D187=1,MAX(E186-0.0025,Simulador!$K$10),E186) -> 0.1025 | F187: 0 | G187: 0 | H187: 0 | I187: 0 | J187: 0 | K187: =IF(F187<0.01,0,F187/1000*IF(Simulador!$X$8=1,0,Simulador!$V$14)+IF($D$8>0,$D$8,$D$7)/1000*IF(Simulador!$X$8=1,0,Simulador!$V$15)) -> 0 | L187: 0 | M187: =MAX(0,MIN(F186+G187+K187+L187-(I187+K187+L187),Simulador!$K$45)) -> 0 | O187: 0 | P187: 0 | S187: 0 | T187: 0 | U187: 0 | W187: 0 | X187: 0 | Y187: 0 | Z187: 0 | AA187: =IF(W186<0.01,0,+W186/1000*Simulador!$V$14+IF($D$8>0,$D$8,$D$7)/1000*Simulador!$V$15) -> 0 | AB187: =IF(W186<0.01,0,Simulador!$V$16) -> 0 | AC187: 0 | AD187: 0 | AE187: 0 | AF187: 0 | AG187: 0 | AI187: 0 | AJ187: 165
B188: 166 | C188: 13 | D188: 10 | E188: =IF(D188=1,MAX(E187-0.0025,Simulador!$K$10),E187) -> 0.1025 | F188: 0 | G188: 0 | H188: 0 | I188: 0 | J188: 0 | K188: =IF(F188<0.01,0,F188/1000*IF(Simulador!$X$8=1,0,Simulador!$V$14)+IF($D$8>0,$D$8,$D$7)/1000*IF(Simulador!$X$8=1,0,Simulador!$V$15)) -> 0 | L188: =IF(F187-H188=0,0,L186) -> 0 | M188: =MAX(0,MIN(F187+G188+K188+L188-(I188+K188+L188),Simulador!$K$45)) -> 0 | O188: 0 | P188: 0 | S188: 0 | T188: 0 | U188: 0 | W188: 0 | X188: 0 | Y188: 0 | Z188: 0 | AA188: =IF(W187<0.01,0,+W187/1000*Simulador!$V$14+IF($D$8>0,$D$8,$D$7)/1000*Simulador!$V$15) -> 0 | AB188: =IF(W187<0.01,0,Simulador!$V$16) -> 0 | AC188: 0 | AD188: 0 | AE188: 0 | AF188: 0 | AG188: 0 | AI188: 0 | AJ188: 166
B189: 167 | C189: 13 | D189: 11 | E189: =IF(D189=1,MAX(E188-0.0025,Simulador!$K$10),E188) -> 0.1025 | F189: 0 | G189: 0 | H189: 0 | I189: 0 | J189: 0 | K189: =IF(F189<0.01,0,F189/1000*IF(Simulador!$X$8=1,0,Simulador!$V$14)+IF($D$8>0,$D$8,$D$7)/1000*IF(Simulador!$X$8=1,0,Simulador!$V$15)) -> 0 | L189: 0 | M189: =MAX(0,MIN(F188+G189+K189+L189-(I189+K189+L189),Simulador!$K$45)) -> 0 | O189: 0 | P189: 0 | S189: 0 | T189: 0 | U189: 0 | W189: 0 | X189: 0 | Y189: 0 | Z189: 0 | AA189: =IF(W188<0.01,0,+W188/1000*Simulador!$V$14+IF($D$8>0,$D$8,$D$7)/1000*Simulador!$V$15) -> 0 | AB189: =IF(W188<0.01,0,Simulador!$V$16) -> 0 | AC189: 0 | AD189: 0 | AE189: 0 | AF189: 0 | AG189: 0 | AI189: 0 | AJ189: 167
B190: 168 | C190: 13 | D190: 12 | E190: =IF(D190=1,MAX(E189-0.0025,Simulador!$K$10),E189) -> 0.1025 | F190: 0 | G190: 0 | H190: 0 | I190: 0 | J190: 0 | K190: =IF(F190<0.01,0,F190/1000*IF(Simulador!$X$8=1,0,Simulador!$V$14)+IF($D$8>0,$D$8,$D$7)/1000*IF(Simulador!$X$8=1,0,Simulador!$V$15)) -> 0 | L190: =IF(F189-H190=0,0,L188) -> 0 | M190: =MAX(0,MIN(F189+G190+K190+L190-(I190+K190+L190),Simulador!$K$45)) -> 0 | O190: 0 | P190: 0 | S190: 0 | T190: 0 | U190: 0 | W190: 0 | X190: 0 | Y190: 0 | Z190: 0 | AA190: =IF(W189<0.01,0,+W189/1000*Simulador!$V$14+IF($D$8>0,$D$8,$D$7)/1000*Simulador!$V$15) -> 0 | AB190: =IF(W189<0.01,0,Simulador!$V$16) -> 0 | AC190: 0 | AD190: 0 | AE190: 0 | AF190: 0 | AG190: 0 | AI190: 0 | AJ190: 168
B191: 169 | C191: 14 | D191: 1 | E191: =IF(D191=1,MAX(E190-0.0025,Simulador!$K$10),E190) -> 0.1025 | F191: 0 | G191: 0 | H191: 0 | I191: 0 | J191: 0.026 | K191: =IF(F191<0.01,0,F191/1000*IF(Simulador!$X$8=1,0,Simulador!$V$14)+IF($D$8>0,$D$8,$D$7)/1000*IF(Simulador!$X$8=1,0,Simulador!$V$15)) -> 0 | L191: 0 | M191: =MAX(0,MIN(F190+G191+K191+L191-(I191+K191+L191),Simulador!$K$45)) -> 0 | O191: 0 | P191: 0 | S191: 0 | T191: 0 | U191: 0 | W191: 0 | X191: 0 | Y191: 0 | Z191: 0 | AA191: =IF(W190<0.01,0,+W190/1000*Simulador!$V$14+IF($D$8>0,$D$8,$D$7)/1000*Simulador!$V$15) -> 0 | AB191: =IF(W190<0.01,0,Simulador!$V$16) -> 0 | AC191: 0 | AD191: 0 | AE191: 0 | AF191: 0 | AG191: 0 | AI191: 0 | AJ191: 169
B192: 170 | C192: 14 | D192: 2 | E192: =IF(D192=1,MAX(E191-0.0025,Simulador!$K$10),E191) -> 0.1025 | F192: 0 | G192: 0 | H192: 0 | I192: 0 | J192: 0 | K192: =IF(F192<0.01,0,F192/1000*IF(Simulador!$X$8=1,0,Simulador!$V$14)+IF($D$8>0,$D$8,$D$7)/1000*IF(Simulador!$X$8=1,0,Simulador!$V$15)) -> 0 | L192: =IF(F191-H192=0,0,L190*(1+Simulador!$AH$28)) -> 0 | M192: =MAX(0,MIN(F191+G192+K192+L192-(I192+K192+L192),Simulador!$K$45)) -> 0 | O192: 0 | P192: 0 | S192: 0 | T192: 0 | U192: 0 | W192: 0 | X192: 0 | Y192: 0 | Z192: 0 | AA192: =IF(W191<0.01,0,+W191/1000*Simulador!$V$14+IF($D$8>0,$D$8,$D$7)/1000*Simulador!$V$15) -> 0 | AB192: =IF(W191<0.01,0,Simulador!$V$16) -> 0 | AC192: 0 | AD192: 0 | AE192: 0 | AF192: 0 | AG192: 0 | AI192: 0 | AJ192: 170
B193: 171 | C193: 14 | D193: 3 | E193: =IF(D193=1,MAX(E192-0.0025,Simulador!$K$10),E192) -> 0.1025 | F193: 0 | G193: 0 | H193: 0 | I193: 0 | J193: 0 | K193: =IF(F193<0.01,0,F193/1000*IF(Simulador!$X$8=1,0,Simulador!$V$14)+IF($D$8>0,$D$8,$D$7)/1000*IF(Simulador!$X$8=1,0,Simulador!$V$15)) -> 0 | L193: 0 | M193: =MAX(0,MIN(F192+G193+K193+L193-(I193+K193+L193),Simulador!$K$45)) -> 0 | O193: 0 | P193: 0 | S193: 0 | T193: 0 | U193: 0 | W193: 0 | X193: 0 | Y193: 0 | Z193: 0 | AA193: =IF(W192<0.01,0,+W192/1000*Simulador!$V$14+IF($D$8>0,$D$8,$D$7)/1000*Simulador!$V$15) -> 0 | AB193: =IF(W192<0.01,0,Simulador!$V$16) -> 0 | AC193: 0 | AD193: 0 | AE193: 0 | AF193: 0 | AG193: 0 | AI193: 0 | AJ193: 171
B194: 172 | C194: 14 | D194: 4 | E194: =IF(D194=1,MAX(E193-0.0025,Simulador!$K$10),E193) -> 0.1025 | F194: 0 | G194: 0 | H194: 0 | I194: 0 | J194: 0 | K194: =IF(F194<0.01,0,F194/1000*IF(Simulador!$X$8=1,0,Simulador!$V$14)+IF($D$8>0,$D$8,$D$7)/1000*IF(Simulador!$X$8=1,0,Simulador!$V$15)) -> 0 | L194: =IF(F193-H194=0,0,L192) -> 0 | M194: =MAX(0,MIN(F193+G194+K194+L194-(I194+K194+L194),Simulador!$K$45)) -> 0 | O194: 0 | P194: 0 | S194: 0 | T194: 0 | U194: 0 | W194: 0 | X194: 0 | Y194: 0 | Z194: 0 | AA194: =IF(W193<0.01,0,+W193/1000*Simulador!$V$14+IF($D$8>0,$D$8,$D$7)/1000*Simulador!$V$15) -> 0 | AB194: =IF(W193<0.01,0,Simulador!$V$16) -> 0 | AC194: 0 | AD194: 0 | AE194: 0 | AF194: 0 | AG194: 0 | AI194: 0 | AJ194: 172
B195: 173 | C195: 14 | D195: 5 | E195: =IF(D195=1,MAX(E194-0.0025,Simulador!$K$10),E194) -> 0.1025 | F195: 0 | G195: 0 | H195: 0 | I195: 0 | J195: 0 | K195: =IF(F195<0.01,0,F195/1000*IF(Simulador!$X$8=1,0,Simulador!$V$14)+IF($D$8>0,$D$8,$D$7)/1000*IF(Simulador!$X$8=1,0,Simulador!$V$15)) -> 0 | L195: 0 | M195: =MAX(0,MIN(F194+G195+K195+L195-(I195+K195+L195),Simulador!$K$45)) -> 0 | O195: 0 | P195: 0 | S195: 0 | T195: 0 | U195: 0 | W195: 0 | X195: 0 | Y195: 0 | Z195: 0 | AA195: =IF(W194<0.01,0,+W194/1000*Simulador!$V$14+IF($D$8>0,$D$8,$D$7)/1000*Simulador!$V$15) -> 0 | AB195: =IF(W194<0.01,0,Simulador!$V$16) -> 0 | AC195: 0 | AD195: 0 | AE195: 0 | AF195: 0 | AG195: 0 | AI195: 0 | AJ195: 173
B196: 174 | C196: 14 | D196: 6 | E196: =IF(D196=1,MAX(E195-0.0025,Simulador!$K$10),E195) -> 0.1025 | F196: 0 | G196: 0 | H196: 0 | I196: 0 | J196: 0 | K196: =IF(F196<0.01,0,F196/1000*IF(Simulador!$X$8=1,0,Simulador!$V$14)+IF($D$8>0,$D$8,$D$7)/1000*IF(Simulador!$X$8=1,0,Simulador!$V$15)) -> 0 | L196: =IF(F195-H196=0,0,L194) -> 0 | M196: =MAX(0,MIN(F195+G196+K196+L196-(I196+K196+L196),Simulador!$K$45)) -> 0 | O196: 0 | P196: 0 | S196: 0 | T196: 0 | U196: 0 | W196: 0 | X196: 0 | Y196: 0 | Z196: 0 | AA196: =IF(W195<0.01,0,+W195/1000*Simulador!$V$14+IF($D$8>0,$D$8,$D$7)/1000*Simulador!$V$15) -> 0 | AB196: =IF(W195<0.01,0,Simulador!$V$16) -> 0 | AC196: 0 | AD196: 0 | AE196: 0 | AF196: 0 | AG196: 0 | AI196: 0 | AJ196: 174
B197: 175 | C197: 14 | D197: 7 | E197: =IF(D197=1,MAX(E196-0.0025,Simulador!$K$10),E196) -> 0.1025 | F197: 0 | G197: 0 | H197: 0 | I197: 0 | J197: 0 | K197: =IF(F197<0.01,0,F197/1000*IF(Simulador!$X$8=1,0,Simulador!$V$14)+IF($D$8>0,$D$8,$D$7)/1000*IF(Simulador!$X$8=1,0,Simulador!$V$15)) -> 0 | L197: 0 | M197: =MAX(0,MIN(F196+G197+K197+L197-(I197+K197+L197),Simulador!$K$45)) -> 0 | O197: 0 | P197: 0 | S197: 0 | T197: 0 | U197: 0 | W197: 0 | X197: 0 | Y197: 0 | Z197: 0 | AA197: =IF(W196<0.01,0,+W196/1000*Simulador!$V$14+IF($D$8>0,$D$8,$D$7)/1000*Simulador!$V$15) -> 0 | AB197: =IF(W196<0.01,0,Simulador!$V$16) -> 0 | AC197: 0 | AD197: 0 | AE197: 0 | AF197: 0 | AG197: 0 | AI197: 0 | AJ197: 175
B198: 176 | C198: 14 | D198: 8 | E198: =IF(D198=1,MAX(E197-0.0025,Simulador!$K$10),E197) -> 0.1025 | F198: 0 | G198: 0 | H198: 0 | I198: 0 | J198: 0 | K198: =IF(F198<0.01,0,F198/1000*IF(Simulador!$X$8=1,0,Simulador!$V$14)+IF($D$8>0,$D$8,$D$7)/1000*IF(Simulador!$X$8=1,0,Simulador!$V$15)) -> 0 | L198: =IF(F197-H198=0,0,L196) -> 0 | M198: =MAX(0,MIN(F197+G198+K198+L198-(I198+K198+L198),Simulador!$K$45)) -> 0 | O198: 0 | P198: 0 | S198: 0 | T198: 0 | U198: 0 | W198: 0 | X198: 0 | Y198: 0 | Z198: 0 | AA198: =IF(W197<0.01,0,+W197/1000*Simulador!$V$14+IF($D$8>0,$D$8,$D$7)/1000*Simulador!$V$15) -> 0 | AB198: =IF(W197<0.01,0,Simulador!$V$16) -> 0 | AC198: 0 | AD198: 0 | AE198: 0 | AF198: 0 | AG198: 0 | AI198: 0 | AJ198: 176
B199: 177 | C199: 14 | D199: 9 | E199: =IF(D199=1,MAX(E198-0.0025,Simulador!$K$10),E198) -> 0.1025 | F199: 0 | G199: 0 | H199: 0 | I199: 0 | J199: 0 | K199: =IF(F199<0.01,0,F199/1000*IF(Simulador!$X$8=1,0,Simulador!$V$14)+IF($D$8>0,$D$8,$D$7)/1000*IF(Simulador!$X$8=1,0,Simulador!$V$15)) -> 0 | L199: 0 | M199: =MAX(0,MIN(F198+G199+K199+L199-(I199+K199+L199),Simulador!$K$45)) -> 0 | O199: 0 | P199: 0 | S199: 0 | T199: 0 | U199: 0 | W199: 0 | X199: 0 | Y199: 0 | Z199: 0 | AA199: =IF(W198<0.01,0,+W198/1000*Simulador!$V$14+IF($D$8>0,$D$8,$D$7)/1000*Simulador!$V$15) -> 0 | AB199: =IF(W198<0.01,0,Simulador!$V$16) -> 0 | AC199: 0 | AD199: 0 | AE199: 0 | AF199: 0 | AG199: 0 | AI199: 0 | AJ199: 177
B200: 178 | C200: 14 | D200: 10 | E200: =IF(D200=1,MAX(E199-0.0025,Simulador!$K$10),E199) -> 0.1025 | F200: 0 | G200: 0 | H200: 0 | I200: 0 | J200: 0 | K200: =IF(F200<0.01,0,F200/1000*IF(Simulador!$X$8=1,0,Simulador!$V$14)+IF($D$8>0,$D$8,$D$7)/1000*IF(Simulador!$X$8=1,0,Simulador!$V$15)) -> 0 | L200: =IF(F199-H200=0,0,L198) -> 0 | M200: =MAX(0,MIN(F199+G200+K200+L200-(I200+K200+L200),Simulador!$K$45)) -> 0 | O200: 0 | P200: 0 | S200: 0 | T200: 0 | U200: 0 | W200: 0 | X200: 0 | Y200: 0 | Z200: 0 | AA200: =IF(W199<0.01,0,+W199/1000*Simulador!$V$14+IF($D$8>0,$D$8,$D$7)/1000*Simulador!$V$15) -> 0 | AB200: =IF(W199<0.01,0,Simulador!$V$16) -> 0 | AC200: 0 | AD200: 0 | AE200: 0 | AF200: 0 | AG200: 0 | AI200: 0 | AJ200: 178
B201: 179 | C201: 14 | D201: 11 | E201: =IF(D201=1,MAX(E200-0.0025,Simulador!$K$10),E200) -> 0.1025 | F201: 0 | G201: 0 | H201: 0 | I201: 0 | J201: 0 | K201: =IF(F201<0.01,0,F201/1000*IF(Simulador!$X$8=1,0,Simulador!$V$14)+IF($D$8>0,$D$8,$D$7)/1000*IF(Simulador!$X$8=1,0,Simulador!$V$15)) -> 0 | L201: 0 | M201: =MAX(0,MIN(F200+G201+K201+L201-(I201+K201+L201),Simulador!$K$45)) -> 0 | O201: 0 | P201: 0 | S201: 0 | T201: 0 | U201: 0 | W201: 0 | X201: 0 | Y201: 0 | Z201: 0 | AA201: =IF(W200<0.01,0,+W200/1000*Simulador!$V$14+IF($D$8>0,$D$8,$D$7)/1000*Simulador!$V$15) -> 0 | AB201: =IF(W200<0.01,0,Simulador!$V$16) -> 0 | AC201: 0 | AD201: 0 | AE201: 0 | AF201: 0 | AG201: 0 | AI201: 0 | AJ201: 179
B202: 180 | C202: 14 | D202: 12 | E202: =IF(D202=1,MAX(E201-0.0025,Simulador!$K$10),E201) -> 0.1025 | F202: 0 | G202: 0 | H202: 0 | I202: 0 | J202: 0 | K202: =IF(F202<0.01,0,F202/1000*IF(Simulador!$X$8=1,0,Simulador!$V$14)+IF($D$8>0,$D$8,$D$7)/1000*IF(Simulador!$X$8=1,0,Simulador!$V$15)) -> 0 | L202: =IF(F201-H202=0,0,L200) -> 0 | M202: =MAX(0,MIN(F201+G202+K202+L202-(I202+K202+L202),Simulador!$K$45)) -> 0 | O202: 0 | P202: 0 | S202: 0 | T202: 0 | U202: 0 | W202: 0 | X202: 0 | Y202: 0 | Z202: 0 | AA202: =IF(W201<0.01,0,+W201/1000*Simulador!$V$14+IF($D$8>0,$D$8,$D$7)/1000*Simulador!$V$15) -> 0 | AB202: =IF(W201<0.01,0,Simulador!$V$16) -> 0 | AC202: 0 | AD202: 0 | AE202: 0 | AF202: 0 | AG202: 0 | AI202: 0 | AJ202: 180
B203: 181 | C203: 15 | D203: 1 | E203: =IF(D203=1,MAX(E202-0.0025,Simulador!$K$10),E202) -> 0.1025 | F203: 0 | G203: 0 | H203: 0 | I203: 0 | J203: 0.026 | K203: =IF(F203<0.01,0,F203/1000*IF(Simulador!$X$8=1,0,Simulador!$V$14)+IF($D$8>0,$D$8,$D$7)/1000*IF(Simulador!$X$8=1,0,Simulador!$V$15)) -> 0 | L203: 0 | M203: =MAX(0,MIN(F202+G203+K203+L203-(I203+K203+L203),Simulador!$K$45)) -> 0 | O203: 0 | P203: 0 | S203: 0 | T203: 0 | U203: 0 | W203: 0 | X203: 0 | Y203: 0 | Z203: 0 | AA203: =IF(W202<0.01,0,+W202/1000*Simulador!$V$14+IF($D$8>0,$D$8,$D$7)/1000*Simulador!$V$15) -> 0 | AB203: =IF(W202<0.01,0,Simulador!$V$16) -> 0 | AC203: 0 | AD203: 0 | AE203: 0 | AF203: 0 | AG203: 0 | AI203: 0 | AJ203: 181
... 68 more rows

Sheet Valora 10
E1: Scotiabank Inverlat, S.A., Institución de Banca Múltiple, Grupo Financiero Scotiabank Inverlat
P2: Simulador Pago de Pasivos
N3: =+Simulador!P3 -> 2024-03-22
P5: Regresar
B6: Nombre | D6: =+Simulador!$C$7 -> 0 | G6: Los pagos puntuales y anticipados reducen el plazo de liquidación
B7: Valor de la vivienda | D7: =+Simulador!$F$11 -> 0 | G7: =CONCATENATE(Simulador!U20," años ",Simulador!U21," meses") -> 0 años 0 meses
B8: Valor destructible | D8: =+Simulador!$F$12 -> 0
B9: Esquema Valora a 10 años
B10: Crédito solicitado | D10: =+Simulador!$F$25 -> 0
B11: Tasa de interés inicial | D11: =VLOOKUP(Simulador!AA7,Simulador!Z8:AC14,2,FALSE) -> 0.1025
B12: Pago por mil inicial | D12: =+Simulador!J13 -> 12.38
B13: Crecimiento anual | D13: =+Simulador!J14 -> 0.026
B14: Costo anual total | D14: =IFERROR((1+IRR(AE22:AE262,0.01))^12-1,0) -> 0
B16: Gastos | W16: 1
B17: Comisión de apertura | D17: =IFERROR(Simulador!J18*1,0) -> 0 | E17: =IF(Simulador!$V$13=1,"Financiada","") ->  | W17: Disminución de plazo
B18: Avalúo | D18: =IFERROR(Simulador!J19*1,0) -> 0 | W18: Disminución de pago
W20: Amortización sin prepagos para gráfica y CAT como producto sin prepagos
B21: Periodo | C21: Año | D21: Mes | E21: Tasa de interés | F21: Saldo al inicio del periodo | G21: Interés | H21: Capital | I21: Erogación | J21: Crecimiento anual | K21: Seguros | L21: Aportación Bimestral (Apoyo Inf) | M21: Prepago recurrente | N21: Prepago no recurrente | O21: Saldo al final de periodo | P21: Pago Total | S21: Abono comisión atur. Dif. | T21: Mes de Liquidación | U21: Flujos para CAT | W21: Saldo al final de periodo | X21: Interés | Y21: Capital | Z21: Erogación | AA21: Seguros | AB21: Comisión por aut. diferida | AC21: Abono comisión atur. Dif. | AD21: Pago Total | AE21: Flujos para CAT | AF21: Factores | AG21: Plazo | AH21: Fecha | AI21: Dias | AK21: Año actual | AL21: Mes actual | AM21: Día actual | AN21: Dia/corte | AO21: sumar
B22: 0 | O22: =+D10 -> 0 | T22: =SUM(T23:T262) -> 0 | U22: =-O22+D17+D18 -> 0 | W22: =+O22 -> 0 | AE22: =+U22 -> 0 | AK22: =IFERROR(YEAR(Simulador!P3),YEAR(Simulador!P3)) -> 2024 | AL22: =IFERROR(MONTH(Simulador!P3),MONTH(Simulador!P3)) -> 3 | AM22: =IFERROR(DAY(Simulador!P3),DAY(Simulador!P3)) -> 22 | AN22: =IF(AND(DAY(Simulador!P3)>=3,DAY(Simulador!P3)<=16),3,17) -> 17 | AO22: =IF(AM22>AN22,1,0) -> 1
B23: 1 | C23: 0 | D23: =IF(D22=12,1,D22+1) -> 1 | E23: =+D11 -> 0.1025 | F23: =+O22 -> 0 | G23: =IF(F23<0.01,0,F23*E23/360*AI23) -> 0 | H23: =+I23-G23 -> 0 | I23: =+D12*O22/1000 -> 0 | J23: 0 | K23: =IF(O22<0.01,0,O22/1000*IF(Simulador!$X$8=1,0,Simulador!$V$14)+IF($D$8>0,$D$8,$D$7)/1000*IF(Simulador!$X$8=1,0,Simulador!$V$15)) -> 0 | L23: 0 | M23: =MAX(0,MIN(O22+G23+K23+L23-(I23+K23+L23),Simulador!$J$45)) -> 0 | O23: =MAX(0,O22-H23-L23-M23-N23) -> 0 | P23: =MAX(0,MIN(O22+G23+K23,I23+K23+M23+N23)) -> 0 | S23: 0 | T23: =IF(AND(O22>0.01,O23<=0.01),B23,0) -> 0 | U23: =+P23 -> 0 | W23: =+W22-Y23 -> 0 | X23: =W22*E23/360*AI23 -> 0 | Y23: =+Z23-X23 -> 0 | Z23: =+I23 -> 0 | AA23: =IF(W22<0.01,0,+W22/1000*Simulador!$V$14+IF($D$8>0,$D$8,$D$7)/1000*Simulador!$V$15) -> 0 | AB23: 0 | AC23: 0 | AD23: =IF(W22<0.01,0,+Z23+AA23+AB23-AC23) -> 0 | AE23: =+AD23 -> 0 | AF23: =IFERROR(Z23/W22,0) -> 0 | AG23: 120 | AH23: =IF(W22=0,"",DATE(AK22,AL22+AO22,AM22)) ->  | AI23: =IFERROR(DAY(DATE(YEAR(AH23),MONTH(AH23)+1,0)),0) -> 0 | AJ23: 1
B24: 2 | C24: =IF(D23=12,C23+1,C23) -> 0 | D24: =IF(D23=12,1,D23+1) -> 2 | E24: =+E23 -> 0.1025 | F24: =+O23 -> 0 | G24: =IF(F24<0.01,0,F24*E24/360*AI24) -> 0 | H24: =+I24-G24 -> 0 | I24: =IF($W$16=2,MAX(0,(MIN(+I23*(1+J24),F24*AF24))),MAX(0,(MIN(+I23*(1+J24),F24+G24)))) -> 0 | J24: =IF(D24=1,$D$13,0) -> 0 | K24: =IF(F24<0.01,0,F24/1000*IF(Simulador!$X$8=1,0,Simulador!$V$14)+IF($D$8>0,$D$8,$D$7)/1000*IF(Simulador!$X$8=1,0,Simulador!$V$15)) -> 0 | L24: =IF(Simulador!$F$31*Simulador!$AG$25*2>Simulador!$AH$27,Simulador!$AH$27,IF(O23=0,0,Simulador!$F$31*Simulador!$AG$25*2)) -> 0 | M24: =MAX(0,MIN(O23+G24+K24+L24-(I24+K24+L24),Simulador!$J$45)) -> 0 | O24: =MAX(0,O23-H24-L24-M24-N24) -> 0 | P24: =MAX(0,MIN(O23+G24+K24,I24+K24+M24+N24)) -> 0 | S24: 0 | T24: =IF(AND(O23>0.01,F24<=0.01),B24,0) -> 0 | U24: =+P24 -> 0 | W24: =+W23-Y24 -> 0 | X24: =W23*E24/360*AI24 -> 0 | Y24: =+Z24-X24 -> 0 | Z24: =MAX(0,(MIN(+Z23*(1+J24),W23+X24))) -> 0 | AA24: =IF(W23<0.01,0,+W23/1000*Simulador!$V$14+IF($D$8>0,$D$8,$D$7)/1000*Simulador!$V$15) -> 0 | AB24: 0 | AC24: 0 | AD24: =IF(W23<0.01,0,+Z24+AA24+AB24-AC24) -> 0 | AE24: =+AD24 -> 0 | AF24: =IFERROR(Z24/W23,0) -> 0 | AG24: =IFERROR(IF(Y23<=0.01,0,AG23-1),0) -> 0 | AH24: =IF(Y23=0,"",DATE(YEAR(AH23),MONTH(AH23)+1,1)) ->  | AI24: =IFERROR(DAY(DATE(YEAR(AH24),MONTH(AH24)+1,0)),0) -> 0 | AJ24: 2 | AK24: Días/Mes | AL24: 30.4375 | AM24: =SUM(AI83:AI262) -> 0 | AN24: =IF(AG83=0,0,AM24/AG83) -> 0
B25: 3 | C25: =IF(D24=12,C24+1,C24) -> 0 | D25: 3 | E25: =+E24 -> 0.1025 | F25: 0 | G25: =IF(F25<0.01,0,F25*E25/360*AI25) -> 0 | H25: =+I25-G25 -> 0 | I25: =IF($W$16=2,MAX(0,(MIN(+I24*(1+J25),F25*AF25))),MAX(0,(MIN(+I24*(1+J25),F25+G25)))) -> 0 | J25: 0 | K25: =IF(F25<0.01,0,F25/1000*IF(Simulador!$X$8=1,0,Simulador!$V$14)+IF($D$8>0,$D$8,$D$7)/1000*IF(Simulador!$X$8=1,0,Simulador!$V$15)) -> 0 | L25: 0 | M25: =MAX(0,MIN(F24+G25+K25+L25-(I25+K25+L25),Simulador!$J$45)) -> 0 | O25: 0 | P25: =MAX(0,MIN(F24+G25+K25,I25+K25+M25+N25)) -> 0 | S25: 0 | T25: =IF(AND(F24>0.01,F25<=0.01),B25,0) -> 0 | U25: =+P25 -> 0 | W25: 0 | X25: 0 | Y25: 0 | Z25: =MAX(0,(MIN(+Z24*(1+J25),W24+X25))) -> 0 | AA25: =IF(W24<0.01,0,+W24/1000*Simulador!$V$14+IF($D$8>0,$D$8,$D$7)/1000*Simulador!$V$15) -> 0 | AB25: 0 | AC25: 0 | AD25: =IF(W24<0.01,0,+Z25+AA25+AB25-AC25) -> 0 | AE25: 0 | AF25: 0 | AG25: =IFERROR(IF(Y24<=0.01,0,AG24-1),0) -> 0 | AH25: =IF(Y24=0,"",DATE(YEAR(AH24),MONTH(AH24)+1,1)) ->  | AI25: 0 | AJ25: 3 | AL25: Interés mensual = Sdo inicial x tasa / 360 x # días del mes
B26: 4 | C26: 0 | D26: 4 | E26: 0.1025 | F26: 0 | G26: 0 | H26: =+I26-G26 -> 0 | I26: 0 | J26: 0 | K26: =IF(F26<0.01,0,F26/1000*IF(Simulador!$X$8=1,0,Simulador!$V$14)+IF($D$8>0,$D$8,$D$7)/1000*IF(Simulador!$X$8=1,0,Simulador!$V$15)) -> 0 | L26: =IF(F25-H26=0,0,L24) -> 0 | M26: =MAX(0,MIN(F25+G26+K26+L26-(I26+K26+L26),Simulador!$J$45)) -> 0 | O26: 0 | P26: 0 | S26: 0 | T26: 0 | U26: =+P26 -> 0 | W26: 0 | X26: 0 | Y26: 0 | Z26: 0 | AA26: =IF(W25<0.01,0,+W25/1000*Simulador!$V$14+IF($D$8>0,$D$8,$D$7)/1000*Simulador!$V$15) -> 0 | AB26: 0 | AC26: 0 | AD26: 0 | AE26: 0 | AF26: 0 | AG26: =IFERROR(IF(Y25<=0.01,0,AG25-1),0) -> 0 | AH26: =IF(Y25=0,"",DATE(YEAR(AH25),MONTH(AH25)+1,1)) ->  | AI26: 0 | AJ26: 4
B27: 5 | C27: 0 | D27: 5 | E27: 0.1025 | F27: 0 | G27: 0 | H27: 0 | I27: 0 | J27: 0 | K27: =IF(F27<0.01,0,F27/1000*IF(Simulador!$X$8=1,0,Simulador!$V$14)+IF($D$8>0,$D$8,$D$7)/1000*IF(Simulador!$X$8=1,0,Simulador!$V$15)) -> 0 | L27: 0 | M27: =MAX(0,MIN(F26+G27+K27+L27-(I27+K27+L27),Simulador!$J$45)) -> 0 | O27: 0 | P27: 0 | S27: 0 | T27: 0 | U27: 0 | W27: 0 | X27: 0 | Y27: 0 | Z27: 0 | AA27: =IF(W26<0.01,0,+W26/1000*Simulador!$V$14+IF($D$8>0,$D$8,$D$7)/1000*Simulador!$V$15) -> 0 | AB27: 0 | AC27: 0 | AD27: 0 | AE27: 0 | AF27: 0 | AG27: =IFERROR(IF(Y26<=0.01,0,AG26-1),0) -> 0 | AH27: =IF(Y26=0,"",DATE(YEAR(AH26),MONTH(AH26)+1,1)) ->  | AI27: 0 | AJ27: 5
B28: 6 | C28: 0 | D28: 6 | E28: 0.1025 | F28: 0 | G28: 0 | H28: 0 | I28: 0 | J28: 0 | K28: =IF(F28<0.01,0,F28/1000*IF(Simulador!$X$8=1,0,Simulador!$V$14)+IF($D$8>0,$D$8,$D$7)/1000*IF(Simulador!$X$8=1,0,Simulador!$V$15)) -> 0 | L28: =IF(F27-H28=0,0,L26) -> 0 | M28: =MAX(0,MIN(F27+G28+K28+L28-(I28+K28+L28),Simulador!$J$45)) -> 0 | O28: 0 | P28: 0 | S28: 0 | T28: 0 | U28: 0 | W28: 0 | X28: 0 | Y28: 0 | Z28: 0 | AA28: =IF(W27<0.01,0,+W27/1000*Simulador!$V$14+IF($D$8>0,$D$8,$D$7)/1000*Simulador!$V$15) -> 0 | AB28: 0 | AC28: 0 | AD28: 0 | AE28: 0 | AF28: 0 | AG28: 0 | AI28: 0 | AJ28: 6
B29: 7 | C29: 0 | D29: 7 | E29: 0.1025 | F29: 0 | G29: 0 | H29: 0 | I29: 0 | J29: 0 | K29: =IF(F29<0.01,0,F29/1000*IF(Simulador!$X$8=1,0,Simulador!$V$14)+IF($D$8>0,$D$8,$D$7)/1000*IF(Simulador!$X$8=1,0,Simulador!$V$15)) -> 0 | L29: 0 | M29: =MAX(0,MIN(F28+G29+K29+L29-(I29+K29+L29),Simulador!$J$45)) -> 0 | O29: 0 | P29: 0 | S29: 0 | T29: 0 | U29: 0 | W29: 0 | X29: 0 | Y29: 0 | Z29: 0 | AA29: =IF(W28<0.01,0,+W28/1000*Simulador!$V$14+IF($D$8>0,$D$8,$D$7)/1000*Simulador!$V$15) -> 0 | AB29: 0 | AC29: 0 | AD29: 0 | AE29: 0 | AF29: 0 | AG29: 0 | AI29: 0 | AJ29: 7
B30: 8 | C30: 0 | D30: 8 | E30: 0.1025 | F30: 0 | G30: 0 | H30: 0 | I30: 0 | J30: 0 | K30: =IF(F30<0.01,0,F30/1000*IF(Simulador!$X$8=1,0,Simulador!$V$14)+IF($D$8>0,$D$8,$D$7)/1000*IF(Simulador!$X$8=1,0,Simulador!$V$15)) -> 0 | L30: =IF(F29-H30=0,0,L28) -> 0 | M30: =MAX(0,MIN(F29+G30+K30+L30-(I30+K30+L30),Simulador!$J$45)) -> 0 | O30: 0 | P30: 0 | S30: 0 | T30: 0 | U30: 0 | W30: 0 | X30: 0 | Y30: 0 | Z30: 0 | AA30: =IF(W29<0.01,0,+W29/1000*Simulador!$V$14+IF($D$8>0,$D$8,$D$7)/1000*Simulador!$V$15) -> 0 | AB30: 0 | AC30: 0 | AD30: 0 | AE30: 0 | AF30: 0 | AG30: 0 | AI30: 0 | AJ30: 8
B31: 9 | C31: 0 | D31: 9 | E31: 0.1025 | F31: 0 | G31: 0 | H31: 0 | I31: 0 | J31: 0 | K31: =IF(F31<0.01,0,F31/1000*IF(Simulador!$X$8=1,0,Simulador!$V$14)+IF($D$8>0,$D$8,$D$7)/1000*IF(Simulador!$X$8=1,0,Simulador!$V$15)) -> 0 | L31: 0 | M31: =MAX(0,MIN(F30+G31+K31+L31-(I31+K31+L31),Simulador!$J$45)) -> 0 | O31: 0 | P31: 0 | S31: 0 | T31: 0 | U31: 0 | W31: 0 | X31: 0 | Y31: 0 | Z31: 0 | AA31: =IF(W30<0.01,0,+W30/1000*Simulador!$V$14+IF($D$8>0,$D$8,$D$7)/1000*Simulador!$V$15) -> 0 | AB31: 0 | AC31: 0 | AD31: 0 | AE31: 0 | AF31: 0 | AG31: 0 | AI31: 0 | AJ31: 9
B32: 10 | C32: 0 | D32: 10 | E32: 0.1025 | F32: 0 | G32: 0 | H32: 0 | I32: 0 | J32: 0 | K32: =IF(F32<0.01,0,F32/1000*IF(Simulador!$X$8=1,0,Simulador!$V$14)+IF($D$8>0,$D$8,$D$7)/1000*IF(Simulador!$X$8=1,0,Simulador!$V$15)) -> 0 | L32: =IF(F31-H32=0,0,L30) -> 0 | M32: =MAX(0,MIN(F31+G32+K32+L32-(I32+K32+L32),Simulador!$J$45)) -> 0 | O32: 0 | P32: 0 | S32: 0 | T32: 0 | U32: 0 | W32: 0 | X32: 0 | Y32: 0 | Z32: 0 | AA32: =IF(W31<0.01,0,+W31/1000*Simulador!$V$14+IF($D$8>0,$D$8,$D$7)/1000*Simulador!$V$15) -> 0 | AB32: 0 | AC32: 0 | AD32: 0 | AE32: 0 | AF32: 0 | AG32: 0 | AI32: 0 | AJ32: 10
B33: 11 | C33: 0 | D33: 11 | E33: 0.1025 | F33: 0 | G33: 0 | H33: 0 | I33: 0 | J33: 0 | K33: =IF(F33<0.01,0,F33/1000*IF(Simulador!$X$8=1,0,Simulador!$V$14)+IF($D$8>0,$D$8,$D$7)/1000*IF(Simulador!$X$8=1,0,Simulador!$V$15)) -> 0 | L33: 0 | M33: =MAX(0,MIN(F32+G33+K33+L33-(I33+K33+L33),Simulador!$J$45)) -> 0 | O33: 0 | P33: 0 | S33: 0 | T33: 0 | U33: 0 | W33: 0 | X33: 0 | Y33: 0 | Z33: 0 | AA33: =IF(W32<0.01,0,+W32/1000*Simulador!$V$14+IF($D$8>0,$D$8,$D$7)/1000*Simulador!$V$15) -> 0 | AB33: 0 | AC33: 0 | AD33: 0 | AE33: 0 | AF33: 0 | AG33: 0 | AI33: 0 | AJ33: 11
B34: 12 | C34: 0 | D34: 12 | E34: 0.1025 | F34: 0 | G34: 0 | H34: 0 | I34: 0 | J34: 0 | K34: =IF(F34<0.01,0,F34/1000*IF(Simulador!$X$8=1,0,Simulador!$V$14)+IF($D$8>0,$D$8,$D$7)/1000*IF(Simulador!$X$8=1,0,Simulador!$V$15)) -> 0 | L34: =IF(F33-H34=0,0,L32) -> 0 | M34: =MAX(0,MIN(F33+G34+K34+L34-(I34+K34+L34),Simulador!$J$45)) -> 0 | O34: 0 | P34: 0 | S34: 0 | T34: 0 | U34: 0 | W34: 0 | X34: 0 | Y34: 0 | Z34: 0 | AA34: =IF(W33<0.01,0,+W33/1000*Simulador!$V$14+IF($D$8>0,$D$8,$D$7)/1000*Simulador!$V$15) -> 0 | AB34: 0 | AC34: 0 | AD34: 0 | AE34: 0 | AF34: 0 | AG34: 0 | AI34: 0 | AJ34: 12
B35: 13 | C35: 1 | D35: 1 | E35: 0.1025 | F35: 0 | G35: 0 | H35: 0 | I35: 0 | J35: 0.026 | K35: =IF(F35<0.01,0,F35/1000*IF(Simulador!$X$8=1,0,Simulador!$V$14)+IF($D$8>0,$D$8,$D$7)/1000*IF(Simulador!$X$8=1,0,Simulador!$V$15)) -> 0 | L35: 0 | M35: =MAX(0,MIN(F34+G35+K35+L35-(I35+K35+L35),Simulador!$J$45)) -> 0 | O35: 0 | P35: 0 | S35: 0 | T35: 0 | U35: 0 | W35: 0 | X35: 0 | Y35: 0 | Z35: 0 | AA35: =IF(W34<0.01,0,+W34/1000*Simulador!$V$14+IF($D$8>0,$D$8,$D$7)/1000*Simulador!$V$15) -> 0 | AB35: =IF(W34<0.01,0,Simulador!$V$16) -> 0 | AC35: =IF(W34<0.01,0,IF(D35=1,SUM(AB23:AB34),0)) -> 0 | AD35: 0 | AE35: 0 | AF35: 0 | AG35: 0 | AI35: 0 | AJ35: 13
B36: 14 | C36: 1 | D36: 2 | E36: 0.1025 | F36: 0 | G36: 0 | H36: 0 | I36: 0 | J36: 0 | K36: =IF(F36<0.01,0,F36/1000*IF(Simulador!$X$8=1,0,Simulador!$V$14)+IF($D$8>0,$D$8,$D$7)/1000*IF(Simulador!$X$8=1,0,Simulador!$V$15)) -> 0 | L36: =IF(F35-H36=0,0,L34*(1+Simulador!$AH$28)) -> 0 | M36: =MAX(0,MIN(F35+G36+K36+L36-(I36+K36+L36),Simulador!$J$45)) -> 0 | O36: 0 | P36: 0 | S36: 0 | T36: 0 | U36: 0 | W36: 0 | X36: 0 | Y36: 0 | Z36: 0 | AA36: =IF(W35<0.01,0,+W35/1000*Simulador!$V$14+IF($D$8>0,$D$8,$D$7)/1000*Simulador!$V$15) -> 0 | AB36: =IF(W35<0.01,0,Simulador!$V$16) -> 0 | AC36: =IF(W35<0.01,0,IF(D36=1,SUM(AB24:AB35),0)) -> 0 | AD36: 0 | AE36: 0 | AF36: 0 | AG36: 0 | AI36: 0 | AJ36: 14
B37: 15 | C37: 1 | D37: 3 | E37: 0.1025 | F37: 0 | G37: 0 | H37: 0 | I37: 0 | J37: 0 | K37: =IF(F37<0.01,0,F37/1000*IF(Simulador!$X$8=1,0,Simulador!$V$14)+IF($D$8>0,$D$8,$D$7)/1000*IF(Simulador!$X$8=1,0,Simulador!$V$15)) -> 0 | L37: 0 | M37: =MAX(0,MIN(F36+G37+K37+L37-(I37+K37+L37),Simulador!$J$45)) -> 0 | O37: 0 | P37: 0 | S37: 0 | T37: 0 | U37: 0 | W37: 0 | X37: 0 | Y37: 0 | Z37: 0 | AA37: =IF(W36<0.01,0,+W36/1000*Simulador!$V$14+IF($D$8>0,$D$8,$D$7)/1000*Simulador!$V$15) -> 0 | AB37: =IF(W36<0.01,0,Simulador!$V$16) -> 0 | AC37: 0 | AD37: 0 | AE37: 0 | AF37: 0 | AG37: 0 | AI37: 0 | AJ37: 15
B38: 16 | C38: 1 | D38: 4 | E38: 0.1025 | F38: 0 | G38: 0 | H38: 0 | I38: 0 | J38: 0 | K38: =IF(F38<0.01,0,F38/1000*IF(Simulador!$X$8=1,0,Simulador!$V$14)+IF($D$8>0,$D$8,$D$7)/1000*IF(Simulador!$X$8=1,0,Simulador!$V$15)) -> 0 | L38: =IF(F37-H38=0,0,L36) -> 0 | M38: =MAX(0,MIN(F37+G38+K38+L38-(I38+K38+L38),Simulador!$J$45)) -> 0 | O38: 0 | P38: 0 | S38: 0 | T38: 0 | U38: 0 | W38: 0 | X38: 0 | Y38: 0 | Z38: 0 | AA38: =IF(W37<0.01,0,+W37/1000*Simulador!$V$14+IF($D$8>0,$D$8,$D$7)/1000*Simulador!$V$15) -> 0 | AB38: =IF(W37<0.01,0,Simulador!$V$16) -> 0 | AC38: 0 | AD38: 0 | AE38: 0 | AF38: 0 | AG38: 0 | AI38: 0 | AJ38: 16
B39: 17 | C39: 1 | D39: 5 | E39: 0.1025 | F39: 0 | G39: 0 | H39: 0 | I39: 0 | J39: 0 | K39: =IF(F39<0.01,0,F39/1000*IF(Simulador!$X$8=1,0,Simulador!$V$14)+IF($D$8>0,$D$8,$D$7)/1000*IF(Simulador!$X$8=1,0,Simulador!$V$15)) -> 0 | L39: 0 | M39: =MAX(0,MIN(F38+G39+K39+L39-(I39+K39+L39),Simulador!$J$45)) -> 0 | O39: 0 | P39: 0 | S39: 0 | T39: 0 | U39: 0 | W39: 0 | X39: 0 | Y39: 0 | Z39: 0 | AA39: =IF(W38<0.01,0,+W38/1000*Simulador!$V$14+IF($D$8>0,$D$8,$D$7)/1000*Simulador!$V$15) -> 0 | AB39: =IF(W38<0.01,0,Simulador!$V$16) -> 0 | AC39: 0 | AD39: 0 | AE39: 0 | AF39: 0 | AG39: 0 | AI39: 0 | AJ39: 17
B40: 18 | C40: 1 | D40: 6 | E40: 0.1025 | F40: 0 | G40: 0 | H40: 0 | I40: 0 | J40: 0 | K40: =IF(F40<0.01,0,F40/1000*IF(Simulador!$X$8=1,0,Simulador!$V$14)+IF($D$8>0,$D$8,$D$7)/1000*IF(Simulador!$X$8=1,0,Simulador!$V$15)) -> 0 | L40: =IF(F39-H40=0,0,L38) -> 0 | M40: =MAX(0,MIN(F39+G40+K40+L40-(I40+K40+L40),Simulador!$J$45)) -> 0 | O40: 0 | P40: 0 | S40: 0 | T40: 0 | U40: 0 | W40: 0 | X40: 0 | Y40: 0 | Z40: 0 | AA40: =IF(W39<0.01,0,+W39/1000*Simulador!$V$14+IF($D$8>0,$D$8,$D$7)/1000*Simulador!$V$15) -> 0 | AB40: =IF(W39<0.01,0,Simulador!$V$16) -> 0 | AC40: 0 | AD40: 0 | AE40: 0 | AF40: 0 | AG40: 0 | AI40: 0 | AJ40: 18
B41: 19 | C41: 1 | D41: 7 | E41: 0.1025 | F41: 0 | G41: 0 | H41: 0 | I41: 0 | J41: 0 | K41: =IF(F41<0.01,0,F41/1000*IF(Simulador!$X$8=1,0,Simulador!$V$14)+IF($D$8>0,$D$8,$D$7)/1000*IF(Simulador!$X$8=1,0,Simulador!$V$15)) -> 0 | L41: 0 | M41: =MAX(0,MIN(F40+G41+K41+L41-(I41+K41+L41),Simulador!$J$45)) -> 0 | O41: 0 | P41: 0 | S41: 0 | T41: 0 | U41: 0 | W41: 0 | X41: 0 | Y41: 0 | Z41: 0 | AA41: =IF(W40<0.01,0,+W40/1000*Simulador!$V$14+IF($D$8>0,$D$8,$D$7)/1000*Simulador!$V$15) -> 0 | AB41: =IF(W40<0.01,0,Simulador!$V$16) -> 0 | AC41: 0 | AD41: 0 | AE41: 0 | AF41: 0 | AG41: 0 | AI41: 0 | AJ41: 19
B42: 20 | C42: 1 | D42: 8 | E42: 0.1025 | F42: 0 | G42: 0 | H42: 0 | I42: 0 | J42: 0 | K42: =IF(F42<0.01,0,F42/1000*IF(Simulador!$X$8=1,0,Simulador!$V$14)+IF($D$8>0,$D$8,$D$7)/1000*IF(Simulador!$X$8=1,0,Simulador!$V$15)) -> 0 | L42: =IF(F41-H42=0,0,L40) -> 0 | M42: =MAX(0,MIN(F41+G42+K42+L42-(I42+K42+L42),Simulador!$J$45)) -> 0 | O42: 0 | P42: 0 | S42: 0 | T42: 0 | U42: 0 | W42: 0 | X42: 0 | Y42: 0 | Z42: 0 | AA42: =IF(W41<0.01,0,+W41/1000*Simulador!$V$14+IF($D$8>0,$D$8,$D$7)/1000*Simulador!$V$15) -> 0 | AB42: =IF(W41<0.01,0,Simulador!$V$16) -> 0 | AC42: 0 | AD42: 0 | AE42: 0 | AF42: 0 | AG42: 0 | AI42: 0 | AJ42: 20
B43: 21 | C43: 1 | D43: 9 | E43: 0.1025 | F43: 0 | G43: 0 | H43: 0 | I43: 0 | J43: 0 | K43: =IF(F43<0.01,0,F43/1000*IF(Simulador!$X$8=1,0,Simulador!$V$14)+IF($D$8>0,$D$8,$D$7)/1000*IF(Simulador!$X$8=1,0,Simulador!$V$15)) -> 0 | L43: 0 | M43: =MAX(0,MIN(F42+G43+K43+L43-(I43+K43+L43),Simulador!$J$45)) -> 0 | O43: 0 | P43: 0 | S43: 0 | T43: 0 | U43: 0 | W43: 0 | X43: 0 | Y43: 0 | Z43: 0 | AA43: =IF(W42<0.01,0,+W42/1000*Simulador!$V$14+IF($D$8>0,$D$8,$D$7)/1000*Simulador!$V$15) -> 0 | AB43: =IF(W42<0.01,0,Simulador!$V$16) -> 0 | AC43: 0 | AD43: 0 | AE43: 0 | AF43: 0 | AG43: 0 | AI43: 0 | AJ43: 21
B44: 22 | C44: 1 | D44: 10 | E44: 0.1025 | F44: 0 | G44: 0 | H44: 0 | I44: 0 | J44: 0 | K44: =IF(F44<0.01,0,F44/1000*IF(Simulador!$X$8=1,0,Simulador!$V$14)+IF($D$8>0,$D$8,$D$7)/1000*IF(Simulador!$X$8=1,0,Simulador!$V$15)) -> 0 | L44: =IF(F43-H44=0,0,L42) -> 0 | M44: =MAX(0,MIN(F43+G44+K44+L44-(I44+K44+L44),Simulador!$J$45)) -> 0 | O44: 0 | P44: 0 | S44: 0 | T44: 0 | U44: 0 | W44: 0 | X44: 0 | Y44: 0 | Z44: 0 | AA44: =IF(W43<0.01,0,+W43/1000*Simulador!$V$14+IF($D$8>0,$D$8,$D$7)/1000*Simulador!$V$15) -> 0 | AB44: =IF(W43<0.01,0,Simulador!$V$16) -> 0 | AC44: 0 | AD44: 0 | AE44: 0 | AF44: 0 | AG44: 0 | AI44: 0 | AJ44: 22
B45: 23 | C45: 1 | D45: 11 | E45: 0.1025 | F45: 0 | G45: 0 | H45: 0 | I45: 0 | J45: 0 | K45: =IF(F45<0.01,0,F45/1000*IF(Simulador!$X$8=1,0,Simulador!$V$14)+IF($D$8>0,$D$8,$D$7)/1000*IF(Simulador!$X$8=1,0,Simulador!$V$15)) -> 0 | L45: 0 | M45: =MAX(0,MIN(F44+G45+K45+L45-(I45+K45+L45),Simulador!$J$45)) -> 0 | O45: 0 | P45: 0 | S45: 0 | T45: 0 | U45: 0 | W45: 0 | X45: 0 | Y45: 0 | Z45: 0 | AA45: =IF(W44<0.01,0,+W44/1000*Simulador!$V$14+IF($D$8>0,$D$8,$D$7)/1000*Simulador!$V$15) -> 0 | AB45: =IF(W44<0.01,0,Simulador!$V$16) -> 0 | AC45: 0 | AD45: 0 | AE45: 0 | AF45: 0 | AG45: 0 | AI45: 0 | AJ45: 23
B46: 24 | C46: 1 | D46: 12 | E46: 0.1025 | F46: 0 | G46: 0 | H46: 0 | I46: 0 | J46: 0 | K46: =IF(F46<0.01,0,F46/1000*IF(Simulador!$X$8=1,0,Simulador!$V$14)+IF($D$8>0,$D$8,$D$7)/1000*IF(Simulador!$X$8=1,0,Simulador!$V$15)) -> 0 | L46: =IF(F45-H46=0,0,L44) -> 0 | M46: =MAX(0,MIN(F45+G46+K46+L46-(I46+K46+L46),Simulador!$J$45)) -> 0 | O46: 0 | P46: 0 | S46: 0 | T46: 0 | U46: 0 | W46: 0 | X46: 0 | Y46: 0 | Z46: 0 | AA46: =IF(W45<0.01,0,+W45/1000*Simulador!$V$14+IF($D$8>0,$D$8,$D$7)/1000*Simulador!$V$15) -> 0 | AB46: =IF(W45<0.01,0,Simulador!$V$16) -> 0 | AC46: 0 | AD46: 0 | AE46: 0 | AF46: 0 | AG46: 0 | AI46: 0 | AJ46: 24
B47: 25 | C47: 2 | D47: 1 | E47: 0.1025 | F47: 0 | G47: 0 | H47: 0 | I47: 0 | J47: 0.026 | K47: =IF(F47<0.01,0,F47/1000*IF(Simulador!$X$8=1,0,Simulador!$V$14)+IF($D$8>0,$D$8,$D$7)/1000*IF(Simulador!$X$8=1,0,Simulador!$V$15)) -> 0 | L47: 0 | M47: =MAX(0,MIN(F46+G47+K47+L47-(I47+K47+L47),Simulador!$J$45)) -> 0 | O47: 0 | P47: 0 | S47: 0 | T47: 0 | U47: 0 | W47: 0 | X47: 0 | Y47: 0 | Z47: 0 | AA47: =IF(W46<0.01,0,+W46/1000*Simulador!$V$14+IF($D$8>0,$D$8,$D$7)/1000*Simulador!$V$15) -> 0 | AB47: =IF(W46<0.01,0,Simulador!$V$16) -> 0 | AC47: 0 | AD47: 0 | AE47: 0 | AF47: 0 | AG47: 0 | AI47: 0 | AJ47: 25
B48: 26 | C48: 2 | D48: 2 | E48: 0.1025 | F48: 0 | G48: 0 | H48: 0 | I48: 0 | J48: 0 | K48: =IF(F48<0.01,0,F48/1000*IF(Simulador!$X$8=1,0,Simulador!$V$14)+IF($D$8>0,$D$8,$D$7)/1000*IF(Simulador!$X$8=1,0,Simulador!$V$15)) -> 0 | L48: =IF(F47-H48=0,0,L46*(1+Simulador!$AH$28)) -> 0 | M48: =MAX(0,MIN(F47+G48+K48+L48-(I48+K48+L48),Simulador!$J$45)) -> 0 | O48: 0 | P48: 0 | S48: 0 | T48: 0 | U48: 0 | W48: 0 | X48: 0 | Y48: 0 | Z48: 0 | AA48: =IF(W47<0.01,0,+W47/1000*Simulador!$V$14+IF($D$8>0,$D$8,$D$7)/1000*Simulador!$V$15) -> 0 | AB48: =IF(W47<0.01,0,Simulador!$V$16) -> 0 | AC48: 0 | AD48: 0 | AE48: 0 | AF48: 0 | AG48: 0 | AI48: 0 | AJ48: 26
B49: 27 | C49: 2 | D49: 3 | E49: 0.1025 | F49: 0 | G49: 0 | H49: 0 | I49: 0 | J49: 0 | K49: =IF(F49<0.01,0,F49/1000*IF(Simulador!$X$8=1,0,Simulador!$V$14)+IF($D$8>0,$D$8,$D$7)/1000*IF(Simulador!$X$8=1,0,Simulador!$V$15)) -> 0 | L49: 0 | M49: =MAX(0,MIN(F48+G49+K49+L49-(I49+K49+L49),Simulador!$J$45)) -> 0 | O49: 0 | P49: 0 | S49: 0 | T49: 0 | U49: 0 | W49: 0 | X49: 0 | Y49: 0 | Z49: 0 | AA49: =IF(W48<0.01,0,+W48/1000*Simulador!$V$14+IF($D$8>0,$D$8,$D$7)/1000*Simulador!$V$15) -> 0 | AB49: =IF(W48<0.01,0,Simulador!$V$16) -> 0 | AC49: 0 | AD49: 0 | AE49: 0 | AF49: 0 | AG49: 0 | AI49: 0 | AJ49: 27
B50: 28 | C50: 2 | D50: 4 | E50: 0.1025 | F50: 0 | G50: 0 | H50: 0 | I50: 0 | J50: 0 | K50: =IF(F50<0.01,0,F50/1000*IF(Simulador!$X$8=1,0,Simulador!$V$14)+IF($D$8>0,$D$8,$D$7)/1000*IF(Simulador!$X$8=1,0,Simulador!$V$15)) -> 0 | L50: =IF(F49-H50=0,0,L48) -> 0 | M50: =MAX(0,MIN(F49+G50+K50+L50-(I50+K50+L50),Simulador!$J$45)) -> 0 | O50: 0 | P50: 0 | S50: 0 | T50: 0 | U50: 0 | W50: 0 | X50: 0 | Y50: 0 | Z50: 0 | AA50: =IF(W49<0.01,0,+W49/1000*Simulador!$V$14+IF($D$8>0,$D$8,$D$7)/1000*Simulador!$V$15) -> 0 | AB50: =IF(W49<0.01,0,Simulador!$V$16) -> 0 | AC50: 0 | AD50: 0 | AE50: 0 | AF50: 0 | AG50: 0 | AI50: 0 | AJ50: 28
B51: 29 | C51: 2 | D51: 5 | E51: 0.1025 | F51: 0 | G51: 0 | H51: 0 | I51: 0 | J51: 0 | K51: =IF(F51<0.01,0,F51/1000*IF(Simulador!$X$8=1,0,Simulador!$V$14)+IF($D$8>0,$D$8,$D$7)/1000*IF(Simulador!$X$8=1,0,Simulador!$V$15)) -> 0 | L51: 0 | M51: =MAX(0,MIN(F50+G51+K51+L51-(I51+K51+L51),Simulador!$J$45)) -> 0 | O51: 0 | P51: 0 | S51: 0 | T51: 0 | U51: 0 | W51: 0 | X51: 0 | Y51: 0 | Z51: 0 | AA51: =IF(W50<0.01,0,+W50/1000*Simulador!$V$14+IF($D$8>0,$D$8,$D$7)/1000*Simulador!$V$15) -> 0 | AB51: =IF(W50<0.01,0,Simulador!$V$16) -> 0 | AC51: 0 | AD51: 0 | AE51: 0 | AF51: 0 | AG51: 0 | AI51: 0 | AJ51: 29
B52: 30 | C52: 2 | D52: 6 | E52: 0.1025 | F52: 0 | G52: 0 | H52: 0 | I52: 0 | J52: 0 | K52: =IF(F52<0.01,0,F52/1000*IF(Simulador!$X$8=1,0,Simulador!$V$14)+IF($D$8>0,$D$8,$D$7)/1000*IF(Simulador!$X$8=1,0,Simulador!$V$15)) -> 0 | L52: =IF(F51-H52=0,0,L50) -> 0 | M52: =MAX(0,MIN(F51+G52+K52+L52-(I52+K52+L52),Simulador!$J$45)) -> 0 | O52: 0 | P52: 0 | S52: 0 | T52: 0 | U52: 0 | W52: 0 | X52: 0 | Y52: 0 | Z52: 0 | AA52: =IF(W51<0.01,0,+W51/1000*Simulador!$V$14+IF($D$8>0,$D$8,$D$7)/1000*Simulador!$V$15) -> 0 | AB52: =IF(W51<0.01,0,Simulador!$V$16) -> 0 | AC52: 0 | AD52: 0 | AE52: 0 | AF52: 0 | AG52: 0 | AI52: 0 | AJ52: 30
B53: 31 | C53: 2 | D53: 7 | E53: 0.1025 | F53: 0 | G53: 0 | H53: 0 | I53: 0 | J53: 0 | K53: =IF(F53<0.01,0,F53/1000*IF(Simulador!$X$8=1,0,Simulador!$V$14)+IF($D$8>0,$D$8,$D$7)/1000*IF(Simulador!$X$8=1,0,Simulador!$V$15)) -> 0 | L53: 0 | M53: =MAX(0,MIN(F52+G53+K53+L53-(I53+K53+L53),Simulador!$J$45)) -> 0 | O53: 0 | P53: 0 | S53: 0 | T53: 0 | U53: 0 | W53: 0 | X53: 0 | Y53: 0 | Z53: 0 | AA53: =IF(W52<0.01,0,+W52/1000*Simulador!$V$14+IF($D$8>0,$D$8,$D$7)/1000*Simulador!$V$15) -> 0 | AB53: =IF(W52<0.01,0,Simulador!$V$16) -> 0 | AC53: 0 | AD53: 0 | AE53: 0 | AF53: 0 | AG53: 0 | AI53: 0 | AJ53: 31
B54: 32 | C54: 2 | D54: 8 | E54: 0.1025 | F54: 0 | G54: 0 | H54: 0 | I54: 0 | J54: 0 | K54: =IF(F54<0.01,0,F54/1000*IF(Simulador!$X$8=1,0,Simulador!$V$14)+IF($D$8>0,$D$8,$D$7)/1000*IF(Simulador!$X$8=1,0,Simulador!$V$15)) -> 0 | L54: =IF(F53-H54=0,0,L52) -> 0 | M54: =MAX(0,MIN(F53+G54+K54+L54-(I54+K54+L54),Simulador!$J$45)) -> 0 | O54: 0 | P54: 0 | S54: 0 | T54: 0 | U54: 0 | W54: 0 | X54: 0 | Y54: 0 | Z54: 0 | AA54: =IF(W53<0.01,0,+W53/1000*Simulador!$V$14+IF($D$8>0,$D$8,$D$7)/1000*Simulador!$V$15) -> 0 | AB54: =IF(W53<0.01,0,Simulador!$V$16) -> 0 | AC54: 0 | AD54: 0 | AE54: 0 | AF54: 0 | AG54: 0 | AI54: 0 | AJ54: 32
B55: 33 | C55: 2 | D55: 9 | E55: 0.1025 | F55: 0 | G55: 0 | H55: 0 | I55: 0 | J55: 0 | K55: =IF(F55<0.01,0,F55/1000*IF(Simulador!$X$8=1,0,Simulador!$V$14)+IF($D$8>0,$D$8,$D$7)/1000*IF(Simulador!$X$8=1,0,Simulador!$V$15)) -> 0 | L55: 0 | M55: =MAX(0,MIN(F54+G55+K55+L55-(I55+K55+L55),Simulador!$J$45)) -> 0 | O55: 0 | P55: 0 | S55: 0 | T55: 0 | U55: 0 | W55: 0 | X55: 0 | Y55: 0 | Z55: 0 | AA55: =IF(W54<0.01,0,+W54/1000*Simulador!$V$14+IF($D$8>0,$D$8,$D$7)/1000*Simulador!$V$15) -> 0 | AB55: =IF(W54<0.01,0,Simulador!$V$16) -> 0 | AC55: 0 | AD55: 0 | AE55: 0 | AF55: 0 | AG55: 0 | AI55: 0 | AJ55: 33
B56: 34 | C56: 2 | D56: 10 | E56: 0.1025 | F56: 0 | G56: 0 | H56: 0 | I56: 0 | J56: 0 | K56: =IF(F56<0.01,0,F56/1000*IF(Simulador!$X$8=1,0,Simulador!$V$14)+IF($D$8>0,$D$8,$D$7)/1000*IF(Simulador!$X$8=1,0,Simulador!$V$15)) -> 0 | L56: =IF(F55-H56=0,0,L54) -> 0 | M56: =MAX(0,MIN(F55+G56+K56+L56-(I56+K56+L56),Simulador!$J$45)) -> 0 | O56: 0 | P56: 0 | S56: 0 | T56: 0 | U56: 0 | W56: 0 | X56: 0 | Y56: 0 | Z56: 0 | AA56: =IF(W55<0.01,0,+W55/1000*Simulador!$V$14+IF($D$8>0,$D$8,$D$7)/1000*Simulador!$V$15) -> 0 | AB56: =IF(W55<0.01,0,Simulador!$V$16) -> 0 | AC56: 0 | AD56: 0 | AE56: 0 | AF56: 0 | AG56: 0 | AI56: 0 | AJ56: 34
